Workbook

Sheet Home
B11: Home
B13: Performance Metrics
B15: Raw Data
B17: Administration
F23: April Performance Metrics

Sheet Manager Performance
G3: Start Date: 04/01/2024, End Date: 04/17/2024
H4: Score | I4: # NPS WO's | J4: # Failures | K4: NPS | L4: Total Repeatable WO | M4: Total Repeats | N4: Repeats | O4: Total Repeatable WO | P4: Repeat IN | Q4: IN Repeat % | R4: Total Repeatable WO | S4: Repeat TC | T4: Repeat TC % | U4: Jobs | V4: Pass | W4: SQT Compliance | X4: Test Fail | Y4: SQT Pass | Z4: Ingress Test Run | AA4: Test Passed | AB4: Ingress Test Pass | AC4: FCR WO | AD4: FCR Failures | AE4: FCR | AF4: Jobs | AG4: Jobs Late | AH4: OTA | AI4: Jobs | AJ4: Completed Jobs | AK4: Completion % | AL4: Total QC | AM4: QC Failure | AN4: SMS tNPS
AL5: =AL18 -> 0 | AM5: 0 | AN5: =IFERROR(1-AM5/AL5,"") -> 
G6: Macon | H6: =IF(W6="","",IFERROR(IF(K6>=70%,2.5,0)+IF(N6<=4%,2.5,0)+IF(W6>=90%,2.5,0)+IF(AH6>=96%,2.5,0),"")) -> 10 | I6: =I20 -> 40 | J6: 9 | K6: =IFERROR(1-(J6/I6),"") -> 0.775 | L6: =L20 -> 624 | M6: 13 | N6: =IFERROR(SUM(M6/L6),"") -> 0.0208 | O6: =Macon!O34 -> 350 | P6: =P20 -> 7 | Q6: =IFERROR(SUM(P6/O6),"") -> 0.02 | R6: =R20 -> 274 | S6: =S20 -> 6 | T6: =IFERROR(SUM(S6/R6),"") -> 0.0219 | U6: =U20 -> 403 | V6: 390 | W6: =IFERROR(SUM(V6/U6),"") -> 0.9677 | X6: =X20 -> 4 | Y6: =IFERROR(SUM(1-X6/V6),"") -> 0.9897 | AC6: =AC20 -> 351 | AD6: 4 | AE6: =IFERROR(1-AD6/AC6,"") -> 0.9886 | AF6: =AF20 -> 264 | AG6: 8 | AH6: =IFERROR(1-AG6/AF6,"") -> 0.9697 | AI6: =AI20 -> 720 | AJ6: 610 | AK6: =IFERROR(AJ6/AI6,"") -> 0.8472 | AL6: 0 | AM6: 0
G7: Gainesville | H7: =IF(W7="","",IFERROR(IF(K7>=70%,2.5,0)+IF(N7<=4%,2.5,0)+IF(W7>=90%,2.5,0)+IF(AH7>=96%,2.5,0),"")) -> 10 | I7: 41 | J7: 8.9997 | K7: 0.7805 | L7: 447 | M7: 5 | N7: 0.0112 | O7: =O21 -> 237 | P7: 5 | Q7: 0.0211 | R7: =R21 -> 210 | S7: 0 | T7: 0 | U7: 250 | V7: 242 | W7: =IFERROR(SUM(V7/U7),"") -> 0.968 | X7: 4 | Y7: =IFERROR(SUM(1-X7/V7),"") -> 0.9835 | AC7: 206 | AD7: 3 | AE7: 0.9854 | AF7: 132 | AG7: 4 | AH7: 0.9697 | AI7: 508 | AJ7: 442 | AK7: 0.8701 | AL7: 0 | AM7: 0
G8: New Orleans | H8: 5 | I8: 9 | J8: 3 | K8: 0.6667 | L8: 248 | M8: 7 | N8: 0.0282 | O8: =O22 -> 130 | P8: 5 | Q8: 0.0385 | R8: =R22 -> 118 | S8: 2 | T8: 0.0169 | U8: 223 | V8: 215 | W8: 0.9641 | X8: 14 | Y8: 0.9349 | AC8: 94 | AD8: 2 | AE8: 0.9787 | AF8: 80 | AG8: 10 | AH8: 0.875 | AI8: 308 | AJ8: 247 | AK8: 0.8019 | AL8: 0 | AM8: 0 | AN8: =IFERROR(1-AM8/AL8,"") -> 
G9: Baton Rouge | H9: 2.5 | I9: 14 | J9: 5.0001 | K9: 0.6429 | L9: 461 | M9: 21 | N9: =IFERROR(SUM(M9/L9),"") -> 0.0456 | O9: =O23 -> 245 | P9: 12 | Q9: 0.049 | R9: =R23 -> 216 | S9: 9 | T9: 0.0417 | U9: 53 | V9: 53 | W9: 1 | X9: 0 | Y9: 1 | AC9: 184 | AD9: 4 | AE9: =IFERROR(1-AD9/AC9,"") -> 0.9783 | AF9: 141 | AG9: 6 | AH9: =IFERROR(1-AG9/AF9,"") -> 0.9574 | AI9: 564 | AJ9: 461 | AK9: =IFERROR(AJ9/AI9,"") -> 0.8174 | AL9: 0 | AM9: 0 | AN9: =IFERROR(1-AM9/AL9,"") -> 
G10: Hampton Roads | H10: 5 | I10: 34 | J10: 7.9997 | K10: =IFERROR(1-(J10/I10),"") -> 0.7647 | L10: 598 | M10: 26 | N10: =IFERROR(SUM(M10/L10),"") -> 0.0435 | O10: =O24 -> 325 | P10: 11 | Q10: 0.0338 | R10: =R24 -> 273 | S10: 15 | T10: 0.0549 | U10: 588 | V10: 463 | W10: 0.7874 | X10: 137 | Y10: 0.7041 | AC10: 331 | AD10: 14 | AE10: =IFERROR(1-AD10/AC10,"") -> 0.9577 | AF10: 196 | AG10: 6 | AH10: =IFERROR(1-AG10/AF10,"") -> 0.9694 | AI10: 564 | AJ10: 523 | AK10: =IFERROR(AJ10/AI10,"") -> 0.9273 | AL10: 0 | AM10: 0 | AN10: =IFERROR(1-AM10/AL10,"") -> 
B11: Home | G11: Roanoke | H11: 7.5 | I11: 6 | J11: 2.9999 | K11: =IFERROR(1-(J11/I11),"") -> 0.5 | L11: 203 | M11: 3 | N11: =IFERROR(SUM(M11/L11),"") -> 0.0148 | O11: =O25 -> 129 | P11: 3 | Q11: 0.0233 | R11: =R25 -> 74 | S11: 0 | T11: 0 | U11: 124 | V11: 119 | W11: 0.9597 | X11: 1 | Y11: 0.9916 | AC11: 149 | AD11: 3 | AE11: =IFERROR(1-AD11/AC11,"") -> 0.9799 | AF11: 67 | AG11: 0 | AH11: =IFERROR(1-AG11/AF11,"") -> 1 | AI11: 212 | AJ11: 203 | AK11: =IFERROR(AJ11/AI11,"") -> 0.9575 | AL11: 0 | AM11: 0 | AN11: =IFERROR(1-AM11/AL11,"") -> 
G12: Gulf Coast | H12: 7.5 | I12: 57 | J12: 14.9996 | K12: =IFERROR(1-(J12/I12),"") -> 0.7368 | L12: 689 | M12: 24 | N12: =IFERROR(SUM(M12/L12),"") -> 0.0348 | O12: =O26 -> 328 | P12: 12 | Q12: 0.0366 | R12: =R26 -> 361 | S12: 12 | T12: 0.0332 | U12: 464 | V12: 427 | W12: 0.9203 | X12: 28 | Y12: 0.9344 | AC12: 324 | AD12: 12 | AE12: =IFERROR(1-AD12/AC12,"") -> 0.963 | AF12: 203 | AG12: 18 | AH12: =IFERROR(1-AG12/AF12,"") -> 0.9113 | AI12: 750 | AJ12: 657 | AK12: =IFERROR(AJ12/AI12,"") -> 0.876 | AL12: 0 | AM12: 0 | AN12: =IFERROR(1-AM12/AL12,"") -> 
B13: Performance Metrics | G13: Oklahoma City | H13: 7.5 | I13: 12 | J13: 3 | K13: =IFERROR(1-(J13/I13),"") -> 0.75 | L13: 259 | M13: 6 | N13: =IFERROR(SUM(M13/L13),"") -> 0.0232 | O13: =O27 -> 122 | P13: 3 | Q13: 0.0246 | R13: =R27 -> 137 | S13: 3 | T13: 0.0219 | U13: 221 | V13: 217 | W13: 0.9819 | X13: 23 | Y13: 0.894 | AC13: 166 | AD13: 6 | AE13: =IFERROR(1-AD13/AC13,"") -> 0.9639 | AF13: 111 | AG13: 16 | AH13: =IFERROR(1-AG13/AF13,"") -> 0.8559 | AI13: 306 | AJ13: 257 | AK13: =IFERROR(AJ13/AI13,"") -> 0.8399
B14: Gainesville | AL14: =SUM(AL5:AL11) -> 0 | AM14: =SUM(AM5:AM11) -> 0 | AN14: =IFERROR(1-AM14/AL14,"") -> 
B15: Macon | G15: COX Total | H15: 7.5 | I15: =SUM(I6:I12) -> 201 | J15: =SUM(J6:J12) -> 51.999 | K15: =IFERROR(1-(J15/I15),"") -> 0.7413 | L15: =SUM(L6:L12) -> 3270 | M15: =SUM(M6:M12) -> 99 | N15: =IFERROR(SUM(M15/L15),"") -> 0.0303 | O15: =SUM(O6:O13) -> 1866 | P15: =SUM(P6:P13) -> 58 | Q15: 0.0311 | R15: =SUM(R6:R13) -> 1663 | S15: =SUM(S6:S13) -> 47 | T15: 0.0283 | U15: =SUM(U6:U12) -> 2105 | V15: =SUM(V6:V12) -> 1909 | W15: 0.9069 | X15: =SUM(X6:X13) -> 211 | Y15: 0.8895 | AC15: =SUM(AC6:AC12) -> 1639 | AD15: =SUM(AD6:AD12) -> 42 | AE15: =IFERROR(1-AD15/AC15,"") -> 0.9744 | AF15: =SUM(AF6:AF12) -> 1083 | AG15: =SUM(AG6:AG12) -> 52 | AH15: =IFERROR(1-AG15/AF15,"") -> 0.952 | AI15: =SUM(AI6:AI12) -> 3626 | AJ15: =SUM(AJ6:AJ12) -> 3143 | AK15: =IFERROR(AJ15/AI15,"") -> 0.8668
B16: New Orleans
B17: Hampton Roads | AL17: Total QC | AM17: QC Failure | AN17: SMS tNPS
B18: Baton Rouge | G18: Supervisor | H18: Score | I18: # NPS WO's | J18: # Failures | K18: NPS | L18: Total Repeatable WO | M18: Total Repeats | N18: Repeats | O18: Total Repeatable WO | P18: Repeat IN | Q18: IN Repeat % | R18: Total Repeatable WO | S18: Repeat TC | T18: Repeat TC % | U18: Jobs | V18: Pass | W18: SQT Compliance | X18: Test Fail | Y18: SQT Pass | Z18: Ingress Test Run | AA18: Test Passed | AB18: Ingress Test Pass | AC18: FCR WO | AD18: FCR Failures | AE18: FCR | AF18: Jobs | AG18: Jobs Late | AH18: OTA | AI18: Jobs | AJ18: Completed Jobs | AK18: Completion % | AL18: =Macon!AK34 -> 0 | AM18: =Macon!AL34 -> 0 | AN18: =IFERROR(1-AM18/AL18,"") -> 
B19: Roanoke | AL19: =Gainesville!AK34 -> 0 | AM19: =Gainesville!AL34 -> 0
B20: Gulf Coast | F20: Macon | G20: Deandre McCants | H20: =IF(W20="","",IFERROR(IF(K20>=70%,2.5,0)+IF(N20<=4%,2.5,0)+IF(W20>=90%,2.5,0)+IF(AH20>=96%,2.5,0),"")) -> 10 | I20: =Macon!I33 -> 40 | J20: =Macon!J33 -> 9 | K20: =IFERROR(1-(J20/I20),"") -> 0.775 | L20: =Macon!L34 -> 624 | M20: =Macon!M34 -> 13 | N20: =IFERROR(SUM(M20/L20),"") -> 0.0208 | O20: =Macon!O34 -> 350 | P20: =Macon!P34 -> 7 | Q20: =IFERROR(SUM(P20/O20),"") -> 0.02 | R20: =Macon!R34 -> 274 | S20: =Macon!S34 -> 6 | T20: =IFERROR(SUM(S20/R20),"") -> 0.0219 | U20: =Macon!U34 -> 403 | V20: =Macon!V34 -> 390 | W20: =IFERROR(SUM(V20/U20),"") -> 0.9677 | X20: =Macon!X34 -> 4 | Y20: =IFERROR(SUM(1-X20/V20),"") -> 0.9897 | AC20: =Macon!AB34 -> 351 | AD20: =Macon!AC34 -> 4 | AE20: =IFERROR(1-AD20/AC20,"") -> 0.9886 | AF20: =Macon!AE34 -> 264 | AG20: =Macon!AF34 -> 8 | AH20: =IFERROR(1-AG20/AF20,"") -> 0.9697 | AI20: =Macon!AH34 -> 720 | AJ20: =Macon!AI34 -> 610 | AK20: =IFERROR(AJ20/AI20,"") -> 0.8472 | AL20: ='New Orleans'!AK34 -> 0 | AM20: ='New Orleans'!AL34 -> 0
B21: Oklahoma City | F21: Gainesville | G21: Scotty Lynch | H21: 10 | I21: =Gainesville!I34 -> 41 | J21: =Gainesville!J34 -> 8.9997 | K21: 0.7805 | L21: =Gainesville!L34 -> 447 | M21: =Gainesville!M34 -> 5 | N21: 0.0112 | O21: =Gainesville!O34 -> 237 | P21: =Gainesville!P34 -> 5 | Q21: 0.0211 | R21: =Gainesville!R34 -> 210 | S21: =Gainesville!S34 -> 0 | T21: 0 | U21: =Gainesville!U34 -> 250 | V21: =Gainesville!V34 -> 242 | W21: =IFERROR(SUM(V21/U21),"") -> 0.968 | X21: =Gainesville!X34 -> 4 | Y21: =IFERROR(SUM(1-X21/V21),"") -> 0.9835 | AC21: =Gainesville!AB34 -> 206 | AD21: =Gainesville!AC34 -> 3 | AE21: 0.9854 | AF21: =Gainesville!AE34 -> 132 | AG21: =Gainesville!AF34 -> 4 | AH21: 0.9697 | AI21: =Gainesville!AH34 -> 508 | AJ21: =Gainesville!AI34 -> 442 | AK21: 0.8701 | AL21: ='Baton Rouge'!AK34 -> 0 | AM21: ='Baton Rouge'!AL34 -> 0
B22: Tech Rankings | F22: New Orleans | G22: Josh Baudin | H22: 5 | I22: ='New Orleans'!I33 -> 9 | J22: ='New Orleans'!J33 -> 3 | K22: 0.6667 | L22: ='New Orleans'!L34 -> 248 | M22: ='New Orleans'!M34 -> 7 | N22: 0.0282 | O22: ='New Orleans'!O34 -> 130 | P22: ='New Orleans'!P34 -> 5 | Q22: 0.0385 | R22: ='New Orleans'!R34 -> 118 | S22: ='New Orleans'!S34 -> 2 | T22: 0.0169 | U22: ='New Orleans'!U34 -> 223 | V22: ='New Orleans'!V34 -> 215 | W22: 0.9641 | X22: ='New Orleans'!X34 -> 14 | Y22: 0.9349 | AC22: ='New Orleans'!AB34 -> 94 | AD22: ='New Orleans'!AC34 -> 2 | AE22: 0.9787 | AF22: ='New Orleans'!AE34 -> 80 | AG22: ='New Orleans'!AF34 -> 10 | AH22: 0.875 | AI22: ='New Orleans'!AH34 -> 308 | AJ22: ='New Orleans'!AI34 -> 247 | AK22: 0.8019 | AL22: ='Hampton Roads'!AK34 -> 0 | AM22: ='Hampton Roads'!AL34 -> 0 | AN22: =IFERROR(1-AM22/AL22,"") -> 
F23: Baton Rouge | G23: Aisha Alexander | H23: 2.5 | I23: ='Baton Rouge'!I33 -> 14 | J23: ='Baton Rouge'!J33 -> 5.0001 | K23: 0.6429 | L23: ='Baton Rouge'!L34 -> 461 | M23: ='Baton Rouge'!M34 -> 21 | N23: 0.0456 | O23: ='Baton Rouge'!O34 -> 245 | P23: ='Baton Rouge'!P34 -> 12 | Q23: 0.049 | R23: ='Baton Rouge'!R34 -> 216 | S23: ='Baton Rouge'!S34 -> 9 | T23: 0.0417 | U23: ='Baton Rouge'!U34 -> 53 | V23: ='Baton Rouge'!V34 -> 53 | W23: 1 | X23: ='Baton Rouge'!X34 -> 0 | Y23: 1 | AC23: ='Baton Rouge'!AB34 -> 184 | AD23: ='Baton Rouge'!AC34 -> 4 | AE23: 0.9783 | AF23: ='Baton Rouge'!AE34 -> 141 | AG23: ='Baton Rouge'!AF34 -> 6 | AH23: 0.9574 | AI23: ='Baton Rouge'!AH34 -> 564 | AJ23: ='Baton Rouge'!AI34 -> 461 | AK23: 0.8174 | AL23: =Roanoke!AK34 -> 0 | AM23: =Roanoke!AL34 -> 0 | AN23: =IFERROR(1-AM23/AL23,"") -> 
B24: Raw Data | F24: Hampton Roads | G24: Jervar Gayle | H24: 5 | I24: ='Hampton Roads'!I33 -> 34 | J24: ='Hampton Roads'!J33 -> 7.9997 | K24: =IFERROR(1-(J24/I24),"") -> 0.7647 | L24: ='Hampton Roads'!L34 -> 598 | M24: ='Hampton Roads'!M34 -> 26 | N24: =IFERROR(SUM(M24/L24),"") -> 0.0435 | O24: ='Hampton Roads'!O34 -> 325 | P24: ='Hampton Roads'!P34 -> 11 | Q24: 0.0338 | R24: ='Hampton Roads'!R34 -> 273 | S24: ='Hampton Roads'!S34 -> 15 | T24: 0.0549 | U24: ='Hampton Roads'!U34 -> 588 | V24: ='Hampton Roads'!V34 -> 463 | W24: 0.7874 | X24: ='Hampton Roads'!X34 -> 137 | Y24: 0.7041 | AC24: ='Hampton Roads'!AB34 -> 331 | AD24: ='Hampton Roads'!AC34 -> 14 | AE24: =IFERROR(1-AD24/AC24,"") -> 0.9577 | AF24: ='Hampton Roads'!AE34 -> 196 | AG24: ='Hampton Roads'!AF34 -> 6 | AH24: =IFERROR(1-AG24/AF24,"") -> 0.9694 | AI24: ='Hampton Roads'!AH34 -> 564 | AJ24: ='Hampton Roads'!AI34 -> 523 | AK24: =IFERROR(AJ24/AI24,"") -> 0.9273 | AL24: ='Gulf Coast'!AK34 -> 0 | AM24: ='Gulf Coast'!AL34 -> 0 | AN24: =IFERROR(1-AM24/AL24,"") -> 
F25: Roanoke | G25: Donnie Evans | H25: 7.5 | I25: =Roanoke!I33 -> 6 | J25: =Roanoke!J33 -> 2.9999 | K25: =IFERROR(1-(J25/I25),"") -> 0.5 | L25: =Roanoke!L34 -> 203 | M25: =Roanoke!M34 -> 3 | N25: =IFERROR(SUM(M25/L25),"") -> 0.0148 | O25: =Roanoke!O34 -> 129 | P25: =Roanoke!P34 -> 3 | Q25: 0.0233 | R25: =Roanoke!R34 -> 74 | S25: =Roanoke!S34 -> 0 | T25: 0 | U25: =Roanoke!U34 -> 124 | V25: =Roanoke!V34 -> 119 | W25: 0.9597 | X25: =Roanoke!X34 -> 1 | Y25: 0.9916 | AC25: =Roanoke!AB34 -> 149 | AD25: =Roanoke!AC34 -> 3 | AE25: =IFERROR(1-AD25/AC25,"") -> 0.9799 | AF25: =Roanoke!AE34 -> 67 | AG25: =Roanoke!AF34 -> 0 | AH25: =IFERROR(1-AG25/AF25,"") -> 1 | AI25: =Roanoke!AH34 -> 212 | AJ25: =Roanoke!AI34 -> 203 | AK25: =IFERROR(AJ25/AI25,"") -> 0.9575 | AL25: ='Oklahoma City'!AK34 -> 0 | AM25: ='Oklahoma City'!AL34 -> 0 | AN25: =IFERROR(1-AM25/AL25,"") -> 
F26: Gulf Coast | G26: Brenton Austin | H26: 7.5 | I26: ='Gulf Coast'!I33 -> 57 | J26: ='Gulf Coast'!J33 -> 14.9996 | K26: =IFERROR(1-(J26/I26),"") -> 0.7368 | L26: ='Gulf Coast'!L34 -> 689 | M26: ='Gulf Coast'!M34 -> 24 | N26: =IFERROR(SUM(M26/L26),"") -> 0.0348 | O26: ='Gulf Coast'!O34 -> 328 | P26: ='Gulf Coast'!P34 -> 12 | Q26: 0.0366 | R26: ='Gulf Coast'!R34 -> 361 | S26: ='Gulf Coast'!S34 -> 12 | T26: 0.0332 | U26: ='Gulf Coast'!U34 -> 464 | V26: ='Gulf Coast'!V34 -> 427 | W26: 0.9203 | X26: ='Gulf Coast'!X34 -> 28 | Y26: 0.9344 | AC26: ='Gulf Coast'!AB34 -> 324 | AD26: ='Gulf Coast'!AC34 -> 12 | AE26: =IFERROR(1-AD26/AC26,"") -> 0.963 | AF26: ='Gulf Coast'!AE34 -> 203 | AG26: ='Gulf Coast'!AF34 -> 18 | AH26: =IFERROR(1-AG26/AF26,"") -> 0.9113 | AI26: ='Gulf Coast'!AH34 -> 750 | AJ26: ='Gulf Coast'!AI34 -> 657 | AK26: =IFERROR(AJ26/AI26,"") -> 0.876
F27: Oklahoma City | G27: Saddam Ferzauli | H27: 7.5 | I27: ='Oklahoma City'!I33 -> 12 | J27: ='Oklahoma City'!J33 -> 3 | K27: =IFERROR(1-(J27/I27),"") -> 0.75 | L27: ='Oklahoma City'!L34 -> 259 | M27: ='Oklahoma City'!M34 -> 6 | N27: =IFERROR(SUM(M27/L27),"") -> 0.0232 | O27: ='Oklahoma City'!O34 -> 122 | P27: ='Oklahoma City'!P34 -> 3 | Q27: 0.0246 | R27: ='Oklahoma City'!R34 -> 137 | S27: ='Oklahoma City'!S34 -> 3 | T27: 0.0219 | U27: ='Oklahoma City'!U34 -> 221 | V27: ='Oklahoma City'!V34 -> 217 | W27: 0.9819 | X27: ='Oklahoma City'!X34 -> 23 | Y27: 0.894 | AC27: ='Oklahoma City'!AB34 -> 166 | AD27: ='Oklahoma City'!AC34 -> 6 | AE27: =IFERROR(1-AD27/AC27,"") -> 0.9639 | AF27: ='Oklahoma City'!AE34 -> 111 | AG27: ='Oklahoma City'!AF34 -> 16 | AH27: =IFERROR(1-AG27/AF27,"") -> 0.8559 | AI27: ='Oklahoma City'!AH34 -> 306 | AJ27: ='Oklahoma City'!AI34 -> 257 | AK27: =IFERROR(AJ27/AI27,"") -> 0.8399

Sheet Gainesville
F3: Scotty Lynch
F5: Tech Name | G5: Tech ID | H5: Score | I5: # NPS WO's | J5: # Failures | K5: NPS | L5: Total Repeatable WO | M5: Total Repeats | N5: Repeats | O5: Total Repeatable WO | P5: Repeat IN | Q5: IN Repeat % | R5: Total Repeatable WO | S5: Repeat TC | T5: Repeat TC % | U5: Jobs | V5: Test Run | W5: SQT Compliance | X5: Test Fail | Y5: SQT Pass | Z5: Test Passed | AA5: Ingress Test Pass | AB5: FCR WO | AC5: FCR Failures | AD5: FCR | AE5: Jobs | AF5: Jobs Late | AG5: OTA | AH5: Jobs | AI5: Completed Jobs | AJ5: Completion % | AK5: Total Jobs | AL5: SMS Failures | AM5: SMS tNPS
F7: Nathan Downs | G7: 17176 | H7: =IF(W7="","",IFERROR(IF(K7>=70%,2.5,0)+IF(N7<=4%,2.5,0)+IF(W7>=90%,2.5,0)+IF(AG7>=96%,2.5,0),"")) -> 10 | I7: =IFERROR(VLOOKUP($G7,'Technician Summary'!$G$7:$BB$372,2,FALSE),"") -> 6 | J7: =IFERROR(VLOOKUP($G7,'Technician Summary'!$G$7:$BN$372,60,FALSE),"") -> 0 | K7: =IFERROR(1-(J7/I7),"") -> 1 | L7: =IFERROR(VLOOKUP($G7,'Technician Summary'!$G$7:$BK$372,14,FALSE),"") -> 54 | M7: =IFERROR(VLOOKUP($G7,'Technician Summary'!$G$7:$BK$372,15,FALSE),"") -> 1 | N7: =IFERROR(SUM(M7/L7),"") -> 0.0185 | O7: =IFERROR(VLOOKUP($G7,'Technician Summary'!$G$7:$BK$372,17,FALSE),"") -> 28 | P7: =IFERROR(VLOOKUP($G7,'Technician Summary'!$G$7:$BK$372,18,FALSE),"") -> 1 | Q7: =IFERROR(SUM(P7/O7),"") -> 0.0357 | R7: =IFERROR(VLOOKUP($G7,'Technician Summary'!$G$7:$BK$372,20,FALSE),"") -> 26 | S7: =IFERROR(VLOOKUP($G7,'Technician Summary'!$G$7:$BK$372,21,FALSE),"") -> 0 | T7: =IFERROR(SUM(S7/R7),"") -> 0 | U7: =IF(G7="","",COUNTIFS('StrataSync Data'!$AB:$AB,$G7,'StrataSync Data'!$G:$G,"Closed")) -> 36 | V7: =IF($G7="","",COUNTIFS('StrataSync Data'!$AB:$AB,$G7,'StrataSync Data'!$H:$H,"Yes",'StrataSync Data'!$G:$G,"Closed")) -> 36 | W7: =IFERROR(SUM(V7/U7),"") -> 1 | X7: =IFERROR(IF($G$7="","",COUNTIFS('StrataSync Data'!$AB:$AB,$G7,'StrataSync Data'!$I:$I,"Incomplete",'StrataSync Data'!$H:$H,"Yes",'StrataSync Data'!$G:$G,"Closed"))+IF($G7="","",COUNTIFS('StrataSync Data'!$AB:$AB,$G7,'StrataSync Data'!$I:$I,"Fail",'StrataSync Data'!$H:$H,"Yes",'StrataSync Data'!$G:$G,"Closed")),"") -> 0 | Y7: =IFERROR(SUM(1-X7/V7),"") -> 1 | Z7: =SUMIF('StrataSync Data'!#REF!,G7,'StrataSync Data'!#REF!) ->  | AA7: =IFERROR(SUM(Z7/#REF!),"") ->  | AB7: =IFERROR(VLOOKUP($G7,'Technician Summary'!$G$7:$BK$372,7,FALSE),"") -> 26 | AC7: =IFERROR(VLOOKUP($G7,'Technician Summary'!$G$7:$BK$372,8,FALSE),"") -> 0 | AD7: =IFERROR(1-AC7/AB7,"") -> 1 | AE7: =IFERROR(VLOOKUP($G7,'Technician Summary'!$G$7:$BK$372,34,FALSE),"") -> 18 | AF7: =IFERROR(VLOOKUP($G7,'Technician Summary'!$G$7:$BK$372,35,FALSE),"") -> 0 | AG7: =IFERROR(1-AF7/AE7,"") -> 1 | AH7: =IFERROR(VLOOKUP($G7,'Technician Summary'!$G$7:$BK$372,37,FALSE),"") -> 60 | AI7: =IFERROR(VLOOKUP($G7,'Technician Summary'!$G$7:$BK$372,38,FALSE),"") -> 54 | AJ7: =IFERROR(AI7/AH7,"") -> 0.9 | AK7: =IFERROR(VLOOKUP($G7,'Technician Summary'!$G$7:$BK$372,27,FALSE),"") -> 0 | AL7: =IFERROR(VLOOKUP($G7,'Technician Summary'!$G$7:$BK$372,68,FALSE),"") ->  | AM7: =IFERROR(1-AL7/AK7,"") -> 
F8: Daniel Torres Colon | G8: 21972 | H8: =IF(W8="","",IFERROR(IF(K8>=70%,2.5,0)+IF(N8<=4%,2.5,0)+IF(W8>=90%,2.5,0)+IF(AG8>=96%,2.5,0),"")) ->  | I8: =IFERROR(VLOOKUP($G8,'Technician Summary'!$G$7:$BB$372,2,FALSE),"") ->  | J8: =IFERROR(VLOOKUP($G8,'Technician Summary'!$G$7:$BN$372,60,FALSE),"") ->  | K8: =IFERROR(1-(J8/I8),"") ->  | L8: =IFERROR(VLOOKUP($G8,'Technician Summary'!$G$7:$BK$372,14,FALSE),"") ->  | M8: =IFERROR(VLOOKUP($G8,'Technician Summary'!$G$7:$BK$372,15,FALSE),"") ->  | N8: =IFERROR(SUM(M8/L8),"") ->  | O8: =IFERROR(VLOOKUP($G8,'Technician Summary'!$G$7:$BK$372,17,FALSE),"") ->  | P8: =IFERROR(VLOOKUP($G8,'Technician Summary'!$G$7:$BK$372,18,FALSE),"") ->  | Q8: =IFERROR(SUM(P8/O8),"") ->  | R8: =IFERROR(VLOOKUP($G8,'Technician Summary'!$G$7:$BK$372,20,FALSE),"") ->  | S8: =IFERROR(VLOOKUP($G8,'Technician Summary'!$G$7:$BK$372,21,FALSE),"") ->  | T8: =IFERROR(SUM(S8/R8),"") ->  | U8: =IF(G8="","",COUNTIFS('StrataSync Data'!$AB:$AB,$G8,'StrataSync Data'!$G:$G,"Closed")) -> 0 | V8: =IF($G8="","",COUNTIFS('StrataSync Data'!$AB:$AB,$G8,'StrataSync Data'!$H:$H,"Yes",'StrataSync Data'!$G:$G,"Closed")) -> 0 | W8: =IFERROR(SUM(V8/U8),"") ->  | X8: =IFERROR(IF($G$7="","",COUNTIFS('StrataSync Data'!$AB:$AB,$G8,'StrataSync Data'!$I:$I,"Incomplete",'StrataSync Data'!$H:$H,"Yes",'StrataSync Data'!$G:$G,"Closed"))+IF($G8="","",COUNTIFS('StrataSync Data'!$AB:$AB,$G8,'StrataSync Data'!$I:$I,"Fail",'StrataSync Data'!$H:$H,"Yes",'StrataSync Data'!$G:$G,"Closed")),"") -> 0 | Y8: =IFERROR(SUM(1-X8/V8),"") ->  | Z8: =SUMIF('StrataSync Data'!#REF!,G8,'StrataSync Data'!#REF!) ->  | AA8: =IFERROR(SUM(Z8/#REF!),"") ->  | AB8: =IFERROR(VLOOKUP($G8,'Technician Summary'!$G$7:$BK$372,7,FALSE),"") ->  | AC8: =IFERROR(VLOOKUP($G8,'Technician Summary'!$G$7:$BK$372,8,FALSE),"") ->  | AD8: =IFERROR(1-AC8/AB8,"") ->  | AE8: =IFERROR(VLOOKUP($G8,'Technician Summary'!$G$7:$BK$372,34,FALSE),"") ->  | AF8: =IFERROR(VLOOKUP($G8,'Technician Summary'!$G$7:$BK$372,35,FALSE),"") ->  | AG8: =IFERROR(1-AF8/AE8,"") ->  | AH8: =IFERROR(VLOOKUP($G8,'Technician Summary'!$G$7:$BK$372,37,FALSE),"") ->  | AI8: =IFERROR(VLOOKUP($G8,'Technician Summary'!$G$7:$BK$372,38,FALSE),"") ->  | AJ8: =IFERROR(AI8/AH8,"") ->  | AK8: =IFERROR(VLOOKUP($G8,'Technician Summary'!$G$7:$BK$372,27,FALSE),"") ->  | AL8: =IFERROR(VLOOKUP($G8,'Technician Summary'!$G$7:$BK$372,68,FALSE),"") ->  | AM8: =IFERROR(1-AL8/AK8,"") -> 
F9: Opnodo Evanson | G9: 81924 | H9: 7.5 | I9: =IFERROR(VLOOKUP($G9,'Technician Summary'!$G$7:$BB$372,2,FALSE),"") -> 1 | J9: =IFERROR(VLOOKUP($G9,'Technician Summary'!$G$7:$BN$372,60,FALSE),"") -> 0 | K9: 1 | L9: =IFERROR(VLOOKUP($G9,'Technician Summary'!$G$7:$BK$372,14,FALSE),"") -> 57 | M9: =IFERROR(VLOOKUP($G9,'Technician Summary'!$G$7:$BK$372,15,FALSE),"") -> 1 | N9: 0.0175 | O9: =IFERROR(VLOOKUP($G9,'Technician Summary'!$G$7:$BK$372,17,FALSE),"") -> 35 | P9: =IFERROR(VLOOKUP($G9,'Technician Summary'!$G$7:$BK$372,18,FALSE),"") -> 1 | Q9: 0.0286 | R9: =IFERROR(VLOOKUP($G9,'Technician Summary'!$G$7:$BK$372,20,FALSE),"") -> 22 | S9: =IFERROR(VLOOKUP($G9,'Technician Summary'!$G$7:$BK$372,21,FALSE),"") -> 0 | T9: 0 | U9: =IF(G9="","",COUNTIFS('StrataSync Data'!$AB:$AB,$G9,'StrataSync Data'!$G:$G,"Closed")) -> 17 | V9: =IF($G9="","",COUNTIFS('StrataSync Data'!$AB:$AB,$G9,'StrataSync Data'!$H:$H,"Yes",'StrataSync Data'!$G:$G,"Closed")) -> 16 | W9: 0.9412 | X9: =IFERROR(IF($G$7="","",COUNTIFS('StrataSync Data'!$AB:$AB,$G9,'StrataSync Data'!$I:$I,"Incomplete",'StrataSync Data'!$H:$H,"Yes",'StrataSync Data'!$G:$G,"Closed"))+IF($G9="","",COUNTIFS('StrataSync Data'!$AB:$AB,$G9,'StrataSync Data'!$I:$I,"Fail",'StrataSync Data'!$H:$H,"Yes",'StrataSync Data'!$G:$G,"Closed")),"") -> 0 | Y9: 1 | Z9: =SUMIF('StrataSync Data'!#REF!,G9,'StrataSync Data'!#REF!) ->  | AA9: =IFERROR(SUM(Z9/#REF!),"") ->  | AB9: =IFERROR(VLOOKUP($G9,'Technician Summary'!$G$7:$BK$372,7,FALSE),"") -> 24 | AC9: =IFERROR(VLOOKUP($G9,'Technician Summary'!$G$7:$BK$372,8,FALSE),"") -> 0 | AD9: 1 | AE9: =IFERROR(VLOOKUP($G9,'Technician Summary'!$G$7:$BK$372,34,FALSE),"") -> 24 | AF9: =IFERROR(VLOOKUP($G9,'Technician Summary'!$G$7:$BK$372,35,FALSE),"") -> 1 | AG9: 0.9583 | AH9: =IFERROR(VLOOKUP($G9,'Technician Summary'!$G$7:$BK$372,37,FALSE),"") -> 64 | AI9: =IFERROR(VLOOKUP($G9,'Technician Summary'!$G$7:$BK$372,38,FALSE),"") -> 55 | AJ9: 0.8594 | AK9: =IFERROR(VLOOKUP($G9,'Technician Summary'!$G$7:$BK$372,27,FALSE),"") -> 0 | AL9: =IFERROR(VLOOKUP($G9,'Technician Summary'!$G$7:$BK$372,68,FALSE),"") -> 
F10: Omar Graterol | G10: 24375 | I10: =IFERROR(VLOOKUP($G10,'Technician Summary'!$G$7:$BB$372,2,FALSE),"") ->  | J10: =IFERROR(VLOOKUP($G10,'Technician Summary'!$G$7:$BN$372,60,FALSE),"") ->  | L10: =IFERROR(VLOOKUP($G10,'Technician Summary'!$G$7:$BK$372,14,FALSE),"") ->  | M10: =IFERROR(VLOOKUP($G10,'Technician Summary'!$G$7:$BK$372,15,FALSE),"") ->  | O10: =IFERROR(VLOOKUP($G10,'Technician Summary'!$G$7:$BK$372,17,FALSE),"") ->  | P10: =IFERROR(VLOOKUP($G10,'Technician Summary'!$G$7:$BK$372,18,FALSE),"") ->  | R10: =IFERROR(VLOOKUP($G10,'Technician Summary'!$G$7:$BK$372,20,FALSE),"") ->  | S10: =IFERROR(VLOOKUP($G10,'Technician Summary'!$G$7:$BK$372,21,FALSE),"") ->  | U10: =IF(G10="","",COUNTIFS('StrataSync Data'!$AB:$AB,$G10,'StrataSync Data'!$G:$G,"Closed")) -> 0 | V10: =IF($G10="","",COUNTIFS('StrataSync Data'!$AB:$AB,$G10,'StrataSync Data'!$H:$H,"Yes",'StrataSync Data'!$G:$G,"Closed")) -> 0 | X10: =IFERROR(IF($G$7="","",COUNTIFS('StrataSync Data'!$AB:$AB,$G10,'StrataSync Data'!$I:$I,"Incomplete",'StrataSync Data'!$H:$H,"Yes",'StrataSync Data'!$G:$G,"Closed"))+IF($G10="","",COUNTIFS('StrataSync Data'!$AB:$AB,$G10,'StrataSync Data'!$I:$I,"Fail",'StrataSync Data'!$H:$H,"Yes",'StrataSync Data'!$G:$G,"Closed")),"") -> 0 | Z10: =SUMIF('StrataSync Data'!#REF!,G10,'StrataSync Data'!#REF!) ->  | AA10: =IFERROR(SUM(Z10/#REF!),"") ->  | AB10: =IFERROR(VLOOKUP($G10,'Technician Summary'!$G$7:$BK$372,7,FALSE),"") ->  | AC10: =IFERROR(VLOOKUP($G10,'Technician Summary'!$G$7:$BK$372,8,FALSE),"") ->  | AE10: =IFERROR(VLOOKUP($G10,'Technician Summary'!$G$7:$BK$372,34,FALSE),"") ->  | AF10: =IFERROR(VLOOKUP($G10,'Technician Summary'!$G$7:$BK$372,35,FALSE),"") ->  | AH10: =IFERROR(VLOOKUP($G10,'Technician Summary'!$G$7:$BK$372,37,FALSE),"") ->  | AI10: =IFERROR(VLOOKUP($G10,'Technician Summary'!$G$7:$BK$372,38,FALSE),"") ->  | AK10: =IFERROR(VLOOKUP($G10,'Technician Summary'!$G$7:$BK$372,27,FALSE),"") ->  | AL10: =IFERROR(VLOOKUP($G10,'Technician Summary'!$G$7:$BK$372,68,FALSE),"") -> 
B11: Home | F11: Dhimitri Pina | G11: 29269 | H11: 7.5 | I11: =IFERROR(VLOOKUP($G11,'Technician Summary'!$G$7:$BB$372,2,FALSE),"") -> 8 | J11: =IFERROR(VLOOKUP($G11,'Technician Summary'!$G$7:$BN$372,60,FALSE),"") -> 2 | K11: 0.75 | L11: =IFERROR(VLOOKUP($G11,'Technician Summary'!$G$7:$BK$372,14,FALSE),"") -> 56 | M11: =IFERROR(VLOOKUP($G11,'Technician Summary'!$G$7:$BK$372,15,FALSE),"") -> 0 | N11: 0 | O11: =IFERROR(VLOOKUP($G11,'Technician Summary'!$G$7:$BK$372,17,FALSE),"") -> 30 | P11: =IFERROR(VLOOKUP($G11,'Technician Summary'!$G$7:$BK$372,18,FALSE),"") -> 0 | Q11: 0 | R11: =IFERROR(VLOOKUP($G11,'Technician Summary'!$G$7:$BK$372,20,FALSE),"") -> 26 | S11: =IFERROR(VLOOKUP($G11,'Technician Summary'!$G$7:$BK$372,21,FALSE),"") -> 0 | T11: 0 | U11: =IF(G11="","",COUNTIFS('StrataSync Data'!$AB:$AB,$G11,'StrataSync Data'!$G:$G,"Closed")) -> 20 | V11: =IF($G11="","",COUNTIFS('StrataSync Data'!$AB:$AB,$G11,'StrataSync Data'!$H:$H,"Yes",'StrataSync Data'!$G:$G,"Closed")) -> 20 | W11: 1 | X11: =IFERROR(IF($G$7="","",COUNTIFS('StrataSync Data'!$AB:$AB,$G11,'StrataSync Data'!$I:$I,"Incomplete",'StrataSync Data'!$H:$H,"Yes",'StrataSync Data'!$G:$G,"Closed"))+IF($G11="","",COUNTIFS('StrataSync Data'!$AB:$AB,$G11,'StrataSync Data'!$I:$I,"Fail",'StrataSync Data'!$H:$H,"Yes",'StrataSync Data'!$G:$G,"Closed")),"") -> 2 | Y11: 0.9 | Z11: =SUMIF('StrataSync Data'!#REF!,G11,'StrataSync Data'!#REF!) ->  | AA11: =IFERROR(SUM(Z11/#REF!),"") ->  | AB11: =IFERROR(VLOOKUP($G11,'Technician Summary'!$G$7:$BK$372,7,FALSE),"") -> 23 | AC11: =IFERROR(VLOOKUP($G11,'Technician Summary'!$G$7:$BK$372,8,FALSE),"") -> 0 | AD11: 1 | AE11: =IFERROR(VLOOKUP($G11,'Technician Summary'!$G$7:$BK$372,34,FALSE),"") -> 17 | AF11: =IFERROR(VLOOKUP($G11,'Technician Summary'!$G$7:$BK$372,35,FALSE),"") -> 2 | AG11: 0.8824 | AH11: =IFERROR(VLOOKUP($G11,'Technician Summary'!$G$7:$BK$372,37,FALSE),"") -> 59 | AI11: =IFERROR(VLOOKUP($G11,'Technician Summary'!$G$7:$BK$372,38,FALSE),"") -> 56 | AJ11: 0.9492 | AK11: =IFERROR(VLOOKUP($G11,'Technician Summary'!$G$7:$BK$372,27,FALSE),"") -> 0 | AL11: =IFERROR(VLOOKUP($G11,'Technician Summary'!$G$7:$BK$372,68,FALSE),"") -> 
F12: Lee Segal | G12: 52535 | H12: 7.5 | I12: =IFERROR(VLOOKUP($G12,'Technician Summary'!$G$7:$BB$372,2,FALSE),"") -> 6 | J12: =IFERROR(VLOOKUP($G12,'Technician Summary'!$G$7:$BN$372,60,FALSE),"") -> 1.9998 | K12: 0.6667 | L12: =IFERROR(VLOOKUP($G12,'Technician Summary'!$G$7:$BK$372,14,FALSE),"") -> 43 | M12: =IFERROR(VLOOKUP($G12,'Technician Summary'!$G$7:$BK$372,15,FALSE),"") -> 1 | N12: 0.0233 | O12: =IFERROR(VLOOKUP($G12,'Technician Summary'!$G$7:$BK$372,17,FALSE),"") -> 23 | P12: =IFERROR(VLOOKUP($G12,'Technician Summary'!$G$7:$BK$372,18,FALSE),"") -> 1 | Q12: 0.0435 | R12: =IFERROR(VLOOKUP($G12,'Technician Summary'!$G$7:$BK$372,20,FALSE),"") -> 20 | S12: =IFERROR(VLOOKUP($G12,'Technician Summary'!$G$7:$BK$372,21,FALSE),"") -> 0 | T12: 0 | U12: =IF(G12="","",COUNTIFS('StrataSync Data'!$AB:$AB,$G12,'StrataSync Data'!$G:$G,"Closed")) -> 36 | V12: =IF($G12="","",COUNTIFS('StrataSync Data'!$AB:$AB,$G12,'StrataSync Data'!$H:$H,"Yes",'StrataSync Data'!$G:$G,"Closed")) -> 35 | W12: 0.9722 | X12: =IFERROR(IF($G$7="","",COUNTIFS('StrataSync Data'!$AB:$AB,$G12,'StrataSync Data'!$I:$I,"Incomplete",'StrataSync Data'!$H:$H,"Yes",'StrataSync Data'!$G:$G,"Closed"))+IF($G12="","",COUNTIFS('StrataSync Data'!$AB:$AB,$G12,'StrataSync Data'!$I:$I,"Fail",'StrataSync Data'!$H:$H,"Yes",'StrataSync Data'!$G:$G,"Closed")),"") -> 1 | Y12: 0.9714 | Z12: =SUMIF('StrataSync Data'!#REF!,G12,'StrataSync Data'!#REF!) ->  | AA12: =IFERROR(SUM(Z12/#REF!),"") ->  | AB12: =IFERROR(VLOOKUP($G12,'Technician Summary'!$G$7:$BK$372,7,FALSE),"") -> 26 | AC12: =IFERROR(VLOOKUP($G12,'Technician Summary'!$G$7:$BK$372,8,FALSE),"") -> 1 | AD12: 0.9615 | AE12: =IFERROR(VLOOKUP($G12,'Technician Summary'!$G$7:$BK$372,34,FALSE),"") -> 18 | AF12: =IFERROR(VLOOKUP($G12,'Technician Summary'!$G$7:$BK$372,35,FALSE),"") -> 0 | AG12: 1 | AH12: =IFERROR(VLOOKUP($G12,'Technician Summary'!$G$7:$BK$372,37,FALSE),"") -> 46 | AI12: =IFERROR(VLOOKUP($G12,'Technician Summary'!$G$7:$BK$372,38,FALSE),"") -> 43 | AJ12: 0.9348 | AK12: =IFERROR(VLOOKUP($G12,'Technician Summary'!$G$7:$BK$372,27,FALSE),"") -> 0 | AL12: =IFERROR(VLOOKUP($G12,'Technician Summary'!$G$7:$BK$372,68,FALSE),"") -> 
B13: Performance Metrics | F13: Ryhan Tucker | G13: 31797 | I13: =IFERROR(VLOOKUP($G13,'Technician Summary'!$G$7:$BB$372,2,FALSE),"") ->  | J13: =IFERROR(VLOOKUP($G13,'Technician Summary'!$G$7:$BN$372,60,FALSE),"") ->  | L13: =IFERROR(VLOOKUP($G13,'Technician Summary'!$G$7:$BK$372,14,FALSE),"") ->  | M13: =IFERROR(VLOOKUP($G13,'Technician Summary'!$G$7:$BK$372,15,FALSE),"") ->  | O13: =IFERROR(VLOOKUP($G13,'Technician Summary'!$G$7:$BK$372,17,FALSE),"") ->  | P13: =IFERROR(VLOOKUP($G13,'Technician Summary'!$G$7:$BK$372,18,FALSE),"") ->  | R13: =IFERROR(VLOOKUP($G13,'Technician Summary'!$G$7:$BK$372,20,FALSE),"") ->  | S13: =IFERROR(VLOOKUP($G13,'Technician Summary'!$G$7:$BK$372,21,FALSE),"") ->  | U13: =IF(G13="","",COUNTIFS('StrataSync Data'!$AB:$AB,$G13,'StrataSync Data'!$G:$G,"Closed")) -> 0 | V13: =IF($G13="","",COUNTIFS('StrataSync Data'!$AB:$AB,$G13,'StrataSync Data'!$H:$H,"Yes",'StrataSync Data'!$G:$G,"Closed")) -> 0 | X13: =IFERROR(IF($G$7="","",COUNTIFS('StrataSync Data'!$AB:$AB,$G13,'StrataSync Data'!$I:$I,"Incomplete",'StrataSync Data'!$H:$H,"Yes",'StrataSync Data'!$G:$G,"Closed"))+IF($G13="","",COUNTIFS('StrataSync Data'!$AB:$AB,$G13,'StrataSync Data'!$I:$I,"Fail",'StrataSync Data'!$H:$H,"Yes",'StrataSync Data'!$G:$G,"Closed")),"") -> 0 | Z13: =SUMIF('StrataSync Data'!#REF!,G13,'StrataSync Data'!#REF!) ->  | AA13: =IFERROR(SUM(Z13/#REF!),"") ->  | AB13: =IFERROR(VLOOKUP($G13,'Technician Summary'!$G$7:$BK$372,7,FALSE),"") ->  | AC13: =IFERROR(VLOOKUP($G13,'Technician Summary'!$G$7:$BK$372,8,FALSE),"") ->  | AE13: =IFERROR(VLOOKUP($G13,'Technician Summary'!$G$7:$BK$372,34,FALSE),"") ->  | AF13: =IFERROR(VLOOKUP($G13,'Technician Summary'!$G$7:$BK$372,35,FALSE),"") ->  | AH13: =IFERROR(VLOOKUP($G13,'Technician Summary'!$G$7:$BK$372,37,FALSE),"") ->  | AI13: =IFERROR(VLOOKUP($G13,'Technician Summary'!$G$7:$BK$372,38,FALSE),"") ->  | AK13: =IFERROR(VLOOKUP($G13,'Technician Summary'!$G$7:$BK$372,27,FALSE),"") ->  | AL13: =IFERROR(VLOOKUP($G13,'Technician Summary'!$G$7:$BK$372,68,FALSE),"") -> 
B14: Gainesville | F14: Lawrence Proctor | G14: 33259 | H14: 5 | I14: =IFERROR(VLOOKUP($G14,'Technician Summary'!$G$7:$BB$372,2,FALSE),"") -> 2 | J14: =IFERROR(VLOOKUP($G14,'Technician Summary'!$G$7:$BN$372,60,FALSE),"") -> 2 | K14: 0 | L14: =IFERROR(VLOOKUP($G14,'Technician Summary'!$G$7:$BK$372,14,FALSE),"") -> 29 | M14: =IFERROR(VLOOKUP($G14,'Technician Summary'!$G$7:$BK$372,15,FALSE),"") -> 0 | N14: 0 | O14: =IFERROR(VLOOKUP($G14,'Technician Summary'!$G$7:$BK$372,17,FALSE),"") -> 15 | P14: =IFERROR(VLOOKUP($G14,'Technician Summary'!$G$7:$BK$372,18,FALSE),"") -> 0 | Q14: 0 | R14: =IFERROR(VLOOKUP($G14,'Technician Summary'!$G$7:$BK$372,20,FALSE),"") -> 14 | S14: =IFERROR(VLOOKUP($G14,'Technician Summary'!$G$7:$BK$372,21,FALSE),"") -> 0 | T14: 0 | U14: =IF(G14="","",COUNTIFS('StrataSync Data'!$AB:$AB,$G14,'StrataSync Data'!$G:$G,"Closed")) -> 15 | V14: =IF($G14="","",COUNTIFS('StrataSync Data'!$AB:$AB,$G14,'StrataSync Data'!$H:$H,"Yes",'StrataSync Data'!$G:$G,"Closed")) -> 15 | W14: 1 | X14: =IFERROR(IF($G$7="","",COUNTIFS('StrataSync Data'!$AB:$AB,$G14,'StrataSync Data'!$I:$I,"Incomplete",'StrataSync Data'!$H:$H,"Yes",'StrataSync Data'!$G:$G,"Closed"))+IF($G14="","",COUNTIFS('StrataSync Data'!$AB:$AB,$G14,'StrataSync Data'!$I:$I,"Fail",'StrataSync Data'!$H:$H,"Yes",'StrataSync Data'!$G:$G,"Closed")),"") -> 0 | Y14: 1 | Z14: =SUMIF('StrataSync Data'!#REF!,G14,'StrataSync Data'!#REF!) ->  | AA14: =IFERROR(SUM(Z14/#REF!),"") ->  | AB14: =IFERROR(VLOOKUP($G14,'Technician Summary'!$G$7:$BK$372,7,FALSE),"") -> 17 | AC14: =IFERROR(VLOOKUP($G14,'Technician Summary'!$G$7:$BK$372,8,FALSE),"") -> 0 | AD14: 1 | AE14: =IFERROR(VLOOKUP($G14,'Technician Summary'!$G$7:$BK$372,34,FALSE),"") -> 10 | AF14: =IFERROR(VLOOKUP($G14,'Technician Summary'!$G$7:$BK$372,35,FALSE),"") -> 1 | AG14: 0.9 | AH14: =IFERROR(VLOOKUP($G14,'Technician Summary'!$G$7:$BK$372,37,FALSE),"") -> 37 | AI14: =IFERROR(VLOOKUP($G14,'Technician Summary'!$G$7:$BK$372,38,FALSE),"") -> 29 | AJ14: 0.7838 | AK14: =IFERROR(VLOOKUP($G14,'Technician Summary'!$G$7:$BK$372,27,FALSE),"") -> 0 | AL14: =IFERROR(VLOOKUP($G14,'Technician Summary'!$G$7:$BK$372,68,FALSE),"") -> 
B15: Macon | F15: David Corbitt | G15: 68713 | I15: =IFERROR(VLOOKUP($G15,'Technician Summary'!$G$7:$BB$372,2,FALSE),"") ->  | J15: =IFERROR(VLOOKUP($G15,'Technician Summary'!$G$7:$BN$372,60,FALSE),"") ->  | L15: =IFERROR(VLOOKUP($G15,'Technician Summary'!$G$7:$BK$372,14,FALSE),"") ->  | M15: =IFERROR(VLOOKUP($G15,'Technician Summary'!$G$7:$BK$372,15,FALSE),"") ->  | O15: =IFERROR(VLOOKUP($G15,'Technician Summary'!$G$7:$BK$372,17,FALSE),"") ->  | P15: =IFERROR(VLOOKUP($G15,'Technician Summary'!$G$7:$BK$372,18,FALSE),"") ->  | R15: =IFERROR(VLOOKUP($G15,'Technician Summary'!$G$7:$BK$372,20,FALSE),"") ->  | S15: =IFERROR(VLOOKUP($G15,'Technician Summary'!$G$7:$BK$372,21,FALSE),"") ->  | U15: =IF(G15="","",COUNTIFS('StrataSync Data'!$AB:$AB,$G15,'StrataSync Data'!$G:$G,"Closed")) -> 0 | V15: =IF($G15="","",COUNTIFS('StrataSync Data'!$AB:$AB,$G15,'StrataSync Data'!$H:$H,"Yes",'StrataSync Data'!$G:$G,"Closed")) -> 0 | X15: =IFERROR(IF($G$7="","",COUNTIFS('StrataSync Data'!$AB:$AB,$G15,'StrataSync Data'!$I:$I,"Incomplete",'StrataSync Data'!$H:$H,"Yes",'StrataSync Data'!$G:$G,"Closed"))+IF($G15="","",COUNTIFS('StrataSync Data'!$AB:$AB,$G15,'StrataSync Data'!$I:$I,"Fail",'StrataSync Data'!$H:$H,"Yes",'StrataSync Data'!$G:$G,"Closed")),"") -> 0 | Z15: =SUMIF('StrataSync Data'!#REF!,G15,'StrataSync Data'!#REF!) ->  | AA15: =IFERROR(SUM(Z15/#REF!),"") ->  | AB15: =IFERROR(VLOOKUP($G15,'Technician Summary'!$G$7:$BK$372,7,FALSE),"") ->  | AC15: =IFERROR(VLOOKUP($G15,'Technician Summary'!$G$7:$BK$372,8,FALSE),"") ->  | AE15: =IFERROR(VLOOKUP($G15,'Technician Summary'!$G$7:$BK$372,34,FALSE),"") ->  | AF15: =IFERROR(VLOOKUP($G15,'Technician Summary'!$G$7:$BK$372,35,FALSE),"") ->  | AH15: =IFERROR(VLOOKUP($G15,'Technician Summary'!$G$7:$BK$372,37,FALSE),"") ->  | AI15: =IFERROR(VLOOKUP($G15,'Technician Summary'!$G$7:$BK$372,38,FALSE),"") ->  | AK15: =IFERROR(VLOOKUP($G15,'Technician Summary'!$G$7:$BK$372,27,FALSE),"") ->  | AL15: =IFERROR(VLOOKUP($G15,'Technician Summary'!$G$7:$BK$372,68,FALSE),"") -> 
B16: New Orleans | F16: craig Laraway | G16: 74202 | H16: 10 | I16: =IFERROR(VLOOKUP($G16,'Technician Summary'!$G$7:$BB$372,2,FALSE),"") -> 10 | J16: =IFERROR(VLOOKUP($G16,'Technician Summary'!$G$7:$BN$372,60,FALSE),"") -> 0 | K16: 1 | L16: =IFERROR(VLOOKUP($G16,'Technician Summary'!$G$7:$BK$372,14,FALSE),"") -> 55 | M16: =IFERROR(VLOOKUP($G16,'Technician Summary'!$G$7:$BK$372,15,FALSE),"") -> 0 | N16: 0 | O16: =IFERROR(VLOOKUP($G16,'Technician Summary'!$G$7:$BK$372,17,FALSE),"") -> 27 | P16: =IFERROR(VLOOKUP($G16,'Technician Summary'!$G$7:$BK$372,18,FALSE),"") -> 0 | Q16: 0 | R16: =IFERROR(VLOOKUP($G16,'Technician Summary'!$G$7:$BK$372,20,FALSE),"") -> 28 | S16: =IFERROR(VLOOKUP($G16,'Technician Summary'!$G$7:$BK$372,21,FALSE),"") -> 0 | T16: 0 | U16: =IF(G16="","",COUNTIFS('StrataSync Data'!$AB:$AB,$G16,'StrataSync Data'!$G:$G,"Closed")) -> 32 | V16: =IF($G16="","",COUNTIFS('StrataSync Data'!$AB:$AB,$G16,'StrataSync Data'!$H:$H,"Yes",'StrataSync Data'!$G:$G,"Closed")) -> 31 | W16: 0.9688 | X16: =IFERROR(IF($G$7="","",COUNTIFS('StrataSync Data'!$AB:$AB,$G16,'StrataSync Data'!$I:$I,"Incomplete",'StrataSync Data'!$H:$H,"Yes",'StrataSync Data'!$G:$G,"Closed"))+IF($G16="","",COUNTIFS('StrataSync Data'!$AB:$AB,$G16,'StrataSync Data'!$I:$I,"Fail",'StrataSync Data'!$H:$H,"Yes",'StrataSync Data'!$G:$G,"Closed")),"") -> 1 | Y16: 0.9677 | Z16: =SUMIF('StrataSync Data'!#REF!,G16,'StrataSync Data'!#REF!) ->  | AA16: =IFERROR(SUM(Z16/#REF!),"") ->  | AB16: =IFERROR(VLOOKUP($G16,'Technician Summary'!$G$7:$BK$372,7,FALSE),"") -> 20 | AC16: =IFERROR(VLOOKUP($G16,'Technician Summary'!$G$7:$BK$372,8,FALSE),"") -> 0 | AD16: 1 | AE16: =IFERROR(VLOOKUP($G16,'Technician Summary'!$G$7:$BK$372,34,FALSE),"") -> 13 | AF16: =IFERROR(VLOOKUP($G16,'Technician Summary'!$G$7:$BK$372,35,FALSE),"") -> 0 | AG16: 1 | AH16: =IFERROR(VLOOKUP($G16,'Technician Summary'!$G$7:$BK$372,37,FALSE),"") -> 57 | AI16: =IFERROR(VLOOKUP($G16,'Technician Summary'!$G$7:$BK$372,38,FALSE),"") -> 54 | AJ16: 0.9474 | AK16: =IFERROR(VLOOKUP($G16,'Technician Summary'!$G$7:$BK$372,27,FALSE),"") -> 0 | AL16: =IFERROR(VLOOKUP($G16,'Technician Summary'!$G$7:$BK$372,68,FALSE),"") -> 
B17: Hampton Roads | F17: Rafael Gomez Helmeyer | G17: 75471 | H17: 7.5 | I17: =IFERROR(VLOOKUP($G17,'Technician Summary'!$G$7:$BB$372,2,FALSE),"") -> 0 | J17: =IFERROR(VLOOKUP($G17,'Technician Summary'!$G$7:$BN$372,60,FALSE),"") ->  | L17: =IFERROR(VLOOKUP($G17,'Technician Summary'!$G$7:$BK$372,14,FALSE),"") -> 26 | M17: =IFERROR(VLOOKUP($G17,'Technician Summary'!$G$7:$BK$372,15,FALSE),"") -> 1 | N17: 0.0385 | O17: =IFERROR(VLOOKUP($G17,'Technician Summary'!$G$7:$BK$372,17,FALSE),"") -> 23 | P17: =IFERROR(VLOOKUP($G17,'Technician Summary'!$G$7:$BK$372,18,FALSE),"") -> 1 | Q17: 0.0435 | R17: =IFERROR(VLOOKUP($G17,'Technician Summary'!$G$7:$BK$372,20,FALSE),"") -> 3 | S17: =IFERROR(VLOOKUP($G17,'Technician Summary'!$G$7:$BK$372,21,FALSE),"") -> 0 | T17: 0 | U17: =IF(G17="","",COUNTIFS('StrataSync Data'!$AB:$AB,$G17,'StrataSync Data'!$G:$G,"Closed")) -> 9 | V17: =IF($G17="","",COUNTIFS('StrataSync Data'!$AB:$AB,$G17,'StrataSync Data'!$H:$H,"Yes",'StrataSync Data'!$G:$G,"Closed")) -> 8 | W17: 0.8889 | X17: =IFERROR(IF($G$7="","",COUNTIFS('StrataSync Data'!$AB:$AB,$G17,'StrataSync Data'!$I:$I,"Incomplete",'StrataSync Data'!$H:$H,"Yes",'StrataSync Data'!$G:$G,"Closed"))+IF($G17="","",COUNTIFS('StrataSync Data'!$AB:$AB,$G17,'StrataSync Data'!$I:$I,"Fail",'StrataSync Data'!$H:$H,"Yes",'StrataSync Data'!$G:$G,"Closed")),"") -> 0 | Y17: 1 | Z17: =SUMIF('StrataSync Data'!#REF!,G17,'StrataSync Data'!#REF!) ->  | AA17: =IFERROR(SUM(Z17/#REF!),"") ->  | AB17: =IFERROR(VLOOKUP($G17,'Technician Summary'!$G$7:$BK$372,7,FALSE),"") -> 23 | AC17: =IFERROR(VLOOKUP($G17,'Technician Summary'!$G$7:$BK$372,8,FALSE),"") -> 1 | AD17: 0.9565 | AE17: =IFERROR(VLOOKUP($G17,'Technician Summary'!$G$7:$BK$372,34,FALSE),"") -> 9 | AF17: =IFERROR(VLOOKUP($G17,'Technician Summary'!$G$7:$BK$372,35,FALSE),"") -> 0 | AG17: 1 | AH17: =IFERROR(VLOOKUP($G17,'Technician Summary'!$G$7:$BK$372,37,FALSE),"") -> 32 | AI17: =IFERROR(VLOOKUP($G17,'Technician Summary'!$G$7:$BK$372,38,FALSE),"") -> 26 | AJ17: 0.8125 | AK17: =IFERROR(VLOOKUP($G17,'Technician Summary'!$G$7:$BK$372,27,FALSE),"") -> 0 | AL17: =IFERROR(VLOOKUP($G17,'Technician Summary'!$G$7:$BK$372,68,FALSE),"") -> 
B18: Baton Rouge | F18: Christian Whiting | G18: 84103 | H18: 10 | I18: =IFERROR(VLOOKUP($G18,'Technician Summary'!$G$7:$BB$372,2,FALSE),"") -> 3 | J18: =IFERROR(VLOOKUP($G18,'Technician Summary'!$G$7:$BN$372,60,FALSE),"") -> 0 | K18: 1 | L18: =IFERROR(VLOOKUP($G18,'Technician Summary'!$G$7:$BK$372,14,FALSE),"") -> 44 | M18: =IFERROR(VLOOKUP($G18,'Technician Summary'!$G$7:$BK$372,15,FALSE),"") -> 0 | N18: 0 | O18: =IFERROR(VLOOKUP($G18,'Technician Summary'!$G$7:$BK$372,17,FALSE),"") -> 20 | P18: =IFERROR(VLOOKUP($G18,'Technician Summary'!$G$7:$BK$372,18,FALSE),"") -> 0 | Q18: 0 | R18: =IFERROR(VLOOKUP($G18,'Technician Summary'!$G$7:$BK$372,20,FALSE),"") -> 24 | S18: =IFERROR(VLOOKUP($G18,'Technician Summary'!$G$7:$BK$372,21,FALSE),"") -> 0 | T18: 0 | U18: =IF(G18="","",COUNTIFS('StrataSync Data'!$AB:$AB,$G18,'StrataSync Data'!$G:$G,"Closed")) -> 23 | V18: =IF($G18="","",COUNTIFS('StrataSync Data'!$AB:$AB,$G18,'StrataSync Data'!$H:$H,"Yes",'StrataSync Data'!$G:$G,"Closed")) -> 22 | W18: 0.9565 | X18: =IFERROR(IF($G$7="","",COUNTIFS('StrataSync Data'!$AB:$AB,$G18,'StrataSync Data'!$I:$I,"Incomplete",'StrataSync Data'!$H:$H,"Yes",'StrataSync Data'!$G:$G,"Closed"))+IF($G18="","",COUNTIFS('StrataSync Data'!$AB:$AB,$G18,'StrataSync Data'!$I:$I,"Fail",'StrataSync Data'!$H:$H,"Yes",'StrataSync Data'!$G:$G,"Closed")),"") -> 0 | Y18: 1 | Z18: =SUMIF('StrataSync Data'!#REF!,G18,'StrataSync Data'!#REF!) ->  | AA18: =IFERROR(SUM(Z18/#REF!),"") ->  | AB18: =IFERROR(VLOOKUP($G18,'Technician Summary'!$G$7:$BK$372,7,FALSE),"") -> 17 | AC18: =IFERROR(VLOOKUP($G18,'Technician Summary'!$G$7:$BK$372,8,FALSE),"") -> 0 | AD18: 1 | AE18: =IFERROR(VLOOKUP($G18,'Technician Summary'!$G$7:$BK$372,34,FALSE),"") -> 5 | AF18: =IFERROR(VLOOKUP($G18,'Technician Summary'!$G$7:$BK$372,35,FALSE),"") -> 0 | AG18: 1 | AH18: =IFERROR(VLOOKUP($G18,'Technician Summary'!$G$7:$BK$372,37,FALSE),"") -> 55 | AI18: =IFERROR(VLOOKUP($G18,'Technician Summary'!$G$7:$BK$372,38,FALSE),"") -> 43 | AJ18: 0.7818 | AK18: =IFERROR(VLOOKUP($G18,'Technician Summary'!$G$7:$BK$372,27,FALSE),"") -> 0 | AL18: =IFERROR(VLOOKUP($G18,'Technician Summary'!$G$7:$BK$372,68,FALSE),"") -> 
B19: Roanoke | F19: Tony Ducksworth | G19: 73789 | H19: 7.5 | I19: =IFERROR(VLOOKUP($G19,'Technician Summary'!$G$7:$BB$372,2,FALSE),"") -> 2 | J19: =IFERROR(VLOOKUP($G19,'Technician Summary'!$G$7:$BN$372,60,FALSE),"") -> 2 | K19: 0 | L19: =IFERROR(VLOOKUP($G19,'Technician Summary'!$G$7:$BK$372,14,FALSE),"") -> 40 | M19: =IFERROR(VLOOKUP($G19,'Technician Summary'!$G$7:$BK$372,15,FALSE),"") -> 0 | N19: 0 | O19: =IFERROR(VLOOKUP($G19,'Technician Summary'!$G$7:$BK$372,17,FALSE),"") -> 18 | P19: =IFERROR(VLOOKUP($G19,'Technician Summary'!$G$7:$BK$372,18,FALSE),"") -> 0 | Q19: 0 | R19: =IFERROR(VLOOKUP($G19,'Technician Summary'!$G$7:$BK$372,20,FALSE),"") -> 22 | S19: =IFERROR(VLOOKUP($G19,'Technician Summary'!$G$7:$BK$372,21,FALSE),"") -> 0 | T19: 0 | U19: =IF(G19="","",COUNTIFS('StrataSync Data'!$AB:$AB,$G19,'StrataSync Data'!$G:$G,"Closed")) -> 28 | V19: =IF($G19="","",COUNTIFS('StrataSync Data'!$AB:$AB,$G19,'StrataSync Data'!$H:$H,"Yes",'StrataSync Data'!$G:$G,"Closed")) -> 28 | W19: 1 | X19: =IFERROR(IF($G$7="","",COUNTIFS('StrataSync Data'!$AB:$AB,$G19,'StrataSync Data'!$I:$I,"Incomplete",'StrataSync Data'!$H:$H,"Yes",'StrataSync Data'!$G:$G,"Closed"))+IF($G19="","",COUNTIFS('StrataSync Data'!$AB:$AB,$G19,'StrataSync Data'!$I:$I,"Fail",'StrataSync Data'!$H:$H,"Yes",'StrataSync Data'!$G:$G,"Closed")),"") -> 0 | Y19: 1 | Z19: =SUMIF('StrataSync Data'!#REF!,G19,'StrataSync Data'!#REF!) ->  | AA19: =IFERROR(SUM(Z19/#REF!),"") ->  | AB19: =IFERROR(VLOOKUP($G19,'Technician Summary'!$G$7:$BK$372,7,FALSE),"") -> 17 | AC19: =IFERROR(VLOOKUP($G19,'Technician Summary'!$G$7:$BK$372,8,FALSE),"") -> 0 | AD19: 1 | AE19: =IFERROR(VLOOKUP($G19,'Technician Summary'!$G$7:$BK$372,34,FALSE),"") -> 10 | AF19: =IFERROR(VLOOKUP($G19,'Technician Summary'!$G$7:$BK$372,35,FALSE),"") -> 0 | AG19: 1 | AH19: =IFERROR(VLOOKUP($G19,'Technician Summary'!$G$7:$BK$372,37,FALSE),"") -> 43 | AI19: =IFERROR(VLOOKUP($G19,'Technician Summary'!$G$7:$BK$372,38,FALSE),"") -> 40 | AJ19: 0.9302 | AK19: =IFERROR(VLOOKUP($G19,'Technician Summary'!$G$7:$BK$372,27,FALSE),"") -> 0 | AL19: =IFERROR(VLOOKUP($G19,'Technician Summary'!$G$7:$BK$372,68,FALSE),"") -> 
B20: Gulf Coast | F20: Eric Moorehead | G20: 62706 | H20: 7.5 | I20: =IFERROR(VLOOKUP($G20,'Technician Summary'!$G$7:$BB$372,2,FALSE),"") -> 3 | J20: =IFERROR(VLOOKUP($G20,'Technician Summary'!$G$7:$BN$372,60,FALSE),"") -> 0.9999 | K20: 0.6667 | L20: =IFERROR(VLOOKUP($G20,'Technician Summary'!$G$7:$BK$372,14,FALSE),"") -> 43 | M20: =IFERROR(VLOOKUP($G20,'Technician Summary'!$G$7:$BK$372,15,FALSE),"") -> 1 | N20: 0.0233 | O20: =IFERROR(VLOOKUP($G20,'Technician Summary'!$G$7:$BK$372,17,FALSE),"") -> 18 | P20: =IFERROR(VLOOKUP($G20,'Technician Summary'!$G$7:$BK$372,18,FALSE),"") -> 1 | Q20: 0.0556 | R20: =IFERROR(VLOOKUP($G20,'Technician Summary'!$G$7:$BK$372,20,FALSE),"") -> 25 | S20: =IFERROR(VLOOKUP($G20,'Technician Summary'!$G$7:$BK$372,21,FALSE),"") -> 0 | T20: 0 | U20: =IF(G20="","",COUNTIFS('StrataSync Data'!$AB:$AB,$G20,'StrataSync Data'!$G:$G,"Closed")) -> 24 | V20: =IF($G20="","",COUNTIFS('StrataSync Data'!$AB:$AB,$G20,'StrataSync Data'!$H:$H,"Yes",'StrataSync Data'!$G:$G,"Closed")) -> 22 | W20: 0.9167 | X20: =IFERROR(IF($G$7="","",COUNTIFS('StrataSync Data'!$AB:$AB,$G20,'StrataSync Data'!$I:$I,"Incomplete",'StrataSync Data'!$H:$H,"Yes",'StrataSync Data'!$G:$G,"Closed"))+IF($G20="","",COUNTIFS('StrataSync Data'!$AB:$AB,$G20,'StrataSync Data'!$I:$I,"Fail",'StrataSync Data'!$H:$H,"Yes",'StrataSync Data'!$G:$G,"Closed")),"") -> 0 | Y20: 1 | Z20: =SUMIF('StrataSync Data'!#REF!,G20,'StrataSync Data'!#REF!) ->  | AA20: =IFERROR(SUM(Z20/#REF!),"") ->  | AB20: =IFERROR(VLOOKUP($G20,'Technician Summary'!$G$7:$BK$372,7,FALSE),"") -> 13 | AC20: =IFERROR(VLOOKUP($G20,'Technician Summary'!$G$7:$BK$372,8,FALSE),"") -> 1 | AD20: 0.9231 | AE20: =IFERROR(VLOOKUP($G20,'Technician Summary'!$G$7:$BK$372,34,FALSE),"") -> 8 | AF20: =IFERROR(VLOOKUP($G20,'Technician Summary'!$G$7:$BK$372,35,FALSE),"") -> 0 | AG20: 1 | AH20: =IFERROR(VLOOKUP($G20,'Technician Summary'!$G$7:$BK$372,37,FALSE),"") -> 55 | AI20: =IFERROR(VLOOKUP($G20,'Technician Summary'!$G$7:$BK$372,38,FALSE),"") -> 42 | AJ20: 0.7636 | AK20: =IFERROR(VLOOKUP($G20,'Technician Summary'!$G$7:$BK$372,27,FALSE),"") -> 0 | AL20: =IFERROR(VLOOKUP($G20,'Technician Summary'!$G$7:$BK$372,68,FALSE),"") -> 
B21: Oklahoma City | F21: Cole Johnson | G21: 54054 | H21: 7.5 | I21: =IFERROR(VLOOKUP($G21,'Technician Summary'!$G$7:$BB$372,2,FALSE),"") ->  | J21: =IFERROR(VLOOKUP($G21,'Technician Summary'!$G$7:$BN$372,60,FALSE),"") ->  | L21: =IFERROR(VLOOKUP($G21,'Technician Summary'!$G$7:$BK$372,14,FALSE),"") ->  | M21: =IFERROR(VLOOKUP($G21,'Technician Summary'!$G$7:$BK$372,15,FALSE),"") ->  | O21: =IFERROR(VLOOKUP($G21,'Technician Summary'!$G$7:$BK$372,17,FALSE),"") ->  | P21: =IFERROR(VLOOKUP($G21,'Technician Summary'!$G$7:$BK$372,18,FALSE),"") ->  | R21: =IFERROR(VLOOKUP($G21,'Technician Summary'!$G$7:$BK$372,20,FALSE),"") ->  | S21: =IFERROR(VLOOKUP($G21,'Technician Summary'!$G$7:$BK$372,21,FALSE),"") ->  | U21: =IF(G21="","",COUNTIFS('StrataSync Data'!$AB:$AB,$G21,'StrataSync Data'!$G:$G,"Closed")) -> 10 | V21: =IF($G21="","",COUNTIFS('StrataSync Data'!$AB:$AB,$G21,'StrataSync Data'!$H:$H,"Yes",'StrataSync Data'!$G:$G,"Closed")) -> 9 | W21: 0.9 | X21: =IFERROR(IF($G$7="","",COUNTIFS('StrataSync Data'!$AB:$AB,$G21,'StrataSync Data'!$I:$I,"Incomplete",'StrataSync Data'!$H:$H,"Yes",'StrataSync Data'!$G:$G,"Closed"))+IF($G21="","",COUNTIFS('StrataSync Data'!$AB:$AB,$G21,'StrataSync Data'!$I:$I,"Fail",'StrataSync Data'!$H:$H,"Yes",'StrataSync Data'!$G:$G,"Closed")),"") -> 0 | Y21: 1 | Z21: =SUMIF('StrataSync Data'!#REF!,G21,'StrataSync Data'!#REF!) ->  | AA21: =IFERROR(SUM(Z21/#REF!),"") ->  | AB21: =IFERROR(VLOOKUP($G21,'Technician Summary'!$G$7:$BK$372,7,FALSE),"") ->  | AC21: =IFERROR(VLOOKUP($G21,'Technician Summary'!$G$7:$BK$372,8,FALSE),"") ->  | AE21: =IFERROR(VLOOKUP($G21,'Technician Summary'!$G$7:$BK$372,34,FALSE),"") ->  | AF21: =IFERROR(VLOOKUP($G21,'Technician Summary'!$G$7:$BK$372,35,FALSE),"") ->  | AH21: =IFERROR(VLOOKUP($G21,'Technician Summary'!$G$7:$BK$372,37,FALSE),"") ->  | AI21: =IFERROR(VLOOKUP($G21,'Technician Summary'!$G$7:$BK$372,38,FALSE),"") ->  | AK21: =IFERROR(VLOOKUP($G21,'Technician Summary'!$G$7:$BK$372,27,FALSE),"") ->  | AL21: =IFERROR(VLOOKUP($G21,'Technician Summary'!$G$7:$BK$372,68,FALSE),"") -> 
B22: Tech Rankings | F22: Alvin Mitchell | G22: 63801 | I22: =IFERROR(VLOOKUP($G22,'Technician Summary'!$G$7:$BB$372,2,FALSE),"") ->  | J22: =IFERROR(VLOOKUP($G22,'Technician Summary'!$G$7:$BN$372,60,FALSE),"") ->  | L22: =IFERROR(VLOOKUP($G22,'Technician Summary'!$G$7:$BK$372,14,FALSE),"") ->  | M22: =IFERROR(VLOOKUP($G22,'Technician Summary'!$G$7:$BK$372,15,FALSE),"") ->  | O22: =IFERROR(VLOOKUP($G22,'Technician Summary'!$G$7:$BK$372,17,FALSE),"") ->  | P22: =IFERROR(VLOOKUP($G22,'Technician Summary'!$G$7:$BK$372,18,FALSE),"") ->  | R22: =IFERROR(VLOOKUP($G22,'Technician Summary'!$G$7:$BK$372,20,FALSE),"") ->  | S22: =IFERROR(VLOOKUP($G22,'Technician Summary'!$G$7:$BK$372,21,FALSE),"") ->  | U22: =IF(G22="","",COUNTIFS('StrataSync Data'!$AB:$AB,$G22,'StrataSync Data'!$G:$G,"Closed")) -> 0 | V22: =IF($G22="","",COUNTIFS('StrataSync Data'!$AB:$AB,$G22,'StrataSync Data'!$H:$H,"Yes",'StrataSync Data'!$G:$G,"Closed")) -> 0 | X22: =IFERROR(IF($G$7="","",COUNTIFS('StrataSync Data'!$AB:$AB,$G22,'StrataSync Data'!$I:$I,"Incomplete",'StrataSync Data'!$H:$H,"Yes",'StrataSync Data'!$G:$G,"Closed"))+IF($G22="","",COUNTIFS('StrataSync Data'!$AB:$AB,$G22,'StrataSync Data'!$I:$I,"Fail",'StrataSync Data'!$H:$H,"Yes",'StrataSync Data'!$G:$G,"Closed")),"") -> 0 | Z22: =SUMIF('StrataSync Data'!#REF!,G22,'StrataSync Data'!#REF!) ->  | AA22: =IFERROR(SUM(Z22/#REF!),"") ->  | AB22: =IFERROR(VLOOKUP($G22,'Technician Summary'!$G$7:$BK$372,7,FALSE),"") ->  | AC22: =IFERROR(VLOOKUP($G22,'Technician Summary'!$G$7:$BK$372,8,FALSE),"") ->  | AE22: =IFERROR(VLOOKUP($G22,'Technician Summary'!$G$7:$BK$372,34,FALSE),"") ->  | AF22: =IFERROR(VLOOKUP($G22,'Technician Summary'!$G$7:$BK$372,35,FALSE),"") ->  | AH22: =IFERROR(VLOOKUP($G22,'Technician Summary'!$G$7:$BK$372,37,FALSE),"") ->  | AI22: =IFERROR(VLOOKUP($G22,'Technician Summary'!$G$7:$BK$372,38,FALSE),"") ->  | AK22: =IFERROR(VLOOKUP($G22,'Technician Summary'!$G$7:$BK$372,27,FALSE),"") ->  | AL22: =IFERROR(VLOOKUP($G22,'Technician Summary'!$G$7:$BK$372,68,FALSE),"") -> 
I23: =IFERROR(VLOOKUP($G23,'Technician Summary'!$G$7:$BB$372,2,FALSE),"") ->  | J23: =IFERROR(VLOOKUP($G23,'Technician Summary'!$G$7:$BN$372,60,FALSE),"") ->  | L23: =IFERROR(VLOOKUP($G23,'Technician Summary'!$G$7:$BK$372,14,FALSE),"") ->  | M23: =IFERROR(VLOOKUP($G23,'Technician Summary'!$G$7:$BK$372,15,FALSE),"") ->  | O23: =IFERROR(VLOOKUP($G23,'Technician Summary'!$G$7:$BK$372,17,FALSE),"") ->  | P23: =IFERROR(VLOOKUP($G23,'Technician Summary'!$G$7:$BK$372,18,FALSE),"") ->  | R23: =IFERROR(VLOOKUP($G23,'Technician Summary'!$G$7:$BK$372,20,FALSE),"") ->  | S23: =IFERROR(VLOOKUP($G23,'Technician Summary'!$G$7:$BK$372,21,FALSE),"") ->  | U23: =IF(G23="","",COUNTIFS('StrataSync Data'!$AB:$AB,$G23,'StrataSync Data'!$G:$G,"Closed")) ->  | V23: =IF($G23="","",COUNTIFS('StrataSync Data'!$AB:$AB,$G23,'StrataSync Data'!$H:$H,"Yes",'StrataSync Data'!$G:$G,"Closed")) ->  | X23: =IFERROR(IF($G$7="","",COUNTIFS('StrataSync Data'!$AB:$AB,$G23,'StrataSync Data'!$I:$I,"Incomplete",'StrataSync Data'!$H:$H,"Yes",'StrataSync Data'!$G:$G,"Closed"))+IF($G23="","",COUNTIFS('StrataSync Data'!$AB:$AB,$G23,'StrataSync Data'!$I:$I,"Fail",'StrataSync Data'!$H:$H,"Yes",'StrataSync Data'!$G:$G,"Closed")),"") ->  | Z23: =SUMIF('StrataSync Data'!#REF!,G23,'StrataSync Data'!#REF!) ->  | AA23: =IFERROR(SUM(Z23/#REF!),"") ->  | AB23: =IFERROR(VLOOKUP($G23,'Technician Summary'!$G$7:$BK$372,7,FALSE),"") ->  | AC23: =IFERROR(VLOOKUP($G23,'Technician Summary'!$G$7:$BK$372,8,FALSE),"") ->  | AE23: =IFERROR(VLOOKUP($G23,'Technician Summary'!$G$7:$BK$372,34,FALSE),"") ->  | AF23: =IFERROR(VLOOKUP($G23,'Technician Summary'!$G$7:$BK$372,35,FALSE),"") ->  | AH23: =IFERROR(VLOOKUP($G23,'Technician Summary'!$G$7:$BK$372,37,FALSE),"") ->  | AI23: =IFERROR(VLOOKUP($G23,'Technician Summary'!$G$7:$BK$372,38,FALSE),"") ->  | AK23: =IFERROR(VLOOKUP($G23,'Technician Summary'!$G$7:$BK$372,27,FALSE),"") ->  | AL23: =IFERROR(VLOOKUP($G23,'Technician Summary'!$G$7:$BK$372,68,FALSE),"") -> 
B24: Raw Data | I24: =IFERROR(VLOOKUP($G24,'Technician Summary'!$G$7:$BB$372,2,FALSE),"") ->  | J24: =IFERROR(VLOOKUP($G24,'Technician Summary'!$G$7:$BN$372,60,FALSE),"") ->  | L24: =IFERROR(VLOOKUP($G24,'Technician Summary'!$G$7:$BK$372,14,FALSE),"") ->  | M24: =IFERROR(VLOOKUP($G24,'Technician Summary'!$G$7:$BK$372,15,FALSE),"") ->  | O24: =IFERROR(VLOOKUP($G24,'Technician Summary'!$G$7:$BK$372,17,FALSE),"") ->  | P24: =IFERROR(VLOOKUP($G24,'Technician Summary'!$G$7:$BK$372,18,FALSE),"") ->  | R24: =IFERROR(VLOOKUP($G24,'Technician Summary'!$G$7:$BK$372,20,FALSE),"") ->  | S24: =IFERROR(VLOOKUP($G24,'Technician Summary'!$G$7:$BK$372,21,FALSE),"") ->  | U24: =IF(G24="","",COUNTIFS('StrataSync Data'!$AB:$AB,$G24,'StrataSync Data'!$G:$G,"Closed")) ->  | V24: =IF($G24="","",COUNTIFS('StrataSync Data'!$AB:$AB,$G24,'StrataSync Data'!$H:$H,"Yes",'StrataSync Data'!$G:$G,"Closed")) ->  | X24: =IFERROR(IF($G$7="","",COUNTIFS('StrataSync Data'!$AB:$AB,$G24,'StrataSync Data'!$I:$I,"Incomplete",'StrataSync Data'!$H:$H,"Yes",'StrataSync Data'!$G:$G,"Closed"))+IF($G24="","",COUNTIFS('StrataSync Data'!$AB:$AB,$G24,'StrataSync Data'!$I:$I,"Fail",'StrataSync Data'!$H:$H,"Yes",'StrataSync Data'!$G:$G,"Closed")),"") ->  | Z24: =SUMIF('StrataSync Data'!#REF!,G24,'StrataSync Data'!#REF!) ->  | AA24: =IFERROR(SUM(Z24/#REF!),"") ->  | AB24: =IFERROR(VLOOKUP($G24,'Technician Summary'!$G$7:$BK$372,7,FALSE),"") ->  | AC24: =IFERROR(VLOOKUP($G24,'Technician Summary'!$G$7:$BK$372,8,FALSE),"") ->  | AE24: =IFERROR(VLOOKUP($G24,'Technician Summary'!$G$7:$BK$372,34,FALSE),"") ->  | AF24: =IFERROR(VLOOKUP($G24,'Technician Summary'!$G$7:$BK$372,35,FALSE),"") ->  | AH24: =IFERROR(VLOOKUP($G24,'Technician Summary'!$G$7:$BK$372,37,FALSE),"") ->  | AI24: =IFERROR(VLOOKUP($G24,'Technician Summary'!$G$7:$BK$372,38,FALSE),"") ->  | AK24: =IFERROR(VLOOKUP($G24,'Technician Summary'!$G$7:$BK$372,27,FALSE),"") ->  | AL24: =IFERROR(VLOOKUP($G24,'Technician Summary'!$G$7:$BK$372,68,FALSE),"") -> 
I25: =IFERROR(VLOOKUP($G25,'Technician Summary'!$G$7:$BB$372,2,FALSE),"") ->  | J25: =IFERROR(VLOOKUP($G25,'Technician Summary'!$G$7:$BN$372,60,FALSE),"") ->  | L25: =IFERROR(VLOOKUP($G25,'Technician Summary'!$G$7:$BK$372,14,FALSE),"") ->  | M25: =IFERROR(VLOOKUP($G25,'Technician Summary'!$G$7:$BK$372,15,FALSE),"") ->  | O25: =IFERROR(VLOOKUP($G25,'Technician Summary'!$G$7:$BK$372,17,FALSE),"") ->  | P25: =IFERROR(VLOOKUP($G25,'Technician Summary'!$G$7:$BK$372,18,FALSE),"") ->  | R25: =IFERROR(VLOOKUP($G25,'Technician Summary'!$G$7:$BK$372,20,FALSE),"") ->  | S25: =IFERROR(VLOOKUP($G25,'Technician Summary'!$G$7:$BK$372,21,FALSE),"") ->  | U25: =IF(G25="","",COUNTIFS('StrataSync Data'!$AB:$AB,$G25,'StrataSync Data'!$G:$G,"Closed")) ->  | V25: =IF($G25="","",COUNTIFS('StrataSync Data'!$AB:$AB,$G25,'StrataSync Data'!$H:$H,"Yes",'StrataSync Data'!$G:$G,"Closed")) ->  | X25: =IFERROR(IF($G$7="","",COUNTIFS('StrataSync Data'!$AB:$AB,$G25,'StrataSync Data'!$I:$I,"Incomplete",'StrataSync Data'!$H:$H,"Yes",'StrataSync Data'!$G:$G,"Closed"))+IF($G25="","",COUNTIFS('StrataSync Data'!$AB:$AB,$G25,'StrataSync Data'!$I:$I,"Fail",'StrataSync Data'!$H:$H,"Yes",'StrataSync Data'!$G:$G,"Closed")),"") ->  | Z25: =SUMIF('StrataSync Data'!#REF!,G25,'StrataSync Data'!#REF!) ->  | AA25: =IFERROR(SUM(Z25/#REF!),"") ->  | AB25: =IFERROR(VLOOKUP($G25,'Technician Summary'!$G$7:$BK$372,7,FALSE),"") ->  | AC25: =IFERROR(VLOOKUP($G25,'Technician Summary'!$G$7:$BK$372,8,FALSE),"") ->  | AE25: =IFERROR(VLOOKUP($G25,'Technician Summary'!$G$7:$BK$372,34,FALSE),"") ->  | AF25: =IFERROR(VLOOKUP($G25,'Technician Summary'!$G$7:$BK$372,35,FALSE),"") ->  | AH25: =IFERROR(VLOOKUP($G25,'Technician Summary'!$G$7:$BK$372,37,FALSE),"") ->  | AI25: =IFERROR(VLOOKUP($G25,'Technician Summary'!$G$7:$BK$372,38,FALSE),"") ->  | AK25: =IFERROR(VLOOKUP($G25,'Technician Summary'!$G$7:$BK$372,27,FALSE),"") ->  | AL25: =IFERROR(VLOOKUP($G25,'Technician Summary'!$G$7:$BK$372,68,FALSE),"") -> 
I26: =IFERROR(VLOOKUP($G26,'Technician Summary'!$G$7:$BB$372,2,FALSE),"") ->  | J26: =IFERROR(VLOOKUP($G26,'Technician Summary'!$G$7:$BN$372,60,FALSE),"") ->  | L26: =IFERROR(VLOOKUP($G26,'Technician Summary'!$G$7:$BK$372,14,FALSE),"") ->  | M26: =IFERROR(VLOOKUP($G26,'Technician Summary'!$G$7:$BK$372,15,FALSE),"") ->  | O26: =IFERROR(VLOOKUP($G26,'Technician Summary'!$G$7:$BK$372,17,FALSE),"") ->  | P26: =IFERROR(VLOOKUP($G26,'Technician Summary'!$G$7:$BK$372,18,FALSE),"") ->  | R26: =IFERROR(VLOOKUP($G26,'Technician Summary'!$G$7:$BK$372,20,FALSE),"") ->  | S26: =IFERROR(VLOOKUP($G26,'Technician Summary'!$G$7:$BK$372,21,FALSE),"") ->  | U26: =IF(G26="","",COUNTIFS('StrataSync Data'!$AB:$AB,$G26,'StrataSync Data'!$G:$G,"Closed")) ->  | V26: =IF($G26="","",COUNTIFS('StrataSync Data'!$AB:$AB,$G26,'StrataSync Data'!$H:$H,"Yes",'StrataSync Data'!$G:$G,"Closed")) ->  | X26: =IFERROR(IF($G$7="","",COUNTIFS('StrataSync Data'!$AB:$AB,$G26,'StrataSync Data'!$I:$I,"Incomplete",'StrataSync Data'!$H:$H,"Yes",'StrataSync Data'!$G:$G,"Closed"))+IF($G26="","",COUNTIFS('StrataSync Data'!$AB:$AB,$G26,'StrataSync Data'!$I:$I,"Fail",'StrataSync Data'!$H:$H,"Yes",'StrataSync Data'!$G:$G,"Closed")),"") ->  | Z26: =SUMIF('StrataSync Data'!#REF!,G26,'StrataSync Data'!#REF!) ->  | AA26: =IFERROR(SUM(Z26/#REF!),"") ->  | AB26: =IFERROR(VLOOKUP($G26,'Technician Summary'!$G$7:$BK$372,7,FALSE),"") ->  | AC26: =IFERROR(VLOOKUP($G26,'Technician Summary'!$G$7:$BK$372,8,FALSE),"") ->  | AE26: =IFERROR(VLOOKUP($G26,'Technician Summary'!$G$7:$BK$372,34,FALSE),"") ->  | AF26: =IFERROR(VLOOKUP($G26,'Technician Summary'!$G$7:$BK$372,35,FALSE),"") ->  | AH26: =IFERROR(VLOOKUP($G26,'Technician Summary'!$G$7:$BK$372,37,FALSE),"") ->  | AI26: =IFERROR(VLOOKUP($G26,'Technician Summary'!$G$7:$BK$372,38,FALSE),"") ->  | AK26: =IFERROR(VLOOKUP($G26,'Technician Summary'!$G$7:$BK$372,27,FALSE),"") ->  | AL26: =IFERROR(VLOOKUP($G26,'Technician Summary'!$G$7:$BK$372,68,FALSE),"") -> 
I27: =IFERROR(VLOOKUP($G27,'Technician Summary'!$G$7:$BB$372,2,FALSE),"") ->  | J27: =IFERROR(VLOOKUP($G27,'Technician Summary'!$G$7:$BN$372,60,FALSE),"") ->  | L27: =IFERROR(VLOOKUP($G27,'Technician Summary'!$G$7:$BK$372,14,FALSE),"") ->  | M27: =IFERROR(VLOOKUP($G27,'Technician Summary'!$G$7:$BK$372,15,FALSE),"") ->  | O27: =IFERROR(VLOOKUP($G27,'Technician Summary'!$G$7:$BK$372,17,FALSE),"") ->  | P27: =IFERROR(VLOOKUP($G27,'Technician Summary'!$G$7:$BK$372,18,FALSE),"") ->  | R27: =IFERROR(VLOOKUP($G27,'Technician Summary'!$G$7:$BK$372,20,FALSE),"") ->  | S27: =IFERROR(VLOOKUP($G27,'Technician Summary'!$G$7:$BK$372,21,FALSE),"") ->  | U27: =IF(G27="","",COUNTIFS('StrataSync Data'!$AB:$AB,$G27,'StrataSync Data'!$G:$G,"Closed")) ->  | V27: =IF($G27="","",COUNTIFS('StrataSync Data'!$AB:$AB,$G27,'StrataSync Data'!$H:$H,"Yes",'StrataSync Data'!$G:$G,"Closed")) ->  | X27: =IFERROR(IF($G$7="","",COUNTIFS('StrataSync Data'!$AB:$AB,$G27,'StrataSync Data'!$I:$I,"Incomplete",'StrataSync Data'!$H:$H,"Yes",'StrataSync Data'!$G:$G,"Closed"))+IF($G27="","",COUNTIFS('StrataSync Data'!$AB:$AB,$G27,'StrataSync Data'!$I:$I,"Fail",'StrataSync Data'!$H:$H,"Yes",'StrataSync Data'!$G:$G,"Closed")),"") ->  | Z27: =SUMIF('StrataSync Data'!#REF!,G27,'StrataSync Data'!#REF!) ->  | AA27: =IFERROR(SUM(Z27/#REF!),"") ->  | AB27: =IFERROR(VLOOKUP($G27,'Technician Summary'!$G$7:$BK$372,7,FALSE),"") ->  | AC27: =IFERROR(VLOOKUP($G27,'Technician Summary'!$G$7:$BK$372,8,FALSE),"") ->  | AE27: =IFERROR(VLOOKUP($G27,'Technician Summary'!$G$7:$BK$372,34,FALSE),"") ->  | AF27: =IFERROR(VLOOKUP($G27,'Technician Summary'!$G$7:$BK$372,35,FALSE),"") ->  | AH27: =IFERROR(VLOOKUP($G27,'Technician Summary'!$G$7:$BK$372,37,FALSE),"") ->  | AI27: =IFERROR(VLOOKUP($G27,'Technician Summary'!$G$7:$BK$372,38,FALSE),"") ->  | AK27: =IFERROR(VLOOKUP($G27,'Technician Summary'!$G$7:$BK$372,27,FALSE),"") ->  | AL27: =IFERROR(VLOOKUP($G27,'Technician Summary'!$G$7:$BK$372,68,FALSE),"") -> 
I28: =IFERROR(VLOOKUP($G28,'Technician Summary'!$G$7:$BB$372,2,FALSE),"") ->  | J28: =IFERROR(VLOOKUP($G28,'Technician Summary'!$G$7:$BN$372,60,FALSE),"") ->  | L28: =IFERROR(VLOOKUP($G28,'Technician Summary'!$G$7:$BK$372,14,FALSE),"") ->  | M28: =IFERROR(VLOOKUP($G28,'Technician Summary'!$G$7:$BK$372,15,FALSE),"") ->  | O28: =IFERROR(VLOOKUP($G28,'Technician Summary'!$G$7:$BK$372,17,FALSE),"") ->  | P28: =IFERROR(VLOOKUP($G28,'Technician Summary'!$G$7:$BK$372,18,FALSE),"") ->  | R28: =IFERROR(VLOOKUP($G28,'Technician Summary'!$G$7:$BK$372,20,FALSE),"") ->  | S28: =IFERROR(VLOOKUP($G28,'Technician Summary'!$G$7:$BK$372,21,FALSE),"") ->  | U28: =IF(G28="","",COUNTIFS('StrataSync Data'!$AB:$AB,$G28,'StrataSync Data'!$G:$G,"Closed")) ->  | V28: =IF($G28="","",COUNTIFS('StrataSync Data'!$AB:$AB,$G28,'StrataSync Data'!$H:$H,"Yes",'StrataSync Data'!$G:$G,"Closed")) ->  | X28: =IFERROR(IF($G$7="","",COUNTIFS('StrataSync Data'!$AB:$AB,$G28,'StrataSync Data'!$I:$I,"Incomplete",'StrataSync Data'!$H:$H,"Yes",'StrataSync Data'!$G:$G,"Closed"))+IF($G28="","",COUNTIFS('StrataSync Data'!$AB:$AB,$G28,'StrataSync Data'!$I:$I,"Fail",'StrataSync Data'!$H:$H,"Yes",'StrataSync Data'!$G:$G,"Closed")),"") ->  | Z28: =SUMIF('StrataSync Data'!#REF!,G28,'StrataSync Data'!#REF!) ->  | AA28: =IFERROR(SUM(Z28/#REF!),"") ->  | AB28: =IFERROR(VLOOKUP($G28,'Technician Summary'!$G$7:$BK$372,7,FALSE),"") ->  | AC28: =IFERROR(VLOOKUP($G28,'Technician Summary'!$G$7:$BK$372,8,FALSE),"") ->  | AE28: =IFERROR(VLOOKUP($G28,'Technician Summary'!$G$7:$BK$372,34,FALSE),"") ->  | AF28: =IFERROR(VLOOKUP($G28,'Technician Summary'!$G$7:$BK$372,35,FALSE),"") ->  | AH28: =IFERROR(VLOOKUP($G28,'Technician Summary'!$G$7:$BK$372,37,FALSE),"") ->  | AI28: =IFERROR(VLOOKUP($G28,'Technician Summary'!$G$7:$BK$372,38,FALSE),"") ->  | AK28: =IFERROR(VLOOKUP($G28,'Technician Summary'!$G$7:$BK$372,27,FALSE),"") ->  | AL28: =IFERROR(VLOOKUP($G28,'Technician Summary'!$G$7:$BK$372,68,FALSE),"") -> 
I29: =IFERROR(VLOOKUP($G29,'Technician Summary'!$G$7:$BB$372,2,FALSE),"") ->  | J29: =IFERROR(VLOOKUP($G29,'Technician Summary'!$G$7:$BN$372,60,FALSE),"") ->  | L29: =IFERROR(VLOOKUP($G29,'Technician Summary'!$G$7:$BK$372,14,FALSE),"") ->  | M29: =IFERROR(VLOOKUP($G29,'Technician Summary'!$G$7:$BK$372,15,FALSE),"") ->  | O29: =IFERROR(VLOOKUP($G29,'Technician Summary'!$G$7:$BK$372,17,FALSE),"") ->  | P29: =IFERROR(VLOOKUP($G29,'Technician Summary'!$G$7:$BK$372,18,FALSE),"") ->  | R29: =IFERROR(VLOOKUP($G29,'Technician Summary'!$G$7:$BK$372,20,FALSE),"") ->  | S29: =IFERROR(VLOOKUP($G29,'Technician Summary'!$G$7:$BK$372,21,FALSE),"") ->  | U29: =IF(G29="","",COUNTIFS('StrataSync Data'!$AB:$AB,$G29,'StrataSync Data'!$G:$G,"Closed")) ->  | V29: =IF($G29="","",COUNTIFS('StrataSync Data'!$AB:$AB,$G29,'StrataSync Data'!$H:$H,"Yes",'StrataSync Data'!$G:$G,"Closed")) ->  | X29: =IFERROR(IF($G$7="","",COUNTIFS('StrataSync Data'!$AB:$AB,$G29,'StrataSync Data'!$I:$I,"Incomplete",'StrataSync Data'!$H:$H,"Yes",'StrataSync Data'!$G:$G,"Closed"))+IF($G29="","",COUNTIFS('StrataSync Data'!$AB:$AB,$G29,'StrataSync Data'!$I:$I,"Fail",'StrataSync Data'!$H:$H,"Yes",'StrataSync Data'!$G:$G,"Closed")),"") ->  | Z29: =SUMIF('StrataSync Data'!#REF!,G29,'StrataSync Data'!#REF!) ->  | AA29: =IFERROR(SUM(Z29/#REF!),"") ->  | AB29: =IFERROR(VLOOKUP($G29,'Technician Summary'!$G$7:$BK$372,7,FALSE),"") ->  | AC29: =IFERROR(VLOOKUP($G29,'Technician Summary'!$G$7:$BK$372,8,FALSE),"") ->  | AE29: =IFERROR(VLOOKUP($G29,'Technician Summary'!$G$7:$BK$372,34,FALSE),"") ->  | AF29: =IFERROR(VLOOKUP($G29,'Technician Summary'!$G$7:$BK$372,35,FALSE),"") ->  | AH29: =IFERROR(VLOOKUP($G29,'Technician Summary'!$G$7:$BK$372,37,FALSE),"") ->  | AI29: =IFERROR(VLOOKUP($G29,'Technician Summary'!$G$7:$BK$372,38,FALSE),"") ->  | AK29: =IFERROR(VLOOKUP($G29,'Technician Summary'!$G$7:$BK$372,27,FALSE),"") ->  | AL29: =IFERROR(VLOOKUP($G29,'Technician Summary'!$G$7:$BK$372,68,FALSE),"") -> 
I30: =IFERROR(VLOOKUP($G30,'Technician Summary'!$G$7:$BB$372,2,FALSE),"") ->  | J30: =IFERROR(VLOOKUP($G30,'Technician Summary'!$G$7:$BN$372,60,FALSE),"") ->  | L30: =IFERROR(VLOOKUP($G30,'Technician Summary'!$G$7:$BK$372,14,FALSE),"") ->  | M30: =IFERROR(VLOOKUP($G30,'Technician Summary'!$G$7:$BK$372,15,FALSE),"") ->  | O30: =IFERROR(VLOOKUP($G30,'Technician Summary'!$G$7:$BK$372,17,FALSE),"") ->  | P30: =IFERROR(VLOOKUP($G30,'Technician Summary'!$G$7:$BK$372,18,FALSE),"") ->  | R30: =IFERROR(VLOOKUP($G30,'Technician Summary'!$G$7:$BK$372,20,FALSE),"") ->  | S30: =IFERROR(VLOOKUP($G30,'Technician Summary'!$G$7:$BK$372,21,FALSE),"") ->  | U30: =IF(G30="","",COUNTIFS('StrataSync Data'!$AB:$AB,$G30,'StrataSync Data'!$G:$G,"Closed")) ->  | V30: =IF($G30="","",COUNTIFS('StrataSync Data'!$AB:$AB,$G30,'StrataSync Data'!$H:$H,"Yes",'StrataSync Data'!$G:$G,"Closed")) ->  | X30: =IFERROR(IF($G$7="","",COUNTIFS('StrataSync Data'!$AB:$AB,$G30,'StrataSync Data'!$I:$I,"Incomplete",'StrataSync Data'!$H:$H,"Yes",'StrataSync Data'!$G:$G,"Closed"))+IF($G30="","",COUNTIFS('StrataSync Data'!$AB:$AB,$G30,'StrataSync Data'!$I:$I,"Fail",'StrataSync Data'!$H:$H,"Yes",'StrataSync Data'!$G:$G,"Closed")),"") ->  | Z30: =SUMIF('StrataSync Data'!#REF!,G30,'StrataSync Data'!#REF!) ->  | AA30: =IFERROR(SUM(Z30/#REF!),"") ->  | AB30: =IFERROR(VLOOKUP($G30,'Technician Summary'!$G$7:$BK$372,7,FALSE),"") ->  | AC30: =IFERROR(VLOOKUP($G30,'Technician Summary'!$G$7:$BK$372,8,FALSE),"") ->  | AE30: =IFERROR(VLOOKUP($G30,'Technician Summary'!$G$7:$BK$372,34,FALSE),"") ->  | AF30: =IFERROR(VLOOKUP($G30,'Technician Summary'!$G$7:$BK$372,35,FALSE),"") ->  | AH30: =IFERROR(VLOOKUP($G30,'Technician Summary'!$G$7:$BK$372,37,FALSE),"") ->  | AI30: =IFERROR(VLOOKUP($G30,'Technician Summary'!$G$7:$BK$372,38,FALSE),"") ->  | AK30: =IFERROR(VLOOKUP($G30,'Technician Summary'!$G$7:$BK$372,27,FALSE),"") ->  | AL30: =IFERROR(VLOOKUP($G30,'Technician Summary'!$G$7:$BK$372,68,FALSE),"") -> 
I31: =IFERROR(VLOOKUP($G31,'Technician Summary'!$G$7:$BB$372,2,FALSE),"") ->  | J31: =IFERROR(VLOOKUP($G31,'Technician Summary'!$G$7:$BN$372,60,FALSE),"") ->  | L31: =IFERROR(VLOOKUP($G31,'Technician Summary'!$G$7:$BK$372,14,FALSE),"") ->  | M31: =IFERROR(VLOOKUP($G31,'Technician Summary'!$G$7:$BK$372,15,FALSE),"") ->  | O31: =IFERROR(VLOOKUP($G31,'Technician Summary'!$G$7:$BK$372,17,FALSE),"") ->  | P31: =IFERROR(VLOOKUP($G31,'Technician Summary'!$G$7:$BK$372,18,FALSE),"") ->  | R31: =IFERROR(VLOOKUP($G31,'Technician Summary'!$G$7:$BK$372,20,FALSE),"") ->  | S31: =IFERROR(VLOOKUP($G31,'Technician Summary'!$G$7:$BK$372,21,FALSE),"") ->  | U31: =IF(G31="","",COUNTIFS('StrataSync Data'!$AB:$AB,$G31,'StrataSync Data'!$G:$G,"Closed")) ->  | V31: =IF($G31="","",COUNTIFS('StrataSync Data'!$AB:$AB,$G31,'StrataSync Data'!$H:$H,"Yes",'StrataSync Data'!$G:$G,"Closed")) ->  | X31: =IFERROR(IF($G$7="","",COUNTIFS('StrataSync Data'!$AB:$AB,$G31,'StrataSync Data'!$I:$I,"Incomplete",'StrataSync Data'!$H:$H,"Yes",'StrataSync Data'!$G:$G,"Closed"))+IF($G31="","",COUNTIFS('StrataSync Data'!$AB:$AB,$G31,'StrataSync Data'!$I:$I,"Fail",'StrataSync Data'!$H:$H,"Yes",'StrataSync Data'!$G:$G,"Closed")),"") ->  | Z31: =SUMIF('StrataSync Data'!#REF!,G31,'StrataSync Data'!#REF!) ->  | AA31: =IFERROR(SUM(Z31/#REF!),"") ->  | AB31: =IFERROR(VLOOKUP($G31,'Technician Summary'!$G$7:$BK$372,7,FALSE),"") ->  | AC31: =IFERROR(VLOOKUP($G31,'Technician Summary'!$G$7:$BK$372,8,FALSE),"") ->  | AE31: =IFERROR(VLOOKUP($G31,'Technician Summary'!$G$7:$BK$372,34,FALSE),"") ->  | AF31: =IFERROR(VLOOKUP($G31,'Technician Summary'!$G$7:$BK$372,35,FALSE),"") ->  | AH31: =IFERROR(VLOOKUP($G31,'Technician Summary'!$G$7:$BK$372,37,FALSE),"") ->  | AI31: =IFERROR(VLOOKUP($G31,'Technician Summary'!$G$7:$BK$372,38,FALSE),"") ->  | AK31: =IFERROR(VLOOKUP($G31,'Technician Summary'!$G$7:$BK$372,27,FALSE),"") ->  | AL31: =IFERROR(VLOOKUP($G31,'Technician Summary'!$G$7:$BK$372,68,FALSE),"") -> 
I32: # NPS WO's | J32: # Failures | K32: NPS | L32: Total Repeatable WO | M32: Total Repeats | N32: Repeats | O32: Total Repeatable WO | P32: Repeat IN | Q32: IN Repeat % | R32: Total Repeatable WO | S32: Repeat TC | T32: Repeat TC % | U32: Jobs | V32: Test Run | W32: SQT Compliance | X32: Test Fail | Y32: SQT Pass | Z32: Test Passed | AA32: Ingress Test Pass | AB32: FCR WO | AC32: FCR Failures | AD32: FCR | AE32: Jobs | AF32: Jobs Late | AG32: OTA | AH32: Jobs | AI32: Completed Jobs | AJ32: Completion % | AK32: Total Jobs | AL32: SMS Failures | AM32: SMS tNPS
I34: =SUMIF(I7:I31,">0") -> 41 | J34: =SUMIF(J7:J31,">0") -> 8.9997 | K34: =IFERROR(1-(J34/I34),"") -> 0.7805 | L34: =SUM(L7:L31) -> 447 | M34: =SUM(M7:M31) -> 5 | N34: =IFERROR(SUM(M34/L34),"") -> 0.0112 | O34: =SUM(O7:O31) -> 237 | P34: =SUM(P7:P31) -> 5 | Q34: =IFERROR(SUM(P34/O34),"") -> 0.0211 | R34: =SUM(R7:R31) -> 210 | S34: =SUM(S7:S31) -> 0 | T34: =IFERROR(SUM(S34/R34),"") -> 0 | U34: =SUMIF(U7:U31,">0") -> 250 | V34: =SUMIF(V7:V31,">0") -> 242 | W34: =IFERROR(SUM(V34/U34),"") -> 0.968 | X34: =SUM(X7:X31) -> 4 | Y34: =IFERROR(SUM(1-X34/V34),"") -> 0.9835 | Z34: =SUM(Z7:Z31) ->  | AA34: =IFERROR(SUM(Z34/#REF!),"") ->  | AB34: =SUM(AB7:AB31) -> 206 | AC34: =SUM(AC7:AC31) -> 3 | AD34: =IFERROR(1-AC34/AB34,"") -> 0.9854 | AE34: =SUM(AE7:AE31) -> 132 | AF34: =SUM(AF7:AF31) -> 4 | AG34: =IFERROR(1-AF34/AE34,"") -> 0.9697 | AH34: =SUM(AH7:AH31) -> 508 | AI34: =SUM(AI7:AI31) -> 442 | AJ34: =IFERROR(AI34/AH34,"") -> 0.8701 | AK34: =SUM(AK7:AK31) -> 0 | AL34: =SUM(AL7:AL31) -> 0 | AM34: =IFERROR(1-AL34/AK34,"") -> 

Sheet Macon
F3: Deandre McCants
F5: Tech Name | G5: Tech ID | H5: Score | I5: # NPS WO's | J5: # Failures | K5: NPS | L5: Total Repeatable WO | M5: Total Repeats | N5: Repeats | O5: Total Repeatable WO | P5: Repeat IN | Q5: IN Repeat % | R5: Total Repeatable WO | S5: Repeat TC | T5: Repeat TC % | U5: Jobs | V5: Test Run | W5: SQT Compliance | X5: Test Fail | Y5: SQT Pass | Z5: Test Passed | AA5: Ingress Test Pass | AB5: FCR WO | AC5: FCR Failures | AD5: FCR | AE5: Jobs | AF5: Jobs Late | AG5: OTA | AH5: Jobs | AI5: Completed Jobs | AJ5: Completion % | AK5: Total QC | AL5: QC Failure | AM5: SMS tNPS
F7: Deshawn Richburg | G7: 92058 | H7: =IF(W7="","",IFERROR(IF(K7>=70%,2.5,0)+IF(N7<=4%,2.5,0)+IF(W7>=90%,2.5,0)+IF(AG7>=96%,2.5,0),"")) -> 5 | I7: =IFERROR(VLOOKUP($G7,'Technician Summary'!$G$3:$BB$372,2,FALSE),"") -> 7 | J7: =IFERROR(VLOOKUP($G7,'Technician Summary'!$G$8:$BN$372,60,FALSE),"") -> 1.0003 | K7: =IFERROR(1-(J7/I7),"") -> 0.8571 | L7: =IFERROR(VLOOKUP($G7,'Technician Summary'!$G$8:$BK$372,14,FALSE),"") -> 65 | M7: =IFERROR(VLOOKUP($G7,'Technician Summary'!$G$8:$BK$372,15,FALSE),"") -> 2 | N7: =IFERROR(SUM(M7/L7),"") -> 0.0308 | O7: =IFERROR(VLOOKUP($G7,'Technician Summary'!$G$7:$BK$372,17,FALSE),"") -> 35 | P7: =IFERROR(VLOOKUP($G7,'Technician Summary'!$G$7:$BK$372,18,FALSE),"") -> 0 | Q7: =IFERROR(SUM(P7/O7),"") -> 0 | R7: =IFERROR(VLOOKUP($G7,'Technician Summary'!$G$7:$BK$372,20,FALSE),"") -> 30 | S7: =IFERROR(VLOOKUP($G7,'Technician Summary'!$G$7:$BK$372,21,FALSE),"") -> 2 | T7: =IFERROR(SUM(S7/R7),"") -> 0.0667 | U7: =IF(G7="","",COUNTIFS('StrataSync Data'!$AB:$AB,$G7,'StrataSync Data'!$G:$G,"Closed")) -> 38 | V7: =IF($G7="","",COUNTIFS('StrataSync Data'!$AB:$AB,$G7,'StrataSync Data'!$H:$H,"Yes",'StrataSync Data'!$G:$G,"Closed")) -> 34 | W7: =IFERROR(SUM(V7/U7),"") -> 0.8947 | X7: =IFERROR(IF($G$7="","",COUNTIFS('StrataSync Data'!$AB:$AB,$G7,'StrataSync Data'!$I:$I,"Incomplete",'StrataSync Data'!$H:$H,"Yes",'StrataSync Data'!$G:$G,"Closed"))+IF($G7="","",COUNTIFS('StrataSync Data'!$AB:$AB,$G7,'StrataSync Data'!$I:$I,"Fail",'StrataSync Data'!$H:$H,"Yes",'StrataSync Data'!$G:$G,"Closed")),"") -> 0 | Y7: =IFERROR(SUM(1-X7/V7),"") -> 1 | AA7: =IFERROR(SUM(Z7/#REF!),"") ->  | AB7: =IFERROR(VLOOKUP($G7,'Technician Summary'!$G$8:$BK$372,7,FALSE),"") -> 37 | AC7: =IFERROR(VLOOKUP($G7,'Technician Summary'!$G$8:$BK$372,8,FALSE),"") -> 0 | AD7: =IFERROR(1-AC7/AB7,"") -> 1 | AE7: =IFERROR(VLOOKUP($G7,'Technician Summary'!$G$8:$BK$372,34,FALSE),"") -> 28 | AF7: =IFERROR(VLOOKUP($G7,'Technician Summary'!$G$8:$BK$372,35,FALSE),"") -> 2 | AG7: =IFERROR(1-AF7/AE7,"") -> 0.9286 | AH7: =IFERROR(VLOOKUP($G7,'Technician Summary'!$G$8:$BK$372,37,FALSE),"") -> 74 | AI7: =IFERROR(VLOOKUP($G7,'Technician Summary'!$G$8:$BK$372,38,FALSE),"") -> 63 | AJ7: =IFERROR(AI7/AH7,"") -> 0.8514 | AK7: =IFERROR(VLOOKUP($G7,'Technician Summary'!$G$8:$BK$372,27,FALSE),"") -> 0 | AL7: =IFERROR(VLOOKUP($G7,'Technician Summary'!$G$8:$BK$372,68,FALSE),"") ->  | AM7: =IFERROR(1-AL7/AK7,"") -> 
F8: Delvin Montford | G8: 18558 | H8: =IF(W8="","",IFERROR(IF(K8>=70%,2.5,0)+IF(N8<=4%,2.5,0)+IF(W8>=90%,2.5,0)+IF(AG8>=96%,2.5,0),"")) -> 10 | I8: =IFERROR(VLOOKUP($G8,'Technician Summary'!$G$3:$BB$372,2,FALSE),"") -> 5 | J8: =IFERROR(VLOOKUP($G8,'Technician Summary'!$G$8:$BN$372,60,FALSE),"") -> 0 | K8: =IFERROR(1-(J8/I8),"") -> 1 | L8: =IFERROR(VLOOKUP($G8,'Technician Summary'!$G$8:$BK$372,14,FALSE),"") -> 46 | M8: =IFERROR(VLOOKUP($G8,'Technician Summary'!$G$8:$BK$372,15,FALSE),"") -> 0 | N8: =IFERROR(SUM(M8/L8),"") -> 0 | O8: =IFERROR(VLOOKUP($G8,'Technician Summary'!$G$7:$BK$372,17,FALSE),"") -> 28 | P8: =IFERROR(VLOOKUP($G8,'Technician Summary'!$G$7:$BK$372,18,FALSE),"") -> 0 | Q8: =IFERROR(SUM(P8/O8),"") -> 0 | R8: =IFERROR(VLOOKUP($G8,'Technician Summary'!$G$7:$BK$372,20,FALSE),"") -> 18 | S8: =IFERROR(VLOOKUP($G8,'Technician Summary'!$G$7:$BK$372,21,FALSE),"") -> 0 | T8: =IFERROR(SUM(S8/R8),"") -> 0 | U8: =IF(G8="","",COUNTIFS('StrataSync Data'!$AB:$AB,$G8,'StrataSync Data'!$G:$G,"Closed")) -> 18 | V8: =IF($G8="","",COUNTIFS('StrataSync Data'!$AB:$AB,$G8,'StrataSync Data'!$H:$H,"Yes",'StrataSync Data'!$G:$G,"Closed")) -> 18 | W8: =IFERROR(SUM(V8/U8),"") -> 1 | X8: =IFERROR(IF($G$7="","",COUNTIFS('StrataSync Data'!$AB:$AB,$G8,'StrataSync Data'!$I:$I,"Incomplete",'StrataSync Data'!$H:$H,"Yes",'StrataSync Data'!$G:$G,"Closed"))+IF($G8="","",COUNTIFS('StrataSync Data'!$AB:$AB,$G8,'StrataSync Data'!$I:$I,"Fail",'StrataSync Data'!$H:$H,"Yes",'StrataSync Data'!$G:$G,"Closed")),"") -> 2 | Y8: =IFERROR(SUM(1-X8/V8),"") -> 0.8889 | AA8: =IFERROR(SUM(Z8/#REF!),"") ->  | AB8: =IFERROR(VLOOKUP($G8,'Technician Summary'!$G$8:$BK$372,7,FALSE),"") -> 37 | AC8: =IFERROR(VLOOKUP($G8,'Technician Summary'!$G$8:$BK$372,8,FALSE),"") -> 0 | AD8: =IFERROR(1-AC8/AB8,"") -> 1 | AE8: =IFERROR(VLOOKUP($G8,'Technician Summary'!$G$8:$BK$372,34,FALSE),"") -> 27 | AF8: =IFERROR(VLOOKUP($G8,'Technician Summary'!$G$8:$BK$372,35,FALSE),"") -> 0 | AG8: =IFERROR(1-AF8/AE8,"") -> 1 | AH8: =IFERROR(VLOOKUP($G8,'Technician Summary'!$G$8:$BK$372,37,FALSE),"") -> 51 | AI8: =IFERROR(VLOOKUP($G8,'Technician Summary'!$G$8:$BK$372,38,FALSE),"") -> 46 | AJ8: =IFERROR(AI8/AH8,"") -> 0.902 | AK8: =IFERROR(VLOOKUP($G8,'Technician Summary'!$G$8:$BK$372,27,FALSE),"") -> 0 | AL8: =IFERROR(VLOOKUP($G8,'Technician Summary'!$G$8:$BK$372,68,FALSE),"") ->  | AM8: =IFERROR(1-AL8/AK8,"") -> 
F9: Daniel Sanchez | G9: 69594 | I9: =IFERROR(VLOOKUP($G9,'Technician Summary'!$G$3:$BB$372,2,FALSE),"") ->  | J9: =IFERROR(VLOOKUP($G9,'Technician Summary'!$G$8:$BN$372,60,FALSE),"") ->  | L9: =IFERROR(VLOOKUP($G9,'Technician Summary'!$G$8:$BK$372,14,FALSE),"") ->  | M9: =IFERROR(VLOOKUP($G9,'Technician Summary'!$G$8:$BK$372,15,FALSE),"") ->  | O9: =IFERROR(VLOOKUP($G9,'Technician Summary'!$G$7:$BK$372,17,FALSE),"") ->  | P9: =IFERROR(VLOOKUP($G9,'Technician Summary'!$G$7:$BK$372,18,FALSE),"") ->  | R9: =IFERROR(VLOOKUP($G9,'Technician Summary'!$G$7:$BK$372,20,FALSE),"") ->  | S9: =IFERROR(VLOOKUP($G9,'Technician Summary'!$G$7:$BK$372,21,FALSE),"") ->  | U9: =IF(G9="","",COUNTIFS('StrataSync Data'!$AB:$AB,$G9,'StrataSync Data'!$G:$G,"Closed")) -> 0 | V9: =IF($G9="","",COUNTIFS('StrataSync Data'!$AB:$AB,$G9,'StrataSync Data'!$H:$H,"Yes",'StrataSync Data'!$G:$G,"Closed")) -> 0 | X9: =IFERROR(IF($G$7="","",COUNTIFS('StrataSync Data'!$AB:$AB,$G9,'StrataSync Data'!$I:$I,"Incomplete",'StrataSync Data'!$H:$H,"Yes",'StrataSync Data'!$G:$G,"Closed"))+IF($G9="","",COUNTIFS('StrataSync Data'!$AB:$AB,$G9,'StrataSync Data'!$I:$I,"Fail",'StrataSync Data'!$H:$H,"Yes",'StrataSync Data'!$G:$G,"Closed")),"") -> 0 | AA9: =IFERROR(SUM(Z9/#REF!),"") ->  | AB9: =IFERROR(VLOOKUP($G9,'Technician Summary'!$G$8:$BK$372,7,FALSE),"") ->  | AC9: =IFERROR(VLOOKUP($G9,'Technician Summary'!$G$8:$BK$372,8,FALSE),"") ->  | AE9: =IFERROR(VLOOKUP($G9,'Technician Summary'!$G$8:$BK$372,34,FALSE),"") ->  | AF9: =IFERROR(VLOOKUP($G9,'Technician Summary'!$G$8:$BK$372,35,FALSE),"") ->  | AH9: =IFERROR(VLOOKUP($G9,'Technician Summary'!$G$8:$BK$372,37,FALSE),"") ->  | AI9: =IFERROR(VLOOKUP($G9,'Technician Summary'!$G$8:$BK$372,38,FALSE),"") ->  | AK9: =IFERROR(VLOOKUP($G9,'Technician Summary'!$G$8:$BK$372,27,FALSE),"") ->  | AL9: =IFERROR(VLOOKUP($G9,'Technician Summary'!$G$8:$BK$372,68,FALSE),"") -> 
F10: Jamir Chambers | G10: 2558 | H10: 5 | I10: =IFERROR(VLOOKUP($G10,'Technician Summary'!$G$3:$BB$372,2,FALSE),"") -> 1 | J10: =IFERROR(VLOOKUP($G10,'Technician Summary'!$G$8:$BN$372,60,FALSE),"") -> 0 | K10: 1 | L10: =IFERROR(VLOOKUP($G10,'Technician Summary'!$G$8:$BK$372,14,FALSE),"") -> 41 | M10: =IFERROR(VLOOKUP($G10,'Technician Summary'!$G$8:$BK$372,15,FALSE),"") -> 3 | N10: 0.0732 | O10: =IFERROR(VLOOKUP($G10,'Technician Summary'!$G$7:$BK$372,17,FALSE),"") -> 21 | P10: =IFERROR(VLOOKUP($G10,'Technician Summary'!$G$7:$BK$372,18,FALSE),"") -> 2 | Q10: 0.0952 | R10: =IFERROR(VLOOKUP($G10,'Technician Summary'!$G$7:$BK$372,20,FALSE),"") -> 20 | S10: =IFERROR(VLOOKUP($G10,'Technician Summary'!$G$7:$BK$372,21,FALSE),"") -> 1 | T10: 0.05 | U10: =IF(G10="","",COUNTIFS('StrataSync Data'!$AB:$AB,$G10,'StrataSync Data'!$G:$G,"Closed")) -> 32 | V10: =IF($G10="","",COUNTIFS('StrataSync Data'!$AB:$AB,$G10,'StrataSync Data'!$H:$H,"Yes",'StrataSync Data'!$G:$G,"Closed")) -> 32 | W10: 1 | X10: =IFERROR(IF($G$7="","",COUNTIFS('StrataSync Data'!$AB:$AB,$G10,'StrataSync Data'!$I:$I,"Incomplete",'StrataSync Data'!$H:$H,"Yes",'StrataSync Data'!$G:$G,"Closed"))+IF($G10="","",COUNTIFS('StrataSync Data'!$AB:$AB,$G10,'StrataSync Data'!$I:$I,"Fail",'StrataSync Data'!$H:$H,"Yes",'StrataSync Data'!$G:$G,"Closed")),"") -> 1 | Y10: 0.9688 | AA10: =IFERROR(SUM(Z10/#REF!),"") ->  | AB10: =IFERROR(VLOOKUP($G10,'Technician Summary'!$G$8:$BK$372,7,FALSE),"") -> 15 | AC10: =IFERROR(VLOOKUP($G10,'Technician Summary'!$G$8:$BK$372,8,FALSE),"") -> 0 | AD10: 1 | AE10: =IFERROR(VLOOKUP($G10,'Technician Summary'!$G$8:$BK$372,34,FALSE),"") -> 9 | AF10: =IFERROR(VLOOKUP($G10,'Technician Summary'!$G$8:$BK$372,35,FALSE),"") -> 1 | AG10: 0.8889 | AH10: =IFERROR(VLOOKUP($G10,'Technician Summary'!$G$8:$BK$372,37,FALSE),"") -> 50 | AI10: =IFERROR(VLOOKUP($G10,'Technician Summary'!$G$8:$BK$372,38,FALSE),"") -> 40 | AJ10: 0.8 | AK10: =IFERROR(VLOOKUP($G10,'Technician Summary'!$G$8:$BK$372,27,FALSE),"") -> 0 | AL10: =IFERROR(VLOOKUP($G10,'Technician Summary'!$G$8:$BK$372,68,FALSE),"") -> 
B11: Home | F11: Adam Andrews | G11: 33779 | I11: =IFERROR(VLOOKUP($G11,'Technician Summary'!$G$3:$BB$372,2,FALSE),"") ->  | J11: =IFERROR(VLOOKUP($G11,'Technician Summary'!$G$8:$BN$372,60,FALSE),"") ->  | L11: =IFERROR(VLOOKUP($G11,'Technician Summary'!$G$8:$BK$372,14,FALSE),"") ->  | M11: =IFERROR(VLOOKUP($G11,'Technician Summary'!$G$8:$BK$372,15,FALSE),"") ->  | O11: =IFERROR(VLOOKUP($G11,'Technician Summary'!$G$7:$BK$372,17,FALSE),"") ->  | P11: =IFERROR(VLOOKUP($G11,'Technician Summary'!$G$7:$BK$372,18,FALSE),"") ->  | R11: =IFERROR(VLOOKUP($G11,'Technician Summary'!$G$7:$BK$372,20,FALSE),"") ->  | S11: =IFERROR(VLOOKUP($G11,'Technician Summary'!$G$7:$BK$372,21,FALSE),"") ->  | U11: =IF(G11="","",COUNTIFS('StrataSync Data'!$AB:$AB,$G11,'StrataSync Data'!$G:$G,"Closed")) -> 0 | V11: =IF($G11="","",COUNTIFS('StrataSync Data'!$AB:$AB,$G11,'StrataSync Data'!$H:$H,"Yes",'StrataSync Data'!$G:$G,"Closed")) -> 0 | X11: =IFERROR(IF($G$7="","",COUNTIFS('StrataSync Data'!$AB:$AB,$G11,'StrataSync Data'!$I:$I,"Incomplete",'StrataSync Data'!$H:$H,"Yes",'StrataSync Data'!$G:$G,"Closed"))+IF($G11="","",COUNTIFS('StrataSync Data'!$AB:$AB,$G11,'StrataSync Data'!$I:$I,"Fail",'StrataSync Data'!$H:$H,"Yes",'StrataSync Data'!$G:$G,"Closed")),"") -> 0 | AA11: =IFERROR(SUM(Z11/#REF!),"") ->  | AB11: =IFERROR(VLOOKUP($G11,'Technician Summary'!$G$8:$BK$372,7,FALSE),"") ->  | AC11: =IFERROR(VLOOKUP($G11,'Technician Summary'!$G$8:$BK$372,8,FALSE),"") ->  | AE11: =IFERROR(VLOOKUP($G11,'Technician Summary'!$G$8:$BK$372,34,FALSE),"") ->  | AF11: =IFERROR(VLOOKUP($G11,'Technician Summary'!$G$8:$BK$372,35,FALSE),"") ->  | AH11: =IFERROR(VLOOKUP($G11,'Technician Summary'!$G$8:$BK$372,37,FALSE),"") ->  | AI11: =IFERROR(VLOOKUP($G11,'Technician Summary'!$G$8:$BK$372,38,FALSE),"") ->  | AK11: =IFERROR(VLOOKUP($G11,'Technician Summary'!$G$8:$BK$372,27,FALSE),"") ->  | AL11: =IFERROR(VLOOKUP($G11,'Technician Summary'!$G$8:$BK$372,68,FALSE),"") -> 
F12: Dalton Bass | G12: 80926 | H12: 10 | I12: =IFERROR(VLOOKUP($G12,'Technician Summary'!$G$3:$BB$372,2,FALSE),"") -> 6 | J12: =IFERROR(VLOOKUP($G12,'Technician Summary'!$G$8:$BN$372,60,FALSE),"") -> 0 | K12: 1 | L12: =IFERROR(VLOOKUP($G12,'Technician Summary'!$G$8:$BK$372,14,FALSE),"") -> 85 | M12: =IFERROR(VLOOKUP($G12,'Technician Summary'!$G$8:$BK$372,15,FALSE),"") -> 1 | N12: 0.0118 | O12: =IFERROR(VLOOKUP($G12,'Technician Summary'!$G$7:$BK$372,17,FALSE),"") -> 44 | P12: =IFERROR(VLOOKUP($G12,'Technician Summary'!$G$7:$BK$372,18,FALSE),"") -> 1 | Q12: 0.0227 | R12: =IFERROR(VLOOKUP($G12,'Technician Summary'!$G$7:$BK$372,20,FALSE),"") -> 41 | S12: =IFERROR(VLOOKUP($G12,'Technician Summary'!$G$7:$BK$372,21,FALSE),"") -> 0 | T12: 0 | U12: =IF(G12="","",COUNTIFS('StrataSync Data'!$AB:$AB,$G12,'StrataSync Data'!$G:$G,"Closed")) -> 73 | V12: =IF($G12="","",COUNTIFS('StrataSync Data'!$AB:$AB,$G12,'StrataSync Data'!$H:$H,"Yes",'StrataSync Data'!$G:$G,"Closed")) -> 73 | W12: 1 | X12: =IFERROR(IF($G$7="","",COUNTIFS('StrataSync Data'!$AB:$AB,$G12,'StrataSync Data'!$I:$I,"Incomplete",'StrataSync Data'!$H:$H,"Yes",'StrataSync Data'!$G:$G,"Closed"))+IF($G12="","",COUNTIFS('StrataSync Data'!$AB:$AB,$G12,'StrataSync Data'!$I:$I,"Fail",'StrataSync Data'!$H:$H,"Yes",'StrataSync Data'!$G:$G,"Closed")),"") -> 1 | Y12: 0.9863 | AA12: =IFERROR(SUM(Z12/#REF!),"") ->  | AB12: =IFERROR(VLOOKUP($G12,'Technician Summary'!$G$8:$BK$372,7,FALSE),"") -> 52 | AC12: =IFERROR(VLOOKUP($G12,'Technician Summary'!$G$8:$BK$372,8,FALSE),"") -> 1 | AD12: 0.9808 | AE12: =IFERROR(VLOOKUP($G12,'Technician Summary'!$G$8:$BK$372,34,FALSE),"") -> 33 | AF12: =IFERROR(VLOOKUP($G12,'Technician Summary'!$G$8:$BK$372,35,FALSE),"") -> 1 | AG12: 0.9697 | AH12: =IFERROR(VLOOKUP($G12,'Technician Summary'!$G$8:$BK$372,37,FALSE),"") -> 94 | AI12: =IFERROR(VLOOKUP($G12,'Technician Summary'!$G$8:$BK$372,38,FALSE),"") -> 84 | AJ12: 0.8936 | AK12: =IFERROR(VLOOKUP($G12,'Technician Summary'!$G$8:$BK$372,27,FALSE),"") -> 0 | AL12: =IFERROR(VLOOKUP($G12,'Technician Summary'!$G$8:$BK$372,68,FALSE),"") -> 
B13: Performance Metrics | F13: Charles Howard | G13: 48783 | H13: 7.5 | I13: =IFERROR(VLOOKUP($G13,'Technician Summary'!$G$3:$BB$372,2,FALSE),"") -> 7 | J13: =IFERROR(VLOOKUP($G13,'Technician Summary'!$G$8:$BN$372,60,FALSE),"") -> 5.9997 | K13: 0.1429 | L13: =IFERROR(VLOOKUP($G13,'Technician Summary'!$G$8:$BK$372,14,FALSE),"") -> 65 | M13: =IFERROR(VLOOKUP($G13,'Technician Summary'!$G$8:$BK$372,15,FALSE),"") -> 1 | N13: 0.0154 | O13: =IFERROR(VLOOKUP($G13,'Technician Summary'!$G$7:$BK$372,17,FALSE),"") -> 44 | P13: =IFERROR(VLOOKUP($G13,'Technician Summary'!$G$7:$BK$372,18,FALSE),"") -> 0 | Q13: 0 | R13: =IFERROR(VLOOKUP($G13,'Technician Summary'!$G$7:$BK$372,20,FALSE),"") -> 21 | S13: =IFERROR(VLOOKUP($G13,'Technician Summary'!$G$7:$BK$372,21,FALSE),"") -> 1 | T13: 0.0476 | U13: =IF(G13="","",COUNTIFS('StrataSync Data'!$AB:$AB,$G13,'StrataSync Data'!$G:$G,"Closed")) -> 31 | V13: =IF($G13="","",COUNTIFS('StrataSync Data'!$AB:$AB,$G13,'StrataSync Data'!$H:$H,"Yes",'StrataSync Data'!$G:$G,"Closed")) -> 30 | W13: 0.9677 | X13: =IFERROR(IF($G$7="","",COUNTIFS('StrataSync Data'!$AB:$AB,$G13,'StrataSync Data'!$I:$I,"Incomplete",'StrataSync Data'!$H:$H,"Yes",'StrataSync Data'!$G:$G,"Closed"))+IF($G13="","",COUNTIFS('StrataSync Data'!$AB:$AB,$G13,'StrataSync Data'!$I:$I,"Fail",'StrataSync Data'!$H:$H,"Yes",'StrataSync Data'!$G:$G,"Closed")),"") -> 0 | Y13: 1 | AA13: =IFERROR(SUM(Z13/#REF!),"") ->  | AB13: =IFERROR(VLOOKUP($G13,'Technician Summary'!$G$8:$BK$372,7,FALSE),"") -> 41 | AC13: =IFERROR(VLOOKUP($G13,'Technician Summary'!$G$8:$BK$372,8,FALSE),"") -> 0 | AD13: 1 | AE13: =IFERROR(VLOOKUP($G13,'Technician Summary'!$G$8:$BK$372,34,FALSE),"") -> 34 | AF13: =IFERROR(VLOOKUP($G13,'Technician Summary'!$G$8:$BK$372,35,FALSE),"") -> 0 | AG13: 1 | AH13: =IFERROR(VLOOKUP($G13,'Technician Summary'!$G$8:$BK$372,37,FALSE),"") -> 72 | AI13: =IFERROR(VLOOKUP($G13,'Technician Summary'!$G$8:$BK$372,38,FALSE),"") -> 65 | AJ13: 0.9028 | AK13: =IFERROR(VLOOKUP($G13,'Technician Summary'!$G$8:$BK$372,27,FALSE),"") -> 0 | AL13: =IFERROR(VLOOKUP($G13,'Technician Summary'!$G$8:$BK$372,68,FALSE),"") -> 
B14: Gainesville | F14: Angela Yerby | G14: 60229 | H14: 10 | I14: =IFERROR(VLOOKUP($G14,'Technician Summary'!$G$3:$BB$372,2,FALSE),"") -> 3 | J14: =IFERROR(VLOOKUP($G14,'Technician Summary'!$G$8:$BN$372,60,FALSE),"") -> 0 | K14: 1 | L14: =IFERROR(VLOOKUP($G14,'Technician Summary'!$G$8:$BK$372,14,FALSE),"") -> 41 | M14: =IFERROR(VLOOKUP($G14,'Technician Summary'!$G$8:$BK$372,15,FALSE),"") -> 0 | N14: 0 | O14: =IFERROR(VLOOKUP($G14,'Technician Summary'!$G$7:$BK$372,17,FALSE),"") -> 30 | P14: =IFERROR(VLOOKUP($G14,'Technician Summary'!$G$7:$BK$372,18,FALSE),"") -> 0 | Q14: 0 | R14: =IFERROR(VLOOKUP($G14,'Technician Summary'!$G$7:$BK$372,20,FALSE),"") -> 11 | S14: =IFERROR(VLOOKUP($G14,'Technician Summary'!$G$7:$BK$372,21,FALSE),"") -> 0 | T14: 0 | U14: =IF(G14="","",COUNTIFS('StrataSync Data'!$AB:$AB,$G14,'StrataSync Data'!$G:$G,"Closed")) -> 1 | V14: =IF($G14="","",COUNTIFS('StrataSync Data'!$AB:$AB,$G14,'StrataSync Data'!$H:$H,"Yes",'StrataSync Data'!$G:$G,"Closed")) -> 1 | W14: 1 | X14: =IFERROR(IF($G$7="","",COUNTIFS('StrataSync Data'!$AB:$AB,$G14,'StrataSync Data'!$I:$I,"Incomplete",'StrataSync Data'!$H:$H,"Yes",'StrataSync Data'!$G:$G,"Closed"))+IF($G14="","",COUNTIFS('StrataSync Data'!$AB:$AB,$G14,'StrataSync Data'!$I:$I,"Fail",'StrataSync Data'!$H:$H,"Yes",'StrataSync Data'!$G:$G,"Closed")),"") -> 0 | Y14: 1 | AA14: =IFERROR(SUM(Z14/#REF!),"") ->  | AB14: =IFERROR(VLOOKUP($G14,'Technician Summary'!$G$8:$BK$372,7,FALSE),"") -> 25 | AC14: =IFERROR(VLOOKUP($G14,'Technician Summary'!$G$8:$BK$372,8,FALSE),"") -> 0 | AD14: 1 | AE14: =IFERROR(VLOOKUP($G14,'Technician Summary'!$G$8:$BK$372,34,FALSE),"") -> 21 | AF14: =IFERROR(VLOOKUP($G14,'Technician Summary'!$G$8:$BK$372,35,FALSE),"") -> 0 | AG14: 1 | AH14: =IFERROR(VLOOKUP($G14,'Technician Summary'!$G$8:$BK$372,37,FALSE),"") -> 47 | AI14: =IFERROR(VLOOKUP($G14,'Technician Summary'!$G$8:$BK$372,38,FALSE),"") -> 41 | AJ14: 0.8723 | AK14: =IFERROR(VLOOKUP($G14,'Technician Summary'!$G$8:$BK$372,27,FALSE),"") -> 0 | AL14: =IFERROR(VLOOKUP($G14,'Technician Summary'!$G$8:$BK$372,68,FALSE),"") -> 
B15: Macon | F15: Dylan DeLorme | G15: 37359 | H15: 7.5 | I15: =IFERROR(VLOOKUP($G15,'Technician Summary'!$G$3:$BB$372,2,FALSE),"") -> 3 | J15: =IFERROR(VLOOKUP($G15,'Technician Summary'!$G$8:$BN$372,60,FALSE),"") -> 0 | K15: 1 | L15: =IFERROR(VLOOKUP($G15,'Technician Summary'!$G$8:$BK$372,14,FALSE),"") -> 54 | M15: =IFERROR(VLOOKUP($G15,'Technician Summary'!$G$8:$BK$372,15,FALSE),"") -> 0 | N15: 0 | O15: =IFERROR(VLOOKUP($G15,'Technician Summary'!$G$7:$BK$372,17,FALSE),"") -> 23 | P15: =IFERROR(VLOOKUP($G15,'Technician Summary'!$G$7:$BK$372,18,FALSE),"") -> 0 | Q15: 0 | R15: =IFERROR(VLOOKUP($G15,'Technician Summary'!$G$7:$BK$372,20,FALSE),"") -> 31 | S15: =IFERROR(VLOOKUP($G15,'Technician Summary'!$G$7:$BK$372,21,FALSE),"") -> 0 | T15: 0 | U15: =IF(G15="","",COUNTIFS('StrataSync Data'!$AB:$AB,$G15,'StrataSync Data'!$G:$G,"Closed")) -> 46 | V15: =IF($G15="","",COUNTIFS('StrataSync Data'!$AB:$AB,$G15,'StrataSync Data'!$H:$H,"Yes",'StrataSync Data'!$G:$G,"Closed")) -> 46 | W15: 1 | X15: =IFERROR(IF($G$7="","",COUNTIFS('StrataSync Data'!$AB:$AB,$G15,'StrataSync Data'!$I:$I,"Incomplete",'StrataSync Data'!$H:$H,"Yes",'StrataSync Data'!$G:$G,"Closed"))+IF($G15="","",COUNTIFS('StrataSync Data'!$AB:$AB,$G15,'StrataSync Data'!$I:$I,"Fail",'StrataSync Data'!$H:$H,"Yes",'StrataSync Data'!$G:$G,"Closed")),"") -> 0 | Y15: 1 | AA15: =IFERROR(SUM(Z15/#REF!),"") ->  | AB15: =IFERROR(VLOOKUP($G15,'Technician Summary'!$G$8:$BK$372,7,FALSE),"") -> 29 | AC15: =IFERROR(VLOOKUP($G15,'Technician Summary'!$G$8:$BK$372,8,FALSE),"") -> 0 | AD15: 1 | AE15: =IFERROR(VLOOKUP($G15,'Technician Summary'!$G$8:$BK$372,34,FALSE),"") -> 21 | AF15: =IFERROR(VLOOKUP($G15,'Technician Summary'!$G$8:$BK$372,35,FALSE),"") -> 1 | AG15: 0.9524 | AH15: =IFERROR(VLOOKUP($G15,'Technician Summary'!$G$8:$BK$372,37,FALSE),"") -> 53 | AI15: =IFERROR(VLOOKUP($G15,'Technician Summary'!$G$8:$BK$372,38,FALSE),"") -> 49 | AJ15: 0.9245 | AK15: =IFERROR(VLOOKUP($G15,'Technician Summary'!$G$8:$BK$372,27,FALSE),"") -> 0 | AL15: =IFERROR(VLOOKUP($G15,'Technician Summary'!$G$8:$BK$372,68,FALSE),"") -> 
B16: New Orleans | F16: Braxton Gardner | G16: 88787 | H16: 5 | I16: =IFERROR(VLOOKUP($G16,'Technician Summary'!$G$3:$BB$372,2,FALSE),"") -> 0 | J16: =IFERROR(VLOOKUP($G16,'Technician Summary'!$G$8:$BN$372,60,FALSE),"") ->  | L16: =IFERROR(VLOOKUP($G16,'Technician Summary'!$G$8:$BK$372,14,FALSE),"") -> 3 | M16: =IFERROR(VLOOKUP($G16,'Technician Summary'!$G$8:$BK$372,15,FALSE),"") -> 1 | N16: 0.3333 | O16: =IFERROR(VLOOKUP($G16,'Technician Summary'!$G$7:$BK$372,17,FALSE),"") -> 1 | P16: =IFERROR(VLOOKUP($G16,'Technician Summary'!$G$7:$BK$372,18,FALSE),"") -> 0 | Q16: 0 | R16: =IFERROR(VLOOKUP($G16,'Technician Summary'!$G$7:$BK$372,20,FALSE),"") -> 2 | S16: =IFERROR(VLOOKUP($G16,'Technician Summary'!$G$7:$BK$372,21,FALSE),"") -> 1 | T16: 0.5 | U16: =IF(G16="","",COUNTIFS('StrataSync Data'!$AB:$AB,$G16,'StrataSync Data'!$G:$G,"Closed")) -> 3 | V16: =IF($G16="","",COUNTIFS('StrataSync Data'!$AB:$AB,$G16,'StrataSync Data'!$H:$H,"Yes",'StrataSync Data'!$G:$G,"Closed")) -> 0 | W16: 0 | X16: =IFERROR(IF($G$7="","",COUNTIFS('StrataSync Data'!$AB:$AB,$G16,'StrataSync Data'!$I:$I,"Incomplete",'StrataSync Data'!$H:$H,"Yes",'StrataSync Data'!$G:$G,"Closed"))+IF($G16="","",COUNTIFS('StrataSync Data'!$AB:$AB,$G16,'StrataSync Data'!$I:$I,"Fail",'StrataSync Data'!$H:$H,"Yes",'StrataSync Data'!$G:$G,"Closed")),"") -> 0 | AA16: =IFERROR(SUM(Z16/#REF!),"") ->  | AB16: =IFERROR(VLOOKUP($G16,'Technician Summary'!$G$8:$BK$372,7,FALSE),"") -> 1 | AC16: =IFERROR(VLOOKUP($G16,'Technician Summary'!$G$8:$BK$372,8,FALSE),"") -> 0 | AD16: 1 | AE16: =IFERROR(VLOOKUP($G16,'Technician Summary'!$G$8:$BK$372,34,FALSE),"") -> 1 | AF16: =IFERROR(VLOOKUP($G16,'Technician Summary'!$G$8:$BK$372,35,FALSE),"") -> 0 | AG16: 1 | AH16: =IFERROR(VLOOKUP($G16,'Technician Summary'!$G$8:$BK$372,37,FALSE),"") -> 5 | AI16: =IFERROR(VLOOKUP($G16,'Technician Summary'!$G$8:$BK$372,38,FALSE),"") -> 3 | AJ16: 0.6 | AK16: =IFERROR(VLOOKUP($G16,'Technician Summary'!$G$8:$BK$372,27,FALSE),"") -> 0 | AL16: =IFERROR(VLOOKUP($G16,'Technician Summary'!$G$8:$BK$372,68,FALSE),"") -> 
B17: Hampton Roads | F17: Trey Minter | G17: 53981 | H17: 10 | I17: =IFERROR(VLOOKUP($G17,'Technician Summary'!$G$3:$BB$372,2,FALSE),"") -> 2 | J17: =IFERROR(VLOOKUP($G17,'Technician Summary'!$G$8:$BN$372,60,FALSE),"") -> 0 | K17: 1 | L17: =IFERROR(VLOOKUP($G17,'Technician Summary'!$G$8:$BK$372,14,FALSE),"") -> 52 | M17: =IFERROR(VLOOKUP($G17,'Technician Summary'!$G$8:$BK$372,15,FALSE),"") -> 1 | N17: 0.0192 | O17: =IFERROR(VLOOKUP($G17,'Technician Summary'!$G$7:$BK$372,17,FALSE),"") -> 24 | P17: =IFERROR(VLOOKUP($G17,'Technician Summary'!$G$7:$BK$372,18,FALSE),"") -> 1 | Q17: 0.0417 | R17: =IFERROR(VLOOKUP($G17,'Technician Summary'!$G$7:$BK$372,20,FALSE),"") -> 28 | S17: =IFERROR(VLOOKUP($G17,'Technician Summary'!$G$7:$BK$372,21,FALSE),"") -> 0 | T17: 0 | U17: =IF(G17="","",COUNTIFS('StrataSync Data'!$AB:$AB,$G17,'StrataSync Data'!$G:$G,"Closed")) -> 38 | V17: =IF($G17="","",COUNTIFS('StrataSync Data'!$AB:$AB,$G17,'StrataSync Data'!$H:$H,"Yes",'StrataSync Data'!$G:$G,"Closed")) -> 38 | W17: 1 | X17: =IFERROR(IF($G$7="","",COUNTIFS('StrataSync Data'!$AB:$AB,$G17,'StrataSync Data'!$I:$I,"Incomplete",'StrataSync Data'!$H:$H,"Yes",'StrataSync Data'!$G:$G,"Closed"))+IF($G17="","",COUNTIFS('StrataSync Data'!$AB:$AB,$G17,'StrataSync Data'!$I:$I,"Fail",'StrataSync Data'!$H:$H,"Yes",'StrataSync Data'!$G:$G,"Closed")),"") -> 0 | Y17: 1 | AA17: =IFERROR(SUM(Z17/#REF!),"") ->  | AB17: =IFERROR(VLOOKUP($G17,'Technician Summary'!$G$8:$BK$372,7,FALSE),"") -> 24 | AC17: =IFERROR(VLOOKUP($G17,'Technician Summary'!$G$8:$BK$372,8,FALSE),"") -> 1 | AD17: 0.9583 | AE17: =IFERROR(VLOOKUP($G17,'Technician Summary'!$G$8:$BK$372,34,FALSE),"") -> 19 | AF17: =IFERROR(VLOOKUP($G17,'Technician Summary'!$G$8:$BK$372,35,FALSE),"") -> 0 | AG17: 1 | AH17: =IFERROR(VLOOKUP($G17,'Technician Summary'!$G$8:$BK$372,37,FALSE),"") -> 59 | AI17: =IFERROR(VLOOKUP($G17,'Technician Summary'!$G$8:$BK$372,38,FALSE),"") -> 49 | AJ17: 0.8305 | AK17: =IFERROR(VLOOKUP($G17,'Technician Summary'!$G$8:$BK$372,27,FALSE),"") -> 0 | AL17: =IFERROR(VLOOKUP($G17,'Technician Summary'!$G$8:$BK$372,68,FALSE),"") -> 
B18: Baton Rouge | F18: Courtney Mann | G18: 74521 | H18: 7.5 | I18: =IFERROR(VLOOKUP($G18,'Technician Summary'!$G$3:$BB$372,2,FALSE),"") -> 0 | J18: =IFERROR(VLOOKUP($G18,'Technician Summary'!$G$8:$BN$372,60,FALSE),"") ->  | L18: =IFERROR(VLOOKUP($G18,'Technician Summary'!$G$8:$BK$372,14,FALSE),"") -> 67 | M18: =IFERROR(VLOOKUP($G18,'Technician Summary'!$G$8:$BK$372,15,FALSE),"") -> 0 | N18: 0 | O18: =IFERROR(VLOOKUP($G18,'Technician Summary'!$G$7:$BK$372,17,FALSE),"") -> 36 | P18: =IFERROR(VLOOKUP($G18,'Technician Summary'!$G$7:$BK$372,18,FALSE),"") -> 0 | Q18: 0 | R18: =IFERROR(VLOOKUP($G18,'Technician Summary'!$G$7:$BK$372,20,FALSE),"") -> 31 | S18: =IFERROR(VLOOKUP($G18,'Technician Summary'!$G$7:$BK$372,21,FALSE),"") -> 0 | T18: 0 | U18: =IF(G18="","",COUNTIFS('StrataSync Data'!$AB:$AB,$G18,'StrataSync Data'!$G:$G,"Closed")) -> 50 | V18: =IF($G18="","",COUNTIFS('StrataSync Data'!$AB:$AB,$G18,'StrataSync Data'!$H:$H,"Yes",'StrataSync Data'!$G:$G,"Closed")) -> 49 | W18: 0.98 | X18: =IFERROR(IF($G$7="","",COUNTIFS('StrataSync Data'!$AB:$AB,$G18,'StrataSync Data'!$I:$I,"Incomplete",'StrataSync Data'!$H:$H,"Yes",'StrataSync Data'!$G:$G,"Closed"))+IF($G18="","",COUNTIFS('StrataSync Data'!$AB:$AB,$G18,'StrataSync Data'!$I:$I,"Fail",'StrataSync Data'!$H:$H,"Yes",'StrataSync Data'!$G:$G,"Closed")),"") -> 0 | Y18: 1 | AA18: =IFERROR(SUM(Z18/#REF!),"") ->  | AB18: =IFERROR(VLOOKUP($G18,'Technician Summary'!$G$8:$BK$372,7,FALSE),"") -> 33 | AC18: =IFERROR(VLOOKUP($G18,'Technician Summary'!$G$8:$BK$372,8,FALSE),"") -> 0 | AD18: 1 | AE18: =IFERROR(VLOOKUP($G18,'Technician Summary'!$G$8:$BK$372,34,FALSE),"") -> 21 | AF18: =IFERROR(VLOOKUP($G18,'Technician Summary'!$G$8:$BK$372,35,FALSE),"") -> 2 | AG18: 0.9048 | AH18: =IFERROR(VLOOKUP($G18,'Technician Summary'!$G$8:$BK$372,37,FALSE),"") -> 85 | AI18: =IFERROR(VLOOKUP($G18,'Technician Summary'!$G$8:$BK$372,38,FALSE),"") -> 67 | AJ18: 0.7882 | AK18: =IFERROR(VLOOKUP($G18,'Technician Summary'!$G$8:$BK$372,27,FALSE),"") -> 0 | AL18: =IFERROR(VLOOKUP($G18,'Technician Summary'!$G$8:$BK$372,68,FALSE),"") -> 
B19: Roanoke | F19: Dustin Stover | G19: 24690 | H19: 7.5 | I19: =IFERROR(VLOOKUP($G19,'Technician Summary'!$G$3:$BB$372,2,FALSE),"") -> 0 | J19: =IFERROR(VLOOKUP($G19,'Technician Summary'!$G$8:$BN$372,60,FALSE),"") ->  | L19: =IFERROR(VLOOKUP($G19,'Technician Summary'!$G$8:$BK$372,14,FALSE),"") -> 6 | M19: =IFERROR(VLOOKUP($G19,'Technician Summary'!$G$8:$BK$372,15,FALSE),"") -> 0 | N19: 0 | O19: =IFERROR(VLOOKUP($G19,'Technician Summary'!$G$7:$BK$372,17,FALSE),"") -> 2 | P19: =IFERROR(VLOOKUP($G19,'Technician Summary'!$G$7:$BK$372,18,FALSE),"") -> 0 | Q19: 0 | R19: =IFERROR(VLOOKUP($G19,'Technician Summary'!$G$7:$BK$372,20,FALSE),"") -> 4 | S19: =IFERROR(VLOOKUP($G19,'Technician Summary'!$G$7:$BK$372,21,FALSE),"") -> 0 | T19: 0 | U19: =IF(G19="","",COUNTIFS('StrataSync Data'!$AB:$AB,$G19,'StrataSync Data'!$G:$G,"Closed")) -> 5 | V19: =IF($G19="","",COUNTIFS('StrataSync Data'!$AB:$AB,$G19,'StrataSync Data'!$H:$H,"Yes",'StrataSync Data'!$G:$G,"Closed")) -> 3 | W19: 0.6 | X19: =IFERROR(IF($G$7="","",COUNTIFS('StrataSync Data'!$AB:$AB,$G19,'StrataSync Data'!$I:$I,"Incomplete",'StrataSync Data'!$H:$H,"Yes",'StrataSync Data'!$G:$G,"Closed"))+IF($G19="","",COUNTIFS('StrataSync Data'!$AB:$AB,$G19,'StrataSync Data'!$I:$I,"Fail",'StrataSync Data'!$H:$H,"Yes",'StrataSync Data'!$G:$G,"Closed")),"") -> 0 | Y19: 1 | AA19: =IFERROR(SUM(Z19/#REF!),"") ->  | AB19: =IFERROR(VLOOKUP($G19,'Technician Summary'!$G$8:$BK$372,7,FALSE),"") -> 1 | AC19: =IFERROR(VLOOKUP($G19,'Technician Summary'!$G$8:$BK$372,8,FALSE),"") -> 0 | AD19: 1 | AE19: =IFERROR(VLOOKUP($G19,'Technician Summary'!$G$8:$BK$372,34,FALSE),"") -> 1 | AF19: =IFERROR(VLOOKUP($G19,'Technician Summary'!$G$8:$BK$372,35,FALSE),"") -> 0 | AG19: 1 | AH19: =IFERROR(VLOOKUP($G19,'Technician Summary'!$G$8:$BK$372,37,FALSE),"") -> 6 | AI19: =IFERROR(VLOOKUP($G19,'Technician Summary'!$G$8:$BK$372,38,FALSE),"") -> 6 | AJ19: 1 | AK19: =IFERROR(VLOOKUP($G19,'Technician Summary'!$G$8:$BK$372,27,FALSE),"") -> 0 | AL19: =IFERROR(VLOOKUP($G19,'Technician Summary'!$G$8:$BK$372,68,FALSE),"") -> 
B20: Gulf Coast | F20: beveriell Delorme | G20: 75156 | H20: 5 | I20: =IFERROR(VLOOKUP($G20,'Technician Summary'!$G$3:$BB$372,2,FALSE),"") -> 5 | J20: =IFERROR(VLOOKUP($G20,'Technician Summary'!$G$8:$BN$372,60,FALSE),"") -> 2 | K20: 0.6 | L20: =IFERROR(VLOOKUP($G20,'Technician Summary'!$G$8:$BK$372,14,FALSE),"") -> 66 | M20: =IFERROR(VLOOKUP($G20,'Technician Summary'!$G$8:$BK$372,15,FALSE),"") -> 3 | N20: 0.0455 | O20: =IFERROR(VLOOKUP($G20,'Technician Summary'!$G$7:$BK$372,17,FALSE),"") -> 37 | P20: =IFERROR(VLOOKUP($G20,'Technician Summary'!$G$7:$BK$372,18,FALSE),"") -> 2 | Q20: 0.0541 | R20: =IFERROR(VLOOKUP($G20,'Technician Summary'!$G$7:$BK$372,20,FALSE),"") -> 29 | S20: =IFERROR(VLOOKUP($G20,'Technician Summary'!$G$7:$BK$372,21,FALSE),"") -> 1 | T20: 0.0345 | U20: =IF(G20="","",COUNTIFS('StrataSync Data'!$AB:$AB,$G20,'StrataSync Data'!$G:$G,"Closed")) -> 57 | V20: =IF($G20="","",COUNTIFS('StrataSync Data'!$AB:$AB,$G20,'StrataSync Data'!$H:$H,"Yes",'StrataSync Data'!$G:$G,"Closed")) -> 57 | W20: 1 | X20: =IFERROR(IF($G$7="","",COUNTIFS('StrataSync Data'!$AB:$AB,$G20,'StrataSync Data'!$I:$I,"Incomplete",'StrataSync Data'!$H:$H,"Yes",'StrataSync Data'!$G:$G,"Closed"))+IF($G20="","",COUNTIFS('StrataSync Data'!$AB:$AB,$G20,'StrataSync Data'!$I:$I,"Fail",'StrataSync Data'!$H:$H,"Yes",'StrataSync Data'!$G:$G,"Closed")),"") -> 0 | Y20: 1 | AA20: =IFERROR(SUM(Z20/#REF!),"") ->  | AB20: =IFERROR(VLOOKUP($G20,'Technician Summary'!$G$8:$BK$372,7,FALSE),"") -> 37 | AC20: =IFERROR(VLOOKUP($G20,'Technician Summary'!$G$8:$BK$372,8,FALSE),"") -> 2 | AD20: 0.9459 | AE20: =IFERROR(VLOOKUP($G20,'Technician Summary'!$G$8:$BK$372,34,FALSE),"") -> 33 | AF20: =IFERROR(VLOOKUP($G20,'Technician Summary'!$G$8:$BK$372,35,FALSE),"") -> 1 | AG20: 0.9697 | AH20: =IFERROR(VLOOKUP($G20,'Technician Summary'!$G$8:$BK$372,37,FALSE),"") -> 72 | AI20: =IFERROR(VLOOKUP($G20,'Technician Summary'!$G$8:$BK$372,38,FALSE),"") -> 64 | AJ20: 0.8889 | AK20: =IFERROR(VLOOKUP($G20,'Technician Summary'!$G$8:$BK$372,27,FALSE),"") -> 0 | AL20: =IFERROR(VLOOKUP($G20,'Technician Summary'!$G$8:$BK$372,68,FALSE),"") -> 
B21: Oklahoma City | F21: Deandre McCants | G21: 90429 | H21: 5 | I21: =IFERROR(VLOOKUP($G21,'Technician Summary'!$G$3:$BB$372,2,FALSE),"") -> 0 | J21: =IFERROR(VLOOKUP($G21,'Technician Summary'!$G$8:$BN$372,60,FALSE),"") ->  | L21: =IFERROR(VLOOKUP($G21,'Technician Summary'!$G$8:$BK$372,14,FALSE),"") -> 20 | M21: =IFERROR(VLOOKUP($G21,'Technician Summary'!$G$8:$BK$372,15,FALSE),"") -> 1 | N21: 0.05 | O21: =IFERROR(VLOOKUP($G21,'Technician Summary'!$G$7:$BK$372,17,FALSE),"") -> 13 | P21: =IFERROR(VLOOKUP($G21,'Technician Summary'!$G$7:$BK$372,18,FALSE),"") -> 1 | Q21: 0.0769 | R21: =IFERROR(VLOOKUP($G21,'Technician Summary'!$G$7:$BK$372,20,FALSE),"") -> 7 | S21: =IFERROR(VLOOKUP($G21,'Technician Summary'!$G$7:$BK$372,21,FALSE),"") -> 0 | T21: 0 | U21: =IF(G21="","",COUNTIFS('StrataSync Data'!$AB:$AB,$G21,'StrataSync Data'!$G:$G,"Closed")) -> 11 | V21: =IF($G21="","",COUNTIFS('StrataSync Data'!$AB:$AB,$G21,'StrataSync Data'!$H:$H,"Yes",'StrataSync Data'!$G:$G,"Closed")) -> 9 | W21: 0.8182 | X21: =IFERROR(IF($G$7="","",COUNTIFS('StrataSync Data'!$AB:$AB,$G21,'StrataSync Data'!$I:$I,"Incomplete",'StrataSync Data'!$H:$H,"Yes",'StrataSync Data'!$G:$G,"Closed"))+IF($G21="","",COUNTIFS('StrataSync Data'!$AB:$AB,$G21,'StrataSync Data'!$I:$I,"Fail",'StrataSync Data'!$H:$H,"Yes",'StrataSync Data'!$G:$G,"Closed")),"") -> 0 | Y21: 1 | AA21: =IFERROR(SUM(Z21/#REF!),"") ->  | AB21: =IFERROR(VLOOKUP($G21,'Technician Summary'!$G$8:$BK$372,7,FALSE),"") -> 7 | AC21: =IFERROR(VLOOKUP($G21,'Technician Summary'!$G$8:$BK$372,8,FALSE),"") -> 0 | AD21: 1 | AE21: =IFERROR(VLOOKUP($G21,'Technician Summary'!$G$8:$BK$372,34,FALSE),"") -> 5 | AF21: =IFERROR(VLOOKUP($G21,'Technician Summary'!$G$8:$BK$372,35,FALSE),"") -> 0 | AG21: 1 | AH21: =IFERROR(VLOOKUP($G21,'Technician Summary'!$G$8:$BK$372,37,FALSE),"") -> 36 | AI21: =IFERROR(VLOOKUP($G21,'Technician Summary'!$G$8:$BK$372,38,FALSE),"") -> 20 | AJ21: 0.5556 | AK21: =IFERROR(VLOOKUP($G21,'Technician Summary'!$G$8:$BK$372,27,FALSE),"") -> 0 | AL21: =IFERROR(VLOOKUP($G21,'Technician Summary'!$G$8:$BK$372,68,FALSE),"") -> 
B22: Tech Rankings | F22: Keary Jones | G22: 39168 | I22: =IFERROR(VLOOKUP($G22,'Technician Summary'!$G$3:$BB$372,2,FALSE),"") ->  | J22: =IFERROR(VLOOKUP($G22,'Technician Summary'!$G$8:$BN$372,60,FALSE),"") ->  | L22: =IFERROR(VLOOKUP($G22,'Technician Summary'!$G$8:$BK$372,14,FALSE),"") ->  | M22: =IFERROR(VLOOKUP($G22,'Technician Summary'!$G$8:$BK$372,15,FALSE),"") ->  | O22: =IFERROR(VLOOKUP($G22,'Technician Summary'!$G$7:$BK$372,17,FALSE),"") ->  | P22: =IFERROR(VLOOKUP($G22,'Technician Summary'!$G$7:$BK$372,18,FALSE),"") ->  | R22: =IFERROR(VLOOKUP($G22,'Technician Summary'!$G$7:$BK$372,20,FALSE),"") ->  | S22: =IFERROR(VLOOKUP($G22,'Technician Summary'!$G$7:$BK$372,21,FALSE),"") ->  | U22: =IF(G22="","",COUNTIFS('StrataSync Data'!$AB:$AB,$G22,'StrataSync Data'!$G:$G,"Closed")) -> 0 | V22: =IF($G22="","",COUNTIFS('StrataSync Data'!$AB:$AB,$G22,'StrataSync Data'!$H:$H,"Yes",'StrataSync Data'!$G:$G,"Closed")) -> 0 | X22: =IFERROR(IF($G$7="","",COUNTIFS('StrataSync Data'!$AB:$AB,$G22,'StrataSync Data'!$I:$I,"Incomplete",'StrataSync Data'!$H:$H,"Yes",'StrataSync Data'!$G:$G,"Closed"))+IF($G22="","",COUNTIFS('StrataSync Data'!$AB:$AB,$G22,'StrataSync Data'!$I:$I,"Fail",'StrataSync Data'!$H:$H,"Yes",'StrataSync Data'!$G:$G,"Closed")),"") -> 0 | AA22: =IFERROR(SUM(Z22/#REF!),"") ->  | AB22: =IFERROR(VLOOKUP($G22,'Technician Summary'!$G$8:$BK$372,7,FALSE),"") ->  | AC22: =IFERROR(VLOOKUP($G22,'Technician Summary'!$G$8:$BK$372,8,FALSE),"") ->  | AE22: =IFERROR(VLOOKUP($G22,'Technician Summary'!$G$8:$BK$372,34,FALSE),"") ->  | AF22: =IFERROR(VLOOKUP($G22,'Technician Summary'!$G$8:$BK$372,35,FALSE),"") ->  | AH22: =IFERROR(VLOOKUP($G22,'Technician Summary'!$G$8:$BK$372,37,FALSE),"") ->  | AI22: =IFERROR(VLOOKUP($G22,'Technician Summary'!$G$8:$BK$372,38,FALSE),"") ->  | AK22: =IFERROR(VLOOKUP($G22,'Technician Summary'!$G$8:$BK$372,27,FALSE),"") ->  | AL22: =IFERROR(VLOOKUP($G22,'Technician Summary'!$G$8:$BK$372,68,FALSE),"") -> 
F23: Robert Yerby | G23: 25399 | I23: =IFERROR(VLOOKUP($G23,'Technician Summary'!$G$3:$BB$372,2,FALSE),"") -> 1 | J23: =IFERROR(VLOOKUP($G23,'Technician Summary'!$G$8:$BN$372,60,FALSE),"") -> 0 | K23: 1 | L23: =IFERROR(VLOOKUP($G23,'Technician Summary'!$G$8:$BK$372,14,FALSE),"") -> 13 | M23: =IFERROR(VLOOKUP($G23,'Technician Summary'!$G$8:$BK$372,15,FALSE),"") -> 0 | N23: 0 | O23: =IFERROR(VLOOKUP($G23,'Technician Summary'!$G$7:$BK$372,17,FALSE),"") -> 12 | P23: =IFERROR(VLOOKUP($G23,'Technician Summary'!$G$7:$BK$372,18,FALSE),"") -> 0 | Q23: 0 | R23: =IFERROR(VLOOKUP($G23,'Technician Summary'!$G$7:$BK$372,20,FALSE),"") -> 1 | S23: =IFERROR(VLOOKUP($G23,'Technician Summary'!$G$7:$BK$372,21,FALSE),"") -> 0 | T23: 0 | U23: =IF(G23="","",COUNTIFS('StrataSync Data'!$AB:$AB,$G23,'StrataSync Data'!$G:$G,"Closed")) -> 0 | V23: =IF($G23="","",COUNTIFS('StrataSync Data'!$AB:$AB,$G23,'StrataSync Data'!$H:$H,"Yes",'StrataSync Data'!$G:$G,"Closed")) -> 0 | X23: =IFERROR(IF($G$7="","",COUNTIFS('StrataSync Data'!$AB:$AB,$G23,'StrataSync Data'!$I:$I,"Incomplete",'StrataSync Data'!$H:$H,"Yes",'StrataSync Data'!$G:$G,"Closed"))+IF($G23="","",COUNTIFS('StrataSync Data'!$AB:$AB,$G23,'StrataSync Data'!$I:$I,"Fail",'StrataSync Data'!$H:$H,"Yes",'StrataSync Data'!$G:$G,"Closed")),"") -> 0 | AA23: =IFERROR(SUM(Z23/#REF!),"") ->  | AB23: =IFERROR(VLOOKUP($G23,'Technician Summary'!$G$8:$BK$372,7,FALSE),"") -> 12 | AC23: =IFERROR(VLOOKUP($G23,'Technician Summary'!$G$8:$BK$372,8,FALSE),"") -> 0 | AD23: 1 | AE23: =IFERROR(VLOOKUP($G23,'Technician Summary'!$G$8:$BK$372,34,FALSE),"") -> 11 | AF23: =IFERROR(VLOOKUP($G23,'Technician Summary'!$G$8:$BK$372,35,FALSE),"") -> 0 | AG23: 1 | AH23: =IFERROR(VLOOKUP($G23,'Technician Summary'!$G$8:$BK$372,37,FALSE),"") -> 16 | AI23: =IFERROR(VLOOKUP($G23,'Technician Summary'!$G$8:$BK$372,38,FALSE),"") -> 13 | AJ23: 0.8125 | AK23: =IFERROR(VLOOKUP($G23,'Technician Summary'!$G$8:$BK$372,27,FALSE),"") -> 0 | AL23: =IFERROR(VLOOKUP($G23,'Technician Summary'!$G$8:$BK$372,68,FALSE),"") -> 
B24: Raw Data | F24: Rakeem Smith | G24: 82818 | I24: =IFERROR(VLOOKUP($G24,'Technician Summary'!$G$3:$BB$372,2,FALSE),"") ->  | J24: =IFERROR(VLOOKUP($G24,'Technician Summary'!$G$8:$BN$372,60,FALSE),"") ->  | L24: =IFERROR(VLOOKUP($G24,'Technician Summary'!$G$8:$BK$372,14,FALSE),"") ->  | M24: =IFERROR(VLOOKUP($G24,'Technician Summary'!$G$8:$BK$372,15,FALSE),"") ->  | O24: =IFERROR(VLOOKUP($G24,'Technician Summary'!$G$7:$BK$372,17,FALSE),"") ->  | P24: =IFERROR(VLOOKUP($G24,'Technician Summary'!$G$7:$BK$372,18,FALSE),"") ->  | R24: =IFERROR(VLOOKUP($G24,'Technician Summary'!$G$7:$BK$372,20,FALSE),"") ->  | S24: =IFERROR(VLOOKUP($G24,'Technician Summary'!$G$7:$BK$372,21,FALSE),"") ->  | U24: =IF(G24="","",COUNTIFS('StrataSync Data'!$AB:$AB,$G24,'StrataSync Data'!$G:$G,"Closed")) -> 0 | V24: =IF($G24="","",COUNTIFS('StrataSync Data'!$AB:$AB,$G24,'StrataSync Data'!$H:$H,"Yes",'StrataSync Data'!$G:$G,"Closed")) -> 0 | X24: =IFERROR(IF($G$7="","",COUNTIFS('StrataSync Data'!$AB:$AB,$G24,'StrataSync Data'!$I:$I,"Incomplete",'StrataSync Data'!$H:$H,"Yes",'StrataSync Data'!$G:$G,"Closed"))+IF($G24="","",COUNTIFS('StrataSync Data'!$AB:$AB,$G24,'StrataSync Data'!$I:$I,"Fail",'StrataSync Data'!$H:$H,"Yes",'StrataSync Data'!$G:$G,"Closed")),"") -> 0 | AA24: =IFERROR(SUM(Z24/#REF!),"") ->  | AB24: =IFERROR(VLOOKUP($G24,'Technician Summary'!$G$8:$BK$372,7,FALSE),"") ->  | AC24: =IFERROR(VLOOKUP($G24,'Technician Summary'!$G$8:$BK$372,8,FALSE),"") ->  | AE24: =IFERROR(VLOOKUP($G24,'Technician Summary'!$G$8:$BK$372,34,FALSE),"") ->  | AF24: =IFERROR(VLOOKUP($G24,'Technician Summary'!$G$8:$BK$372,35,FALSE),"") ->  | AH24: =IFERROR(VLOOKUP($G24,'Technician Summary'!$G$8:$BK$372,37,FALSE),"") ->  | AI24: =IFERROR(VLOOKUP($G24,'Technician Summary'!$G$8:$BK$372,38,FALSE),"") ->  | AK24: =IFERROR(VLOOKUP($G24,'Technician Summary'!$G$8:$BK$372,27,FALSE),"") ->  | AL24: =IFERROR(VLOOKUP($G24,'Technician Summary'!$G$8:$BK$372,68,FALSE),"") -> 
F25: Dvonta Williams | G25: 81517 | I25: =IFERROR(VLOOKUP($G25,'Technician Summary'!$G$3:$BB$372,2,FALSE),"") ->  | J25: =IFERROR(VLOOKUP($G25,'Technician Summary'!$G$8:$BN$372,60,FALSE),"") ->  | L25: =IFERROR(VLOOKUP($G25,'Technician Summary'!$G$8:$BK$372,14,FALSE),"") ->  | M25: =IFERROR(VLOOKUP($G25,'Technician Summary'!$G$8:$BK$372,15,FALSE),"") ->  | O25: =IFERROR(VLOOKUP($G25,'Technician Summary'!$G$7:$BK$372,17,FALSE),"") ->  | P25: =IFERROR(VLOOKUP($G25,'Technician Summary'!$G$7:$BK$372,18,FALSE),"") ->  | R25: =IFERROR(VLOOKUP($G25,'Technician Summary'!$G$7:$BK$372,20,FALSE),"") ->  | S25: =IFERROR(VLOOKUP($G25,'Technician Summary'!$G$7:$BK$372,21,FALSE),"") ->  | U25: =IF(G25="","",COUNTIFS('StrataSync Data'!$AB:$AB,$G25,'StrataSync Data'!$G:$G,"Closed")) -> 0 | V25: =IF($G25="","",COUNTIFS('StrataSync Data'!$AB:$AB,$G25,'StrataSync Data'!$H:$H,"Yes",'StrataSync Data'!$G:$G,"Closed")) -> 0 | X25: =IFERROR(IF($G$7="","",COUNTIFS('StrataSync Data'!$AB:$AB,$G25,'StrataSync Data'!$I:$I,"Incomplete",'StrataSync Data'!$H:$H,"Yes",'StrataSync Data'!$G:$G,"Closed"))+IF($G25="","",COUNTIFS('StrataSync Data'!$AB:$AB,$G25,'StrataSync Data'!$I:$I,"Fail",'StrataSync Data'!$H:$H,"Yes",'StrataSync Data'!$G:$G,"Closed")),"") -> 0 | AA25: =IFERROR(SUM(Z25/#REF!),"") ->  | AB25: =IFERROR(VLOOKUP($G25,'Technician Summary'!$G$8:$BK$372,7,FALSE),"") ->  | AC25: =IFERROR(VLOOKUP($G25,'Technician Summary'!$G$8:$BK$372,8,FALSE),"") ->  | AE25: =IFERROR(VLOOKUP($G25,'Technician Summary'!$G$8:$BK$372,34,FALSE),"") ->  | AF25: =IFERROR(VLOOKUP($G25,'Technician Summary'!$G$8:$BK$372,35,FALSE),"") ->  | AH25: =IFERROR(VLOOKUP($G25,'Technician Summary'!$G$8:$BK$372,37,FALSE),"") ->  | AI25: =IFERROR(VLOOKUP($G25,'Technician Summary'!$G$8:$BK$372,38,FALSE),"") ->  | AK25: =IFERROR(VLOOKUP($G25,'Technician Summary'!$G$8:$BK$372,27,FALSE),"") ->  | AL25: =IFERROR(VLOOKUP($G25,'Technician Summary'!$G$8:$BK$372,68,FALSE),"") -> 
I26: =IFERROR(VLOOKUP($G26,'Technician Summary'!$G$3:$BB$372,2,FALSE),"") ->  | J26: =IFERROR(VLOOKUP($G26,'Technician Summary'!$G$8:$BN$372,60,FALSE),"") ->  | L26: =IFERROR(VLOOKUP($G26,'Technician Summary'!$G$8:$BK$372,14,FALSE),"") ->  | M26: =IFERROR(VLOOKUP($G26,'Technician Summary'!$G$8:$BK$372,15,FALSE),"") ->  | O26: =IFERROR(VLOOKUP($G26,'Technician Summary'!$G$7:$BK$372,17,FALSE),"") ->  | P26: =IFERROR(VLOOKUP($G26,'Technician Summary'!$G$7:$BK$372,18,FALSE),"") ->  | R26: =IFERROR(VLOOKUP($G26,'Technician Summary'!$G$7:$BK$372,20,FALSE),"") ->  | S26: =IFERROR(VLOOKUP($G26,'Technician Summary'!$G$7:$BK$372,21,FALSE),"") ->  | U26: =IF(G26="","",COUNTIFS('StrataSync Data'!$AB:$AB,$G26,'StrataSync Data'!$G:$G,"Closed")) ->  | V26: =IF($G26="","",COUNTIFS('StrataSync Data'!$AB:$AB,$G26,'StrataSync Data'!$H:$H,"Yes",'StrataSync Data'!$G:$G,"Closed")) ->  | X26: =IFERROR(IF($G$7="","",COUNTIFS('StrataSync Data'!$AB:$AB,$G26,'StrataSync Data'!$I:$I,"Incomplete",'StrataSync Data'!$H:$H,"Yes",'StrataSync Data'!$G:$G,"Closed"))+IF($G26="","",COUNTIFS('StrataSync Data'!$AB:$AB,$G26,'StrataSync Data'!$I:$I,"Fail",'StrataSync Data'!$H:$H,"Yes",'StrataSync Data'!$G:$G,"Closed")),"") ->  | AA26: =IFERROR(SUM(Z26/#REF!),"") ->  | AB26: =IFERROR(VLOOKUP($G26,'Technician Summary'!$G$8:$BK$372,7,FALSE),"") ->  | AC26: =IFERROR(VLOOKUP($G26,'Technician Summary'!$G$8:$BK$372,8,FALSE),"") ->  | AE26: =IFERROR(VLOOKUP($G26,'Technician Summary'!$G$8:$BK$372,34,FALSE),"") ->  | AF26: =IFERROR(VLOOKUP($G26,'Technician Summary'!$G$8:$BK$372,35,FALSE),"") ->  | AH26: =IFERROR(VLOOKUP($G26,'Technician Summary'!$G$8:$BK$372,37,FALSE),"") ->  | AI26: =IFERROR(VLOOKUP($G26,'Technician Summary'!$G$8:$BK$372,38,FALSE),"") ->  | AK26: =IFERROR(VLOOKUP($G26,'Technician Summary'!$G$8:$BK$372,27,FALSE),"") ->  | AL26: =IFERROR(VLOOKUP($G26,'Technician Summary'!$G$8:$BK$372,68,FALSE),"") -> 
I27: =IFERROR(VLOOKUP($G27,'Technician Summary'!$G$3:$BB$372,2,FALSE),"") ->  | J27: =IFERROR(VLOOKUP($G27,'Technician Summary'!$G$8:$BN$372,60,FALSE),"") ->  | L27: =IFERROR(VLOOKUP($G27,'Technician Summary'!$G$8:$BK$372,14,FALSE),"") ->  | M27: =IFERROR(VLOOKUP($G27,'Technician Summary'!$G$8:$BK$372,15,FALSE),"") ->  | O27: =IFERROR(VLOOKUP($G27,'Technician Summary'!$G$7:$BK$372,17,FALSE),"") ->  | P27: =IFERROR(VLOOKUP($G27,'Technician Summary'!$G$7:$BK$372,18,FALSE),"") ->  | R27: =IFERROR(VLOOKUP($G27,'Technician Summary'!$G$7:$BK$372,20,FALSE),"") ->  | S27: =IFERROR(VLOOKUP($G27,'Technician Summary'!$G$7:$BK$372,21,FALSE),"") ->  | U27: =IF(G27="","",COUNTIFS('StrataSync Data'!$AB:$AB,$G27,'StrataSync Data'!$G:$G,"Closed")) ->  | V27: =IF($G27="","",COUNTIFS('StrataSync Data'!$AB:$AB,$G27,'StrataSync Data'!$H:$H,"Yes",'StrataSync Data'!$G:$G,"Closed")) ->  | X27: =IFERROR(IF($G$7="","",COUNTIFS('StrataSync Data'!$AB:$AB,$G27,'StrataSync Data'!$I:$I,"Incomplete",'StrataSync Data'!$H:$H,"Yes",'StrataSync Data'!$G:$G,"Closed"))+IF($G27="","",COUNTIFS('StrataSync Data'!$AB:$AB,$G27,'StrataSync Data'!$I:$I,"Fail",'StrataSync Data'!$H:$H,"Yes",'StrataSync Data'!$G:$G,"Closed")),"") ->  | AA27: =IFERROR(SUM(Z27/#REF!),"") ->  | AB27: =IFERROR(VLOOKUP($G27,'Technician Summary'!$G$8:$BK$372,7,FALSE),"") ->  | AC27: =IFERROR(VLOOKUP($G27,'Technician Summary'!$G$8:$BK$372,8,FALSE),"") ->  | AE27: =IFERROR(VLOOKUP($G27,'Technician Summary'!$G$8:$BK$372,34,FALSE),"") ->  | AF27: =IFERROR(VLOOKUP($G27,'Technician Summary'!$G$8:$BK$372,35,FALSE),"") ->  | AH27: =IFERROR(VLOOKUP($G27,'Technician Summary'!$G$8:$BK$372,37,FALSE),"") ->  | AI27: =IFERROR(VLOOKUP($G27,'Technician Summary'!$G$8:$BK$372,38,FALSE),"") ->  | AK27: =IFERROR(VLOOKUP($G27,'Technician Summary'!$G$8:$BK$372,27,FALSE),"") ->  | AL27: =IFERROR(VLOOKUP($G27,'Technician Summary'!$G$8:$BK$372,68,FALSE),"") -> 
I28: =IFERROR(VLOOKUP($G28,'Technician Summary'!$G$3:$BB$372,2,FALSE),"") ->  | J28: =IFERROR(VLOOKUP($G28,'Technician Summary'!$G$8:$BN$372,60,FALSE),"") ->  | L28: =IFERROR(VLOOKUP($G28,'Technician Summary'!$G$8:$BK$372,14,FALSE),"") ->  | M28: =IFERROR(VLOOKUP($G28,'Technician Summary'!$G$8:$BK$372,15,FALSE),"") ->  | O28: =IFERROR(VLOOKUP($G28,'Technician Summary'!$G$7:$BK$372,17,FALSE),"") ->  | P28: =IFERROR(VLOOKUP($G28,'Technician Summary'!$G$7:$BK$372,18,FALSE),"") ->  | R28: =IFERROR(VLOOKUP($G28,'Technician Summary'!$G$7:$BK$372,20,FALSE),"") ->  | S28: =IFERROR(VLOOKUP($G28,'Technician Summary'!$G$7:$BK$372,21,FALSE),"") ->  | U28: =IF(G28="","",COUNTIFS('StrataSync Data'!$AB:$AB,$G28,'StrataSync Data'!$G:$G,"Closed")) ->  | V28: =IF($G28="","",COUNTIFS('StrataSync Data'!$AB:$AB,$G28,'StrataSync Data'!$H:$H,"Yes",'StrataSync Data'!$G:$G,"Closed")) ->  | X28: =IFERROR(IF($G$7="","",COUNTIFS('StrataSync Data'!$AB:$AB,$G28,'StrataSync Data'!$I:$I,"Incomplete",'StrataSync Data'!$H:$H,"Yes",'StrataSync Data'!$G:$G,"Closed"))+IF($G28="","",COUNTIFS('StrataSync Data'!$AB:$AB,$G28,'StrataSync Data'!$I:$I,"Fail",'StrataSync Data'!$H:$H,"Yes",'StrataSync Data'!$G:$G,"Closed")),"") ->  | AA28: =IFERROR(SUM(Z28/#REF!),"") ->  | AB28: =IFERROR(VLOOKUP($G28,'Technician Summary'!$G$8:$BK$372,7,FALSE),"") ->  | AC28: =IFERROR(VLOOKUP($G28,'Technician Summary'!$G$8:$BK$372,8,FALSE),"") ->  | AE28: =IFERROR(VLOOKUP($G28,'Technician Summary'!$G$8:$BK$372,34,FALSE),"") ->  | AF28: =IFERROR(VLOOKUP($G28,'Technician Summary'!$G$8:$BK$372,35,FALSE),"") ->  | AH28: =IFERROR(VLOOKUP($G28,'Technician Summary'!$G$8:$BK$372,37,FALSE),"") ->  | AI28: =IFERROR(VLOOKUP($G28,'Technician Summary'!$G$8:$BK$372,38,FALSE),"") ->  | AK28: =IFERROR(VLOOKUP($G28,'Technician Summary'!$G$8:$BK$372,27,FALSE),"") ->  | AL28: =IFERROR(VLOOKUP($G28,'Technician Summary'!$G$8:$BK$372,68,FALSE),"") -> 
I29: =IFERROR(VLOOKUP($G29,'Technician Summary'!$G$3:$BB$372,2,FALSE),"") ->  | J29: =IFERROR(VLOOKUP($G29,'Technician Summary'!$G$8:$BN$372,60,FALSE),"") ->  | L29: =IFERROR(VLOOKUP($G29,'Technician Summary'!$G$8:$BK$372,14,FALSE),"") ->  | M29: =IFERROR(VLOOKUP($G29,'Technician Summary'!$G$8:$BK$372,15,FALSE),"") ->  | O29: =IFERROR(VLOOKUP($G29,'Technician Summary'!$G$7:$BK$372,17,FALSE),"") ->  | P29: =IFERROR(VLOOKUP($G29,'Technician Summary'!$G$7:$BK$372,18,FALSE),"") ->  | R29: =IFERROR(VLOOKUP($G29,'Technician Summary'!$G$7:$BK$372,20,FALSE),"") ->  | S29: =IFERROR(VLOOKUP($G29,'Technician Summary'!$G$7:$BK$372,21,FALSE),"") ->  | U29: =IF(G29="","",COUNTIFS('StrataSync Data'!$AB:$AB,$G29,'StrataSync Data'!$G:$G,"Closed")) ->  | V29: =IF($G29="","",COUNTIFS('StrataSync Data'!$AB:$AB,$G29,'StrataSync Data'!$H:$H,"Yes",'StrataSync Data'!$G:$G,"Closed")) ->  | X29: =IFERROR(IF($G$7="","",COUNTIFS('StrataSync Data'!$AB:$AB,$G29,'StrataSync Data'!$I:$I,"Incomplete",'StrataSync Data'!$H:$H,"Yes",'StrataSync Data'!$G:$G,"Closed"))+IF($G29="","",COUNTIFS('StrataSync Data'!$AB:$AB,$G29,'StrataSync Data'!$I:$I,"Fail",'StrataSync Data'!$H:$H,"Yes",'StrataSync Data'!$G:$G,"Closed")),"") ->  | AA29: =IFERROR(SUM(Z29/#REF!),"") ->  | AB29: =IFERROR(VLOOKUP($G29,'Technician Summary'!$G$8:$BK$372,7,FALSE),"") ->  | AC29: =IFERROR(VLOOKUP($G29,'Technician Summary'!$G$8:$BK$372,8,FALSE),"") ->  | AE29: =IFERROR(VLOOKUP($G29,'Technician Summary'!$G$8:$BK$372,34,FALSE),"") ->  | AF29: =IFERROR(VLOOKUP($G29,'Technician Summary'!$G$8:$BK$372,35,FALSE),"") ->  | AH29: =IFERROR(VLOOKUP($G29,'Technician Summary'!$G$8:$BK$372,37,FALSE),"") ->  | AI29: =IFERROR(VLOOKUP($G29,'Technician Summary'!$G$8:$BK$372,38,FALSE),"") ->  | AK29: =IFERROR(VLOOKUP($G29,'Technician Summary'!$G$8:$BK$372,27,FALSE),"") ->  | AL29: =IFERROR(VLOOKUP($G29,'Technician Summary'!$G$8:$BK$372,68,FALSE),"") -> 
I30: =IFERROR(VLOOKUP($G30,'Technician Summary'!$G$3:$BB$372,2,FALSE),"") ->  | J30: =IFERROR(VLOOKUP($G30,'Technician Summary'!$G$8:$BN$372,60,FALSE),"") ->  | L30: =IFERROR(VLOOKUP($G30,'Technician Summary'!$G$8:$BK$372,14,FALSE),"") ->  | M30: =IFERROR(VLOOKUP($G30,'Technician Summary'!$G$8:$BK$372,15,FALSE),"") ->  | O30: =IFERROR(VLOOKUP($G30,'Technician Summary'!$G$7:$BK$372,17,FALSE),"") ->  | P30: =IFERROR(VLOOKUP($G30,'Technician Summary'!$G$7:$BK$372,18,FALSE),"") ->  | R30: =IFERROR(VLOOKUP($G30,'Technician Summary'!$G$7:$BK$372,20,FALSE),"") ->  | S30: =IFERROR(VLOOKUP($G30,'Technician Summary'!$G$7:$BK$372,21,FALSE),"") ->  | U30: =IF(G30="","",COUNTIFS('StrataSync Data'!$AB:$AB,$G30,'StrataSync Data'!$G:$G,"Closed")) ->  | V30: =IF($G30="","",COUNTIFS('StrataSync Data'!$AB:$AB,$G30,'StrataSync Data'!$H:$H,"Yes",'StrataSync Data'!$G:$G,"Closed")) ->  | X30: =IFERROR(IF($G$7="","",COUNTIFS('StrataSync Data'!$AB:$AB,$G30,'StrataSync Data'!$I:$I,"Incomplete",'StrataSync Data'!$H:$H,"Yes",'StrataSync Data'!$G:$G,"Closed"))+IF($G30="","",COUNTIFS('StrataSync Data'!$AB:$AB,$G30,'StrataSync Data'!$I:$I,"Fail",'StrataSync Data'!$H:$H,"Yes",'StrataSync Data'!$G:$G,"Closed")),"") ->  | AA30: =IFERROR(SUM(Z30/#REF!),"") ->  | AB30: =IFERROR(VLOOKUP($G30,'Technician Summary'!$G$8:$BK$372,7,FALSE),"") ->  | AC30: =IFERROR(VLOOKUP($G30,'Technician Summary'!$G$8:$BK$372,8,FALSE),"") ->  | AE30: =IFERROR(VLOOKUP($G30,'Technician Summary'!$G$8:$BK$372,34,FALSE),"") ->  | AF30: =IFERROR(VLOOKUP($G30,'Technician Summary'!$G$8:$BK$372,35,FALSE),"") ->  | AH30: =IFERROR(VLOOKUP($G30,'Technician Summary'!$G$8:$BK$372,37,FALSE),"") ->  | AI30: =IFERROR(VLOOKUP($G30,'Technician Summary'!$G$8:$BK$372,38,FALSE),"") ->  | AK30: =IFERROR(VLOOKUP($G30,'Technician Summary'!$G$8:$BK$372,27,FALSE),"") ->  | AL30: =IFERROR(VLOOKUP($G30,'Technician Summary'!$G$8:$BK$372,68,FALSE),"") -> 
I31: =IFERROR(VLOOKUP($G31,'Technician Summary'!$G$3:$BB$372,2,FALSE),"") ->  | J31: =IFERROR(VLOOKUP($G31,'Technician Summary'!$G$8:$BN$372,60,FALSE),"") ->  | L31: =IFERROR(VLOOKUP($G31,'Technician Summary'!$G$8:$BK$372,14,FALSE),"") ->  | M31: =IFERROR(VLOOKUP($G31,'Technician Summary'!$G$8:$BK$372,15,FALSE),"") ->  | O31: =IFERROR(VLOOKUP($G31,'Technician Summary'!$G$7:$BK$372,17,FALSE),"") ->  | P31: =IFERROR(VLOOKUP($G31,'Technician Summary'!$G$7:$BK$372,18,FALSE),"") ->  | R31: =IFERROR(VLOOKUP($G31,'Technician Summary'!$G$7:$BK$372,20,FALSE),"") ->  | S31: =IFERROR(VLOOKUP($G31,'Technician Summary'!$G$7:$BK$372,21,FALSE),"") ->  | U31: =IF(G31="","",COUNTIFS('StrataSync Data'!$AB:$AB,$G31,'StrataSync Data'!$G:$G,"Closed")) ->  | V31: =IF($G31="","",COUNTIFS('StrataSync Data'!$AB:$AB,$G31,'StrataSync Data'!$H:$H,"Yes",'StrataSync Data'!$G:$G,"Closed")) ->  | X31: =IFERROR(IF($G$7="","",COUNTIFS('StrataSync Data'!$AB:$AB,$G31,'StrataSync Data'!$I:$I,"Incomplete",'StrataSync Data'!$H:$H,"Yes",'StrataSync Data'!$G:$G,"Closed"))+IF($G31="","",COUNTIFS('StrataSync Data'!$AB:$AB,$G31,'StrataSync Data'!$I:$I,"Fail",'StrataSync Data'!$H:$H,"Yes",'StrataSync Data'!$G:$G,"Closed")),"") ->  | AA31: =IFERROR(SUM(Z31/#REF!),"") ->  | AB31: =IFERROR(VLOOKUP($G31,'Technician Summary'!$G$8:$BK$372,7,FALSE),"") ->  | AC31: =IFERROR(VLOOKUP($G31,'Technician Summary'!$G$8:$BK$372,8,FALSE),"") ->  | AE31: =IFERROR(VLOOKUP($G31,'Technician Summary'!$G$8:$BK$372,34,FALSE),"") ->  | AF31: =IFERROR(VLOOKUP($G31,'Technician Summary'!$G$8:$BK$372,35,FALSE),"") ->  | AH31: =IFERROR(VLOOKUP($G31,'Technician Summary'!$G$8:$BK$372,37,FALSE),"") ->  | AI31: =IFERROR(VLOOKUP($G31,'Technician Summary'!$G$8:$BK$372,38,FALSE),"") ->  | AK31: =IFERROR(VLOOKUP($G31,'Technician Summary'!$G$8:$BK$372,27,FALSE),"") ->  | AL31: =IFERROR(VLOOKUP($G31,'Technician Summary'!$G$8:$BK$372,68,FALSE),"") -> 
I32: # NPS WO's | J32: # Failures | K32: NPS | L32: Total Repeatable WO | M32: Total Repeats | N32: Repeats | O32: Total Repeatable WO | P32: Repeat IN | Q32: IN Repeat % | R32: Total Repeatable WO | S32: Repeat TC | T32: Repeat TC % | U32: Jobs | V32: Test Run | W32: SQT Compliance | X32: Test Fail | Y32: SQT Pass | Z32: Test Passed | AA32: Ingress Test Pass | AB32: FCR WO | AC32: FCR Failures | AD32: FCR | AE32: Jobs | AF32: Jobs Late | AG32: OTA | AH32: Jobs | AI32: Completed Jobs | AJ32: Completion % | AK32: Total QC | AL32: QC Failure | AM32: SMS tNPS
I33: =SUMIF(I7:I31,">0") -> 40 | J33: =SUMIF(J7:J31,">0") -> 9
K34: =IFERROR(1-(J33/I33),"") -> 0.775 | L34: =SUM(L7:L31) -> 624 | M34: =SUM(M7:M31) -> 13 | N34: =IFERROR(SUM(M34/L34),"") -> 0.0208 | O34: =SUM(O7:O31) -> 350 | P34: =SUM(P7:P31) -> 7 | Q34: =IFERROR(SUM(P34/O34),"") -> 0.02 | R34: =SUM(R7:R31) -> 274 | S34: =SUM(S7:S31) -> 6 | T34: =IFERROR(SUM(S34/R34),"") -> 0.0219 | U34: =SUMIF(U7:U31,">0") -> 403 | V34: =SUMIF(V7:V31,">0") -> 390 | W34: =IFERROR(SUM(V34/U34),"") -> 0.9677 | X34: =SUM(X7:X31) -> 4 | Y34: =IFERROR(SUM(1-X34/V34),"") -> 0.9897 | Z34: =SUM(Z7:Z31) -> 0 | AA34: =IFERROR(SUM(Z34/#REF!),"") ->  | AB34: =SUM(AB7:AB31) -> 351 | AC34: =SUM(AC7:AC31) -> 4 | AD34: =IFERROR(1-AC34/AB34,"") -> 0.9886 | AE34: =SUM(AE7:AE31) -> 264 | AF34: =SUM(AF7:AF31) -> 8 | AG34: =IFERROR(1-AF34/AE34,"") -> 0.9697 | AH34: =SUM(AH7:AH31) -> 720 | AI34: =SUM(AI7:AI31) -> 610 | AJ34: =IFERROR(AI34/AH34,"") -> 0.8472 | AK34: =SUM(AK7:AK31) -> 0 | AL34: =SUM(AL7:AL31) -> 0 | AM34: =IFERROR(1-AL34/AK34,"") -> 

Sheet New Orleans
F3: Josh Baudin
F5: Tech Name | G5: Tech ID | H5: Score | I5: # NPS WO's | J5: # Failures | K5: NPS | L5: Total Repeatable WO | M5: Total Repeats | N5: Repeats | O5: Total Repeatable WO | P5: Repeat IN | Q5: IN Repeat % | R5: Total Repeatable WO | S5: Repeat TC | T5: Repeat TC % | U5: Jobs | V5: Test Run | W5: SQT Compliance | X5: Test Fail | Y5: SQT Pass | Z5: Test Passed | AA5: Ingress Test Pass | AB5: FCR WO | AC5: FCR Failures | AD5: FCR | AE5: Jobs | AF5: Jobs Late | AG5: OTA | AH5: Jobs | AI5: Completed Jobs | AJ5: Completion % | AK5: Total QC | AL5: QC Failure | AM5: SMS tNPS
F7: Kevin Mcelee | G7: 74634 | H7: =IF(W7="","",IFERROR(IF(K7>=70%,2.5,0)+IF(N7<=4%,2.5,0)+IF(W7>=90%,2.5,0)+IF(AG7>=96%,2.5,0),"")) -> 7.5 | I7: =IFERROR(VLOOKUP($G7,'Technician Summary'!$G$7:$BB$372,2,FALSE),"") -> 5 | J7: =IFERROR(VLOOKUP($G7,'Technician Summary'!$G$7:$BN$372,60,FALSE),"") -> 1 | K7: =IFERROR(1-(J7/I7),"") -> 0.8 | L7: =IFERROR(VLOOKUP($G7,'Technician Summary'!$G$7:$BK$372,14,FALSE),"") -> 88 | M7: =IFERROR(VLOOKUP($G7,'Technician Summary'!$G$7:$BK$372,15,FALSE),"") -> 2 | N7: =IFERROR(SUM(M7/L7),"") -> 0.0227 | O7: =IFERROR(VLOOKUP($G7,'Technician Summary'!$G$7:$BK$372,17,FALSE),"") -> 31 | P7: =IFERROR(VLOOKUP($G7,'Technician Summary'!$G$7:$BK$372,18,FALSE),"") -> 1 | Q7: =IFERROR(SUM(P7/O7),"") -> 0.0323 | R7: =IFERROR(VLOOKUP($G7,'Technician Summary'!$G$7:$BK$372,20,FALSE),"") -> 57 | S7: =IFERROR(VLOOKUP($G7,'Technician Summary'!$G$7:$BK$372,21,FALSE),"") -> 1 | T7: =IFERROR(SUM(S7/R7),"") -> 0.0175 | U7: =IF(G7="","",COUNTIFS('StrataSync Data'!$AB:$AB,$G7,'StrataSync Data'!$G:$G,"Closed")) -> 75 | V7: =IF($G7="","",COUNTIFS('StrataSync Data'!$AB:$AB,$G7,'StrataSync Data'!$H:$H,"Yes",'StrataSync Data'!$G:$G,"Closed")) -> 70 | W7: =IFERROR(SUM(V7/U7),"") -> 0.9333 | X7: =IFERROR(IF($G$7="","",COUNTIFS('StrataSync Data'!$AB:$AB,$G7,'StrataSync Data'!$I:$I,"Incomplete",'StrataSync Data'!$H:$H,"Yes",'StrataSync Data'!$G:$G,"Closed"))+IF($G7="","",COUNTIFS('StrataSync Data'!$AB:$AB,$G7,'StrataSync Data'!$I:$I,"Fail",'StrataSync Data'!$H:$H,"Yes",'StrataSync Data'!$G:$G,"Closed")),"") -> 4 | Y7: =IFERROR(SUM(1-X7/V7),"") -> 0.9429 | AA7: =IFERROR(SUM(Z7/#REF!),"") ->  | AB7: =IFERROR(VLOOKUP($G7,'Technician Summary'!$G$7:$BK$372,7,FALSE),"") -> 35 | AC7: =IFERROR(VLOOKUP($G7,'Technician Summary'!$G$7:$BK$372,8,FALSE),"") -> 1 | AD7: =IFERROR(1-AC7/AB7,"") -> 0.9714 | AE7: =IFERROR(VLOOKUP($G7,'Technician Summary'!$G$7:$BK$372,34,FALSE),"") -> 27 | AF7: =IFERROR(VLOOKUP($G7,'Technician Summary'!$G$7:$BK$372,35,FALSE),"") -> 2 | AG7: =IFERROR(1-AF7/AE7,"") -> 0.9259 | AH7: =IFERROR(VLOOKUP($G7,'Technician Summary'!$G$7:$BK$372,37,FALSE),"") -> 98 | AI7: =IFERROR(VLOOKUP($G7,'Technician Summary'!$G$7:$BK$372,38,FALSE),"") -> 87 | AJ7: =IFERROR(AI7/AH7,"") -> 0.8878 | AK7: =IFERROR(VLOOKUP($G7,'Technician Summary'!$G$7:$BK$372,27,FALSE),"") -> 0 | AL7: =IFERROR(VLOOKUP($G7,'Technician Summary'!$G$7:$BK$372,68,FALSE),"") ->  | AM7: =IFERROR(1-AL7/AK7,"") -> 
F8: Chris Bonneval | G8: 52274 | H8: =IF(W8="","",IFERROR(IF(K8>=70%,2.5,0)+IF(N8<=4%,2.5,0)+IF(W8>=90%,2.5,0)+IF(AG8>=96%,2.5,0),"")) -> 7.5 | I8: =IFERROR(VLOOKUP($G8,'Technician Summary'!$G$7:$BB$372,2,FALSE),"") ->  | J8: =IFERROR(VLOOKUP($G8,'Technician Summary'!$G$7:$BN$372,60,FALSE),"") ->  | K8: =IFERROR(1-(J8/I8),"") ->  | L8: =IFERROR(VLOOKUP($G8,'Technician Summary'!$G$7:$BK$372,14,FALSE),"") ->  | M8: =IFERROR(VLOOKUP($G8,'Technician Summary'!$G$7:$BK$372,15,FALSE),"") ->  | N8: =IFERROR(SUM(M8/L8),"") ->  | O8: =IFERROR(VLOOKUP($G8,'Technician Summary'!$G$7:$BK$372,17,FALSE),"") ->  | P8: =IFERROR(VLOOKUP($G8,'Technician Summary'!$G$7:$BK$372,18,FALSE),"") ->  | Q8: =IFERROR(SUM(P8/O8),"") ->  | R8: =IFERROR(VLOOKUP($G8,'Technician Summary'!$G$7:$BK$372,20,FALSE),"") ->  | S8: =IFERROR(VLOOKUP($G8,'Technician Summary'!$G$7:$BK$372,21,FALSE),"") ->  | T8: =IFERROR(SUM(S8/R8),"") ->  | U8: =IF(G8="","",COUNTIFS('StrataSync Data'!$AB:$AB,$G8,'StrataSync Data'!$G:$G,"Closed")) -> 47 | V8: =IF($G8="","",COUNTIFS('StrataSync Data'!$AB:$AB,$G8,'StrataSync Data'!$H:$H,"Yes",'StrataSync Data'!$G:$G,"Closed")) -> 45 | W8: =IFERROR(SUM(V8/U8),"") -> 0.9574 | X8: =IFERROR(IF($G$7="","",COUNTIFS('StrataSync Data'!$AB:$AB,$G8,'StrataSync Data'!$I:$I,"Incomplete",'StrataSync Data'!$H:$H,"Yes",'StrataSync Data'!$G:$G,"Closed"))+IF($G8="","",COUNTIFS('StrataSync Data'!$AB:$AB,$G8,'StrataSync Data'!$I:$I,"Fail",'StrataSync Data'!$H:$H,"Yes",'StrataSync Data'!$G:$G,"Closed")),"") -> 6 | Y8: =IFERROR(SUM(1-X8/V8),"") -> 0.8667 | AA8: =IFERROR(SUM(Z8/#REF!),"") ->  | AB8: =IFERROR(VLOOKUP($G8,'Technician Summary'!$G$7:$BK$372,7,FALSE),"") ->  | AC8: =IFERROR(VLOOKUP($G8,'Technician Summary'!$G$7:$BK$372,8,FALSE),"") ->  | AD8: =IFERROR(1-AC8/AB8,"") ->  | AE8: =IFERROR(VLOOKUP($G8,'Technician Summary'!$G$7:$BK$372,34,FALSE),"") ->  | AF8: =IFERROR(VLOOKUP($G8,'Technician Summary'!$G$7:$BK$372,35,FALSE),"") ->  | AG8: =IFERROR(1-AF8/AE8,"") ->  | AH8: =IFERROR(VLOOKUP($G8,'Technician Summary'!$G$7:$BK$372,37,FALSE),"") ->  | AI8: =IFERROR(VLOOKUP($G8,'Technician Summary'!$G$7:$BK$372,38,FALSE),"") ->  | AJ8: =IFERROR(AI8/AH8,"") ->  | AK8: =IFERROR(VLOOKUP($G8,'Technician Summary'!$G$7:$BK$372,27,FALSE),"") ->  | AL8: =IFERROR(VLOOKUP($G8,'Technician Summary'!$G$7:$BK$372,68,FALSE),"") ->  | AM8: =IFERROR(1-AL8/AK8,"") -> 
F9: hasheem cook | G9: 42232 | H9: 10 | I9: =IFERROR(VLOOKUP($G9,'Technician Summary'!$G$7:$BB$372,2,FALSE),"") -> 0 | J9: =IFERROR(VLOOKUP($G9,'Technician Summary'!$G$7:$BN$372,60,FALSE),"") ->  | L9: =IFERROR(VLOOKUP($G9,'Technician Summary'!$G$7:$BK$372,14,FALSE),"") -> 16 | M9: =IFERROR(VLOOKUP($G9,'Technician Summary'!$G$7:$BK$372,15,FALSE),"") -> 0 | N9: 0 | O9: =IFERROR(VLOOKUP($G9,'Technician Summary'!$G$7:$BK$372,17,FALSE),"") -> 7 | P9: =IFERROR(VLOOKUP($G9,'Technician Summary'!$G$7:$BK$372,18,FALSE),"") -> 0 | Q9: 0 | R9: =IFERROR(VLOOKUP($G9,'Technician Summary'!$G$7:$BK$372,20,FALSE),"") -> 9 | S9: =IFERROR(VLOOKUP($G9,'Technician Summary'!$G$7:$BK$372,21,FALSE),"") -> 0 | T9: 0 | U9: =IF(G9="","",COUNTIFS('StrataSync Data'!$AB:$AB,$G9,'StrataSync Data'!$G:$G,"Closed")) -> 14 | V9: =IF($G9="","",COUNTIFS('StrataSync Data'!$AB:$AB,$G9,'StrataSync Data'!$H:$H,"Yes",'StrataSync Data'!$G:$G,"Closed")) -> 14 | W9: 1 | X9: =IFERROR(IF($G$7="","",COUNTIFS('StrataSync Data'!$AB:$AB,$G9,'StrataSync Data'!$I:$I,"Incomplete",'StrataSync Data'!$H:$H,"Yes",'StrataSync Data'!$G:$G,"Closed"))+IF($G9="","",COUNTIFS('StrataSync Data'!$AB:$AB,$G9,'StrataSync Data'!$I:$I,"Fail",'StrataSync Data'!$H:$H,"Yes",'StrataSync Data'!$G:$G,"Closed")),"") -> 2 | Y9: 0.8571 | AA9: =IFERROR(SUM(Z9/#REF!),"") ->  | AB9: =IFERROR(VLOOKUP($G9,'Technician Summary'!$G$7:$BK$372,7,FALSE),"") -> 5 | AC9: =IFERROR(VLOOKUP($G9,'Technician Summary'!$G$7:$BK$372,8,FALSE),"") -> 0 | AD9: 1 | AE9: =IFERROR(VLOOKUP($G9,'Technician Summary'!$G$7:$BK$372,34,FALSE),"") -> 5 | AF9: =IFERROR(VLOOKUP($G9,'Technician Summary'!$G$7:$BK$372,35,FALSE),"") -> 0 | AG9: 1 | AH9: =IFERROR(VLOOKUP($G9,'Technician Summary'!$G$7:$BK$372,37,FALSE),"") -> 19 | AI9: =IFERROR(VLOOKUP($G9,'Technician Summary'!$G$7:$BK$372,38,FALSE),"") -> 16 | AJ9: 0.8421 | AK9: =IFERROR(VLOOKUP($G9,'Technician Summary'!$G$7:$BK$372,27,FALSE),"") -> 0 | AL9: =IFERROR(VLOOKUP($G9,'Technician Summary'!$G$7:$BK$372,68,FALSE),"") -> 
F10: qaassim razzaq | G10: 56837 | H10: 2.5 | I10: =IFERROR(VLOOKUP($G10,'Technician Summary'!$G$7:$BB$372,2,FALSE),"") -> 4 | J10: =IFERROR(VLOOKUP($G10,'Technician Summary'!$G$7:$BN$372,60,FALSE),"") -> 2 | K10: 0.5 | L10: =IFERROR(VLOOKUP($G10,'Technician Summary'!$G$7:$BK$372,14,FALSE),"") -> 62 | M10: =IFERROR(VLOOKUP($G10,'Technician Summary'!$G$7:$BK$372,15,FALSE),"") -> 3 | N10: 0.0484 | O10: =IFERROR(VLOOKUP($G10,'Technician Summary'!$G$7:$BK$372,17,FALSE),"") -> 40 | P10: =IFERROR(VLOOKUP($G10,'Technician Summary'!$G$7:$BK$372,18,FALSE),"") -> 3 | Q10: 0.075 | R10: =IFERROR(VLOOKUP($G10,'Technician Summary'!$G$7:$BK$372,20,FALSE),"") -> 22 | S10: =IFERROR(VLOOKUP($G10,'Technician Summary'!$G$7:$BK$372,21,FALSE),"") -> 0 | T10: 0 | U10: =IF(G10="","",COUNTIFS('StrataSync Data'!$AB:$AB,$G10,'StrataSync Data'!$G:$G,"Closed")) -> 40 | V10: =IF($G10="","",COUNTIFS('StrataSync Data'!$AB:$AB,$G10,'StrataSync Data'!$H:$H,"Yes",'StrataSync Data'!$G:$G,"Closed")) -> 40 | W10: 1 | X10: =IFERROR(IF($G$7="","",COUNTIFS('StrataSync Data'!$AB:$AB,$G10,'StrataSync Data'!$I:$I,"Incomplete",'StrataSync Data'!$H:$H,"Yes",'StrataSync Data'!$G:$G,"Closed"))+IF($G10="","",COUNTIFS('StrataSync Data'!$AB:$AB,$G10,'StrataSync Data'!$I:$I,"Fail",'StrataSync Data'!$H:$H,"Yes",'StrataSync Data'!$G:$G,"Closed")),"") -> 2 | Y10: 0.95 | AA10: =IFERROR(SUM(Z10/#REF!),"") ->  | AB10: =IFERROR(VLOOKUP($G10,'Technician Summary'!$G$7:$BK$372,7,FALSE),"") -> 29 | AC10: =IFERROR(VLOOKUP($G10,'Technician Summary'!$G$7:$BK$372,8,FALSE),"") -> 1 | AD10: 0.9655 | AE10: =IFERROR(VLOOKUP($G10,'Technician Summary'!$G$7:$BK$372,34,FALSE),"") -> 23 | AF10: =IFERROR(VLOOKUP($G10,'Technician Summary'!$G$7:$BK$372,35,FALSE),"") -> 3 | AG10: 0.8696 | AH10: =IFERROR(VLOOKUP($G10,'Technician Summary'!$G$7:$BK$372,37,FALSE),"") -> 84 | AI10: =IFERROR(VLOOKUP($G10,'Technician Summary'!$G$7:$BK$372,38,FALSE),"") -> 62 | AJ10: 0.7381 | AK10: =IFERROR(VLOOKUP($G10,'Technician Summary'!$G$7:$BK$372,27,FALSE),"") -> 0 | AL10: =IFERROR(VLOOKUP($G10,'Technician Summary'!$G$7:$BK$372,68,FALSE),"") -> 
B11: Home | F11: Rason Robertson | G11: 26022 | H11: 7.5 | I11: =IFERROR(VLOOKUP($G11,'Technician Summary'!$G$7:$BB$372,2,FALSE),"") -> 0 | J11: =IFERROR(VLOOKUP($G11,'Technician Summary'!$G$7:$BN$372,60,FALSE),"") ->  | L11: =IFERROR(VLOOKUP($G11,'Technician Summary'!$G$7:$BK$372,14,FALSE),"") -> 82 | M11: =IFERROR(VLOOKUP($G11,'Technician Summary'!$G$7:$BK$372,15,FALSE),"") -> 2 | N11: 0.0244 | O11: =IFERROR(VLOOKUP($G11,'Technician Summary'!$G$7:$BK$372,17,FALSE),"") -> 52 | P11: =IFERROR(VLOOKUP($G11,'Technician Summary'!$G$7:$BK$372,18,FALSE),"") -> 1 | Q11: 0.0192 | R11: =IFERROR(VLOOKUP($G11,'Technician Summary'!$G$7:$BK$372,20,FALSE),"") -> 30 | S11: =IFERROR(VLOOKUP($G11,'Technician Summary'!$G$7:$BK$372,21,FALSE),"") -> 1 | T11: 0.0333 | U11: =IF(G11="","",COUNTIFS('StrataSync Data'!$AB:$AB,$G11,'StrataSync Data'!$G:$G,"Closed")) -> 47 | V11: =IF($G11="","",COUNTIFS('StrataSync Data'!$AB:$AB,$G11,'StrataSync Data'!$H:$H,"Yes",'StrataSync Data'!$G:$G,"Closed")) -> 46 | W11: 0.9787 | X11: =IFERROR(IF($G$7="","",COUNTIFS('StrataSync Data'!$AB:$AB,$G11,'StrataSync Data'!$I:$I,"Incomplete",'StrataSync Data'!$H:$H,"Yes",'StrataSync Data'!$G:$G,"Closed"))+IF($G11="","",COUNTIFS('StrataSync Data'!$AB:$AB,$G11,'StrataSync Data'!$I:$I,"Fail",'StrataSync Data'!$H:$H,"Yes",'StrataSync Data'!$G:$G,"Closed")),"") -> 0 | Y11: 1 | AA11: =IFERROR(SUM(Z11/#REF!),"") ->  | AB11: =IFERROR(VLOOKUP($G11,'Technician Summary'!$G$7:$BK$372,7,FALSE),"") -> 25 | AC11: =IFERROR(VLOOKUP($G11,'Technician Summary'!$G$7:$BK$372,8,FALSE),"") -> 0 | AD11: 1 | AE11: =IFERROR(VLOOKUP($G11,'Technician Summary'!$G$7:$BK$372,34,FALSE),"") -> 25 | AF11: =IFERROR(VLOOKUP($G11,'Technician Summary'!$G$7:$BK$372,35,FALSE),"") -> 5 | AG11: 0.8 | AH11: =IFERROR(VLOOKUP($G11,'Technician Summary'!$G$7:$BK$372,37,FALSE),"") -> 107 | AI11: =IFERROR(VLOOKUP($G11,'Technician Summary'!$G$7:$BK$372,38,FALSE),"") -> 82 | AJ11: 0.7664 | AK11: =IFERROR(VLOOKUP($G11,'Technician Summary'!$G$7:$BK$372,27,FALSE),"") -> 0 | AL11: =IFERROR(VLOOKUP($G11,'Technician Summary'!$G$7:$BK$372,68,FALSE),"") -> 
F12: Terrance Duncan | G12: 26196 | I12: =IFERROR(VLOOKUP($G12,'Technician Summary'!$G$7:$BB$372,2,FALSE),"") ->  | J12: =IFERROR(VLOOKUP($G12,'Technician Summary'!$G$7:$BN$372,60,FALSE),"") ->  | L12: =IFERROR(VLOOKUP($G12,'Technician Summary'!$G$7:$BK$372,14,FALSE),"") ->  | M12: =IFERROR(VLOOKUP($G12,'Technician Summary'!$G$7:$BK$372,15,FALSE),"") ->  | O12: =IFERROR(VLOOKUP($G12,'Technician Summary'!$G$7:$BK$372,17,FALSE),"") ->  | P12: =IFERROR(VLOOKUP($G12,'Technician Summary'!$G$7:$BK$372,18,FALSE),"") ->  | R12: =IFERROR(VLOOKUP($G12,'Technician Summary'!$G$7:$BK$372,20,FALSE),"") ->  | S12: =IFERROR(VLOOKUP($G12,'Technician Summary'!$G$7:$BK$372,21,FALSE),"") ->  | U12: =IF(G12="","",COUNTIFS('StrataSync Data'!$AB:$AB,$G12,'StrataSync Data'!$G:$G,"Closed")) -> 0 | V12: =IF($G12="","",COUNTIFS('StrataSync Data'!$AB:$AB,$G12,'StrataSync Data'!$H:$H,"Yes",'StrataSync Data'!$G:$G,"Closed")) -> 0 | X12: =IFERROR(IF($G$7="","",COUNTIFS('StrataSync Data'!$AB:$AB,$G12,'StrataSync Data'!$I:$I,"Incomplete",'StrataSync Data'!$H:$H,"Yes",'StrataSync Data'!$G:$G,"Closed"))+IF($G12="","",COUNTIFS('StrataSync Data'!$AB:$AB,$G12,'StrataSync Data'!$I:$I,"Fail",'StrataSync Data'!$H:$H,"Yes",'StrataSync Data'!$G:$G,"Closed")),"") -> 0 | AA12: =IFERROR(SUM(Z12/#REF!),"") ->  | AB12: =IFERROR(VLOOKUP($G12,'Technician Summary'!$G$7:$BK$372,7,FALSE),"") ->  | AC12: =IFERROR(VLOOKUP($G12,'Technician Summary'!$G$7:$BK$372,8,FALSE),"") ->  | AE12: =IFERROR(VLOOKUP($G12,'Technician Summary'!$G$7:$BK$372,34,FALSE),"") ->  | AF12: =IFERROR(VLOOKUP($G12,'Technician Summary'!$G$7:$BK$372,35,FALSE),"") ->  | AH12: =IFERROR(VLOOKUP($G12,'Technician Summary'!$G$7:$BK$372,37,FALSE),"") ->  | AI12: =IFERROR(VLOOKUP($G12,'Technician Summary'!$G$7:$BK$372,38,FALSE),"") ->  | AK12: =IFERROR(VLOOKUP($G12,'Technician Summary'!$G$7:$BK$372,27,FALSE),"") ->  | AL12: =IFERROR(VLOOKUP($G12,'Technician Summary'!$G$7:$BK$372,68,FALSE),"") -> 
B13: Performance Metrics | F13: Daniel Alario | G13: 9897 | I13: =IFERROR(VLOOKUP($G13,'Technician Summary'!$G$7:$BB$372,2,FALSE),"") ->  | J13: =IFERROR(VLOOKUP($G13,'Technician Summary'!$G$7:$BN$372,60,FALSE),"") ->  | L13: =IFERROR(VLOOKUP($G13,'Technician Summary'!$G$7:$BK$372,14,FALSE),"") ->  | M13: =IFERROR(VLOOKUP($G13,'Technician Summary'!$G$7:$BK$372,15,FALSE),"") ->  | O13: =IFERROR(VLOOKUP($G13,'Technician Summary'!$G$7:$BK$372,17,FALSE),"") ->  | P13: =IFERROR(VLOOKUP($G13,'Technician Summary'!$G$7:$BK$372,18,FALSE),"") ->  | R13: =IFERROR(VLOOKUP($G13,'Technician Summary'!$G$7:$BK$372,20,FALSE),"") ->  | S13: =IFERROR(VLOOKUP($G13,'Technician Summary'!$G$7:$BK$372,21,FALSE),"") ->  | U13: =IF(G13="","",COUNTIFS('StrataSync Data'!$AB:$AB,$G13,'StrataSync Data'!$G:$G,"Closed")) -> 0 | V13: =IF($G13="","",COUNTIFS('StrataSync Data'!$AB:$AB,$G13,'StrataSync Data'!$H:$H,"Yes",'StrataSync Data'!$G:$G,"Closed")) -> 0 | X13: =IFERROR(IF($G$7="","",COUNTIFS('StrataSync Data'!$AB:$AB,$G13,'StrataSync Data'!$I:$I,"Incomplete",'StrataSync Data'!$H:$H,"Yes",'StrataSync Data'!$G:$G,"Closed"))+IF($G13="","",COUNTIFS('StrataSync Data'!$AB:$AB,$G13,'StrataSync Data'!$I:$I,"Fail",'StrataSync Data'!$H:$H,"Yes",'StrataSync Data'!$G:$G,"Closed")),"") -> 0 | AA13: =IFERROR(SUM(Z13/#REF!),"") ->  | AB13: =IFERROR(VLOOKUP($G13,'Technician Summary'!$G$7:$BK$372,7,FALSE),"") ->  | AC13: =IFERROR(VLOOKUP($G13,'Technician Summary'!$G$7:$BK$372,8,FALSE),"") ->  | AE13: =IFERROR(VLOOKUP($G13,'Technician Summary'!$G$7:$BK$372,34,FALSE),"") ->  | AF13: =IFERROR(VLOOKUP($G13,'Technician Summary'!$G$7:$BK$372,35,FALSE),"") ->  | AH13: =IFERROR(VLOOKUP($G13,'Technician Summary'!$G$7:$BK$372,37,FALSE),"") ->  | AI13: =IFERROR(VLOOKUP($G13,'Technician Summary'!$G$7:$BK$372,38,FALSE),"") ->  | AK13: =IFERROR(VLOOKUP($G13,'Technician Summary'!$G$7:$BK$372,27,FALSE),"") ->  | AL13: =IFERROR(VLOOKUP($G13,'Technician Summary'!$G$7:$BK$372,68,FALSE),"") -> 
B14: Gainesville | I14: =IFERROR(VLOOKUP($G14,'Technician Summary'!$G$7:$BB$372,2,FALSE),"") ->  | J14: =IFERROR(VLOOKUP($G14,'Technician Summary'!$G$7:$BN$372,60,FALSE),"") ->  | L14: =IFERROR(VLOOKUP($G14,'Technician Summary'!$G$7:$BK$372,14,FALSE),"") ->  | M14: =IFERROR(VLOOKUP($G14,'Technician Summary'!$G$7:$BK$372,15,FALSE),"") ->  | O14: =IFERROR(VLOOKUP($G14,'Technician Summary'!$G$7:$BK$372,17,FALSE),"") ->  | P14: =IFERROR(VLOOKUP($G14,'Technician Summary'!$G$7:$BK$372,18,FALSE),"") ->  | R14: =IFERROR(VLOOKUP($G14,'Technician Summary'!$G$7:$BK$372,20,FALSE),"") ->  | S14: =IFERROR(VLOOKUP($G14,'Technician Summary'!$G$7:$BK$372,21,FALSE),"") ->  | U14: =IF(G14="","",COUNTIFS('StrataSync Data'!$AB:$AB,$G14,'StrataSync Data'!$G:$G,"Closed")) ->  | V14: =IF($G14="","",COUNTIFS('StrataSync Data'!$AB:$AB,$G14,'StrataSync Data'!$H:$H,"Yes",'StrataSync Data'!$G:$G,"Closed")) ->  | X14: =IFERROR(IF($G$7="","",COUNTIFS('StrataSync Data'!$AB:$AB,$G14,'StrataSync Data'!$I:$I,"Incomplete",'StrataSync Data'!$H:$H,"Yes",'StrataSync Data'!$G:$G,"Closed"))+IF($G14="","",COUNTIFS('StrataSync Data'!$AB:$AB,$G14,'StrataSync Data'!$I:$I,"Fail",'StrataSync Data'!$H:$H,"Yes",'StrataSync Data'!$G:$G,"Closed")),"") ->  | AA14: =IFERROR(SUM(Z14/#REF!),"") ->  | AB14: =IFERROR(VLOOKUP($G14,'Technician Summary'!$G$7:$BK$372,7,FALSE),"") ->  | AC14: =IFERROR(VLOOKUP($G14,'Technician Summary'!$G$7:$BK$372,8,FALSE),"") ->  | AE14: =IFERROR(VLOOKUP($G14,'Technician Summary'!$G$7:$BK$372,34,FALSE),"") ->  | AF14: =IFERROR(VLOOKUP($G14,'Technician Summary'!$G$7:$BK$372,35,FALSE),"") ->  | AH14: =IFERROR(VLOOKUP($G14,'Technician Summary'!$G$7:$BK$372,37,FALSE),"") ->  | AI14: =IFERROR(VLOOKUP($G14,'Technician Summary'!$G$7:$BK$372,38,FALSE),"") ->  | AK14: =IFERROR(VLOOKUP($G14,'Technician Summary'!$G$7:$BK$372,27,FALSE),"") ->  | AL14: =IFERROR(VLOOKUP($G14,'Technician Summary'!$G$7:$BK$372,68,FALSE),"") -> 
B15: Macon | I15: =IFERROR(VLOOKUP($G15,'Technician Summary'!$G$7:$BB$372,2,FALSE),"") ->  | J15: =IFERROR(VLOOKUP($G15,'Technician Summary'!$G$7:$BN$372,60,FALSE),"") ->  | L15: =IFERROR(VLOOKUP($G15,'Technician Summary'!$G$7:$BK$372,14,FALSE),"") ->  | M15: =IFERROR(VLOOKUP($G15,'Technician Summary'!$G$7:$BK$372,15,FALSE),"") ->  | O15: =IFERROR(VLOOKUP($G15,'Technician Summary'!$G$7:$BK$372,17,FALSE),"") ->  | P15: =IFERROR(VLOOKUP($G15,'Technician Summary'!$G$7:$BK$372,18,FALSE),"") ->  | R15: =IFERROR(VLOOKUP($G15,'Technician Summary'!$G$7:$BK$372,20,FALSE),"") ->  | S15: =IFERROR(VLOOKUP($G15,'Technician Summary'!$G$7:$BK$372,21,FALSE),"") ->  | U15: =IF(G15="","",COUNTIFS('StrataSync Data'!$AB:$AB,$G15,'StrataSync Data'!$G:$G,"Closed")) ->  | V15: =IF($G15="","",COUNTIFS('StrataSync Data'!$AB:$AB,$G15,'StrataSync Data'!$H:$H,"Yes",'StrataSync Data'!$G:$G,"Closed")) ->  | X15: =IFERROR(IF($G$7="","",COUNTIFS('StrataSync Data'!$AB:$AB,$G15,'StrataSync Data'!$I:$I,"Incomplete",'StrataSync Data'!$H:$H,"Yes",'StrataSync Data'!$G:$G,"Closed"))+IF($G15="","",COUNTIFS('StrataSync Data'!$AB:$AB,$G15,'StrataSync Data'!$I:$I,"Fail",'StrataSync Data'!$H:$H,"Yes",'StrataSync Data'!$G:$G,"Closed")),"") ->  | AA15: =IFERROR(SUM(Z15/#REF!),"") ->  | AB15: =IFERROR(VLOOKUP($G15,'Technician Summary'!$G$7:$BK$372,7,FALSE),"") ->  | AC15: =IFERROR(VLOOKUP($G15,'Technician Summary'!$G$7:$BK$372,8,FALSE),"") ->  | AE15: =IFERROR(VLOOKUP($G15,'Technician Summary'!$G$7:$BK$372,34,FALSE),"") ->  | AF15: =IFERROR(VLOOKUP($G15,'Technician Summary'!$G$7:$BK$372,35,FALSE),"") ->  | AH15: =IFERROR(VLOOKUP($G15,'Technician Summary'!$G$7:$BK$372,37,FALSE),"") ->  | AI15: =IFERROR(VLOOKUP($G15,'Technician Summary'!$G$7:$BK$372,38,FALSE),"") ->  | AK15: =IFERROR(VLOOKUP($G15,'Technician Summary'!$G$7:$BK$372,27,FALSE),"") ->  | AL15: =IFERROR(VLOOKUP($G15,'Technician Summary'!$G$7:$BK$372,68,FALSE),"") -> 
B16: New Orleans | I16: =IFERROR(VLOOKUP($G16,'Technician Summary'!$G$7:$BB$372,2,FALSE),"") ->  | J16: =IFERROR(VLOOKUP($G16,'Technician Summary'!$G$7:$BN$372,60,FALSE),"") ->  | L16: =IFERROR(VLOOKUP($G16,'Technician Summary'!$G$7:$BK$372,14,FALSE),"") ->  | M16: =IFERROR(VLOOKUP($G16,'Technician Summary'!$G$7:$BK$372,15,FALSE),"") ->  | O16: =IFERROR(VLOOKUP($G16,'Technician Summary'!$G$7:$BK$372,17,FALSE),"") ->  | P16: =IFERROR(VLOOKUP($G16,'Technician Summary'!$G$7:$BK$372,18,FALSE),"") ->  | R16: =IFERROR(VLOOKUP($G16,'Technician Summary'!$G$7:$BK$372,20,FALSE),"") ->  | S16: =IFERROR(VLOOKUP($G16,'Technician Summary'!$G$7:$BK$372,21,FALSE),"") ->  | U16: =IF(G16="","",COUNTIFS('StrataSync Data'!$AB:$AB,$G16,'StrataSync Data'!$G:$G,"Closed")) ->  | V16: =IF($G16="","",COUNTIFS('StrataSync Data'!$AB:$AB,$G16,'StrataSync Data'!$H:$H,"Yes",'StrataSync Data'!$G:$G,"Closed")) ->  | X16: =IFERROR(IF($G$7="","",COUNTIFS('StrataSync Data'!$AB:$AB,$G16,'StrataSync Data'!$I:$I,"Incomplete",'StrataSync Data'!$H:$H,"Yes",'StrataSync Data'!$G:$G,"Closed"))+IF($G16="","",COUNTIFS('StrataSync Data'!$AB:$AB,$G16,'StrataSync Data'!$I:$I,"Fail",'StrataSync Data'!$H:$H,"Yes",'StrataSync Data'!$G:$G,"Closed")),"") ->  | AA16: =IFERROR(SUM(Z16/#REF!),"") ->  | AB16: =IFERROR(VLOOKUP($G16,'Technician Summary'!$G$7:$BK$372,7,FALSE),"") ->  | AC16: =IFERROR(VLOOKUP($G16,'Technician Summary'!$G$7:$BK$372,8,FALSE),"") ->  | AE16: =IFERROR(VLOOKUP($G16,'Technician Summary'!$G$7:$BK$372,34,FALSE),"") ->  | AF16: =IFERROR(VLOOKUP($G16,'Technician Summary'!$G$7:$BK$372,35,FALSE),"") ->  | AH16: =IFERROR(VLOOKUP($G16,'Technician Summary'!$G$7:$BK$372,37,FALSE),"") ->  | AI16: =IFERROR(VLOOKUP($G16,'Technician Summary'!$G$7:$BK$372,38,FALSE),"") ->  | AK16: =IFERROR(VLOOKUP($G16,'Technician Summary'!$G$7:$BK$372,27,FALSE),"") ->  | AL16: =IFERROR(VLOOKUP($G16,'Technician Summary'!$G$7:$BK$372,68,FALSE),"") -> 
B17: Hampton Roads | I17: =IFERROR(VLOOKUP($G17,'Technician Summary'!$G$7:$BB$372,2,FALSE),"") ->  | J17: =IFERROR(VLOOKUP($G17,'Technician Summary'!$G$7:$BN$372,60,FALSE),"") ->  | L17: =IFERROR(VLOOKUP($G17,'Technician Summary'!$G$7:$BK$372,14,FALSE),"") ->  | M17: =IFERROR(VLOOKUP($G17,'Technician Summary'!$G$7:$BK$372,15,FALSE),"") ->  | O17: =IFERROR(VLOOKUP($G17,'Technician Summary'!$G$7:$BK$372,17,FALSE),"") ->  | P17: =IFERROR(VLOOKUP($G17,'Technician Summary'!$G$7:$BK$372,18,FALSE),"") ->  | R17: =IFERROR(VLOOKUP($G17,'Technician Summary'!$G$7:$BK$372,20,FALSE),"") ->  | S17: =IFERROR(VLOOKUP($G17,'Technician Summary'!$G$7:$BK$372,21,FALSE),"") ->  | U17: =IF(G17="","",COUNTIFS('StrataSync Data'!$AB:$AB,$G17,'StrataSync Data'!$G:$G,"Closed")) ->  | V17: =IF($G17="","",COUNTIFS('StrataSync Data'!$AB:$AB,$G17,'StrataSync Data'!$H:$H,"Yes",'StrataSync Data'!$G:$G,"Closed")) ->  | X17: =IFERROR(IF($G$7="","",COUNTIFS('StrataSync Data'!$AB:$AB,$G17,'StrataSync Data'!$I:$I,"Incomplete",'StrataSync Data'!$H:$H,"Yes",'StrataSync Data'!$G:$G,"Closed"))+IF($G17="","",COUNTIFS('StrataSync Data'!$AB:$AB,$G17,'StrataSync Data'!$I:$I,"Fail",'StrataSync Data'!$H:$H,"Yes",'StrataSync Data'!$G:$G,"Closed")),"") ->  | AA17: =IFERROR(SUM(Z17/#REF!),"") ->  | AB17: =IFERROR(VLOOKUP($G17,'Technician Summary'!$G$7:$BK$372,7,FALSE),"") ->  | AC17: =IFERROR(VLOOKUP($G17,'Technician Summary'!$G$7:$BK$372,8,FALSE),"") ->  | AE17: =IFERROR(VLOOKUP($G17,'Technician Summary'!$G$7:$BK$372,34,FALSE),"") ->  | AF17: =IFERROR(VLOOKUP($G17,'Technician Summary'!$G$7:$BK$372,35,FALSE),"") ->  | AH17: =IFERROR(VLOOKUP($G17,'Technician Summary'!$G$7:$BK$372,37,FALSE),"") ->  | AI17: =IFERROR(VLOOKUP($G17,'Technician Summary'!$G$7:$BK$372,38,FALSE),"") ->  | AK17: =IFERROR(VLOOKUP($G17,'Technician Summary'!$G$7:$BK$372,27,FALSE),"") ->  | AL17: =IFERROR(VLOOKUP($G17,'Technician Summary'!$G$7:$BK$372,68,FALSE),"") -> 
B18: Baton Rouge | I18: =IFERROR(VLOOKUP($G18,'Technician Summary'!$G$7:$BB$372,2,FALSE),"") ->  | J18: =IFERROR(VLOOKUP($G18,'Technician Summary'!$G$7:$BN$372,60,FALSE),"") ->  | L18: =IFERROR(VLOOKUP($G18,'Technician Summary'!$G$7:$BK$372,14,FALSE),"") ->  | M18: =IFERROR(VLOOKUP($G18,'Technician Summary'!$G$7:$BK$372,15,FALSE),"") ->  | O18: =IFERROR(VLOOKUP($G18,'Technician Summary'!$G$7:$BK$372,17,FALSE),"") ->  | P18: =IFERROR(VLOOKUP($G18,'Technician Summary'!$G$7:$BK$372,18,FALSE),"") ->  | R18: =IFERROR(VLOOKUP($G18,'Technician Summary'!$G$7:$BK$372,20,FALSE),"") ->  | S18: =IFERROR(VLOOKUP($G18,'Technician Summary'!$G$7:$BK$372,21,FALSE),"") ->  | U18: =IF(G18="","",COUNTIFS('StrataSync Data'!$AB:$AB,$G18,'StrataSync Data'!$G:$G,"Closed")) ->  | V18: =IF($G18="","",COUNTIFS('StrataSync Data'!$AB:$AB,$G18,'StrataSync Data'!$H:$H,"Yes",'StrataSync Data'!$G:$G,"Closed")) ->  | X18: =IFERROR(IF($G$7="","",COUNTIFS('StrataSync Data'!$AB:$AB,$G18,'StrataSync Data'!$I:$I,"Incomplete",'StrataSync Data'!$H:$H,"Yes",'StrataSync Data'!$G:$G,"Closed"))+IF($G18="","",COUNTIFS('StrataSync Data'!$AB:$AB,$G18,'StrataSync Data'!$I:$I,"Fail",'StrataSync Data'!$H:$H,"Yes",'StrataSync Data'!$G:$G,"Closed")),"") ->  | AA18: =IFERROR(SUM(Z18/#REF!),"") ->  | AB18: =IFERROR(VLOOKUP($G18,'Technician Summary'!$G$7:$BK$372,7,FALSE),"") ->  | AC18: =IFERROR(VLOOKUP($G18,'Technician Summary'!$G$7:$BK$372,8,FALSE),"") ->  | AE18: =IFERROR(VLOOKUP($G18,'Technician Summary'!$G$7:$BK$372,34,FALSE),"") ->  | AF18: =IFERROR(VLOOKUP($G18,'Technician Summary'!$G$7:$BK$372,35,FALSE),"") ->  | AH18: =IFERROR(VLOOKUP($G18,'Technician Summary'!$G$7:$BK$372,37,FALSE),"") ->  | AI18: =IFERROR(VLOOKUP($G18,'Technician Summary'!$G$7:$BK$372,38,FALSE),"") ->  | AK18: =IFERROR(VLOOKUP($G18,'Technician Summary'!$G$7:$BK$372,27,FALSE),"") ->  | AL18: =IFERROR(VLOOKUP($G18,'Technician Summary'!$G$7:$BK$372,68,FALSE),"") -> 
B19: Roanoke | I19: =IFERROR(VLOOKUP($G19,'Technician Summary'!$G$7:$BB$372,2,FALSE),"") ->  | J19: =IFERROR(VLOOKUP($G19,'Technician Summary'!$G$7:$BN$372,60,FALSE),"") ->  | L19: =IFERROR(VLOOKUP($G19,'Technician Summary'!$G$7:$BK$372,14,FALSE),"") ->  | M19: =IFERROR(VLOOKUP($G19,'Technician Summary'!$G$7:$BK$372,15,FALSE),"") ->  | O19: =IFERROR(VLOOKUP($G19,'Technician Summary'!$G$7:$BK$372,17,FALSE),"") ->  | P19: =IFERROR(VLOOKUP($G19,'Technician Summary'!$G$7:$BK$372,18,FALSE),"") ->  | R19: =IFERROR(VLOOKUP($G19,'Technician Summary'!$G$7:$BK$372,20,FALSE),"") ->  | S19: =IFERROR(VLOOKUP($G19,'Technician Summary'!$G$7:$BK$372,21,FALSE),"") ->  | U19: =IF(G19="","",COUNTIFS('StrataSync Data'!$AB:$AB,$G19,'StrataSync Data'!$G:$G,"Closed")) ->  | V19: =IF($G19="","",COUNTIFS('StrataSync Data'!$AB:$AB,$G19,'StrataSync Data'!$H:$H,"Yes",'StrataSync Data'!$G:$G,"Closed")) ->  | X19: =IFERROR(IF($G$7="","",COUNTIFS('StrataSync Data'!$AB:$AB,$G19,'StrataSync Data'!$I:$I,"Incomplete",'StrataSync Data'!$H:$H,"Yes",'StrataSync Data'!$G:$G,"Closed"))+IF($G19="","",COUNTIFS('StrataSync Data'!$AB:$AB,$G19,'StrataSync Data'!$I:$I,"Fail",'StrataSync Data'!$H:$H,"Yes",'StrataSync Data'!$G:$G,"Closed")),"") ->  | AA19: =IFERROR(SUM(Z19/#REF!),"") ->  | AB19: =IFERROR(VLOOKUP($G19,'Technician Summary'!$G$7:$BK$372,7,FALSE),"") ->  | AC19: =IFERROR(VLOOKUP($G19,'Technician Summary'!$G$7:$BK$372,8,FALSE),"") ->  | AE19: =IFERROR(VLOOKUP($G19,'Technician Summary'!$G$7:$BK$372,34,FALSE),"") ->  | AF19: =IFERROR(VLOOKUP($G19,'Technician Summary'!$G$7:$BK$372,35,FALSE),"") ->  | AH19: =IFERROR(VLOOKUP($G19,'Technician Summary'!$G$7:$BK$372,37,FALSE),"") ->  | AI19: =IFERROR(VLOOKUP($G19,'Technician Summary'!$G$7:$BK$372,38,FALSE),"") ->  | AK19: =IFERROR(VLOOKUP($G19,'Technician Summary'!$G$7:$BK$372,27,FALSE),"") ->  | AL19: =IFERROR(VLOOKUP($G19,'Technician Summary'!$G$7:$BK$372,68,FALSE),"") -> 
B20: Gulf Coast | I20: =IFERROR(VLOOKUP($G20,'Technician Summary'!$G$7:$BB$372,2,FALSE),"") ->  | J20: =IFERROR(VLOOKUP($G20,'Technician Summary'!$G$7:$BN$372,60,FALSE),"") ->  | L20: =IFERROR(VLOOKUP($G20,'Technician Summary'!$G$7:$BK$372,14,FALSE),"") ->  | M20: =IFERROR(VLOOKUP($G20,'Technician Summary'!$G$7:$BK$372,15,FALSE),"") ->  | O20: =IFERROR(VLOOKUP($G20,'Technician Summary'!$G$7:$BK$372,17,FALSE),"") ->  | P20: =IFERROR(VLOOKUP($G20,'Technician Summary'!$G$7:$BK$372,18,FALSE),"") ->  | R20: =IFERROR(VLOOKUP($G20,'Technician Summary'!$G$7:$BK$372,20,FALSE),"") ->  | S20: =IFERROR(VLOOKUP($G20,'Technician Summary'!$G$7:$BK$372,21,FALSE),"") ->  | U20: =IF(G20="","",COUNTIFS('StrataSync Data'!$AB:$AB,$G20,'StrataSync Data'!$G:$G,"Closed")) ->  | V20: =IF($G20="","",COUNTIFS('StrataSync Data'!$AB:$AB,$G20,'StrataSync Data'!$H:$H,"Yes",'StrataSync Data'!$G:$G,"Closed")) ->  | X20: =IFERROR(IF($G$7="","",COUNTIFS('StrataSync Data'!$AB:$AB,$G20,'StrataSync Data'!$I:$I,"Incomplete",'StrataSync Data'!$H:$H,"Yes",'StrataSync Data'!$G:$G,"Closed"))+IF($G20="","",COUNTIFS('StrataSync Data'!$AB:$AB,$G20,'StrataSync Data'!$I:$I,"Fail",'StrataSync Data'!$H:$H,"Yes",'StrataSync Data'!$G:$G,"Closed")),"") ->  | AA20: =IFERROR(SUM(Z20/#REF!),"") ->  | AB20: =IFERROR(VLOOKUP($G20,'Technician Summary'!$G$7:$BK$372,7,FALSE),"") ->  | AC20: =IFERROR(VLOOKUP($G20,'Technician Summary'!$G$7:$BK$372,8,FALSE),"") ->  | AE20: =IFERROR(VLOOKUP($G20,'Technician Summary'!$G$7:$BK$372,34,FALSE),"") ->  | AF20: =IFERROR(VLOOKUP($G20,'Technician Summary'!$G$7:$BK$372,35,FALSE),"") ->  | AH20: =IFERROR(VLOOKUP($G20,'Technician Summary'!$G$7:$BK$372,37,FALSE),"") ->  | AI20: =IFERROR(VLOOKUP($G20,'Technician Summary'!$G$7:$BK$372,38,FALSE),"") ->  | AK20: =IFERROR(VLOOKUP($G20,'Technician Summary'!$G$7:$BK$372,27,FALSE),"") ->  | AL20: =IFERROR(VLOOKUP($G20,'Technician Summary'!$G$7:$BK$372,68,FALSE),"") -> 
B21: Oklahoma City | I21: =IFERROR(VLOOKUP($G21,'Technician Summary'!$G$7:$BB$372,2,FALSE),"") ->  | J21: =IFERROR(VLOOKUP($G21,'Technician Summary'!$G$7:$BN$372,60,FALSE),"") ->  | L21: =IFERROR(VLOOKUP($G21,'Technician Summary'!$G$7:$BK$372,14,FALSE),"") ->  | M21: =IFERROR(VLOOKUP($G21,'Technician Summary'!$G$7:$BK$372,15,FALSE),"") ->  | O21: =IFERROR(VLOOKUP($G21,'Technician Summary'!$G$7:$BK$372,17,FALSE),"") ->  | P21: =IFERROR(VLOOKUP($G21,'Technician Summary'!$G$7:$BK$372,18,FALSE),"") ->  | R21: =IFERROR(VLOOKUP($G21,'Technician Summary'!$G$7:$BK$372,20,FALSE),"") ->  | S21: =IFERROR(VLOOKUP($G21,'Technician Summary'!$G$7:$BK$372,21,FALSE),"") ->  | U21: =IF(G21="","",COUNTIFS('StrataSync Data'!$AB:$AB,$G21,'StrataSync Data'!$G:$G,"Closed")) ->  | V21: =IF($G21="","",COUNTIFS('StrataSync Data'!$AB:$AB,$G21,'StrataSync Data'!$H:$H,"Yes",'StrataSync Data'!$G:$G,"Closed")) ->  | X21: =IFERROR(IF($G$7="","",COUNTIFS('StrataSync Data'!$AB:$AB,$G21,'StrataSync Data'!$I:$I,"Incomplete",'StrataSync Data'!$H:$H,"Yes",'StrataSync Data'!$G:$G,"Closed"))+IF($G21="","",COUNTIFS('StrataSync Data'!$AB:$AB,$G21,'StrataSync Data'!$I:$I,"Fail",'StrataSync Data'!$H:$H,"Yes",'StrataSync Data'!$G:$G,"Closed")),"") ->  | AA21: =IFERROR(SUM(Z21/#REF!),"") ->  | AB21: =IFERROR(VLOOKUP($G21,'Technician Summary'!$G$7:$BK$372,7,FALSE),"") ->  | AC21: =IFERROR(VLOOKUP($G21,'Technician Summary'!$G$7:$BK$372,8,FALSE),"") ->  | AE21: =IFERROR(VLOOKUP($G21,'Technician Summary'!$G$7:$BK$372,34,FALSE),"") ->  | AF21: =IFERROR(VLOOKUP($G21,'Technician Summary'!$G$7:$BK$372,35,FALSE),"") ->  | AH21: =IFERROR(VLOOKUP($G21,'Technician Summary'!$G$7:$BK$372,37,FALSE),"") ->  | AI21: =IFERROR(VLOOKUP($G21,'Technician Summary'!$G$7:$BK$372,38,FALSE),"") ->  | AK21: =IFERROR(VLOOKUP($G21,'Technician Summary'!$G$7:$BK$372,27,FALSE),"") ->  | AL21: =IFERROR(VLOOKUP($G21,'Technician Summary'!$G$7:$BK$372,68,FALSE),"") -> 
B22: Tech Rankings | I22: =IFERROR(VLOOKUP($G22,'Technician Summary'!$G$7:$BB$372,2,FALSE),"") ->  | J22: =IFERROR(VLOOKUP($G22,'Technician Summary'!$G$7:$BN$372,60,FALSE),"") ->  | L22: =IFERROR(VLOOKUP($G22,'Technician Summary'!$G$7:$BK$372,14,FALSE),"") ->  | M22: =IFERROR(VLOOKUP($G22,'Technician Summary'!$G$7:$BK$372,15,FALSE),"") ->  | O22: =IFERROR(VLOOKUP($G22,'Technician Summary'!$G$7:$BK$372,17,FALSE),"") ->  | P22: =IFERROR(VLOOKUP($G22,'Technician Summary'!$G$7:$BK$372,18,FALSE),"") ->  | R22: =IFERROR(VLOOKUP($G22,'Technician Summary'!$G$7:$BK$372,20,FALSE),"") ->  | S22: =IFERROR(VLOOKUP($G22,'Technician Summary'!$G$7:$BK$372,21,FALSE),"") ->  | U22: =IF(G22="","",COUNTIFS('StrataSync Data'!$AB:$AB,$G22,'StrataSync Data'!$G:$G,"Closed")) ->  | V22: =IF($G22="","",COUNTIFS('StrataSync Data'!$AB:$AB,$G22,'StrataSync Data'!$H:$H,"Yes",'StrataSync Data'!$G:$G,"Closed")) ->  | X22: =IFERROR(IF($G$7="","",COUNTIFS('StrataSync Data'!$AB:$AB,$G22,'StrataSync Data'!$I:$I,"Incomplete",'StrataSync Data'!$H:$H,"Yes",'StrataSync Data'!$G:$G,"Closed"))+IF($G22="","",COUNTIFS('StrataSync Data'!$AB:$AB,$G22,'StrataSync Data'!$I:$I,"Fail",'StrataSync Data'!$H:$H,"Yes",'StrataSync Data'!$G:$G,"Closed")),"") ->  | AA22: =IFERROR(SUM(Z22/#REF!),"") ->  | AB22: =IFERROR(VLOOKUP($G22,'Technician Summary'!$G$7:$BK$372,7,FALSE),"") ->  | AC22: =IFERROR(VLOOKUP($G22,'Technician Summary'!$G$7:$BK$372,8,FALSE),"") ->  | AE22: =IFERROR(VLOOKUP($G22,'Technician Summary'!$G$7:$BK$372,34,FALSE),"") ->  | AF22: =IFERROR(VLOOKUP($G22,'Technician Summary'!$G$7:$BK$372,35,FALSE),"") ->  | AH22: =IFERROR(VLOOKUP($G22,'Technician Summary'!$G$7:$BK$372,37,FALSE),"") ->  | AI22: =IFERROR(VLOOKUP($G22,'Technician Summary'!$G$7:$BK$372,38,FALSE),"") ->  | AK22: =IFERROR(VLOOKUP($G22,'Technician Summary'!$G$7:$BK$372,27,FALSE),"") ->  | AL22: =IFERROR(VLOOKUP($G22,'Technician Summary'!$G$7:$BK$372,68,FALSE),"") -> 
I23: =IFERROR(VLOOKUP($G23,'Technician Summary'!$G$7:$BB$372,2,FALSE),"") ->  | J23: =IFERROR(VLOOKUP($G23,'Technician Summary'!$G$7:$BN$372,60,FALSE),"") ->  | L23: =IFERROR(VLOOKUP($G23,'Technician Summary'!$G$7:$BK$372,14,FALSE),"") ->  | M23: =IFERROR(VLOOKUP($G23,'Technician Summary'!$G$7:$BK$372,15,FALSE),"") ->  | O23: =IFERROR(VLOOKUP($G23,'Technician Summary'!$G$7:$BK$372,17,FALSE),"") ->  | P23: =IFERROR(VLOOKUP($G23,'Technician Summary'!$G$7:$BK$372,18,FALSE),"") ->  | R23: =IFERROR(VLOOKUP($G23,'Technician Summary'!$G$7:$BK$372,20,FALSE),"") ->  | S23: =IFERROR(VLOOKUP($G23,'Technician Summary'!$G$7:$BK$372,21,FALSE),"") ->  | U23: =IF(G23="","",COUNTIFS('StrataSync Data'!$AB:$AB,$G23,'StrataSync Data'!$G:$G,"Closed")) ->  | V23: =IF($G23="","",COUNTIFS('StrataSync Data'!$AB:$AB,$G23,'StrataSync Data'!$H:$H,"Yes",'StrataSync Data'!$G:$G,"Closed")) ->  | X23: =IFERROR(IF($G$7="","",COUNTIFS('StrataSync Data'!$AB:$AB,$G23,'StrataSync Data'!$I:$I,"Incomplete",'StrataSync Data'!$H:$H,"Yes",'StrataSync Data'!$G:$G,"Closed"))+IF($G23="","",COUNTIFS('StrataSync Data'!$AB:$AB,$G23,'StrataSync Data'!$I:$I,"Fail",'StrataSync Data'!$H:$H,"Yes",'StrataSync Data'!$G:$G,"Closed")),"") ->  | AA23: =IFERROR(SUM(Z23/#REF!),"") ->  | AB23: =IFERROR(VLOOKUP($G23,'Technician Summary'!$G$7:$BK$372,7,FALSE),"") ->  | AC23: =IFERROR(VLOOKUP($G23,'Technician Summary'!$G$7:$BK$372,8,FALSE),"") ->  | AE23: =IFERROR(VLOOKUP($G23,'Technician Summary'!$G$7:$BK$372,34,FALSE),"") ->  | AF23: =IFERROR(VLOOKUP($G23,'Technician Summary'!$G$7:$BK$372,35,FALSE),"") ->  | AH23: =IFERROR(VLOOKUP($G23,'Technician Summary'!$G$7:$BK$372,37,FALSE),"") ->  | AI23: =IFERROR(VLOOKUP($G23,'Technician Summary'!$G$7:$BK$372,38,FALSE),"") ->  | AK23: =IFERROR(VLOOKUP($G23,'Technician Summary'!$G$7:$BK$372,27,FALSE),"") ->  | AL23: =IFERROR(VLOOKUP($G23,'Technician Summary'!$G$7:$BK$372,68,FALSE),"") -> 
B24: Raw Data | I24: =IFERROR(VLOOKUP($G24,'Technician Summary'!$G$7:$BB$372,2,FALSE),"") ->  | J24: =IFERROR(VLOOKUP($G24,'Technician Summary'!$G$7:$BN$372,60,FALSE),"") ->  | L24: =IFERROR(VLOOKUP($G24,'Technician Summary'!$G$7:$BK$372,14,FALSE),"") ->  | M24: =IFERROR(VLOOKUP($G24,'Technician Summary'!$G$7:$BK$372,15,FALSE),"") ->  | O24: =IFERROR(VLOOKUP($G24,'Technician Summary'!$G$7:$BK$372,17,FALSE),"") ->  | P24: =IFERROR(VLOOKUP($G24,'Technician Summary'!$G$7:$BK$372,18,FALSE),"") ->  | R24: =IFERROR(VLOOKUP($G24,'Technician Summary'!$G$7:$BK$372,20,FALSE),"") ->  | S24: =IFERROR(VLOOKUP($G24,'Technician Summary'!$G$7:$BK$372,21,FALSE),"") ->  | U24: =IF(G24="","",COUNTIFS('StrataSync Data'!$AB:$AB,$G24,'StrataSync Data'!$G:$G,"Closed")) ->  | V24: =IF($G24="","",COUNTIFS('StrataSync Data'!$AB:$AB,$G24,'StrataSync Data'!$H:$H,"Yes",'StrataSync Data'!$G:$G,"Closed")) ->  | X24: =IFERROR(IF($G$7="","",COUNTIFS('StrataSync Data'!$AB:$AB,$G24,'StrataSync Data'!$I:$I,"Incomplete",'StrataSync Data'!$H:$H,"Yes",'StrataSync Data'!$G:$G,"Closed"))+IF($G24="","",COUNTIFS('StrataSync Data'!$AB:$AB,$G24,'StrataSync Data'!$I:$I,"Fail",'StrataSync Data'!$H:$H,"Yes",'StrataSync Data'!$G:$G,"Closed")),"") ->  | AA24: =IFERROR(SUM(Z24/#REF!),"") ->  | AB24: =IFERROR(VLOOKUP($G24,'Technician Summary'!$G$7:$BK$372,7,FALSE),"") ->  | AC24: =IFERROR(VLOOKUP($G24,'Technician Summary'!$G$7:$BK$372,8,FALSE),"") ->  | AE24: =IFERROR(VLOOKUP($G24,'Technician Summary'!$G$7:$BK$372,34,FALSE),"") ->  | AF24: =IFERROR(VLOOKUP($G24,'Technician Summary'!$G$7:$BK$372,35,FALSE),"") ->  | AH24: =IFERROR(VLOOKUP($G24,'Technician Summary'!$G$7:$BK$372,37,FALSE),"") ->  | AI24: =IFERROR(VLOOKUP($G24,'Technician Summary'!$G$7:$BK$372,38,FALSE),"") ->  | AK24: =IFERROR(VLOOKUP($G24,'Technician Summary'!$G$7:$BK$372,27,FALSE),"") ->  | AL24: =IFERROR(VLOOKUP($G24,'Technician Summary'!$G$7:$BK$372,68,FALSE),"") -> 
I25: =IFERROR(VLOOKUP($G25,'Technician Summary'!$G$7:$BB$372,2,FALSE),"") ->  | J25: =IFERROR(VLOOKUP($G25,'Technician Summary'!$G$7:$BN$372,60,FALSE),"") ->  | L25: =IFERROR(VLOOKUP($G25,'Technician Summary'!$G$7:$BK$372,14,FALSE),"") ->  | M25: =IFERROR(VLOOKUP($G25,'Technician Summary'!$G$7:$BK$372,15,FALSE),"") ->  | O25: =IFERROR(VLOOKUP($G25,'Technician Summary'!$G$7:$BK$372,17,FALSE),"") ->  | P25: =IFERROR(VLOOKUP($G25,'Technician Summary'!$G$7:$BK$372,18,FALSE),"") ->  | R25: =IFERROR(VLOOKUP($G25,'Technician Summary'!$G$7:$BK$372,20,FALSE),"") ->  | S25: =IFERROR(VLOOKUP($G25,'Technician Summary'!$G$7:$BK$372,21,FALSE),"") ->  | U25: =IF(G25="","",COUNTIFS('StrataSync Data'!$AB:$AB,$G25,'StrataSync Data'!$G:$G,"Closed")) ->  | V25: =IF($G25="","",COUNTIFS('StrataSync Data'!$AB:$AB,$G25,'StrataSync Data'!$H:$H,"Yes",'StrataSync Data'!$G:$G,"Closed")) ->  | X25: =IFERROR(IF($G$7="","",COUNTIFS('StrataSync Data'!$AB:$AB,$G25,'StrataSync Data'!$I:$I,"Incomplete",'StrataSync Data'!$H:$H,"Yes",'StrataSync Data'!$G:$G,"Closed"))+IF($G25="","",COUNTIFS('StrataSync Data'!$AB:$AB,$G25,'StrataSync Data'!$I:$I,"Fail",'StrataSync Data'!$H:$H,"Yes",'StrataSync Data'!$G:$G,"Closed")),"") ->  | AA25: =IFERROR(SUM(Z25/#REF!),"") ->  | AB25: =IFERROR(VLOOKUP($G25,'Technician Summary'!$G$7:$BK$372,7,FALSE),"") ->  | AC25: =IFERROR(VLOOKUP($G25,'Technician Summary'!$G$7:$BK$372,8,FALSE),"") ->  | AE25: =IFERROR(VLOOKUP($G25,'Technician Summary'!$G$7:$BK$372,34,FALSE),"") ->  | AF25: =IFERROR(VLOOKUP($G25,'Technician Summary'!$G$7:$BK$372,35,FALSE),"") ->  | AH25: =IFERROR(VLOOKUP($G25,'Technician Summary'!$G$7:$BK$372,37,FALSE),"") ->  | AI25: =IFERROR(VLOOKUP($G25,'Technician Summary'!$G$7:$BK$372,38,FALSE),"") ->  | AK25: =IFERROR(VLOOKUP($G25,'Technician Summary'!$G$7:$BK$372,27,FALSE),"") ->  | AL25: =IFERROR(VLOOKUP($G25,'Technician Summary'!$G$7:$BK$372,68,FALSE),"") -> 
I26: =IFERROR(VLOOKUP($G26,'Technician Summary'!$G$7:$BB$372,2,FALSE),"") ->  | J26: =IFERROR(VLOOKUP($G26,'Technician Summary'!$G$7:$BN$372,60,FALSE),"") ->  | L26: =IFERROR(VLOOKUP($G26,'Technician Summary'!$G$7:$BK$372,14,FALSE),"") ->  | M26: =IFERROR(VLOOKUP($G26,'Technician Summary'!$G$7:$BK$372,15,FALSE),"") ->  | O26: =IFERROR(VLOOKUP($G26,'Technician Summary'!$G$7:$BK$372,17,FALSE),"") ->  | P26: =IFERROR(VLOOKUP($G26,'Technician Summary'!$G$7:$BK$372,18,FALSE),"") ->  | R26: =IFERROR(VLOOKUP($G26,'Technician Summary'!$G$7:$BK$372,20,FALSE),"") ->  | S26: =IFERROR(VLOOKUP($G26,'Technician Summary'!$G$7:$BK$372,21,FALSE),"") ->  | U26: =IF(G26="","",COUNTIFS('StrataSync Data'!$AB:$AB,$G26,'StrataSync Data'!$G:$G,"Closed")) ->  | V26: =IF($G26="","",COUNTIFS('StrataSync Data'!$AB:$AB,$G26,'StrataSync Data'!$H:$H,"Yes",'StrataSync Data'!$G:$G,"Closed")) ->  | X26: =IFERROR(IF($G$7="","",COUNTIFS('StrataSync Data'!$AB:$AB,$G26,'StrataSync Data'!$I:$I,"Incomplete",'StrataSync Data'!$H:$H,"Yes",'StrataSync Data'!$G:$G,"Closed"))+IF($G26="","",COUNTIFS('StrataSync Data'!$AB:$AB,$G26,'StrataSync Data'!$I:$I,"Fail",'StrataSync Data'!$H:$H,"Yes",'StrataSync Data'!$G:$G,"Closed")),"") ->  | AA26: =IFERROR(SUM(Z26/#REF!),"") ->  | AB26: =IFERROR(VLOOKUP($G26,'Technician Summary'!$G$7:$BK$372,7,FALSE),"") ->  | AC26: =IFERROR(VLOOKUP($G26,'Technician Summary'!$G$7:$BK$372,8,FALSE),"") ->  | AE26: =IFERROR(VLOOKUP($G26,'Technician Summary'!$G$7:$BK$372,34,FALSE),"") ->  | AF26: =IFERROR(VLOOKUP($G26,'Technician Summary'!$G$7:$BK$372,35,FALSE),"") ->  | AH26: =IFERROR(VLOOKUP($G26,'Technician Summary'!$G$7:$BK$372,37,FALSE),"") ->  | AI26: =IFERROR(VLOOKUP($G26,'Technician Summary'!$G$7:$BK$372,38,FALSE),"") ->  | AK26: =IFERROR(VLOOKUP($G26,'Technician Summary'!$G$7:$BK$372,27,FALSE),"") ->  | AL26: =IFERROR(VLOOKUP($G26,'Technician Summary'!$G$7:$BK$372,68,FALSE),"") -> 
I27: =IFERROR(VLOOKUP($G27,'Technician Summary'!$G$7:$BB$372,2,FALSE),"") ->  | J27: =IFERROR(VLOOKUP($G27,'Technician Summary'!$G$7:$BN$372,60,FALSE),"") ->  | L27: =IFERROR(VLOOKUP($G27,'Technician Summary'!$G$7:$BK$372,14,FALSE),"") ->  | M27: =IFERROR(VLOOKUP($G27,'Technician Summary'!$G$7:$BK$372,15,FALSE),"") ->  | O27: =IFERROR(VLOOKUP($G27,'Technician Summary'!$G$7:$BK$372,17,FALSE),"") ->  | P27: =IFERROR(VLOOKUP($G27,'Technician Summary'!$G$7:$BK$372,18,FALSE),"") ->  | R27: =IFERROR(VLOOKUP($G27,'Technician Summary'!$G$7:$BK$372,20,FALSE),"") ->  | S27: =IFERROR(VLOOKUP($G27,'Technician Summary'!$G$7:$BK$372,21,FALSE),"") ->  | U27: =IF(G27="","",COUNTIFS('StrataSync Data'!$AB:$AB,$G27,'StrataSync Data'!$G:$G,"Closed")) ->  | V27: =IF($G27="","",COUNTIFS('StrataSync Data'!$AB:$AB,$G27,'StrataSync Data'!$H:$H,"Yes",'StrataSync Data'!$G:$G,"Closed")) ->  | X27: =IFERROR(IF($G$7="","",COUNTIFS('StrataSync Data'!$AB:$AB,$G27,'StrataSync Data'!$I:$I,"Incomplete",'StrataSync Data'!$H:$H,"Yes",'StrataSync Data'!$G:$G,"Closed"))+IF($G27="","",COUNTIFS('StrataSync Data'!$AB:$AB,$G27,'StrataSync Data'!$I:$I,"Fail",'StrataSync Data'!$H:$H,"Yes",'StrataSync Data'!$G:$G,"Closed")),"") ->  | AA27: =IFERROR(SUM(Z27/#REF!),"") ->  | AB27: =IFERROR(VLOOKUP($G27,'Technician Summary'!$G$7:$BK$372,7,FALSE),"") ->  | AC27: =IFERROR(VLOOKUP($G27,'Technician Summary'!$G$7:$BK$372,8,FALSE),"") ->  | AE27: =IFERROR(VLOOKUP($G27,'Technician Summary'!$G$7:$BK$372,34,FALSE),"") ->  | AF27: =IFERROR(VLOOKUP($G27,'Technician Summary'!$G$7:$BK$372,35,FALSE),"") ->  | AH27: =IFERROR(VLOOKUP($G27,'Technician Summary'!$G$7:$BK$372,37,FALSE),"") ->  | AI27: =IFERROR(VLOOKUP($G27,'Technician Summary'!$G$7:$BK$372,38,FALSE),"") ->  | AK27: =IFERROR(VLOOKUP($G27,'Technician Summary'!$G$7:$BK$372,27,FALSE),"") ->  | AL27: =IFERROR(VLOOKUP($G27,'Technician Summary'!$G$7:$BK$372,68,FALSE),"") -> 
I28: =IFERROR(VLOOKUP($G28,'Technician Summary'!$G$7:$BB$372,2,FALSE),"") ->  | J28: =IFERROR(VLOOKUP($G28,'Technician Summary'!$G$7:$BN$372,60,FALSE),"") ->  | L28: =IFERROR(VLOOKUP($G28,'Technician Summary'!$G$7:$BK$372,14,FALSE),"") ->  | M28: =IFERROR(VLOOKUP($G28,'Technician Summary'!$G$7:$BK$372,15,FALSE),"") ->  | O28: =IFERROR(VLOOKUP($G28,'Technician Summary'!$G$7:$BK$372,17,FALSE),"") ->  | P28: =IFERROR(VLOOKUP($G28,'Technician Summary'!$G$7:$BK$372,18,FALSE),"") ->  | R28: =IFERROR(VLOOKUP($G28,'Technician Summary'!$G$7:$BK$372,20,FALSE),"") ->  | S28: =IFERROR(VLOOKUP($G28,'Technician Summary'!$G$7:$BK$372,21,FALSE),"") ->  | U28: =IF(G28="","",COUNTIFS('StrataSync Data'!$AB:$AB,$G28,'StrataSync Data'!$G:$G,"Closed")) ->  | V28: =IF($G28="","",COUNTIFS('StrataSync Data'!$AB:$AB,$G28,'StrataSync Data'!$H:$H,"Yes",'StrataSync Data'!$G:$G,"Closed")) ->  | X28: =IFERROR(IF($G$7="","",COUNTIFS('StrataSync Data'!$AB:$AB,$G28,'StrataSync Data'!$I:$I,"Incomplete",'StrataSync Data'!$H:$H,"Yes",'StrataSync Data'!$G:$G,"Closed"))+IF($G28="","",COUNTIFS('StrataSync Data'!$AB:$AB,$G28,'StrataSync Data'!$I:$I,"Fail",'StrataSync Data'!$H:$H,"Yes",'StrataSync Data'!$G:$G,"Closed")),"") ->  | AA28: =IFERROR(SUM(Z28/#REF!),"") ->  | AB28: =IFERROR(VLOOKUP($G28,'Technician Summary'!$G$7:$BK$372,7,FALSE),"") ->  | AC28: =IFERROR(VLOOKUP($G28,'Technician Summary'!$G$7:$BK$372,8,FALSE),"") ->  | AE28: =IFERROR(VLOOKUP($G28,'Technician Summary'!$G$7:$BK$372,34,FALSE),"") ->  | AF28: =IFERROR(VLOOKUP($G28,'Technician Summary'!$G$7:$BK$372,35,FALSE),"") ->  | AH28: =IFERROR(VLOOKUP($G28,'Technician Summary'!$G$7:$BK$372,37,FALSE),"") ->  | AI28: =IFERROR(VLOOKUP($G28,'Technician Summary'!$G$7:$BK$372,38,FALSE),"") ->  | AK28: =IFERROR(VLOOKUP($G28,'Technician Summary'!$G$7:$BK$372,27,FALSE),"") ->  | AL28: =IFERROR(VLOOKUP($G28,'Technician Summary'!$G$7:$BK$372,68,FALSE),"") -> 
I29: =IFERROR(VLOOKUP($G29,'Technician Summary'!$G$7:$BB$372,2,FALSE),"") ->  | J29: =IFERROR(VLOOKUP($G29,'Technician Summary'!$G$7:$BN$372,60,FALSE),"") ->  | L29: =IFERROR(VLOOKUP($G29,'Technician Summary'!$G$7:$BK$372,14,FALSE),"") ->  | M29: =IFERROR(VLOOKUP($G29,'Technician Summary'!$G$7:$BK$372,15,FALSE),"") ->  | O29: =IFERROR(VLOOKUP($G29,'Technician Summary'!$G$7:$BK$372,17,FALSE),"") ->  | P29: =IFERROR(VLOOKUP($G29,'Technician Summary'!$G$7:$BK$372,18,FALSE),"") ->  | R29: =IFERROR(VLOOKUP($G29,'Technician Summary'!$G$7:$BK$372,20,FALSE),"") ->  | S29: =IFERROR(VLOOKUP($G29,'Technician Summary'!$G$7:$BK$372,21,FALSE),"") ->  | U29: =IF(G29="","",COUNTIFS('StrataSync Data'!$AB:$AB,$G29,'StrataSync Data'!$G:$G,"Closed")) ->  | V29: =IF($G29="","",COUNTIFS('StrataSync Data'!$AB:$AB,$G29,'StrataSync Data'!$H:$H,"Yes",'StrataSync Data'!$G:$G,"Closed")) ->  | X29: =IFERROR(IF($G$7="","",COUNTIFS('StrataSync Data'!$AB:$AB,$G29,'StrataSync Data'!$I:$I,"Incomplete",'StrataSync Data'!$H:$H,"Yes",'StrataSync Data'!$G:$G,"Closed"))+IF($G29="","",COUNTIFS('StrataSync Data'!$AB:$AB,$G29,'StrataSync Data'!$I:$I,"Fail",'StrataSync Data'!$H:$H,"Yes",'StrataSync Data'!$G:$G,"Closed")),"") ->  | AA29: =IFERROR(SUM(Z29/#REF!),"") ->  | AB29: =IFERROR(VLOOKUP($G29,'Technician Summary'!$G$7:$BK$372,7,FALSE),"") ->  | AC29: =IFERROR(VLOOKUP($G29,'Technician Summary'!$G$7:$BK$372,8,FALSE),"") ->  | AE29: =IFERROR(VLOOKUP($G29,'Technician Summary'!$G$7:$BK$372,34,FALSE),"") ->  | AF29: =IFERROR(VLOOKUP($G29,'Technician Summary'!$G$7:$BK$372,35,FALSE),"") ->  | AH29: =IFERROR(VLOOKUP($G29,'Technician Summary'!$G$7:$BK$372,37,FALSE),"") ->  | AI29: =IFERROR(VLOOKUP($G29,'Technician Summary'!$G$7:$BK$372,38,FALSE),"") ->  | AK29: =IFERROR(VLOOKUP($G29,'Technician Summary'!$G$7:$BK$372,27,FALSE),"") ->  | AL29: =IFERROR(VLOOKUP($G29,'Technician Summary'!$G$7:$BK$372,68,FALSE),"") -> 
I30: =IFERROR(VLOOKUP($G30,'Technician Summary'!$G$7:$BB$372,2,FALSE),"") ->  | J30: =IFERROR(VLOOKUP($G30,'Technician Summary'!$G$7:$BN$372,60,FALSE),"") ->  | L30: =IFERROR(VLOOKUP($G30,'Technician Summary'!$G$7:$BK$372,14,FALSE),"") ->  | M30: =IFERROR(VLOOKUP($G30,'Technician Summary'!$G$7:$BK$372,15,FALSE),"") ->  | O30: =IFERROR(VLOOKUP($G30,'Technician Summary'!$G$7:$BK$372,17,FALSE),"") ->  | P30: =IFERROR(VLOOKUP($G30,'Technician Summary'!$G$7:$BK$372,18,FALSE),"") ->  | R30: =IFERROR(VLOOKUP($G30,'Technician Summary'!$G$7:$BK$372,20,FALSE),"") ->  | S30: =IFERROR(VLOOKUP($G30,'Technician Summary'!$G$7:$BK$372,21,FALSE),"") ->  | U30: =IF(G30="","",COUNTIFS('StrataSync Data'!$AB:$AB,$G30,'StrataSync Data'!$G:$G,"Closed")) ->  | V30: =IF($G30="","",COUNTIFS('StrataSync Data'!$AB:$AB,$G30,'StrataSync Data'!$H:$H,"Yes",'StrataSync Data'!$G:$G,"Closed")) ->  | X30: =IFERROR(IF($G$7="","",COUNTIFS('StrataSync Data'!$AB:$AB,$G30,'StrataSync Data'!$I:$I,"Incomplete",'StrataSync Data'!$H:$H,"Yes",'StrataSync Data'!$G:$G,"Closed"))+IF($G30="","",COUNTIFS('StrataSync Data'!$AB:$AB,$G30,'StrataSync Data'!$I:$I,"Fail",'StrataSync Data'!$H:$H,"Yes",'StrataSync Data'!$G:$G,"Closed")),"") ->  | AA30: =IFERROR(SUM(Z30/#REF!),"") ->  | AB30: =IFERROR(VLOOKUP($G30,'Technician Summary'!$G$7:$BK$372,7,FALSE),"") ->  | AC30: =IFERROR(VLOOKUP($G30,'Technician Summary'!$G$7:$BK$372,8,FALSE),"") ->  | AE30: =IFERROR(VLOOKUP($G30,'Technician Summary'!$G$7:$BK$372,34,FALSE),"") ->  | AF30: =IFERROR(VLOOKUP($G30,'Technician Summary'!$G$7:$BK$372,35,FALSE),"") ->  | AH30: =IFERROR(VLOOKUP($G30,'Technician Summary'!$G$7:$BK$372,37,FALSE),"") ->  | AI30: =IFERROR(VLOOKUP($G30,'Technician Summary'!$G$7:$BK$372,38,FALSE),"") ->  | AK30: =IFERROR(VLOOKUP($G30,'Technician Summary'!$G$7:$BK$372,27,FALSE),"") ->  | AL30: =IFERROR(VLOOKUP($G30,'Technician Summary'!$G$7:$BK$372,68,FALSE),"") -> 
I31: =IFERROR(VLOOKUP($G31,'Technician Summary'!$G$7:$BB$372,2,FALSE),"") ->  | J31: =IFERROR(VLOOKUP($G31,'Technician Summary'!$G$7:$BN$372,60,FALSE),"") ->  | L31: =IFERROR(VLOOKUP($G31,'Technician Summary'!$G$7:$BK$372,14,FALSE),"") ->  | M31: =IFERROR(VLOOKUP($G31,'Technician Summary'!$G$7:$BK$372,15,FALSE),"") ->  | O31: =IFERROR(VLOOKUP($G31,'Technician Summary'!$G$7:$BK$372,17,FALSE),"") ->  | P31: =IFERROR(VLOOKUP($G31,'Technician Summary'!$G$7:$BK$372,18,FALSE),"") ->  | R31: =IFERROR(VLOOKUP($G31,'Technician Summary'!$G$7:$BK$372,20,FALSE),"") ->  | S31: =IFERROR(VLOOKUP($G31,'Technician Summary'!$G$7:$BK$372,21,FALSE),"") ->  | U31: =IF(G31="","",COUNTIFS('StrataSync Data'!$AB:$AB,$G31,'StrataSync Data'!$G:$G,"Closed")) ->  | V31: =IF($G31="","",COUNTIFS('StrataSync Data'!$AB:$AB,$G31,'StrataSync Data'!$H:$H,"Yes",'StrataSync Data'!$G:$G,"Closed")) ->  | X31: =IFERROR(IF($G$7="","",COUNTIFS('StrataSync Data'!$AB:$AB,$G31,'StrataSync Data'!$I:$I,"Incomplete",'StrataSync Data'!$H:$H,"Yes",'StrataSync Data'!$G:$G,"Closed"))+IF($G31="","",COUNTIFS('StrataSync Data'!$AB:$AB,$G31,'StrataSync Data'!$I:$I,"Fail",'StrataSync Data'!$H:$H,"Yes",'StrataSync Data'!$G:$G,"Closed")),"") ->  | AA31: =IFERROR(SUM(Z31/#REF!),"") ->  | AB31: =IFERROR(VLOOKUP($G31,'Technician Summary'!$G$7:$BK$372,7,FALSE),"") ->  | AC31: =IFERROR(VLOOKUP($G31,'Technician Summary'!$G$7:$BK$372,8,FALSE),"") ->  | AE31: =IFERROR(VLOOKUP($G31,'Technician Summary'!$G$7:$BK$372,34,FALSE),"") ->  | AF31: =IFERROR(VLOOKUP($G31,'Technician Summary'!$G$7:$BK$372,35,FALSE),"") ->  | AH31: =IFERROR(VLOOKUP($G31,'Technician Summary'!$G$7:$BK$372,37,FALSE),"") ->  | AI31: =IFERROR(VLOOKUP($G31,'Technician Summary'!$G$7:$BK$372,38,FALSE),"") ->  | AK31: =IFERROR(VLOOKUP($G31,'Technician Summary'!$G$7:$BK$372,27,FALSE),"") ->  | AL31: =IFERROR(VLOOKUP($G31,'Technician Summary'!$G$7:$BK$372,68,FALSE),"") -> 
I32: # NPS WO's | J32: # Failures | K32: NPS | L32: Total Repeatable WO | M32: Total Repeats | N32: Repeats | O32: Total Repeatable WO | P32: Repeat IN | Q32: IN Repeat % | R32: Total Repeatable WO | S32: Repeat TC | T32: Repeat TC % | U32: Jobs | V32: Test Run | W32: SQT Compliance | X32: Test Fail | Y32: SQT Pass | Z32: Test Passed | AA32: Ingress Test Pass | AB32: FCR WO | AC32: FCR Failures | AD32: FCR | AE32: Jobs | AF32: Jobs Late | AG32: OTA | AH32: Jobs | AI32: Completed Jobs | AJ32: Completion % | AK32: Total QC | AL32: QC Failure | AM32: SMS tNPS
I33: =SUMIF(I7:I31,">0") -> 9 | J33: =SUMIF(J7:J31,">0") -> 3
K34: =IFERROR(1-(J33/I33),"") -> 0.6667 | L34: =SUM(L7:L31) -> 248 | M34: =SUM(M7:M31) -> 7 | N34: =IFERROR(SUM(M34/L34),"") -> 0.0282 | O34: =SUM(O7:O31) -> 130 | P34: =SUM(P7:P31) -> 5 | Q34: =IFERROR(SUM(P34/O34),"") -> 0.0385 | R34: =SUM(R7:R31) -> 118 | S34: =SUM(S7:S31) -> 2 | T34: =IFERROR(SUM(S34/R34),"") -> 0.0169 | U34: =SUMIF(U7:U31,">0") -> 223 | V34: =SUMIF(V7:V31,">0") -> 215 | W34: =IFERROR(SUM(V34/U34),"") -> 0.9641 | X34: =SUM(X7:X31) -> 14 | Y34: =IFERROR(SUM(1-X34/V34),"") -> 0.9349 | Z34: =SUM(Z7:Z31) -> 0 | AA34: =IFERROR(SUM(Z34/#REF!),"") ->  | AB34: =SUM(AB7:AB31) -> 94 | AC34: =SUM(AC7:AC31) -> 2 | AD34: =IFERROR(1-AC34/AB34,"") -> 0.9787 | AE34: =SUM(AE7:AE31) -> 80 | AF34: =SUM(AF7:AF31) -> 10 | AG34: =IFERROR(1-AF34/AE34,"") -> 0.875 | AH34: =SUM(AH7:AH31) -> 308 | AI34: =SUM(AI7:AI31) -> 247 | AJ34: =IFERROR(AI34/AH34,"") -> 0.8019 | AK34: =SUM(AK7:AK31) -> 0 | AL34: =SUM(AL7:AL31) -> 0 | AM34: =IFERROR(1-AL34/AK34,"") -> 

Sheet Baton Rouge
F3: Aisha Alexander
F5: Tech Name | G5: Tech ID | H5: Score | I5: # NPS WO's | J5: # Failures | K5: NPS | L5: Total Repeatable WO | M5: Total Repeats | N5: Repeats | O5: Total Repeatable WO | P5: Repeat IN | Q5: IN Repeat % | R5: Total Repeatable WO | S5: Repeat TC | T5: Repeat TC % | U5: Jobs | V5: Test Run | W5: SQT Compliance | X5: Test Fail | Y5: SQT Pass | Z5: Test Passed | AA5: Ingress Test Pass | AB5: FCR WO | AC5: FCR Failures | AD5: FCR | AE5: Jobs | AF5: Jobs Late | AG5: OTA | AH5: Jobs | AI5: Completed Jobs | AJ5: Completion % | AK5: Total QC | AL5: QC Failure | AM5: SMS tNPS
F7: Lamar Poydras | G7: 42270 | H7: =IF(W7="","",IFERROR(IF(K7>=70%,2.5,0)+IF(N7<=4%,2.5,0)+IF(W7>=90%,2.5,0)+IF(AG7>=96%,2.5,0),"")) ->  | I7: =IFERROR(VLOOKUP($G7,'Technician Summary'!$G$7:$BB$372,2,FALSE),"") -> 1 | J7: =IFERROR(VLOOKUP($G7,'Technician Summary'!$G$7:$BN$372,60,FALSE),"") -> 1 | K7: =IFERROR(1-(J7/I7),"") -> 0 | L7: =IFERROR(VLOOKUP($G7,'Technician Summary'!$G$7:$BK$372,14,FALSE),"") -> 56 | M7: =IFERROR(VLOOKUP($G7,'Technician Summary'!$G$7:$BK$372,15,FALSE),"") -> 2 | N7: =IFERROR(SUM(M7/L7),"") -> 0.0357 | O7: =IFERROR(VLOOKUP($G7,'Technician Summary'!$G$7:$BK$372,17,FALSE),"") -> 29 | P7: =IFERROR(VLOOKUP($G7,'Technician Summary'!$G$7:$BK$372,18,FALSE),"") -> 2 | Q7: =IFERROR(SUM(P7/O7),"") -> 0.069 | R7: =IFERROR(VLOOKUP($G7,'Technician Summary'!$G$7:$BK$372,20,FALSE),"") -> 27 | S7: =IFERROR(VLOOKUP($G7,'Technician Summary'!$G$7:$BK$372,21,FALSE),"") -> 0 | T7: =IFERROR(SUM(S7/R7),"") -> 0 | U7: =IF(G7="","",COUNTIFS('StrataSync Data'!$AB:$AB,$G7,'StrataSync Data'!$G:$G,"Closed")) -> 0 | V7: =IF($G7="","",COUNTIFS('StrataSync Data'!$AB:$AB,$G7,'StrataSync Data'!$H:$H,"Yes",'StrataSync Data'!$G:$G,"Closed")) -> 0 | W7: =IFERROR(SUM(V7/U7),"") ->  | X7: =IFERROR(IF($G$7="","",COUNTIFS('StrataSync Data'!$AB:$AB,$G7,'StrataSync Data'!$I:$I,"Incomplete",'StrataSync Data'!$H:$H,"Yes",'StrataSync Data'!$G:$G,"Closed"))+IF($G7="","",COUNTIFS('StrataSync Data'!$AB:$AB,$G7,'StrataSync Data'!$I:$I,"Fail",'StrataSync Data'!$H:$H,"Yes",'StrataSync Data'!$G:$G,"Closed")),"") -> 0 | Y7: =IFERROR(SUM(1-X7/V7),"") ->  | AA7: =IFERROR(SUM(Z7/#REF!),"") ->  | AB7: =IFERROR(VLOOKUP($G7,'Technician Summary'!$G$7:$BK$372,7,FALSE),"") -> 29 | AC7: =IFERROR(VLOOKUP($G7,'Technician Summary'!$G$7:$BK$372,8,FALSE),"") -> 1 | AD7: =IFERROR(1-AC7/AB7,"") -> 0.9655 | AE7: =IFERROR(VLOOKUP($G7,'Technician Summary'!$G$7:$BK$372,34,FALSE),"") -> 19 | AF7: =IFERROR(VLOOKUP($G7,'Technician Summary'!$G$7:$BK$372,35,FALSE),"") -> 1 | AG7: =IFERROR(1-AF7/AE7,"") -> 0.9474 | AH7: =IFERROR(VLOOKUP($G7,'Technician Summary'!$G$7:$BK$372,37,FALSE),"") -> 63 | AI7: =IFERROR(VLOOKUP($G7,'Technician Summary'!$G$7:$BK$372,38,FALSE),"") -> 56 | AJ7: =IFERROR(AI7/AH7,"") -> 0.8889 | AK7: =IFERROR(VLOOKUP($G7,'Technician Summary'!$G$7:$BK$372,27,FALSE),"") -> 0 | AL7: =IFERROR(VLOOKUP($G7,'Technician Summary'!$G$7:$BK$372,68,FALSE),"") ->  | AM7: =IFERROR(1-AL7/AK7,"") -> 
F8: Julian William | G8: 68680 | H8: =IF(W8="","",IFERROR(IF(K8>=70%,2.5,0)+IF(N8<=4%,2.5,0)+IF(W8>=90%,2.5,0)+IF(AG8>=96%,2.5,0),"")) ->  | I8: =IFERROR(VLOOKUP($G8,'Technician Summary'!$G$7:$BB$372,2,FALSE),"") ->  | J8: =IFERROR(VLOOKUP($G8,'Technician Summary'!$G$7:$BN$372,60,FALSE),"") ->  | K8: =IFERROR(1-(J8/I8),"") ->  | L8: =IFERROR(VLOOKUP($G8,'Technician Summary'!$G$7:$BK$372,14,FALSE),"") ->  | M8: =IFERROR(VLOOKUP($G8,'Technician Summary'!$G$7:$BK$372,15,FALSE),"") ->  | N8: =IFERROR(SUM(M8/L8),"") ->  | O8: =IFERROR(VLOOKUP($G8,'Technician Summary'!$G$7:$BK$372,17,FALSE),"") ->  | P8: =IFERROR(VLOOKUP($G8,'Technician Summary'!$G$7:$BK$372,18,FALSE),"") ->  | Q8: =IFERROR(SUM(P8/O8),"") ->  | R8: =IFERROR(VLOOKUP($G8,'Technician Summary'!$G$7:$BK$372,20,FALSE),"") ->  | S8: =IFERROR(VLOOKUP($G8,'Technician Summary'!$G$7:$BK$372,21,FALSE),"") ->  | T8: =IFERROR(SUM(S8/R8),"") ->  | U8: =IF(G8="","",COUNTIFS('StrataSync Data'!$AB:$AB,$G8,'StrataSync Data'!$G:$G,"Closed")) -> 0 | V8: =IF($G8="","",COUNTIFS('StrataSync Data'!$AB:$AB,$G8,'StrataSync Data'!$H:$H,"Yes",'StrataSync Data'!$G:$G,"Closed")) -> 0 | W8: =IFERROR(SUM(V8/U8),"") ->  | X8: =IFERROR(IF($G$7="","",COUNTIFS('StrataSync Data'!$AB:$AB,$G8,'StrataSync Data'!$I:$I,"Incomplete",'StrataSync Data'!$H:$H,"Yes",'StrataSync Data'!$G:$G,"Closed"))+IF($G8="","",COUNTIFS('StrataSync Data'!$AB:$AB,$G8,'StrataSync Data'!$I:$I,"Fail",'StrataSync Data'!$H:$H,"Yes",'StrataSync Data'!$G:$G,"Closed")),"") -> 0 | Y8: =IFERROR(SUM(1-X8/V8),"") ->  | AA8: =IFERROR(SUM(Z8/#REF!),"") ->  | AB8: =IFERROR(VLOOKUP($G8,'Technician Summary'!$G$7:$BK$372,7,FALSE),"") ->  | AC8: =IFERROR(VLOOKUP($G8,'Technician Summary'!$G$7:$BK$372,8,FALSE),"") ->  | AD8: =IFERROR(1-AC8/AB8,"") ->  | AE8: =IFERROR(VLOOKUP($G8,'Technician Summary'!$G$7:$BK$372,34,FALSE),"") ->  | AF8: =IFERROR(VLOOKUP($G8,'Technician Summary'!$G$7:$BK$372,35,FALSE),"") ->  | AG8: =IFERROR(1-AF8/AE8,"") ->  | AH8: =IFERROR(VLOOKUP($G8,'Technician Summary'!$G$7:$BK$372,37,FALSE),"") ->  | AI8: =IFERROR(VLOOKUP($G8,'Technician Summary'!$G$7:$BK$372,38,FALSE),"") ->  | AJ8: =IFERROR(AI8/AH8,"") ->  | AK8: =IFERROR(VLOOKUP($G8,'Technician Summary'!$G$7:$BK$372,27,FALSE),"") ->  | AL8: =IFERROR(VLOOKUP($G8,'Technician Summary'!$G$7:$BK$372,68,FALSE),"") ->  | AM8: =IFERROR(1-AL8/AK8,"") -> 
F9: Carlos Tejeda | G9: 42764 | I9: =IFERROR(VLOOKUP($G9,'Technician Summary'!$G$7:$BB$372,2,FALSE),"") -> 4 | J9: =IFERROR(VLOOKUP($G9,'Technician Summary'!$G$7:$BN$372,60,FALSE),"") -> 0 | K9: 1 | L9: =IFERROR(VLOOKUP($G9,'Technician Summary'!$G$7:$BK$372,14,FALSE),"") -> 98 | M9: =IFERROR(VLOOKUP($G9,'Technician Summary'!$G$7:$BK$372,15,FALSE),"") -> 4 | N9: 0.0408 | O9: =IFERROR(VLOOKUP($G9,'Technician Summary'!$G$7:$BK$372,17,FALSE),"") -> 42 | P9: =IFERROR(VLOOKUP($G9,'Technician Summary'!$G$7:$BK$372,18,FALSE),"") -> 3 | Q9: 0.0714 | R9: =IFERROR(VLOOKUP($G9,'Technician Summary'!$G$7:$BK$372,20,FALSE),"") -> 56 | S9: =IFERROR(VLOOKUP($G9,'Technician Summary'!$G$7:$BK$372,21,FALSE),"") -> 1 | T9: 0.0179 | U9: =IF(G9="","",COUNTIFS('StrataSync Data'!$AB:$AB,$G9,'StrataSync Data'!$G:$G,"Closed")) -> 0 | V9: =IF($G9="","",COUNTIFS('StrataSync Data'!$AB:$AB,$G9,'StrataSync Data'!$H:$H,"Yes",'StrataSync Data'!$G:$G,"Closed")) -> 0 | X9: =IFERROR(IF($G$7="","",COUNTIFS('StrataSync Data'!$AB:$AB,$G9,'StrataSync Data'!$I:$I,"Incomplete",'StrataSync Data'!$H:$H,"Yes",'StrataSync Data'!$G:$G,"Closed"))+IF($G9="","",COUNTIFS('StrataSync Data'!$AB:$AB,$G9,'StrataSync Data'!$I:$I,"Fail",'StrataSync Data'!$H:$H,"Yes",'StrataSync Data'!$G:$G,"Closed")),"") -> 0 | AA9: =IFERROR(SUM(Z9/#REF!),"") ->  | AB9: =IFERROR(VLOOKUP($G9,'Technician Summary'!$G$7:$BK$372,7,FALSE),"") -> 40 | AC9: =IFERROR(VLOOKUP($G9,'Technician Summary'!$G$7:$BK$372,8,FALSE),"") -> 2 | AD9: 0.95 | AE9: =IFERROR(VLOOKUP($G9,'Technician Summary'!$G$7:$BK$372,34,FALSE),"") -> 28 | AF9: =IFERROR(VLOOKUP($G9,'Technician Summary'!$G$7:$BK$372,35,FALSE),"") -> 0 | AG9: 1 | AH9: =IFERROR(VLOOKUP($G9,'Technician Summary'!$G$7:$BK$372,37,FALSE),"") -> 109 | AI9: =IFERROR(VLOOKUP($G9,'Technician Summary'!$G$7:$BK$372,38,FALSE),"") -> 98 | AJ9: 0.8991 | AK9: =IFERROR(VLOOKUP($G9,'Technician Summary'!$G$7:$BK$372,27,FALSE),"") -> 0 | AL9: =IFERROR(VLOOKUP($G9,'Technician Summary'!$G$7:$BK$372,68,FALSE),"") -> 
F10: Yan Carlos Guerrro | G10: 43084 | I10: =IFERROR(VLOOKUP($G10,'Technician Summary'!$G$7:$BB$372,2,FALSE),"") ->  | J10: =IFERROR(VLOOKUP($G10,'Technician Summary'!$G$7:$BN$372,60,FALSE),"") ->  | L10: =IFERROR(VLOOKUP($G10,'Technician Summary'!$G$7:$BK$372,14,FALSE),"") ->  | M10: =IFERROR(VLOOKUP($G10,'Technician Summary'!$G$7:$BK$372,15,FALSE),"") ->  | O10: =IFERROR(VLOOKUP($G10,'Technician Summary'!$G$7:$BK$372,17,FALSE),"") ->  | P10: =IFERROR(VLOOKUP($G10,'Technician Summary'!$G$7:$BK$372,18,FALSE),"") ->  | R10: =IFERROR(VLOOKUP($G10,'Technician Summary'!$G$7:$BK$372,20,FALSE),"") ->  | S10: =IFERROR(VLOOKUP($G10,'Technician Summary'!$G$7:$BK$372,21,FALSE),"") ->  | U10: =IF(G10="","",COUNTIFS('StrataSync Data'!$AB:$AB,$G10,'StrataSync Data'!$G:$G,"Closed")) -> 0 | V10: =IF($G10="","",COUNTIFS('StrataSync Data'!$AB:$AB,$G10,'StrataSync Data'!$H:$H,"Yes",'StrataSync Data'!$G:$G,"Closed")) -> 0 | X10: =IFERROR(IF($G$7="","",COUNTIFS('StrataSync Data'!$AB:$AB,$G10,'StrataSync Data'!$I:$I,"Incomplete",'StrataSync Data'!$H:$H,"Yes",'StrataSync Data'!$G:$G,"Closed"))+IF($G10="","",COUNTIFS('StrataSync Data'!$AB:$AB,$G10,'StrataSync Data'!$I:$I,"Fail",'StrataSync Data'!$H:$H,"Yes",'StrataSync Data'!$G:$G,"Closed")),"") -> 0 | AA10: =IFERROR(SUM(Z10/#REF!),"") ->  | AB10: =IFERROR(VLOOKUP($G10,'Technician Summary'!$G$7:$BK$372,7,FALSE),"") ->  | AC10: =IFERROR(VLOOKUP($G10,'Technician Summary'!$G$7:$BK$372,8,FALSE),"") ->  | AE10: =IFERROR(VLOOKUP($G10,'Technician Summary'!$G$7:$BK$372,34,FALSE),"") ->  | AF10: =IFERROR(VLOOKUP($G10,'Technician Summary'!$G$7:$BK$372,35,FALSE),"") ->  | AH10: =IFERROR(VLOOKUP($G10,'Technician Summary'!$G$7:$BK$372,37,FALSE),"") ->  | AI10: =IFERROR(VLOOKUP($G10,'Technician Summary'!$G$7:$BK$372,38,FALSE),"") ->  | AK10: =IFERROR(VLOOKUP($G10,'Technician Summary'!$G$7:$BK$372,27,FALSE),"") ->  | AL10: =IFERROR(VLOOKUP($G10,'Technician Summary'!$G$7:$BK$372,68,FALSE),"") -> 
B11: Home | F11: Daeshaun Montgomery | G11: 80929 | I11: =IFERROR(VLOOKUP($G11,'Technician Summary'!$G$7:$BB$372,2,FALSE),"") ->  | J11: =IFERROR(VLOOKUP($G11,'Technician Summary'!$G$7:$BN$372,60,FALSE),"") ->  | L11: =IFERROR(VLOOKUP($G11,'Technician Summary'!$G$7:$BK$372,14,FALSE),"") ->  | M11: =IFERROR(VLOOKUP($G11,'Technician Summary'!$G$7:$BK$372,15,FALSE),"") ->  | O11: =IFERROR(VLOOKUP($G11,'Technician Summary'!$G$7:$BK$372,17,FALSE),"") ->  | P11: =IFERROR(VLOOKUP($G11,'Technician Summary'!$G$7:$BK$372,18,FALSE),"") ->  | R11: =IFERROR(VLOOKUP($G11,'Technician Summary'!$G$7:$BK$372,20,FALSE),"") ->  | S11: =IFERROR(VLOOKUP($G11,'Technician Summary'!$G$7:$BK$372,21,FALSE),"") ->  | U11: =IF(G11="","",COUNTIFS('StrataSync Data'!$AB:$AB,$G11,'StrataSync Data'!$G:$G,"Closed")) -> 0 | V11: =IF($G11="","",COUNTIFS('StrataSync Data'!$AB:$AB,$G11,'StrataSync Data'!$H:$H,"Yes",'StrataSync Data'!$G:$G,"Closed")) -> 0 | X11: =IFERROR(IF($G$7="","",COUNTIFS('StrataSync Data'!$AB:$AB,$G11,'StrataSync Data'!$I:$I,"Incomplete",'StrataSync Data'!$H:$H,"Yes",'StrataSync Data'!$G:$G,"Closed"))+IF($G11="","",COUNTIFS('StrataSync Data'!$AB:$AB,$G11,'StrataSync Data'!$I:$I,"Fail",'StrataSync Data'!$H:$H,"Yes",'StrataSync Data'!$G:$G,"Closed")),"") -> 0 | AA11: =IFERROR(SUM(Z11/#REF!),"") ->  | AB11: =IFERROR(VLOOKUP($G11,'Technician Summary'!$G$7:$BK$372,7,FALSE),"") ->  | AC11: =IFERROR(VLOOKUP($G11,'Technician Summary'!$G$7:$BK$372,8,FALSE),"") ->  | AE11: =IFERROR(VLOOKUP($G11,'Technician Summary'!$G$7:$BK$372,34,FALSE),"") ->  | AF11: =IFERROR(VLOOKUP($G11,'Technician Summary'!$G$7:$BK$372,35,FALSE),"") ->  | AH11: =IFERROR(VLOOKUP($G11,'Technician Summary'!$G$7:$BK$372,37,FALSE),"") ->  | AI11: =IFERROR(VLOOKUP($G11,'Technician Summary'!$G$7:$BK$372,38,FALSE),"") ->  | AK11: =IFERROR(VLOOKUP($G11,'Technician Summary'!$G$7:$BK$372,27,FALSE),"") ->  | AL11: =IFERROR(VLOOKUP($G11,'Technician Summary'!$G$7:$BK$372,68,FALSE),"") -> 
F12: Jose Alverez Arguellas | G12: 61277 | I12: =IFERROR(VLOOKUP($G12,'Technician Summary'!$G$7:$BB$372,2,FALSE),"") ->  | J12: =IFERROR(VLOOKUP($G12,'Technician Summary'!$G$7:$BN$372,60,FALSE),"") ->  | L12: =IFERROR(VLOOKUP($G12,'Technician Summary'!$G$7:$BK$372,14,FALSE),"") ->  | M12: =IFERROR(VLOOKUP($G12,'Technician Summary'!$G$7:$BK$372,15,FALSE),"") ->  | O12: =IFERROR(VLOOKUP($G12,'Technician Summary'!$G$7:$BK$372,17,FALSE),"") ->  | P12: =IFERROR(VLOOKUP($G12,'Technician Summary'!$G$7:$BK$372,18,FALSE),"") ->  | R12: =IFERROR(VLOOKUP($G12,'Technician Summary'!$G$7:$BK$372,20,FALSE),"") ->  | S12: =IFERROR(VLOOKUP($G12,'Technician Summary'!$G$7:$BK$372,21,FALSE),"") ->  | U12: =IF(G12="","",COUNTIFS('StrataSync Data'!$AB:$AB,$G12,'StrataSync Data'!$G:$G,"Closed")) -> 0 | V12: =IF($G12="","",COUNTIFS('StrataSync Data'!$AB:$AB,$G12,'StrataSync Data'!$H:$H,"Yes",'StrataSync Data'!$G:$G,"Closed")) -> 0 | X12: =IFERROR(IF($G$7="","",COUNTIFS('StrataSync Data'!$AB:$AB,$G12,'StrataSync Data'!$I:$I,"Incomplete",'StrataSync Data'!$H:$H,"Yes",'StrataSync Data'!$G:$G,"Closed"))+IF($G12="","",COUNTIFS('StrataSync Data'!$AB:$AB,$G12,'StrataSync Data'!$I:$I,"Fail",'StrataSync Data'!$H:$H,"Yes",'StrataSync Data'!$G:$G,"Closed")),"") -> 0 | AA12: =IFERROR(SUM(Z12/#REF!),"") ->  | AB12: =IFERROR(VLOOKUP($G12,'Technician Summary'!$G$7:$BK$372,7,FALSE),"") ->  | AC12: =IFERROR(VLOOKUP($G12,'Technician Summary'!$G$7:$BK$372,8,FALSE),"") ->  | AE12: =IFERROR(VLOOKUP($G12,'Technician Summary'!$G$7:$BK$372,34,FALSE),"") ->  | AF12: =IFERROR(VLOOKUP($G12,'Technician Summary'!$G$7:$BK$372,35,FALSE),"") ->  | AH12: =IFERROR(VLOOKUP($G12,'Technician Summary'!$G$7:$BK$372,37,FALSE),"") ->  | AI12: =IFERROR(VLOOKUP($G12,'Technician Summary'!$G$7:$BK$372,38,FALSE),"") ->  | AK12: =IFERROR(VLOOKUP($G12,'Technician Summary'!$G$7:$BK$372,27,FALSE),"") ->  | AL12: =IFERROR(VLOOKUP($G12,'Technician Summary'!$G$7:$BK$372,68,FALSE),"") -> 
B13: Performance Metrics | F13: Deantwan Page | G13: 6098 | H13: 5 | I13: =IFERROR(VLOOKUP($G13,'Technician Summary'!$G$7:$BB$372,2,FALSE),"") -> 3 | J13: =IFERROR(VLOOKUP($G13,'Technician Summary'!$G$7:$BN$372,60,FALSE),"") -> 2.0001 | K13: 0.3333 | L13: =IFERROR(VLOOKUP($G13,'Technician Summary'!$G$7:$BK$372,14,FALSE),"") -> 100 | M13: =IFERROR(VLOOKUP($G13,'Technician Summary'!$G$7:$BK$372,15,FALSE),"") -> 1 | N13: 0.01 | O13: =IFERROR(VLOOKUP($G13,'Technician Summary'!$G$7:$BK$372,17,FALSE),"") -> 61 | P13: =IFERROR(VLOOKUP($G13,'Technician Summary'!$G$7:$BK$372,18,FALSE),"") -> 1 | Q13: 0.0164 | R13: =IFERROR(VLOOKUP($G13,'Technician Summary'!$G$7:$BK$372,20,FALSE),"") -> 39 | S13: =IFERROR(VLOOKUP($G13,'Technician Summary'!$G$7:$BK$372,21,FALSE),"") -> 0 | T13: 0 | U13: =IF(G13="","",COUNTIFS('StrataSync Data'!$AB:$AB,$G13,'StrataSync Data'!$G:$G,"Closed")) -> 53 | V13: =IF($G13="","",COUNTIFS('StrataSync Data'!$AB:$AB,$G13,'StrataSync Data'!$H:$H,"Yes",'StrataSync Data'!$G:$G,"Closed")) -> 53 | W13: 1 | X13: =IFERROR(IF($G$7="","",COUNTIFS('StrataSync Data'!$AB:$AB,$G13,'StrataSync Data'!$I:$I,"Incomplete",'StrataSync Data'!$H:$H,"Yes",'StrataSync Data'!$G:$G,"Closed"))+IF($G13="","",COUNTIFS('StrataSync Data'!$AB:$AB,$G13,'StrataSync Data'!$I:$I,"Fail",'StrataSync Data'!$H:$H,"Yes",'StrataSync Data'!$G:$G,"Closed")),"") -> 0 | Y13: 1 | AA13: =IFERROR(SUM(Z13/#REF!),"") ->  | AB13: =IFERROR(VLOOKUP($G13,'Technician Summary'!$G$7:$BK$372,7,FALSE),"") -> 43 | AC13: =IFERROR(VLOOKUP($G13,'Technician Summary'!$G$7:$BK$372,8,FALSE),"") -> 0 | AD13: 1 | AE13: =IFERROR(VLOOKUP($G13,'Technician Summary'!$G$7:$BK$372,34,FALSE),"") -> 40 | AF13: =IFERROR(VLOOKUP($G13,'Technician Summary'!$G$7:$BK$372,35,FALSE),"") -> 2 | AG13: 0.95 | AH13: =IFERROR(VLOOKUP($G13,'Technician Summary'!$G$7:$BK$372,37,FALSE),"") -> 130 | AI13: =IFERROR(VLOOKUP($G13,'Technician Summary'!$G$7:$BK$372,38,FALSE),"") -> 100 | AJ13: 0.7692 | AK13: =IFERROR(VLOOKUP($G13,'Technician Summary'!$G$7:$BK$372,27,FALSE),"") -> 0 | AL13: =IFERROR(VLOOKUP($G13,'Technician Summary'!$G$7:$BK$372,68,FALSE),"") -> 
B14: Gainesville | F14: Lucious Jackson | G14: 84884 | I14: =IFERROR(VLOOKUP($G14,'Technician Summary'!$G$7:$BB$372,2,FALSE),"") ->  | J14: =IFERROR(VLOOKUP($G14,'Technician Summary'!$G$7:$BN$372,60,FALSE),"") ->  | L14: =IFERROR(VLOOKUP($G14,'Technician Summary'!$G$7:$BK$372,14,FALSE),"") ->  | M14: =IFERROR(VLOOKUP($G14,'Technician Summary'!$G$7:$BK$372,15,FALSE),"") ->  | O14: =IFERROR(VLOOKUP($G14,'Technician Summary'!$G$7:$BK$372,17,FALSE),"") ->  | P14: =IFERROR(VLOOKUP($G14,'Technician Summary'!$G$7:$BK$372,18,FALSE),"") ->  | R14: =IFERROR(VLOOKUP($G14,'Technician Summary'!$G$7:$BK$372,20,FALSE),"") ->  | S14: =IFERROR(VLOOKUP($G14,'Technician Summary'!$G$7:$BK$372,21,FALSE),"") ->  | U14: =IF(G14="","",COUNTIFS('StrataSync Data'!$AB:$AB,$G14,'StrataSync Data'!$G:$G,"Closed")) -> 0 | V14: =IF($G14="","",COUNTIFS('StrataSync Data'!$AB:$AB,$G14,'StrataSync Data'!$H:$H,"Yes",'StrataSync Data'!$G:$G,"Closed")) -> 0 | X14: =IFERROR(IF($G$7="","",COUNTIFS('StrataSync Data'!$AB:$AB,$G14,'StrataSync Data'!$I:$I,"Incomplete",'StrataSync Data'!$H:$H,"Yes",'StrataSync Data'!$G:$G,"Closed"))+IF($G14="","",COUNTIFS('StrataSync Data'!$AB:$AB,$G14,'StrataSync Data'!$I:$I,"Fail",'StrataSync Data'!$H:$H,"Yes",'StrataSync Data'!$G:$G,"Closed")),"") -> 0 | AA14: =IFERROR(SUM(Z14/#REF!),"") ->  | AB14: =IFERROR(VLOOKUP($G14,'Technician Summary'!$G$7:$BK$372,7,FALSE),"") ->  | AC14: =IFERROR(VLOOKUP($G14,'Technician Summary'!$G$7:$BK$372,8,FALSE),"") ->  | AE14: =IFERROR(VLOOKUP($G14,'Technician Summary'!$G$7:$BK$372,34,FALSE),"") ->  | AF14: =IFERROR(VLOOKUP($G14,'Technician Summary'!$G$7:$BK$372,35,FALSE),"") ->  | AH14: =IFERROR(VLOOKUP($G14,'Technician Summary'!$G$7:$BK$372,37,FALSE),"") ->  | AI14: =IFERROR(VLOOKUP($G14,'Technician Summary'!$G$7:$BK$372,38,FALSE),"") ->  | AK14: =IFERROR(VLOOKUP($G14,'Technician Summary'!$G$7:$BK$372,27,FALSE),"") ->  | AL14: =IFERROR(VLOOKUP($G14,'Technician Summary'!$G$7:$BK$372,68,FALSE),"") -> 
B15: Macon | F15: Kirk Holder | G15: 31441 | I15: =IFERROR(VLOOKUP($G15,'Technician Summary'!$G$7:$BB$372,2,FALSE),"") -> 1 | J15: =IFERROR(VLOOKUP($G15,'Technician Summary'!$G$7:$BN$372,60,FALSE),"") -> 2 | K15: -1 | L15: =IFERROR(VLOOKUP($G15,'Technician Summary'!$G$7:$BK$372,14,FALSE),"") -> 87 | M15: =IFERROR(VLOOKUP($G15,'Technician Summary'!$G$7:$BK$372,15,FALSE),"") -> 6 | N15: 0.069 | O15: =IFERROR(VLOOKUP($G15,'Technician Summary'!$G$7:$BK$372,17,FALSE),"") -> 37 | P15: =IFERROR(VLOOKUP($G15,'Technician Summary'!$G$7:$BK$372,18,FALSE),"") -> 2 | Q15: 0.0541 | R15: =IFERROR(VLOOKUP($G15,'Technician Summary'!$G$7:$BK$372,20,FALSE),"") -> 50 | S15: =IFERROR(VLOOKUP($G15,'Technician Summary'!$G$7:$BK$372,21,FALSE),"") -> 4 | T15: 0.08 | U15: =IF(G15="","",COUNTIFS('StrataSync Data'!$AB:$AB,$G15,'StrataSync Data'!$G:$G,"Closed")) -> 0 | V15: =IF($G15="","",COUNTIFS('StrataSync Data'!$AB:$AB,$G15,'StrataSync Data'!$H:$H,"Yes",'StrataSync Data'!$G:$G,"Closed")) -> 0 | X15: =IFERROR(IF($G$7="","",COUNTIFS('StrataSync Data'!$AB:$AB,$G15,'StrataSync Data'!$I:$I,"Incomplete",'StrataSync Data'!$H:$H,"Yes",'StrataSync Data'!$G:$G,"Closed"))+IF($G15="","",COUNTIFS('StrataSync Data'!$AB:$AB,$G15,'StrataSync Data'!$I:$I,"Fail",'StrataSync Data'!$H:$H,"Yes",'StrataSync Data'!$G:$G,"Closed")),"") -> 0 | AA15: =IFERROR(SUM(Z15/#REF!),"") ->  | AB15: =IFERROR(VLOOKUP($G15,'Technician Summary'!$G$7:$BK$372,7,FALSE),"") -> 36 | AC15: =IFERROR(VLOOKUP($G15,'Technician Summary'!$G$7:$BK$372,8,FALSE),"") -> 1 | AD15: 0.9722 | AE15: =IFERROR(VLOOKUP($G15,'Technician Summary'!$G$7:$BK$372,34,FALSE),"") -> 26 | AF15: =IFERROR(VLOOKUP($G15,'Technician Summary'!$G$7:$BK$372,35,FALSE),"") -> 2 | AG15: 0.9231 | AH15: =IFERROR(VLOOKUP($G15,'Technician Summary'!$G$7:$BK$372,37,FALSE),"") -> 102 | AI15: =IFERROR(VLOOKUP($G15,'Technician Summary'!$G$7:$BK$372,38,FALSE),"") -> 87 | AJ15: 0.8529 | AK15: =IFERROR(VLOOKUP($G15,'Technician Summary'!$G$7:$BK$372,27,FALSE),"") -> 0 | AL15: =IFERROR(VLOOKUP($G15,'Technician Summary'!$G$7:$BK$372,68,FALSE),"") -> 
B16: New Orleans | F16: Damon Stewart | G16: 99414 | I16: =IFERROR(VLOOKUP($G16,'Technician Summary'!$G$7:$BB$372,2,FALSE),"") -> 3 | J16: =IFERROR(VLOOKUP($G16,'Technician Summary'!$G$7:$BN$372,60,FALSE),"") -> 0 | K16: 1 | L16: =IFERROR(VLOOKUP($G16,'Technician Summary'!$G$7:$BK$372,14,FALSE),"") -> 51 | M16: =IFERROR(VLOOKUP($G16,'Technician Summary'!$G$7:$BK$372,15,FALSE),"") -> 4 | N16: 0.0784 | O16: =IFERROR(VLOOKUP($G16,'Technician Summary'!$G$7:$BK$372,17,FALSE),"") -> 29 | P16: =IFERROR(VLOOKUP($G16,'Technician Summary'!$G$7:$BK$372,18,FALSE),"") -> 1 | Q16: 0.0345 | R16: =IFERROR(VLOOKUP($G16,'Technician Summary'!$G$7:$BK$372,20,FALSE),"") -> 22 | S16: =IFERROR(VLOOKUP($G16,'Technician Summary'!$G$7:$BK$372,21,FALSE),"") -> 3 | T16: 0.1364 | U16: =IF(G16="","",COUNTIFS('StrataSync Data'!$AB:$AB,$G16,'StrataSync Data'!$G:$G,"Closed")) -> 0 | V16: =IF($G16="","",COUNTIFS('StrataSync Data'!$AB:$AB,$G16,'StrataSync Data'!$H:$H,"Yes",'StrataSync Data'!$G:$G,"Closed")) -> 0 | X16: =IFERROR(IF($G$7="","",COUNTIFS('StrataSync Data'!$AB:$AB,$G16,'StrataSync Data'!$I:$I,"Incomplete",'StrataSync Data'!$H:$H,"Yes",'StrataSync Data'!$G:$G,"Closed"))+IF($G16="","",COUNTIFS('StrataSync Data'!$AB:$AB,$G16,'StrataSync Data'!$I:$I,"Fail",'StrataSync Data'!$H:$H,"Yes",'StrataSync Data'!$G:$G,"Closed")),"") -> 0 | AA16: =IFERROR(SUM(Z16/#REF!),"") ->  | AB16: =IFERROR(VLOOKUP($G16,'Technician Summary'!$G$7:$BK$372,7,FALSE),"") -> 16 | AC16: =IFERROR(VLOOKUP($G16,'Technician Summary'!$G$7:$BK$372,8,FALSE),"") -> 0 | AD16: 1 | AE16: =IFERROR(VLOOKUP($G16,'Technician Summary'!$G$7:$BK$372,34,FALSE),"") -> 13 | AF16: =IFERROR(VLOOKUP($G16,'Technician Summary'!$G$7:$BK$372,35,FALSE),"") -> 1 | AG16: 0.9231 | AH16: =IFERROR(VLOOKUP($G16,'Technician Summary'!$G$7:$BK$372,37,FALSE),"") -> 69 | AI16: =IFERROR(VLOOKUP($G16,'Technician Summary'!$G$7:$BK$372,38,FALSE),"") -> 51 | AJ16: 0.7391 | AK16: =IFERROR(VLOOKUP($G16,'Technician Summary'!$G$7:$BK$372,27,FALSE),"") -> 0 | AL16: =IFERROR(VLOOKUP($G16,'Technician Summary'!$G$7:$BK$372,68,FALSE),"") -> 
B17: Hampton Roads | F17: Steven sylvester | G17: 97732 | I17: =IFERROR(VLOOKUP($G17,'Technician Summary'!$G$7:$BB$372,2,FALSE),"") -> 2 | J17: =IFERROR(VLOOKUP($G17,'Technician Summary'!$G$7:$BN$372,60,FALSE),"") -> 0 | K17: 1 | L17: =IFERROR(VLOOKUP($G17,'Technician Summary'!$G$7:$BK$372,14,FALSE),"") -> 69 | M17: =IFERROR(VLOOKUP($G17,'Technician Summary'!$G$7:$BK$372,15,FALSE),"") -> 4 | N17: 0.058 | O17: =IFERROR(VLOOKUP($G17,'Technician Summary'!$G$7:$BK$372,17,FALSE),"") -> 47 | P17: =IFERROR(VLOOKUP($G17,'Technician Summary'!$G$7:$BK$372,18,FALSE),"") -> 3 | Q17: 0.0638 | R17: =IFERROR(VLOOKUP($G17,'Technician Summary'!$G$7:$BK$372,20,FALSE),"") -> 22 | S17: =IFERROR(VLOOKUP($G17,'Technician Summary'!$G$7:$BK$372,21,FALSE),"") -> 1 | T17: 0.0455 | U17: =IF(G17="","",COUNTIFS('StrataSync Data'!$AB:$AB,$G17,'StrataSync Data'!$G:$G,"Closed")) -> 0 | V17: =IF($G17="","",COUNTIFS('StrataSync Data'!$AB:$AB,$G17,'StrataSync Data'!$H:$H,"Yes",'StrataSync Data'!$G:$G,"Closed")) -> 0 | X17: =IFERROR(IF($G$7="","",COUNTIFS('StrataSync Data'!$AB:$AB,$G17,'StrataSync Data'!$I:$I,"Incomplete",'StrataSync Data'!$H:$H,"Yes",'StrataSync Data'!$G:$G,"Closed"))+IF($G17="","",COUNTIFS('StrataSync Data'!$AB:$AB,$G17,'StrataSync Data'!$I:$I,"Fail",'StrataSync Data'!$H:$H,"Yes",'StrataSync Data'!$G:$G,"Closed")),"") -> 0 | AA17: =IFERROR(SUM(Z17/#REF!),"") ->  | AB17: =IFERROR(VLOOKUP($G17,'Technician Summary'!$G$7:$BK$372,7,FALSE),"") -> 20 | AC17: =IFERROR(VLOOKUP($G17,'Technician Summary'!$G$7:$BK$372,8,FALSE),"") -> 0 | AD17: 1 | AE17: =IFERROR(VLOOKUP($G17,'Technician Summary'!$G$7:$BK$372,34,FALSE),"") -> 15 | AF17: =IFERROR(VLOOKUP($G17,'Technician Summary'!$G$7:$BK$372,35,FALSE),"") -> 0 | AG17: 1 | AH17: =IFERROR(VLOOKUP($G17,'Technician Summary'!$G$7:$BK$372,37,FALSE),"") -> 91 | AI17: =IFERROR(VLOOKUP($G17,'Technician Summary'!$G$7:$BK$372,38,FALSE),"") -> 69 | AJ17: 0.7582 | AK17: =IFERROR(VLOOKUP($G17,'Technician Summary'!$G$7:$BK$372,27,FALSE),"") -> 0 | AL17: =IFERROR(VLOOKUP($G17,'Technician Summary'!$G$7:$BK$372,68,FALSE),"") -> 
B18: Baton Rouge | I18: =IFERROR(VLOOKUP($G18,'Technician Summary'!$G$7:$BB$372,2,FALSE),"") ->  | J18: =IFERROR(VLOOKUP($G18,'Technician Summary'!$G$7:$BN$372,60,FALSE),"") ->  | L18: =IFERROR(VLOOKUP($G18,'Technician Summary'!$G$7:$BK$372,14,FALSE),"") ->  | M18: =IFERROR(VLOOKUP($G18,'Technician Summary'!$G$7:$BK$372,15,FALSE),"") ->  | O18: =IFERROR(VLOOKUP($G18,'Technician Summary'!$G$7:$BK$372,17,FALSE),"") ->  | P18: =IFERROR(VLOOKUP($G18,'Technician Summary'!$G$7:$BK$372,18,FALSE),"") ->  | R18: =IFERROR(VLOOKUP($G18,'Technician Summary'!$G$7:$BK$372,20,FALSE),"") ->  | S18: =IFERROR(VLOOKUP($G18,'Technician Summary'!$G$7:$BK$372,21,FALSE),"") ->  | U18: =IF(G18="","",COUNTIFS('StrataSync Data'!$AB:$AB,$G18,'StrataSync Data'!$G:$G,"Closed")) ->  | V18: =IF($G18="","",COUNTIFS('StrataSync Data'!$AB:$AB,$G18,'StrataSync Data'!$H:$H,"Yes",'StrataSync Data'!$G:$G,"Closed")) ->  | X18: =IFERROR(IF($G$7="","",COUNTIFS('StrataSync Data'!$AB:$AB,$G18,'StrataSync Data'!$I:$I,"Incomplete",'StrataSync Data'!$H:$H,"Yes",'StrataSync Data'!$G:$G,"Closed"))+IF($G18="","",COUNTIFS('StrataSync Data'!$AB:$AB,$G18,'StrataSync Data'!$I:$I,"Fail",'StrataSync Data'!$H:$H,"Yes",'StrataSync Data'!$G:$G,"Closed")),"") ->  | AA18: =IFERROR(SUM(Z18/#REF!),"") ->  | AB18: =IFERROR(VLOOKUP($G18,'Technician Summary'!$G$7:$BK$372,7,FALSE),"") ->  | AC18: =IFERROR(VLOOKUP($G18,'Technician Summary'!$G$7:$BK$372,8,FALSE),"") ->  | AE18: =IFERROR(VLOOKUP($G18,'Technician Summary'!$G$7:$BK$372,34,FALSE),"") ->  | AF18: =IFERROR(VLOOKUP($G18,'Technician Summary'!$G$7:$BK$372,35,FALSE),"") ->  | AH18: =IFERROR(VLOOKUP($G18,'Technician Summary'!$G$7:$BK$372,37,FALSE),"") ->  | AI18: =IFERROR(VLOOKUP($G18,'Technician Summary'!$G$7:$BK$372,38,FALSE),"") ->  | AK18: =IFERROR(VLOOKUP($G18,'Technician Summary'!$G$7:$BK$372,27,FALSE),"") ->  | AL18: =IFERROR(VLOOKUP($G18,'Technician Summary'!$G$7:$BK$372,68,FALSE),"") -> 
B19: Roanoke | I19: =IFERROR(VLOOKUP($G19,'Technician Summary'!$G$7:$BB$372,2,FALSE),"") ->  | J19: =IFERROR(VLOOKUP($G19,'Technician Summary'!$G$7:$BN$372,60,FALSE),"") ->  | L19: =IFERROR(VLOOKUP($G19,'Technician Summary'!$G$7:$BK$372,14,FALSE),"") ->  | M19: =IFERROR(VLOOKUP($G19,'Technician Summary'!$G$7:$BK$372,15,FALSE),"") ->  | O19: =IFERROR(VLOOKUP($G19,'Technician Summary'!$G$7:$BK$372,17,FALSE),"") ->  | P19: =IFERROR(VLOOKUP($G19,'Technician Summary'!$G$7:$BK$372,18,FALSE),"") ->  | R19: =IFERROR(VLOOKUP($G19,'Technician Summary'!$G$7:$BK$372,20,FALSE),"") ->  | S19: =IFERROR(VLOOKUP($G19,'Technician Summary'!$G$7:$BK$372,21,FALSE),"") ->  | U19: =IF(G19="","",COUNTIFS('StrataSync Data'!$AB:$AB,$G19,'StrataSync Data'!$G:$G,"Closed")) ->  | V19: =IF($G19="","",COUNTIFS('StrataSync Data'!$AB:$AB,$G19,'StrataSync Data'!$H:$H,"Yes",'StrataSync Data'!$G:$G,"Closed")) ->  | X19: =IFERROR(IF($G$7="","",COUNTIFS('StrataSync Data'!$AB:$AB,$G19,'StrataSync Data'!$I:$I,"Incomplete",'StrataSync Data'!$H:$H,"Yes",'StrataSync Data'!$G:$G,"Closed"))+IF($G19="","",COUNTIFS('StrataSync Data'!$AB:$AB,$G19,'StrataSync Data'!$I:$I,"Fail",'StrataSync Data'!$H:$H,"Yes",'StrataSync Data'!$G:$G,"Closed")),"") ->  | AA19: =IFERROR(SUM(Z19/#REF!),"") ->  | AB19: =IFERROR(VLOOKUP($G19,'Technician Summary'!$G$7:$BK$372,7,FALSE),"") ->  | AC19: =IFERROR(VLOOKUP($G19,'Technician Summary'!$G$7:$BK$372,8,FALSE),"") ->  | AE19: =IFERROR(VLOOKUP($G19,'Technician Summary'!$G$7:$BK$372,34,FALSE),"") ->  | AF19: =IFERROR(VLOOKUP($G19,'Technician Summary'!$G$7:$BK$372,35,FALSE),"") ->  | AH19: =IFERROR(VLOOKUP($G19,'Technician Summary'!$G$7:$BK$372,37,FALSE),"") ->  | AI19: =IFERROR(VLOOKUP($G19,'Technician Summary'!$G$7:$BK$372,38,FALSE),"") ->  | AK19: =IFERROR(VLOOKUP($G19,'Technician Summary'!$G$7:$BK$372,27,FALSE),"") ->  | AL19: =IFERROR(VLOOKUP($G19,'Technician Summary'!$G$7:$BK$372,68,FALSE),"") -> 
B20: Gulf Coast | I20: =IFERROR(VLOOKUP($G20,'Technician Summary'!$G$7:$BB$372,2,FALSE),"") ->  | J20: =IFERROR(VLOOKUP($G20,'Technician Summary'!$G$7:$BN$372,60,FALSE),"") ->  | L20: =IFERROR(VLOOKUP($G20,'Technician Summary'!$G$7:$BK$372,14,FALSE),"") ->  | M20: =IFERROR(VLOOKUP($G20,'Technician Summary'!$G$7:$BK$372,15,FALSE),"") ->  | O20: =IFERROR(VLOOKUP($G20,'Technician Summary'!$G$7:$BK$372,17,FALSE),"") ->  | P20: =IFERROR(VLOOKUP($G20,'Technician Summary'!$G$7:$BK$372,18,FALSE),"") ->  | R20: =IFERROR(VLOOKUP($G20,'Technician Summary'!$G$7:$BK$372,20,FALSE),"") ->  | S20: =IFERROR(VLOOKUP($G20,'Technician Summary'!$G$7:$BK$372,21,FALSE),"") ->  | U20: =IF(G20="","",COUNTIFS('StrataSync Data'!$AB:$AB,$G20,'StrataSync Data'!$G:$G,"Closed")) ->  | V20: =IF($G20="","",COUNTIFS('StrataSync Data'!$AB:$AB,$G20,'StrataSync Data'!$H:$H,"Yes",'StrataSync Data'!$G:$G,"Closed")) ->  | X20: =IFERROR(IF($G$7="","",COUNTIFS('StrataSync Data'!$AB:$AB,$G20,'StrataSync Data'!$I:$I,"Incomplete",'StrataSync Data'!$H:$H,"Yes",'StrataSync Data'!$G:$G,"Closed"))+IF($G20="","",COUNTIFS('StrataSync Data'!$AB:$AB,$G20,'StrataSync Data'!$I:$I,"Fail",'StrataSync Data'!$H:$H,"Yes",'StrataSync Data'!$G:$G,"Closed")),"") ->  | AA20: =IFERROR(SUM(Z20/#REF!),"") ->  | AB20: =IFERROR(VLOOKUP($G20,'Technician Summary'!$G$7:$BK$372,7,FALSE),"") ->  | AC20: =IFERROR(VLOOKUP($G20,'Technician Summary'!$G$7:$BK$372,8,FALSE),"") ->  | AE20: =IFERROR(VLOOKUP($G20,'Technician Summary'!$G$7:$BK$372,34,FALSE),"") ->  | AF20: =IFERROR(VLOOKUP($G20,'Technician Summary'!$G$7:$BK$372,35,FALSE),"") ->  | AH20: =IFERROR(VLOOKUP($G20,'Technician Summary'!$G$7:$BK$372,37,FALSE),"") ->  | AI20: =IFERROR(VLOOKUP($G20,'Technician Summary'!$G$7:$BK$372,38,FALSE),"") ->  | AK20: =IFERROR(VLOOKUP($G20,'Technician Summary'!$G$7:$BK$372,27,FALSE),"") ->  | AL20: =IFERROR(VLOOKUP($G20,'Technician Summary'!$G$7:$BK$372,68,FALSE),"") -> 
B21: Oklahoma City | I21: =IFERROR(VLOOKUP($G21,'Technician Summary'!$G$7:$BB$372,2,FALSE),"") ->  | J21: =IFERROR(VLOOKUP($G21,'Technician Summary'!$G$7:$BN$372,60,FALSE),"") ->  | L21: =IFERROR(VLOOKUP($G21,'Technician Summary'!$G$7:$BK$372,14,FALSE),"") ->  | M21: =IFERROR(VLOOKUP($G21,'Technician Summary'!$G$7:$BK$372,15,FALSE),"") ->  | O21: =IFERROR(VLOOKUP($G21,'Technician Summary'!$G$7:$BK$372,17,FALSE),"") ->  | P21: =IFERROR(VLOOKUP($G21,'Technician Summary'!$G$7:$BK$372,18,FALSE),"") ->  | R21: =IFERROR(VLOOKUP($G21,'Technician Summary'!$G$7:$BK$372,20,FALSE),"") ->  | S21: =IFERROR(VLOOKUP($G21,'Technician Summary'!$G$7:$BK$372,21,FALSE),"") ->  | U21: =IF(G21="","",COUNTIFS('StrataSync Data'!$AB:$AB,$G21,'StrataSync Data'!$G:$G,"Closed")) ->  | V21: =IF($G21="","",COUNTIFS('StrataSync Data'!$AB:$AB,$G21,'StrataSync Data'!$H:$H,"Yes",'StrataSync Data'!$G:$G,"Closed")) ->  | X21: =IFERROR(IF($G$7="","",COUNTIFS('StrataSync Data'!$AB:$AB,$G21,'StrataSync Data'!$I:$I,"Incomplete",'StrataSync Data'!$H:$H,"Yes",'StrataSync Data'!$G:$G,"Closed"))+IF($G21="","",COUNTIFS('StrataSync Data'!$AB:$AB,$G21,'StrataSync Data'!$I:$I,"Fail",'StrataSync Data'!$H:$H,"Yes",'StrataSync Data'!$G:$G,"Closed")),"") ->  | AA21: =IFERROR(SUM(Z21/#REF!),"") ->  | AB21: =IFERROR(VLOOKUP($G21,'Technician Summary'!$G$7:$BK$372,7,FALSE),"") ->  | AC21: =IFERROR(VLOOKUP($G21,'Technician Summary'!$G$7:$BK$372,8,FALSE),"") ->  | AE21: =IFERROR(VLOOKUP($G21,'Technician Summary'!$G$7:$BK$372,34,FALSE),"") ->  | AF21: =IFERROR(VLOOKUP($G21,'Technician Summary'!$G$7:$BK$372,35,FALSE),"") ->  | AH21: =IFERROR(VLOOKUP($G21,'Technician Summary'!$G$7:$BK$372,37,FALSE),"") ->  | AI21: =IFERROR(VLOOKUP($G21,'Technician Summary'!$G$7:$BK$372,38,FALSE),"") ->  | AK21: =IFERROR(VLOOKUP($G21,'Technician Summary'!$G$7:$BK$372,27,FALSE),"") ->  | AL21: =IFERROR(VLOOKUP($G21,'Technician Summary'!$G$7:$BK$372,68,FALSE),"") -> 
B22: Tech Rankings | I22: =IFERROR(VLOOKUP($G22,'Technician Summary'!$G$7:$BB$372,2,FALSE),"") ->  | J22: =IFERROR(VLOOKUP($G22,'Technician Summary'!$G$7:$BN$372,60,FALSE),"") ->  | L22: =IFERROR(VLOOKUP($G22,'Technician Summary'!$G$7:$BK$372,14,FALSE),"") ->  | M22: =IFERROR(VLOOKUP($G22,'Technician Summary'!$G$7:$BK$372,15,FALSE),"") ->  | O22: =IFERROR(VLOOKUP($G22,'Technician Summary'!$G$7:$BK$372,17,FALSE),"") ->  | P22: =IFERROR(VLOOKUP($G22,'Technician Summary'!$G$7:$BK$372,18,FALSE),"") ->  | R22: =IFERROR(VLOOKUP($G22,'Technician Summary'!$G$7:$BK$372,20,FALSE),"") ->  | S22: =IFERROR(VLOOKUP($G22,'Technician Summary'!$G$7:$BK$372,21,FALSE),"") ->  | U22: =IF(G22="","",COUNTIFS('StrataSync Data'!$AB:$AB,$G22,'StrataSync Data'!$G:$G,"Closed")) ->  | V22: =IF($G22="","",COUNTIFS('StrataSync Data'!$AB:$AB,$G22,'StrataSync Data'!$H:$H,"Yes",'StrataSync Data'!$G:$G,"Closed")) ->  | X22: =IFERROR(IF($G$7="","",COUNTIFS('StrataSync Data'!$AB:$AB,$G22,'StrataSync Data'!$I:$I,"Incomplete",'StrataSync Data'!$H:$H,"Yes",'StrataSync Data'!$G:$G,"Closed"))+IF($G22="","",COUNTIFS('StrataSync Data'!$AB:$AB,$G22,'StrataSync Data'!$I:$I,"Fail",'StrataSync Data'!$H:$H,"Yes",'StrataSync Data'!$G:$G,"Closed")),"") ->  | AA22: =IFERROR(SUM(Z22/#REF!),"") ->  | AB22: =IFERROR(VLOOKUP($G22,'Technician Summary'!$G$7:$BK$372,7,FALSE),"") ->  | AC22: =IFERROR(VLOOKUP($G22,'Technician Summary'!$G$7:$BK$372,8,FALSE),"") ->  | AE22: =IFERROR(VLOOKUP($G22,'Technician Summary'!$G$7:$BK$372,34,FALSE),"") ->  | AF22: =IFERROR(VLOOKUP($G22,'Technician Summary'!$G$7:$BK$372,35,FALSE),"") ->  | AH22: =IFERROR(VLOOKUP($G22,'Technician Summary'!$G$7:$BK$372,37,FALSE),"") ->  | AI22: =IFERROR(VLOOKUP($G22,'Technician Summary'!$G$7:$BK$372,38,FALSE),"") ->  | AK22: =IFERROR(VLOOKUP($G22,'Technician Summary'!$G$7:$BK$372,27,FALSE),"") ->  | AL22: =IFERROR(VLOOKUP($G22,'Technician Summary'!$G$7:$BK$372,68,FALSE),"") -> 
I23: =IFERROR(VLOOKUP($G23,'Technician Summary'!$G$7:$BB$372,2,FALSE),"") ->  | J23: =IFERROR(VLOOKUP($G23,'Technician Summary'!$G$7:$BN$372,60,FALSE),"") ->  | L23: =IFERROR(VLOOKUP($G23,'Technician Summary'!$G$7:$BK$372,14,FALSE),"") ->  | M23: =IFERROR(VLOOKUP($G23,'Technician Summary'!$G$7:$BK$372,15,FALSE),"") ->  | O23: =IFERROR(VLOOKUP($G23,'Technician Summary'!$G$7:$BK$372,17,FALSE),"") ->  | P23: =IFERROR(VLOOKUP($G23,'Technician Summary'!$G$7:$BK$372,18,FALSE),"") ->  | R23: =IFERROR(VLOOKUP($G23,'Technician Summary'!$G$7:$BK$372,20,FALSE),"") ->  | S23: =IFERROR(VLOOKUP($G23,'Technician Summary'!$G$7:$BK$372,21,FALSE),"") ->  | U23: =IF(G23="","",COUNTIFS('StrataSync Data'!$AB:$AB,$G23,'StrataSync Data'!$G:$G,"Closed")) ->  | V23: =IF($G23="","",COUNTIFS('StrataSync Data'!$AB:$AB,$G23,'StrataSync Data'!$H:$H,"Yes",'StrataSync Data'!$G:$G,"Closed")) ->  | X23: =IFERROR(IF($G$7="","",COUNTIFS('StrataSync Data'!$AB:$AB,$G23,'StrataSync Data'!$I:$I,"Incomplete",'StrataSync Data'!$H:$H,"Yes",'StrataSync Data'!$G:$G,"Closed"))+IF($G23="","",COUNTIFS('StrataSync Data'!$AB:$AB,$G23,'StrataSync Data'!$I:$I,"Fail",'StrataSync Data'!$H:$H,"Yes",'StrataSync Data'!$G:$G,"Closed")),"") ->  | AA23: =IFERROR(SUM(Z23/#REF!),"") ->  | AB23: =IFERROR(VLOOKUP($G23,'Technician Summary'!$G$7:$BK$372,7,FALSE),"") ->  | AC23: =IFERROR(VLOOKUP($G23,'Technician Summary'!$G$7:$BK$372,8,FALSE),"") ->  | AE23: =IFERROR(VLOOKUP($G23,'Technician Summary'!$G$7:$BK$372,34,FALSE),"") ->  | AF23: =IFERROR(VLOOKUP($G23,'Technician Summary'!$G$7:$BK$372,35,FALSE),"") ->  | AH23: =IFERROR(VLOOKUP($G23,'Technician Summary'!$G$7:$BK$372,37,FALSE),"") ->  | AI23: =IFERROR(VLOOKUP($G23,'Technician Summary'!$G$7:$BK$372,38,FALSE),"") ->  | AK23: =IFERROR(VLOOKUP($G23,'Technician Summary'!$G$7:$BK$372,27,FALSE),"") ->  | AL23: =IFERROR(VLOOKUP($G23,'Technician Summary'!$G$7:$BK$372,68,FALSE),"") -> 
B24: Raw Data | I24: =IFERROR(VLOOKUP($G24,'Technician Summary'!$G$7:$BB$372,2,FALSE),"") ->  | J24: =IFERROR(VLOOKUP($G24,'Technician Summary'!$G$7:$BN$372,60,FALSE),"") ->  | L24: =IFERROR(VLOOKUP($G24,'Technician Summary'!$G$7:$BK$372,14,FALSE),"") ->  | M24: =IFERROR(VLOOKUP($G24,'Technician Summary'!$G$7:$BK$372,15,FALSE),"") ->  | O24: =IFERROR(VLOOKUP($G24,'Technician Summary'!$G$7:$BK$372,17,FALSE),"") ->  | P24: =IFERROR(VLOOKUP($G24,'Technician Summary'!$G$7:$BK$372,18,FALSE),"") ->  | R24: =IFERROR(VLOOKUP($G24,'Technician Summary'!$G$7:$BK$372,20,FALSE),"") ->  | S24: =IFERROR(VLOOKUP($G24,'Technician Summary'!$G$7:$BK$372,21,FALSE),"") ->  | U24: =IF(G24="","",COUNTIFS('StrataSync Data'!$AB:$AB,$G24,'StrataSync Data'!$G:$G,"Closed")) ->  | V24: =IF($G24="","",COUNTIFS('StrataSync Data'!$AB:$AB,$G24,'StrataSync Data'!$H:$H,"Yes",'StrataSync Data'!$G:$G,"Closed")) ->  | X24: =IFERROR(IF($G$7="","",COUNTIFS('StrataSync Data'!$AB:$AB,$G24,'StrataSync Data'!$I:$I,"Incomplete",'StrataSync Data'!$H:$H,"Yes",'StrataSync Data'!$G:$G,"Closed"))+IF($G24="","",COUNTIFS('StrataSync Data'!$AB:$AB,$G24,'StrataSync Data'!$I:$I,"Fail",'StrataSync Data'!$H:$H,"Yes",'StrataSync Data'!$G:$G,"Closed")),"") ->  | AA24: =IFERROR(SUM(Z24/#REF!),"") ->  | AB24: =IFERROR(VLOOKUP($G24,'Technician Summary'!$G$7:$BK$372,7,FALSE),"") ->  | AC24: =IFERROR(VLOOKUP($G24,'Technician Summary'!$G$7:$BK$372,8,FALSE),"") ->  | AE24: =IFERROR(VLOOKUP($G24,'Technician Summary'!$G$7:$BK$372,34,FALSE),"") ->  | AF24: =IFERROR(VLOOKUP($G24,'Technician Summary'!$G$7:$BK$372,35,FALSE),"") ->  | AH24: =IFERROR(VLOOKUP($G24,'Technician Summary'!$G$7:$BK$372,37,FALSE),"") ->  | AI24: =IFERROR(VLOOKUP($G24,'Technician Summary'!$G$7:$BK$372,38,FALSE),"") ->  | AK24: =IFERROR(VLOOKUP($G24,'Technician Summary'!$G$7:$BK$372,27,FALSE),"") ->  | AL24: =IFERROR(VLOOKUP($G24,'Technician Summary'!$G$7:$BK$372,68,FALSE),"") -> 
I25: =IFERROR(VLOOKUP($G25,'Technician Summary'!$G$7:$BB$372,2,FALSE),"") ->  | J25: =IFERROR(VLOOKUP($G25,'Technician Summary'!$G$7:$BN$372,60,FALSE),"") ->  | L25: =IFERROR(VLOOKUP($G25,'Technician Summary'!$G$7:$BK$372,14,FALSE),"") ->  | M25: =IFERROR(VLOOKUP($G25,'Technician Summary'!$G$7:$BK$372,15,FALSE),"") ->  | O25: =IFERROR(VLOOKUP($G25,'Technician Summary'!$G$7:$BK$372,17,FALSE),"") ->  | P25: =IFERROR(VLOOKUP($G25,'Technician Summary'!$G$7:$BK$372,18,FALSE),"") ->  | R25: =IFERROR(VLOOKUP($G25,'Technician Summary'!$G$7:$BK$372,20,FALSE),"") ->  | S25: =IFERROR(VLOOKUP($G25,'Technician Summary'!$G$7:$BK$372,21,FALSE),"") ->  | U25: =IF(G25="","",COUNTIFS('StrataSync Data'!$AB:$AB,$G25,'StrataSync Data'!$G:$G,"Closed")) ->  | V25: =IF($G25="","",COUNTIFS('StrataSync Data'!$AB:$AB,$G25,'StrataSync Data'!$H:$H,"Yes",'StrataSync Data'!$G:$G,"Closed")) ->  | X25: =IFERROR(IF($G$7="","",COUNTIFS('StrataSync Data'!$AB:$AB,$G25,'StrataSync Data'!$I:$I,"Incomplete",'StrataSync Data'!$H:$H,"Yes",'StrataSync Data'!$G:$G,"Closed"))+IF($G25="","",COUNTIFS('StrataSync Data'!$AB:$AB,$G25,'StrataSync Data'!$I:$I,"Fail",'StrataSync Data'!$H:$H,"Yes",'StrataSync Data'!$G:$G,"Closed")),"") ->  | AA25: =IFERROR(SUM(Z25/#REF!),"") ->  | AB25: =IFERROR(VLOOKUP($G25,'Technician Summary'!$G$7:$BK$372,7,FALSE),"") ->  | AC25: =IFERROR(VLOOKUP($G25,'Technician Summary'!$G$7:$BK$372,8,FALSE),"") ->  | AE25: =IFERROR(VLOOKUP($G25,'Technician Summary'!$G$7:$BK$372,34,FALSE),"") ->  | AF25: =IFERROR(VLOOKUP($G25,'Technician Summary'!$G$7:$BK$372,35,FALSE),"") ->  | AH25: =IFERROR(VLOOKUP($G25,'Technician Summary'!$G$7:$BK$372,37,FALSE),"") ->  | AI25: =IFERROR(VLOOKUP($G25,'Technician Summary'!$G$7:$BK$372,38,FALSE),"") ->  | AK25: =IFERROR(VLOOKUP($G25,'Technician Summary'!$G$7:$BK$372,27,FALSE),"") ->  | AL25: =IFERROR(VLOOKUP($G25,'Technician Summary'!$G$7:$BK$372,68,FALSE),"") -> 
I26: =IFERROR(VLOOKUP($G26,'Technician Summary'!$G$7:$BB$372,2,FALSE),"") ->  | J26: =IFERROR(VLOOKUP($G26,'Technician Summary'!$G$7:$BN$372,60,FALSE),"") ->  | L26: =IFERROR(VLOOKUP($G26,'Technician Summary'!$G$7:$BK$372,14,FALSE),"") ->  | M26: =IFERROR(VLOOKUP($G26,'Technician Summary'!$G$7:$BK$372,15,FALSE),"") ->  | O26: =IFERROR(VLOOKUP($G26,'Technician Summary'!$G$7:$BK$372,17,FALSE),"") ->  | P26: =IFERROR(VLOOKUP($G26,'Technician Summary'!$G$7:$BK$372,18,FALSE),"") ->  | R26: =IFERROR(VLOOKUP($G26,'Technician Summary'!$G$7:$BK$372,20,FALSE),"") ->  | S26: =IFERROR(VLOOKUP($G26,'Technician Summary'!$G$7:$BK$372,21,FALSE),"") ->  | U26: =IF(G26="","",COUNTIFS('StrataSync Data'!$AB:$AB,$G26,'StrataSync Data'!$G:$G,"Closed")) ->  | V26: =IF($G26="","",COUNTIFS('StrataSync Data'!$AB:$AB,$G26,'StrataSync Data'!$H:$H,"Yes",'StrataSync Data'!$G:$G,"Closed")) ->  | X26: =IFERROR(IF($G$7="","",COUNTIFS('StrataSync Data'!$AB:$AB,$G26,'StrataSync Data'!$I:$I,"Incomplete",'StrataSync Data'!$H:$H,"Yes",'StrataSync Data'!$G:$G,"Closed"))+IF($G26="","",COUNTIFS('StrataSync Data'!$AB:$AB,$G26,'StrataSync Data'!$I:$I,"Fail",'StrataSync Data'!$H:$H,"Yes",'StrataSync Data'!$G:$G,"Closed")),"") ->  | AA26: =IFERROR(SUM(Z26/#REF!),"") ->  | AB26: =IFERROR(VLOOKUP($G26,'Technician Summary'!$G$7:$BK$372,7,FALSE),"") ->  | AC26: =IFERROR(VLOOKUP($G26,'Technician Summary'!$G$7:$BK$372,8,FALSE),"") ->  | AE26: =IFERROR(VLOOKUP($G26,'Technician Summary'!$G$7:$BK$372,34,FALSE),"") ->  | AF26: =IFERROR(VLOOKUP($G26,'Technician Summary'!$G$7:$BK$372,35,FALSE),"") ->  | AH26: =IFERROR(VLOOKUP($G26,'Technician Summary'!$G$7:$BK$372,37,FALSE),"") ->  | AI26: =IFERROR(VLOOKUP($G26,'Technician Summary'!$G$7:$BK$372,38,FALSE),"") ->  | AK26: =IFERROR(VLOOKUP($G26,'Technician Summary'!$G$7:$BK$372,27,FALSE),"") ->  | AL26: =IFERROR(VLOOKUP($G26,'Technician Summary'!$G$7:$BK$372,68,FALSE),"") -> 
I27: =IFERROR(VLOOKUP($G27,'Technician Summary'!$G$7:$BB$372,2,FALSE),"") ->  | J27: =IFERROR(VLOOKUP($G27,'Technician Summary'!$G$7:$BN$372,60,FALSE),"") ->  | L27: =IFERROR(VLOOKUP($G27,'Technician Summary'!$G$7:$BK$372,14,FALSE),"") ->  | M27: =IFERROR(VLOOKUP($G27,'Technician Summary'!$G$7:$BK$372,15,FALSE),"") ->  | O27: =IFERROR(VLOOKUP($G27,'Technician Summary'!$G$7:$BK$372,17,FALSE),"") ->  | P27: =IFERROR(VLOOKUP($G27,'Technician Summary'!$G$7:$BK$372,18,FALSE),"") ->  | R27: =IFERROR(VLOOKUP($G27,'Technician Summary'!$G$7:$BK$372,20,FALSE),"") ->  | S27: =IFERROR(VLOOKUP($G27,'Technician Summary'!$G$7:$BK$372,21,FALSE),"") ->  | U27: =IF(G27="","",COUNTIFS('StrataSync Data'!$AB:$AB,$G27,'StrataSync Data'!$G:$G,"Closed")) ->  | V27: =IF($G27="","",COUNTIFS('StrataSync Data'!$AB:$AB,$G27,'StrataSync Data'!$H:$H,"Yes",'StrataSync Data'!$G:$G,"Closed")) ->  | X27: =IFERROR(IF($G$7="","",COUNTIFS('StrataSync Data'!$AB:$AB,$G27,'StrataSync Data'!$I:$I,"Incomplete",'StrataSync Data'!$H:$H,"Yes",'StrataSync Data'!$G:$G,"Closed"))+IF($G27="","",COUNTIFS('StrataSync Data'!$AB:$AB,$G27,'StrataSync Data'!$I:$I,"Fail",'StrataSync Data'!$H:$H,"Yes",'StrataSync Data'!$G:$G,"Closed")),"") ->  | AA27: =IFERROR(SUM(Z27/#REF!),"") ->  | AB27: =IFERROR(VLOOKUP($G27,'Technician Summary'!$G$7:$BK$372,7,FALSE),"") ->  | AC27: =IFERROR(VLOOKUP($G27,'Technician Summary'!$G$7:$BK$372,8,FALSE),"") ->  | AE27: =IFERROR(VLOOKUP($G27,'Technician Summary'!$G$7:$BK$372,34,FALSE),"") ->  | AF27: =IFERROR(VLOOKUP($G27,'Technician Summary'!$G$7:$BK$372,35,FALSE),"") ->  | AH27: =IFERROR(VLOOKUP($G27,'Technician Summary'!$G$7:$BK$372,37,FALSE),"") ->  | AI27: =IFERROR(VLOOKUP($G27,'Technician Summary'!$G$7:$BK$372,38,FALSE),"") ->  | AK27: =IFERROR(VLOOKUP($G27,'Technician Summary'!$G$7:$BK$372,27,FALSE),"") ->  | AL27: =IFERROR(VLOOKUP($G27,'Technician Summary'!$G$7:$BK$372,68,FALSE),"") -> 
I28: =IFERROR(VLOOKUP($G28,'Technician Summary'!$G$7:$BB$372,2,FALSE),"") ->  | J28: =IFERROR(VLOOKUP($G28,'Technician Summary'!$G$7:$BN$372,60,FALSE),"") ->  | L28: =IFERROR(VLOOKUP($G28,'Technician Summary'!$G$7:$BK$372,14,FALSE),"") ->  | M28: =IFERROR(VLOOKUP($G28,'Technician Summary'!$G$7:$BK$372,15,FALSE),"") ->  | O28: =IFERROR(VLOOKUP($G28,'Technician Summary'!$G$7:$BK$372,17,FALSE),"") ->  | P28: =IFERROR(VLOOKUP($G28,'Technician Summary'!$G$7:$BK$372,18,FALSE),"") ->  | R28: =IFERROR(VLOOKUP($G28,'Technician Summary'!$G$7:$BK$372,20,FALSE),"") ->  | S28: =IFERROR(VLOOKUP($G28,'Technician Summary'!$G$7:$BK$372,21,FALSE),"") ->  | U28: =IF(G28="","",COUNTIFS('StrataSync Data'!$AB:$AB,$G28,'StrataSync Data'!$G:$G,"Closed")) ->  | V28: =IF($G28="","",COUNTIFS('StrataSync Data'!$AB:$AB,$G28,'StrataSync Data'!$H:$H,"Yes",'StrataSync Data'!$G:$G,"Closed")) ->  | X28: =IFERROR(IF($G$7="","",COUNTIFS('StrataSync Data'!$AB:$AB,$G28,'StrataSync Data'!$I:$I,"Incomplete",'StrataSync Data'!$H:$H,"Yes",'StrataSync Data'!$G:$G,"Closed"))+IF($G28="","",COUNTIFS('StrataSync Data'!$AB:$AB,$G28,'StrataSync Data'!$I:$I,"Fail",'StrataSync Data'!$H:$H,"Yes",'StrataSync Data'!$G:$G,"Closed")),"") ->  | AA28: =IFERROR(SUM(Z28/#REF!),"") ->  | AB28: =IFERROR(VLOOKUP($G28,'Technician Summary'!$G$7:$BK$372,7,FALSE),"") ->  | AC28: =IFERROR(VLOOKUP($G28,'Technician Summary'!$G$7:$BK$372,8,FALSE),"") ->  | AE28: =IFERROR(VLOOKUP($G28,'Technician Summary'!$G$7:$BK$372,34,FALSE),"") ->  | AF28: =IFERROR(VLOOKUP($G28,'Technician Summary'!$G$7:$BK$372,35,FALSE),"") ->  | AH28: =IFERROR(VLOOKUP($G28,'Technician Summary'!$G$7:$BK$372,37,FALSE),"") ->  | AI28: =IFERROR(VLOOKUP($G28,'Technician Summary'!$G$7:$BK$372,38,FALSE),"") ->  | AK28: =IFERROR(VLOOKUP($G28,'Technician Summary'!$G$7:$BK$372,27,FALSE),"") ->  | AL28: =IFERROR(VLOOKUP($G28,'Technician Summary'!$G$7:$BK$372,68,FALSE),"") -> 
I29: =IFERROR(VLOOKUP($G29,'Technician Summary'!$G$7:$BB$372,2,FALSE),"") ->  | J29: =IFERROR(VLOOKUP($G29,'Technician Summary'!$G$7:$BN$372,60,FALSE),"") ->  | L29: =IFERROR(VLOOKUP($G29,'Technician Summary'!$G$7:$BK$372,14,FALSE),"") ->  | M29: =IFERROR(VLOOKUP($G29,'Technician Summary'!$G$7:$BK$372,15,FALSE),"") ->  | O29: =IFERROR(VLOOKUP($G29,'Technician Summary'!$G$7:$BK$372,17,FALSE),"") ->  | P29: =IFERROR(VLOOKUP($G29,'Technician Summary'!$G$7:$BK$372,18,FALSE),"") ->  | R29: =IFERROR(VLOOKUP($G29,'Technician Summary'!$G$7:$BK$372,20,FALSE),"") ->  | S29: =IFERROR(VLOOKUP($G29,'Technician Summary'!$G$7:$BK$372,21,FALSE),"") ->  | U29: =IF(G29="","",COUNTIFS('StrataSync Data'!$AB:$AB,$G29,'StrataSync Data'!$G:$G,"Closed")) ->  | V29: =IF($G29="","",COUNTIFS('StrataSync Data'!$AB:$AB,$G29,'StrataSync Data'!$H:$H,"Yes",'StrataSync Data'!$G:$G,"Closed")) ->  | X29: =IFERROR(IF($G$7="","",COUNTIFS('StrataSync Data'!$AB:$AB,$G29,'StrataSync Data'!$I:$I,"Incomplete",'StrataSync Data'!$H:$H,"Yes",'StrataSync Data'!$G:$G,"Closed"))+IF($G29="","",COUNTIFS('StrataSync Data'!$AB:$AB,$G29,'StrataSync Data'!$I:$I,"Fail",'StrataSync Data'!$H:$H,"Yes",'StrataSync Data'!$G:$G,"Closed")),"") ->  | AA29: =IFERROR(SUM(Z29/#REF!),"") ->  | AB29: =IFERROR(VLOOKUP($G29,'Technician Summary'!$G$7:$BK$372,7,FALSE),"") ->  | AC29: =IFERROR(VLOOKUP($G29,'Technician Summary'!$G$7:$BK$372,8,FALSE),"") ->  | AE29: =IFERROR(VLOOKUP($G29,'Technician Summary'!$G$7:$BK$372,34,FALSE),"") ->  | AF29: =IFERROR(VLOOKUP($G29,'Technician Summary'!$G$7:$BK$372,35,FALSE),"") ->  | AH29: =IFERROR(VLOOKUP($G29,'Technician Summary'!$G$7:$BK$372,37,FALSE),"") ->  | AI29: =IFERROR(VLOOKUP($G29,'Technician Summary'!$G$7:$BK$372,38,FALSE),"") ->  | AK29: =IFERROR(VLOOKUP($G29,'Technician Summary'!$G$7:$BK$372,27,FALSE),"") ->  | AL29: =IFERROR(VLOOKUP($G29,'Technician Summary'!$G$7:$BK$372,68,FALSE),"") -> 
I30: =IFERROR(VLOOKUP($G30,'Technician Summary'!$G$7:$BB$372,2,FALSE),"") ->  | J30: =IFERROR(VLOOKUP($G30,'Technician Summary'!$G$7:$BN$372,60,FALSE),"") ->  | L30: =IFERROR(VLOOKUP($G30,'Technician Summary'!$G$7:$BK$372,14,FALSE),"") ->  | M30: =IFERROR(VLOOKUP($G30,'Technician Summary'!$G$7:$BK$372,15,FALSE),"") ->  | O30: =IFERROR(VLOOKUP($G30,'Technician Summary'!$G$7:$BK$372,17,FALSE),"") ->  | P30: =IFERROR(VLOOKUP($G30,'Technician Summary'!$G$7:$BK$372,18,FALSE),"") ->  | R30: =IFERROR(VLOOKUP($G30,'Technician Summary'!$G$7:$BK$372,20,FALSE),"") ->  | S30: =IFERROR(VLOOKUP($G30,'Technician Summary'!$G$7:$BK$372,21,FALSE),"") ->  | U30: =IF(G30="","",COUNTIFS('StrataSync Data'!$AB:$AB,$G30,'StrataSync Data'!$G:$G,"Closed")) ->  | V30: =IF($G30="","",COUNTIFS('StrataSync Data'!$AB:$AB,$G30,'StrataSync Data'!$H:$H,"Yes",'StrataSync Data'!$G:$G,"Closed")) ->  | X30: =IFERROR(IF($G$7="","",COUNTIFS('StrataSync Data'!$AB:$AB,$G30,'StrataSync Data'!$I:$I,"Incomplete",'StrataSync Data'!$H:$H,"Yes",'StrataSync Data'!$G:$G,"Closed"))+IF($G30="","",COUNTIFS('StrataSync Data'!$AB:$AB,$G30,'StrataSync Data'!$I:$I,"Fail",'StrataSync Data'!$H:$H,"Yes",'StrataSync Data'!$G:$G,"Closed")),"") ->  | AA30: =IFERROR(SUM(Z30/#REF!),"") ->  | AB30: =IFERROR(VLOOKUP($G30,'Technician Summary'!$G$7:$BK$372,7,FALSE),"") ->  | AC30: =IFERROR(VLOOKUP($G30,'Technician Summary'!$G$7:$BK$372,8,FALSE),"") ->  | AE30: =IFERROR(VLOOKUP($G30,'Technician Summary'!$G$7:$BK$372,34,FALSE),"") ->  | AF30: =IFERROR(VLOOKUP($G30,'Technician Summary'!$G$7:$BK$372,35,FALSE),"") ->  | AH30: =IFERROR(VLOOKUP($G30,'Technician Summary'!$G$7:$BK$372,37,FALSE),"") ->  | AI30: =IFERROR(VLOOKUP($G30,'Technician Summary'!$G$7:$BK$372,38,FALSE),"") ->  | AK30: =IFERROR(VLOOKUP($G30,'Technician Summary'!$G$7:$BK$372,27,FALSE),"") ->  | AL30: =IFERROR(VLOOKUP($G30,'Technician Summary'!$G$7:$BK$372,68,FALSE),"") -> 
I31: =IFERROR(VLOOKUP($G31,'Technician Summary'!$G$7:$BB$372,2,FALSE),"") ->  | J31: =IFERROR(VLOOKUP($G31,'Technician Summary'!$G$7:$BN$372,60,FALSE),"") ->  | L31: =IFERROR(VLOOKUP($G31,'Technician Summary'!$G$7:$BK$372,14,FALSE),"") ->  | M31: =IFERROR(VLOOKUP($G31,'Technician Summary'!$G$7:$BK$372,15,FALSE),"") ->  | O31: =IFERROR(VLOOKUP($G31,'Technician Summary'!$G$7:$BK$372,17,FALSE),"") ->  | P31: =IFERROR(VLOOKUP($G31,'Technician Summary'!$G$7:$BK$372,18,FALSE),"") ->  | R31: =IFERROR(VLOOKUP($G31,'Technician Summary'!$G$7:$BK$372,20,FALSE),"") ->  | S31: =IFERROR(VLOOKUP($G31,'Technician Summary'!$G$7:$BK$372,21,FALSE),"") ->  | U31: =IF(G31="","",COUNTIFS('StrataSync Data'!$AB:$AB,$G31,'StrataSync Data'!$G:$G,"Closed")) ->  | V31: =IF($G31="","",COUNTIFS('StrataSync Data'!$AB:$AB,$G31,'StrataSync Data'!$H:$H,"Yes",'StrataSync Data'!$G:$G,"Closed")) ->  | X31: =IFERROR(IF($G$7="","",COUNTIFS('StrataSync Data'!$AB:$AB,$G31,'StrataSync Data'!$I:$I,"Incomplete",'StrataSync Data'!$H:$H,"Yes",'StrataSync Data'!$G:$G,"Closed"))+IF($G31="","",COUNTIFS('StrataSync Data'!$AB:$AB,$G31,'StrataSync Data'!$I:$I,"Fail",'StrataSync Data'!$H:$H,"Yes",'StrataSync Data'!$G:$G,"Closed")),"") ->  | AA31: =IFERROR(SUM(Z31/#REF!),"") ->  | AB31: =IFERROR(VLOOKUP($G31,'Technician Summary'!$G$7:$BK$372,7,FALSE),"") ->  | AC31: =IFERROR(VLOOKUP($G31,'Technician Summary'!$G$7:$BK$372,8,FALSE),"") ->  | AE31: =IFERROR(VLOOKUP($G31,'Technician Summary'!$G$7:$BK$372,34,FALSE),"") ->  | AF31: =IFERROR(VLOOKUP($G31,'Technician Summary'!$G$7:$BK$372,35,FALSE),"") ->  | AH31: =IFERROR(VLOOKUP($G31,'Technician Summary'!$G$7:$BK$372,37,FALSE),"") ->  | AI31: =IFERROR(VLOOKUP($G31,'Technician Summary'!$G$7:$BK$372,38,FALSE),"") ->  | AK31: =IFERROR(VLOOKUP($G31,'Technician Summary'!$G$7:$BK$372,27,FALSE),"") ->  | AL31: =IFERROR(VLOOKUP($G31,'Technician Summary'!$G$7:$BK$372,68,FALSE),"") -> 
I32: # NPS WO's | J32: # Failures | K32: NPS | L32: Total Repeatable WO | M32: Total Repeats | N32: Repeats | O32: Total Repeatable WO | P32: Repeat IN | Q32: IN Repeat % | R32: Total Repeatable WO | S32: Repeat TC | T32: Repeat TC % | U32: Jobs | V32: Test Run | W32: SQT Compliance | X32: Test Fail | Y32: SQT Pass | Z32: Test Passed | AA32: Ingress Test Pass | AB32: FCR WO | AC32: FCR Failures | AD32: FCR | AE32: Jobs | AF32: Jobs Late | AG32: OTA | AH32: Jobs | AI32: Completed Jobs | AJ32: Completion % | AK32: Total QC | AL32: QC Failure | AM32: SMS tNPS
I33: =SUMIF(I7:I31,">0") -> 14 | J33: =SUMIF(J7:J31,">0") -> 5.0001
K34: =IFERROR(1-(J33/I33),"") -> 0.6429 | L34: =SUM(L7:L31) -> 461 | M34: =SUM(M7:M31) -> 21 | N34: =IFERROR(SUM(M34/L34),"") -> 0.0456 | O34: =SUM(O7:O31) -> 245 | P34: =SUM(P7:P31) -> 12 | Q34: =IFERROR(SUM(P34/O34),"") -> 0.049 | R34: =SUM(R7:R31) -> 216 | S34: =SUM(S7:S31) -> 9 | T34: =IFERROR(SUM(S34/R34),"") -> 0.0417 | U34: =SUMIF(U7:U31,">0") -> 53 | V34: =SUMIF(V7:V31,">0") -> 53 | W34: =IFERROR(SUM(V34/U34),"") -> 1 | X34: =SUM(X7:X31) -> 0 | Y34: =IFERROR(SUM(1-X34/V34),"") -> 1 | Z34: =SUM(Z7:Z31) -> 0 | AA34: =IFERROR(SUM(Z34/#REF!),"") ->  | AB34: =SUM(AB7:AB31) -> 184 | AC34: =SUM(AC7:AC31) -> 4 | AD34: =IFERROR(1-AC34/AB34,"") -> 0.9783 | AE34: =SUM(AE7:AE31) -> 141 | AF34: =SUM(AF7:AF31) -> 6 | AG34: =IFERROR(1-AF34/AE34,"") -> 0.9574 | AH34: =SUM(AH7:AH31) -> 564 | AI34: =SUM(AI7:AI31) -> 461 | AJ34: =IFERROR(AI34/AH34,"") -> 0.8174 | AK34: =SUM(AK7:AK31) -> 0 | AL34: =SUM(AL7:AL31) -> 0 | AM34: =IFERROR(1-AL34/AK34,"") -> 

Sheet Hampton Roads
F3: Jervar Gayle
F5: Tech Name | G5: Tech ID | H5: Score | I5: # NPS WO's | J5: # Failures | K5: NPS | L5: Total Repeatable WO | M5: Total Repeats | N5: Repeats | O5: Total Repeatable WO | P5: Repeat IN | Q5: IN Repeat % | R5: Total Repeatable WO | S5: Repeat TC | T5: Repeat TC % | U5: Jobs | V5: Test Run | W5: SQT Compliance | X5: Test Fail | Y5: SQT Pass | Z5: Test Passed | AA5: Ingress Test Pass | AB5: FCR WO | AC5: FCR Failures | AD5: FCR | AE5: Jobs | AF5: Jobs Late | AG5: OTA | AH5: Jobs | AI5: Completed Jobs | AJ5: Completion % | AK5: Total QC | AL5: QC Failure | AM5: SMS tNPS
F7: Eric Gibbs | G7: 16597 | H7: =IF(W7="","",IFERROR(IF(K7>=70%,2.5,0)+IF(N7<=4%,2.5,0)+IF(W7>=90%,2.5,0)+IF(AG7>=96%,2.5,0),"")) ->  | I7: =IFERROR(VLOOKUP($G7,'Technician Summary'!$G$7:$BB$372,2,FALSE),"") ->  | J7: =IFERROR(VLOOKUP($G7,'Technician Summary'!$G$7:$BN$372,60,FALSE),"") ->  | K7: =IFERROR(1-(J7/I7),"") ->  | L7: =IFERROR(VLOOKUP($G7,'Technician Summary'!$G$7:$BK$372,14,FALSE),"") ->  | M7: =IFERROR(VLOOKUP($G7,'Technician Summary'!$G$7:$BK$372,15,FALSE),"") ->  | N7: =IFERROR(SUM(M7/L7),"") ->  | O7: =IFERROR(VLOOKUP($G7,'Technician Summary'!$G$7:$BK$372,17,FALSE),"") ->  | P7: =IFERROR(VLOOKUP($G7,'Technician Summary'!$G$7:$BK$372,18,FALSE),"") ->  | Q7: =IFERROR(SUM(P7/O7),"") ->  | R7: =IFERROR(VLOOKUP($G7,'Technician Summary'!$G$7:$BK$372,20,FALSE),"") ->  | S7: =IFERROR(VLOOKUP($G7,'Technician Summary'!$G$7:$BK$372,21,FALSE),"") ->  | T7: =IFERROR(SUM(S7/R7),"") ->  | U7: =IF(G7="","",COUNTIFS('StrataSync Data'!$AB:$AB,$G7,'StrataSync Data'!$G:$G,"Closed")) -> 0 | V7: =IF($G7="","",COUNTIFS('StrataSync Data'!$AB:$AB,$G7,'StrataSync Data'!$H:$H,"Yes",'StrataSync Data'!$G:$G,"Closed")) -> 0 | W7: =IFERROR(SUM(V7/U7),"") ->  | X7: =IFERROR(IF($G$7="","",COUNTIFS('StrataSync Data'!$AB:$AB,$G7,'StrataSync Data'!$I:$I,"Incomplete",'StrataSync Data'!$H:$H,"Yes",'StrataSync Data'!$G:$G,"Closed"))+IF($G7="","",COUNTIFS('StrataSync Data'!$AB:$AB,$G7,'StrataSync Data'!$I:$I,"Fail",'StrataSync Data'!$H:$H,"Yes",'StrataSync Data'!$G:$G,"Closed")),"") -> 0 | Y7: =IFERROR(SUM(1-X7/V7),"") ->  | AA7: =IFERROR(SUM(Z7/#REF!),"") ->  | AB7: =IFERROR(VLOOKUP($G7,'Technician Summary'!$G$7:$BK$372,7,FALSE),"") ->  | AC7: =IFERROR(VLOOKUP($G7,'Technician Summary'!$G$7:$BK$372,8,FALSE),"") ->  | AD7: =IFERROR(1-AC7/AB7,"") ->  | AE7: =IFERROR(VLOOKUP($G7,'Technician Summary'!$G$7:$BK$372,34,FALSE),"") ->  | AF7: =IFERROR(VLOOKUP($G7,'Technician Summary'!$G$7:$BK$372,35,FALSE),"") ->  | AG7: =IFERROR(1-AF7/AE7,"") ->  | AH7: =IFERROR(VLOOKUP($G7,'Technician Summary'!$G$7:$BK$372,37,FALSE),"") ->  | AI7: =IFERROR(VLOOKUP($G7,'Technician Summary'!$G$7:$BK$372,38,FALSE),"") ->  | AJ7: =IFERROR(AI7/AH7,"") ->  | AK7: =IFERROR(VLOOKUP($G7,'Technician Summary'!$G$7:$BK$372,27,FALSE),"") ->  | AL7: =IFERROR(VLOOKUP($G7,'Technician Summary'!$G$7:$BK$372,68,FALSE),"") ->  | AM7: =IFERROR(1-AL7/AK7,"") -> 
F8: Reginald Lewis | G8: 26091 | H8: =IF(W8="","",IFERROR(IF(K8>=70%,2.5,0)+IF(N8<=4%,2.5,0)+IF(W8>=90%,2.5,0)+IF(AG8>=96%,2.5,0),"")) -> 7.5 | I8: =IFERROR(VLOOKUP($G8,'Technician Summary'!$G$7:$BB$372,2,FALSE),"") -> 0 | J8: =IFERROR(VLOOKUP($G8,'Technician Summary'!$G$7:$BN$372,60,FALSE),"") ->  | K8: =IFERROR(1-(J8/I8),"") ->  | L8: =IFERROR(VLOOKUP($G8,'Technician Summary'!$G$7:$BK$372,14,FALSE),"") -> 39 | M8: =IFERROR(VLOOKUP($G8,'Technician Summary'!$G$7:$BK$372,15,FALSE),"") -> 0 | N8: =IFERROR(SUM(M8/L8),"") -> 0 | O8: =IFERROR(VLOOKUP($G8,'Technician Summary'!$G$7:$BK$372,17,FALSE),"") -> 23 | P8: =IFERROR(VLOOKUP($G8,'Technician Summary'!$G$7:$BK$372,18,FALSE),"") -> 0 | Q8: =IFERROR(SUM(P8/O8),"") -> 0 | R8: =IFERROR(VLOOKUP($G8,'Technician Summary'!$G$7:$BK$372,20,FALSE),"") -> 16 | S8: =IFERROR(VLOOKUP($G8,'Technician Summary'!$G$7:$BK$372,21,FALSE),"") -> 0 | T8: =IFERROR(SUM(S8/R8),"") -> 0 | U8: =IF(G8="","",COUNTIFS('StrataSync Data'!$AB:$AB,$G8,'StrataSync Data'!$G:$G,"Closed")) -> 20 | V8: =IF($G8="","",COUNTIFS('StrataSync Data'!$AB:$AB,$G8,'StrataSync Data'!$H:$H,"Yes",'StrataSync Data'!$G:$G,"Closed")) -> 19 | W8: =IFERROR(SUM(V8/U8),"") -> 0.95 | X8: =IFERROR(IF($G$7="","",COUNTIFS('StrataSync Data'!$AB:$AB,$G8,'StrataSync Data'!$I:$I,"Incomplete",'StrataSync Data'!$H:$H,"Yes",'StrataSync Data'!$G:$G,"Closed"))+IF($G8="","",COUNTIFS('StrataSync Data'!$AB:$AB,$G8,'StrataSync Data'!$I:$I,"Fail",'StrataSync Data'!$H:$H,"Yes",'StrataSync Data'!$G:$G,"Closed")),"") -> 0 | Y8: =IFERROR(SUM(1-X8/V8),"") -> 1 | AA8: =IFERROR(SUM(Z8/#REF!),"") ->  | AB8: =IFERROR(VLOOKUP($G8,'Technician Summary'!$G$7:$BK$372,7,FALSE),"") -> 22 | AC8: =IFERROR(VLOOKUP($G8,'Technician Summary'!$G$7:$BK$372,8,FALSE),"") -> 0 | AD8: =IFERROR(1-AC8/AB8,"") -> 1 | AE8: =IFERROR(VLOOKUP($G8,'Technician Summary'!$G$7:$BK$372,34,FALSE),"") -> 9 | AF8: =IFERROR(VLOOKUP($G8,'Technician Summary'!$G$7:$BK$372,35,FALSE),"") -> 4 | AG8: =IFERROR(1-AF8/AE8,"") -> 0.5556 | AH8: =IFERROR(VLOOKUP($G8,'Technician Summary'!$G$7:$BK$372,37,FALSE),"") -> 35 | AI8: =IFERROR(VLOOKUP($G8,'Technician Summary'!$G$7:$BK$372,38,FALSE),"") -> 35 | AJ8: =IFERROR(AI8/AH8,"") -> 1 | AK8: =IFERROR(VLOOKUP($G8,'Technician Summary'!$G$7:$BK$372,27,FALSE),"") -> 0 | AL8: =IFERROR(VLOOKUP($G8,'Technician Summary'!$G$7:$BK$372,68,FALSE),"") ->  | AM8: =IFERROR(1-AL8/AK8,"") -> 
F9: Brandon Price | G9: 27228 | I9: =IFERROR(VLOOKUP($G9,'Technician Summary'!$G$7:$BB$372,2,FALSE),"") ->  | J9: =IFERROR(VLOOKUP($G9,'Technician Summary'!$G$7:$BN$372,60,FALSE),"") ->  | L9: =IFERROR(VLOOKUP($G9,'Technician Summary'!$G$7:$BK$372,14,FALSE),"") ->  | M9: =IFERROR(VLOOKUP($G9,'Technician Summary'!$G$7:$BK$372,15,FALSE),"") ->  | O9: =IFERROR(VLOOKUP($G9,'Technician Summary'!$G$7:$BK$372,17,FALSE),"") ->  | P9: =IFERROR(VLOOKUP($G9,'Technician Summary'!$G$7:$BK$372,18,FALSE),"") ->  | R9: =IFERROR(VLOOKUP($G9,'Technician Summary'!$G$7:$BK$372,20,FALSE),"") ->  | S9: =IFERROR(VLOOKUP($G9,'Technician Summary'!$G$7:$BK$372,21,FALSE),"") ->  | U9: =IF(G9="","",COUNTIFS('StrataSync Data'!$AB:$AB,$G9,'StrataSync Data'!$G:$G,"Closed")) -> 0 | V9: =IF($G9="","",COUNTIFS('StrataSync Data'!$AB:$AB,$G9,'StrataSync Data'!$H:$H,"Yes",'StrataSync Data'!$G:$G,"Closed")) -> 0 | X9: =IFERROR(IF($G$7="","",COUNTIFS('StrataSync Data'!$AB:$AB,$G9,'StrataSync Data'!$I:$I,"Incomplete",'StrataSync Data'!$H:$H,"Yes",'StrataSync Data'!$G:$G,"Closed"))+IF($G9="","",COUNTIFS('StrataSync Data'!$AB:$AB,$G9,'StrataSync Data'!$I:$I,"Fail",'StrataSync Data'!$H:$H,"Yes",'StrataSync Data'!$G:$G,"Closed")),"") -> 0 | AA9: =IFERROR(SUM(Z9/#REF!),"") ->  | AB9: =IFERROR(VLOOKUP($G9,'Technician Summary'!$G$7:$BK$372,7,FALSE),"") ->  | AC9: =IFERROR(VLOOKUP($G9,'Technician Summary'!$G$7:$BK$372,8,FALSE),"") ->  | AE9: =IFERROR(VLOOKUP($G9,'Technician Summary'!$G$7:$BK$372,34,FALSE),"") ->  | AF9: =IFERROR(VLOOKUP($G9,'Technician Summary'!$G$7:$BK$372,35,FALSE),"") ->  | AH9: =IFERROR(VLOOKUP($G9,'Technician Summary'!$G$7:$BK$372,37,FALSE),"") ->  | AI9: =IFERROR(VLOOKUP($G9,'Technician Summary'!$G$7:$BK$372,38,FALSE),"") ->  | AK9: =IFERROR(VLOOKUP($G9,'Technician Summary'!$G$7:$BK$372,27,FALSE),"") ->  | AL9: =IFERROR(VLOOKUP($G9,'Technician Summary'!$G$7:$BK$372,68,FALSE),"") -> 
F10: Eric Johnson | G10: 39500 | H10: 5 | I10: =IFERROR(VLOOKUP($G10,'Technician Summary'!$G$7:$BB$372,2,FALSE),"") -> 0 | J10: =IFERROR(VLOOKUP($G10,'Technician Summary'!$G$7:$BN$372,60,FALSE),"") ->  | L10: =IFERROR(VLOOKUP($G10,'Technician Summary'!$G$7:$BK$372,14,FALSE),"") -> 51 | M10: =IFERROR(VLOOKUP($G10,'Technician Summary'!$G$7:$BK$372,15,FALSE),"") -> 2 | N10: 0.0392 | O10: =IFERROR(VLOOKUP($G10,'Technician Summary'!$G$7:$BK$372,17,FALSE),"") -> 28 | P10: =IFERROR(VLOOKUP($G10,'Technician Summary'!$G$7:$BK$372,18,FALSE),"") -> 0 | Q10: 0 | R10: =IFERROR(VLOOKUP($G10,'Technician Summary'!$G$7:$BK$372,20,FALSE),"") -> 23 | S10: =IFERROR(VLOOKUP($G10,'Technician Summary'!$G$7:$BK$372,21,FALSE),"") -> 2 | T10: 0.087 | U10: =IF(G10="","",COUNTIFS('StrataSync Data'!$AB:$AB,$G10,'StrataSync Data'!$G:$G,"Closed")) -> 38 | V10: =IF($G10="","",COUNTIFS('StrataSync Data'!$AB:$AB,$G10,'StrataSync Data'!$H:$H,"Yes",'StrataSync Data'!$G:$G,"Closed")) -> 27 | W10: 0.7105 | X10: =IFERROR(IF($G$7="","",COUNTIFS('StrataSync Data'!$AB:$AB,$G10,'StrataSync Data'!$I:$I,"Incomplete",'StrataSync Data'!$H:$H,"Yes",'StrataSync Data'!$G:$G,"Closed"))+IF($G10="","",COUNTIFS('StrataSync Data'!$AB:$AB,$G10,'StrataSync Data'!$I:$I,"Fail",'StrataSync Data'!$H:$H,"Yes",'StrataSync Data'!$G:$G,"Closed")),"") -> 3 | Y10: 0.8889 | AA10: =IFERROR(SUM(Z10/#REF!),"") ->  | AB10: =IFERROR(VLOOKUP($G10,'Technician Summary'!$G$7:$BK$372,7,FALSE),"") -> 31 | AC10: =IFERROR(VLOOKUP($G10,'Technician Summary'!$G$7:$BK$372,8,FALSE),"") -> 1 | AD10: 0.9677 | AE10: =IFERROR(VLOOKUP($G10,'Technician Summary'!$G$7:$BK$372,34,FALSE),"") -> 15 | AF10: =IFERROR(VLOOKUP($G10,'Technician Summary'!$G$7:$BK$372,35,FALSE),"") -> 1 | AG10: 0.9333 | AH10: =IFERROR(VLOOKUP($G10,'Technician Summary'!$G$7:$BK$372,37,FALSE),"") -> 48 | AI10: =IFERROR(VLOOKUP($G10,'Technician Summary'!$G$7:$BK$372,38,FALSE),"") -> 48 | AJ10: 1 | AK10: =IFERROR(VLOOKUP($G10,'Technician Summary'!$G$7:$BK$372,27,FALSE),"") -> 0 | AL10: =IFERROR(VLOOKUP($G10,'Technician Summary'!$G$7:$BK$372,68,FALSE),"") -> 
B11: Home | F11: Abdul Wali | G11: 53006 | H11: 2.5 | I11: =IFERROR(VLOOKUP($G11,'Technician Summary'!$G$7:$BB$372,2,FALSE),"") -> 0 | J11: =IFERROR(VLOOKUP($G11,'Technician Summary'!$G$7:$BN$372,60,FALSE),"") ->  | L11: =IFERROR(VLOOKUP($G11,'Technician Summary'!$G$7:$BK$372,14,FALSE),"") -> 48 | M11: =IFERROR(VLOOKUP($G11,'Technician Summary'!$G$7:$BK$372,15,FALSE),"") -> 2 | N11: 0.0417 | O11: =IFERROR(VLOOKUP($G11,'Technician Summary'!$G$7:$BK$372,17,FALSE),"") -> 30 | P11: =IFERROR(VLOOKUP($G11,'Technician Summary'!$G$7:$BK$372,18,FALSE),"") -> 2 | Q11: 0.0667 | R11: =IFERROR(VLOOKUP($G11,'Technician Summary'!$G$7:$BK$372,20,FALSE),"") -> 18 | S11: =IFERROR(VLOOKUP($G11,'Technician Summary'!$G$7:$BK$372,21,FALSE),"") -> 0 | T11: 0 | U11: =IF(G11="","",COUNTIFS('StrataSync Data'!$AB:$AB,$G11,'StrataSync Data'!$G:$G,"Closed")) -> 29 | V11: =IF($G11="","",COUNTIFS('StrataSync Data'!$AB:$AB,$G11,'StrataSync Data'!$H:$H,"Yes",'StrataSync Data'!$G:$G,"Closed")) -> 25 | W11: 0.8621 | X11: =IFERROR(IF($G$7="","",COUNTIFS('StrataSync Data'!$AB:$AB,$G11,'StrataSync Data'!$I:$I,"Incomplete",'StrataSync Data'!$H:$H,"Yes",'StrataSync Data'!$G:$G,"Closed"))+IF($G11="","",COUNTIFS('StrataSync Data'!$AB:$AB,$G11,'StrataSync Data'!$I:$I,"Fail",'StrataSync Data'!$H:$H,"Yes",'StrataSync Data'!$G:$G,"Closed")),"") -> 1 | Y11: 0.96 | AA11: =IFERROR(SUM(Z11/#REF!),"") ->  | AB11: =IFERROR(VLOOKUP($G11,'Technician Summary'!$G$7:$BK$372,7,FALSE),"") -> 24 | AC11: =IFERROR(VLOOKUP($G11,'Technician Summary'!$G$7:$BK$372,8,FALSE),"") -> 1 | AD11: 0.9583 | AE11: =IFERROR(VLOOKUP($G11,'Technician Summary'!$G$7:$BK$372,34,FALSE),"") -> 14 | AF11: =IFERROR(VLOOKUP($G11,'Technician Summary'!$G$7:$BK$372,35,FALSE),"") -> 1 | AG11: 0.9286 | AH11: =IFERROR(VLOOKUP($G11,'Technician Summary'!$G$7:$BK$372,37,FALSE),"") -> 49 | AI11: =IFERROR(VLOOKUP($G11,'Technician Summary'!$G$7:$BK$372,38,FALSE),"") -> 46 | AJ11: 0.9388 | AK11: =IFERROR(VLOOKUP($G11,'Technician Summary'!$G$7:$BK$372,27,FALSE),"") -> 0 | AL11: =IFERROR(VLOOKUP($G11,'Technician Summary'!$G$7:$BK$372,68,FALSE),"") -> 
F12: Gary Wendland | G12: 11622 | H12: 10 | I12: =IFERROR(VLOOKUP($G12,'Technician Summary'!$G$7:$BB$372,2,FALSE),"") -> 0 | J12: =IFERROR(VLOOKUP($G12,'Technician Summary'!$G$7:$BN$372,60,FALSE),"") ->  | L12: =IFERROR(VLOOKUP($G12,'Technician Summary'!$G$7:$BK$372,14,FALSE),"") -> 32 | M12: =IFERROR(VLOOKUP($G12,'Technician Summary'!$G$7:$BK$372,15,FALSE),"") -> 1 | N12: 0.0313 | O12: =IFERROR(VLOOKUP($G12,'Technician Summary'!$G$7:$BK$372,17,FALSE),"") -> 20 | P12: =IFERROR(VLOOKUP($G12,'Technician Summary'!$G$7:$BK$372,18,FALSE),"") -> 0 | Q12: 0 | R12: =IFERROR(VLOOKUP($G12,'Technician Summary'!$G$7:$BK$372,20,FALSE),"") -> 12 | S12: =IFERROR(VLOOKUP($G12,'Technician Summary'!$G$7:$BK$372,21,FALSE),"") -> 1 | T12: 0.0833 | U12: =IF(G12="","",COUNTIFS('StrataSync Data'!$AB:$AB,$G12,'StrataSync Data'!$G:$G,"Closed")) -> 30 | V12: =IF($G12="","",COUNTIFS('StrataSync Data'!$AB:$AB,$G12,'StrataSync Data'!$H:$H,"Yes",'StrataSync Data'!$G:$G,"Closed")) -> 29 | W12: 0.9667 | X12: =IFERROR(IF($G$7="","",COUNTIFS('StrataSync Data'!$AB:$AB,$G12,'StrataSync Data'!$I:$I,"Incomplete",'StrataSync Data'!$H:$H,"Yes",'StrataSync Data'!$G:$G,"Closed"))+IF($G12="","",COUNTIFS('StrataSync Data'!$AB:$AB,$G12,'StrataSync Data'!$I:$I,"Fail",'StrataSync Data'!$H:$H,"Yes",'StrataSync Data'!$G:$G,"Closed")),"") -> 1 | Y12: 0.9655 | AA12: =IFERROR(SUM(Z12/#REF!),"") ->  | AB12: =IFERROR(VLOOKUP($G12,'Technician Summary'!$G$7:$BK$372,7,FALSE),"") -> 15 | AC12: =IFERROR(VLOOKUP($G12,'Technician Summary'!$G$7:$BK$372,8,FALSE),"") -> 1 | AD12: 0.9333 | AE12: =IFERROR(VLOOKUP($G12,'Technician Summary'!$G$7:$BK$372,34,FALSE),"") -> 12 | AF12: =IFERROR(VLOOKUP($G12,'Technician Summary'!$G$7:$BK$372,35,FALSE),"") -> 0 | AG12: 1 | AH12: =IFERROR(VLOOKUP($G12,'Technician Summary'!$G$7:$BK$372,37,FALSE),"") -> 32 | AI12: =IFERROR(VLOOKUP($G12,'Technician Summary'!$G$7:$BK$372,38,FALSE),"") -> 24 | AJ12: 0.75 | AK12: =IFERROR(VLOOKUP($G12,'Technician Summary'!$G$7:$BK$372,27,FALSE),"") -> 0 | AL12: =IFERROR(VLOOKUP($G12,'Technician Summary'!$G$7:$BK$372,68,FALSE),"") -> 
B13: Performance Metrics | F13: Ahmed Aktira | G13: 47367 | H13: 5 | I13: =IFERROR(VLOOKUP($G13,'Technician Summary'!$G$7:$BB$372,2,FALSE),"") -> 7 | J13: =IFERROR(VLOOKUP($G13,'Technician Summary'!$G$7:$BN$372,60,FALSE),"") -> 1.9999 | K13: 0.7143 | L13: =IFERROR(VLOOKUP($G13,'Technician Summary'!$G$7:$BK$372,14,FALSE),"") -> 55 | M13: =IFERROR(VLOOKUP($G13,'Technician Summary'!$G$7:$BK$372,15,FALSE),"") -> 5 | N13: 0.0909 | O13: =IFERROR(VLOOKUP($G13,'Technician Summary'!$G$7:$BK$372,17,FALSE),"") -> 19 | P13: =IFERROR(VLOOKUP($G13,'Technician Summary'!$G$7:$BK$372,18,FALSE),"") -> 0 | Q13: 0 | R13: =IFERROR(VLOOKUP($G13,'Technician Summary'!$G$7:$BK$372,20,FALSE),"") -> 36 | S13: =IFERROR(VLOOKUP($G13,'Technician Summary'!$G$7:$BK$372,21,FALSE),"") -> 5 | T13: 0.1389 | U13: =IF(G13="","",COUNTIFS('StrataSync Data'!$AB:$AB,$G13,'StrataSync Data'!$G:$G,"Closed")) -> 54 | V13: =IF($G13="","",COUNTIFS('StrataSync Data'!$AB:$AB,$G13,'StrataSync Data'!$H:$H,"Yes",'StrataSync Data'!$G:$G,"Closed")) -> 48 | W13: 0.8889 | X13: =IFERROR(IF($G$7="","",COUNTIFS('StrataSync Data'!$AB:$AB,$G13,'StrataSync Data'!$I:$I,"Incomplete",'StrataSync Data'!$H:$H,"Yes",'StrataSync Data'!$G:$G,"Closed"))+IF($G13="","",COUNTIFS('StrataSync Data'!$AB:$AB,$G13,'StrataSync Data'!$I:$I,"Fail",'StrataSync Data'!$H:$H,"Yes",'StrataSync Data'!$G:$G,"Closed")),"") -> 12 | Y13: 0.75 | AA13: =IFERROR(SUM(Z13/#REF!),"") ->  | AB13: =IFERROR(VLOOKUP($G13,'Technician Summary'!$G$7:$BK$372,7,FALSE),"") -> 26 | AC13: =IFERROR(VLOOKUP($G13,'Technician Summary'!$G$7:$BK$372,8,FALSE),"") -> 1 | AD13: 0.9615 | AE13: =IFERROR(VLOOKUP($G13,'Technician Summary'!$G$7:$BK$372,34,FALSE),"") -> 18 | AF13: =IFERROR(VLOOKUP($G13,'Technician Summary'!$G$7:$BK$372,35,FALSE),"") -> 0 | AG13: 1 | AH13: =IFERROR(VLOOKUP($G13,'Technician Summary'!$G$7:$BK$372,37,FALSE),"") -> 58 | AI13: =IFERROR(VLOOKUP($G13,'Technician Summary'!$G$7:$BK$372,38,FALSE),"") -> 55 | AJ13: 0.9483 | AK13: =IFERROR(VLOOKUP($G13,'Technician Summary'!$G$7:$BK$372,27,FALSE),"") -> 0 | AL13: =IFERROR(VLOOKUP($G13,'Technician Summary'!$G$7:$BK$372,68,FALSE),"") -> 
B14: Gainesville | F14: David Newton | G14: 45614 | H14: 7.5 | I14: =IFERROR(VLOOKUP($G14,'Technician Summary'!$G$7:$BB$372,2,FALSE),"") -> 0 | J14: =IFERROR(VLOOKUP($G14,'Technician Summary'!$G$7:$BN$372,60,FALSE),"") ->  | L14: =IFERROR(VLOOKUP($G14,'Technician Summary'!$G$7:$BK$372,14,FALSE),"") -> 60 | M14: =IFERROR(VLOOKUP($G14,'Technician Summary'!$G$7:$BK$372,15,FALSE),"") -> 0 | N14: 0 | O14: =IFERROR(VLOOKUP($G14,'Technician Summary'!$G$7:$BK$372,17,FALSE),"") -> 60 | P14: =IFERROR(VLOOKUP($G14,'Technician Summary'!$G$7:$BK$372,18,FALSE),"") -> 0 | Q14: 0 | R14: =IFERROR(VLOOKUP($G14,'Technician Summary'!$G$7:$BK$372,20,FALSE),"") -> 0 | S14: =IFERROR(VLOOKUP($G14,'Technician Summary'!$G$7:$BK$372,21,FALSE),"") -> 0 | U14: =IF(G14="","",COUNTIFS('StrataSync Data'!$AB:$AB,$G14,'StrataSync Data'!$G:$G,"Closed")) -> 40 | V14: =IF($G14="","",COUNTIFS('StrataSync Data'!$AB:$AB,$G14,'StrataSync Data'!$H:$H,"Yes",'StrataSync Data'!$G:$G,"Closed")) -> 0 | W14: 0 | X14: =IFERROR(IF($G$7="","",COUNTIFS('StrataSync Data'!$AB:$AB,$G14,'StrataSync Data'!$I:$I,"Incomplete",'StrataSync Data'!$H:$H,"Yes",'StrataSync Data'!$G:$G,"Closed"))+IF($G14="","",COUNTIFS('StrataSync Data'!$AB:$AB,$G14,'StrataSync Data'!$I:$I,"Fail",'StrataSync Data'!$H:$H,"Yes",'StrataSync Data'!$G:$G,"Closed")),"") -> 0 | AA14: =IFERROR(SUM(Z14/#REF!),"") ->  | AB14: =IFERROR(VLOOKUP($G14,'Technician Summary'!$G$7:$BK$372,7,FALSE),"") -> 42 | AC14: =IFERROR(VLOOKUP($G14,'Technician Summary'!$G$7:$BK$372,8,FALSE),"") -> 0 | AD14: 1 | AE14: =IFERROR(VLOOKUP($G14,'Technician Summary'!$G$7:$BK$372,34,FALSE),"") -> 0 | AF14: =IFERROR(VLOOKUP($G14,'Technician Summary'!$G$7:$BK$372,35,FALSE),"") -> 0 | AH14: =IFERROR(VLOOKUP($G14,'Technician Summary'!$G$7:$BK$372,37,FALSE),"") -> 2 | AI14: =IFERROR(VLOOKUP($G14,'Technician Summary'!$G$7:$BK$372,38,FALSE),"") -> 2 | AJ14: 1 | AK14: =IFERROR(VLOOKUP($G14,'Technician Summary'!$G$7:$BK$372,27,FALSE),"") -> 0 | AL14: =IFERROR(VLOOKUP($G14,'Technician Summary'!$G$7:$BK$372,68,FALSE),"") -> 
B15: Macon | F15: Adair Young | G15: 48345 | I15: =IFERROR(VLOOKUP($G15,'Technician Summary'!$G$7:$BB$372,2,FALSE),"") ->  | J15: =IFERROR(VLOOKUP($G15,'Technician Summary'!$G$7:$BN$372,60,FALSE),"") ->  | L15: =IFERROR(VLOOKUP($G15,'Technician Summary'!$G$7:$BK$372,14,FALSE),"") ->  | M15: =IFERROR(VLOOKUP($G15,'Technician Summary'!$G$7:$BK$372,15,FALSE),"") ->  | O15: =IFERROR(VLOOKUP($G15,'Technician Summary'!$G$7:$BK$372,17,FALSE),"") ->  | P15: =IFERROR(VLOOKUP($G15,'Technician Summary'!$G$7:$BK$372,18,FALSE),"") ->  | R15: =IFERROR(VLOOKUP($G15,'Technician Summary'!$G$7:$BK$372,20,FALSE),"") ->  | S15: =IFERROR(VLOOKUP($G15,'Technician Summary'!$G$7:$BK$372,21,FALSE),"") ->  | U15: =IF(G15="","",COUNTIFS('StrataSync Data'!$AB:$AB,$G15,'StrataSync Data'!$G:$G,"Closed")) -> 0 | V15: =IF($G15="","",COUNTIFS('StrataSync Data'!$AB:$AB,$G15,'StrataSync Data'!$H:$H,"Yes",'StrataSync Data'!$G:$G,"Closed")) -> 0 | X15: =IFERROR(IF($G$7="","",COUNTIFS('StrataSync Data'!$AB:$AB,$G15,'StrataSync Data'!$I:$I,"Incomplete",'StrataSync Data'!$H:$H,"Yes",'StrataSync Data'!$G:$G,"Closed"))+IF($G15="","",COUNTIFS('StrataSync Data'!$AB:$AB,$G15,'StrataSync Data'!$I:$I,"Fail",'StrataSync Data'!$H:$H,"Yes",'StrataSync Data'!$G:$G,"Closed")),"") -> 0 | AA15: =IFERROR(SUM(Z15/#REF!),"") ->  | AB15: =IFERROR(VLOOKUP($G15,'Technician Summary'!$G$7:$BK$372,7,FALSE),"") ->  | AC15: =IFERROR(VLOOKUP($G15,'Technician Summary'!$G$7:$BK$372,8,FALSE),"") ->  | AE15: =IFERROR(VLOOKUP($G15,'Technician Summary'!$G$7:$BK$372,34,FALSE),"") ->  | AF15: =IFERROR(VLOOKUP($G15,'Technician Summary'!$G$7:$BK$372,35,FALSE),"") ->  | AH15: =IFERROR(VLOOKUP($G15,'Technician Summary'!$G$7:$BK$372,37,FALSE),"") ->  | AI15: =IFERROR(VLOOKUP($G15,'Technician Summary'!$G$7:$BK$372,38,FALSE),"") ->  | AK15: =IFERROR(VLOOKUP($G15,'Technician Summary'!$G$7:$BK$372,27,FALSE),"") ->  | AL15: =IFERROR(VLOOKUP($G15,'Technician Summary'!$G$7:$BK$372,68,FALSE),"") -> 
B16: New Orleans | F16: Carlos Browley | G16: 56645 | H16: 7.5 | I16: =IFERROR(VLOOKUP($G16,'Technician Summary'!$G$7:$BB$372,2,FALSE),"") -> 2 | J16: =IFERROR(VLOOKUP($G16,'Technician Summary'!$G$7:$BN$372,60,FALSE),"") -> 0 | K16: 1 | L16: =IFERROR(VLOOKUP($G16,'Technician Summary'!$G$7:$BK$372,14,FALSE),"") -> 22 | M16: =IFERROR(VLOOKUP($G16,'Technician Summary'!$G$7:$BK$372,15,FALSE),"") -> 2 | N16: 0.0909 | O16: =IFERROR(VLOOKUP($G16,'Technician Summary'!$G$7:$BK$372,17,FALSE),"") -> 10 | P16: =IFERROR(VLOOKUP($G16,'Technician Summary'!$G$7:$BK$372,18,FALSE),"") -> 2 | Q16: 0.2 | R16: =IFERROR(VLOOKUP($G16,'Technician Summary'!$G$7:$BK$372,20,FALSE),"") -> 12 | S16: =IFERROR(VLOOKUP($G16,'Technician Summary'!$G$7:$BK$372,21,FALSE),"") -> 0 | T16: 0 | U16: =IF(G16="","",COUNTIFS('StrataSync Data'!$AB:$AB,$G16,'StrataSync Data'!$G:$G,"Closed")) -> 18 | V16: =IF($G16="","",COUNTIFS('StrataSync Data'!$AB:$AB,$G16,'StrataSync Data'!$H:$H,"Yes",'StrataSync Data'!$G:$G,"Closed")) -> 17 | W16: 0.9444 | X16: =IFERROR(IF($G$7="","",COUNTIFS('StrataSync Data'!$AB:$AB,$G16,'StrataSync Data'!$I:$I,"Incomplete",'StrataSync Data'!$H:$H,"Yes",'StrataSync Data'!$G:$G,"Closed"))+IF($G16="","",COUNTIFS('StrataSync Data'!$AB:$AB,$G16,'StrataSync Data'!$I:$I,"Fail",'StrataSync Data'!$H:$H,"Yes",'StrataSync Data'!$G:$G,"Closed")),"") -> 0 | Y16: 1 | AA16: =IFERROR(SUM(Z16/#REF!),"") ->  | AB16: =IFERROR(VLOOKUP($G16,'Technician Summary'!$G$7:$BK$372,7,FALSE),"") -> 12 | AC16: =IFERROR(VLOOKUP($G16,'Technician Summary'!$G$7:$BK$372,8,FALSE),"") -> 2 | AD16: 0.8333 | AE16: =IFERROR(VLOOKUP($G16,'Technician Summary'!$G$7:$BK$372,34,FALSE),"") -> 10 | AF16: =IFERROR(VLOOKUP($G16,'Technician Summary'!$G$7:$BK$372,35,FALSE),"") -> 0 | AG16: 1 | AH16: =IFERROR(VLOOKUP($G16,'Technician Summary'!$G$7:$BK$372,37,FALSE),"") -> 22 | AI16: =IFERROR(VLOOKUP($G16,'Technician Summary'!$G$7:$BK$372,38,FALSE),"") -> 22 | AJ16: 1 | AK16: =IFERROR(VLOOKUP($G16,'Technician Summary'!$G$7:$BK$372,27,FALSE),"") -> 0 | AL16: =IFERROR(VLOOKUP($G16,'Technician Summary'!$G$7:$BK$372,68,FALSE),"") -> 
B17: Hampton Roads | F17: Jervar Gayle | G17: 85224 | I17: =IFERROR(VLOOKUP($G17,'Technician Summary'!$G$7:$BB$372,2,FALSE),"") ->  | J17: =IFERROR(VLOOKUP($G17,'Technician Summary'!$G$7:$BN$372,60,FALSE),"") ->  | L17: =IFERROR(VLOOKUP($G17,'Technician Summary'!$G$7:$BK$372,14,FALSE),"") ->  | M17: =IFERROR(VLOOKUP($G17,'Technician Summary'!$G$7:$BK$372,15,FALSE),"") ->  | O17: =IFERROR(VLOOKUP($G17,'Technician Summary'!$G$7:$BK$372,17,FALSE),"") ->  | P17: =IFERROR(VLOOKUP($G17,'Technician Summary'!$G$7:$BK$372,18,FALSE),"") ->  | R17: =IFERROR(VLOOKUP($G17,'Technician Summary'!$G$7:$BK$372,20,FALSE),"") ->  | S17: =IFERROR(VLOOKUP($G17,'Technician Summary'!$G$7:$BK$372,21,FALSE),"") ->  | U17: =IF(G17="","",COUNTIFS('StrataSync Data'!$AB:$AB,$G17,'StrataSync Data'!$G:$G,"Closed")) -> 0 | V17: =IF($G17="","",COUNTIFS('StrataSync Data'!$AB:$AB,$G17,'StrataSync Data'!$H:$H,"Yes",'StrataSync Data'!$G:$G,"Closed")) -> 0 | X17: =IFERROR(IF($G$7="","",COUNTIFS('StrataSync Data'!$AB:$AB,$G17,'StrataSync Data'!$I:$I,"Incomplete",'StrataSync Data'!$H:$H,"Yes",'StrataSync Data'!$G:$G,"Closed"))+IF($G17="","",COUNTIFS('StrataSync Data'!$AB:$AB,$G17,'StrataSync Data'!$I:$I,"Fail",'StrataSync Data'!$H:$H,"Yes",'StrataSync Data'!$G:$G,"Closed")),"") -> 0 | AA17: =IFERROR(SUM(Z17/#REF!),"") ->  | AB17: =IFERROR(VLOOKUP($G17,'Technician Summary'!$G$7:$BK$372,7,FALSE),"") ->  | AC17: =IFERROR(VLOOKUP($G17,'Technician Summary'!$G$7:$BK$372,8,FALSE),"") ->  | AE17: =IFERROR(VLOOKUP($G17,'Technician Summary'!$G$7:$BK$372,34,FALSE),"") ->  | AF17: =IFERROR(VLOOKUP($G17,'Technician Summary'!$G$7:$BK$372,35,FALSE),"") ->  | AH17: =IFERROR(VLOOKUP($G17,'Technician Summary'!$G$7:$BK$372,37,FALSE),"") ->  | AI17: =IFERROR(VLOOKUP($G17,'Technician Summary'!$G$7:$BK$372,38,FALSE),"") ->  | AK17: =IFERROR(VLOOKUP($G17,'Technician Summary'!$G$7:$BK$372,27,FALSE),"") ->  | AL17: =IFERROR(VLOOKUP($G17,'Technician Summary'!$G$7:$BK$372,68,FALSE),"") -> 
B18: Baton Rouge | F18: Thaer Mahases | G18: 52873 | H18: 5 | I18: =IFERROR(VLOOKUP($G18,'Technician Summary'!$G$7:$BB$372,2,FALSE),"") -> 5 | J18: =IFERROR(VLOOKUP($G18,'Technician Summary'!$G$7:$BN$372,60,FALSE),"") -> 2 | K18: 0.6 | L18: =IFERROR(VLOOKUP($G18,'Technician Summary'!$G$7:$BK$372,14,FALSE),"") -> 88 | M18: =IFERROR(VLOOKUP($G18,'Technician Summary'!$G$7:$BK$372,15,FALSE),"") -> 6 | N18: 0.0682 | O18: =IFERROR(VLOOKUP($G18,'Technician Summary'!$G$7:$BK$372,17,FALSE),"") -> 43 | P18: =IFERROR(VLOOKUP($G18,'Technician Summary'!$G$7:$BK$372,18,FALSE),"") -> 3 | Q18: 0.0698 | R18: =IFERROR(VLOOKUP($G18,'Technician Summary'!$G$7:$BK$372,20,FALSE),"") -> 45 | S18: =IFERROR(VLOOKUP($G18,'Technician Summary'!$G$7:$BK$372,21,FALSE),"") -> 3 | T18: 0.0667 | U18: =IF(G18="","",COUNTIFS('StrataSync Data'!$AB:$AB,$G18,'StrataSync Data'!$G:$G,"Closed")) -> 78 | V18: =IF($G18="","",COUNTIFS('StrataSync Data'!$AB:$AB,$G18,'StrataSync Data'!$H:$H,"Yes",'StrataSync Data'!$G:$G,"Closed")) -> 73 | W18: 0.9359 | X18: =IFERROR(IF($G$7="","",COUNTIFS('StrataSync Data'!$AB:$AB,$G18,'StrataSync Data'!$I:$I,"Incomplete",'StrataSync Data'!$H:$H,"Yes",'StrataSync Data'!$G:$G,"Closed"))+IF($G18="","",COUNTIFS('StrataSync Data'!$AB:$AB,$G18,'StrataSync Data'!$I:$I,"Fail",'StrataSync Data'!$H:$H,"Yes",'StrataSync Data'!$G:$G,"Closed")),"") -> 10 | Y18: 0.863 | AA18: =IFERROR(SUM(Z18/#REF!),"") ->  | AB18: =IFERROR(VLOOKUP($G18,'Technician Summary'!$G$7:$BK$372,7,FALSE),"") -> 46 | AC18: =IFERROR(VLOOKUP($G18,'Technician Summary'!$G$7:$BK$372,8,FALSE),"") -> 4 | AD18: 0.913 | AE18: =IFERROR(VLOOKUP($G18,'Technician Summary'!$G$7:$BK$372,34,FALSE),"") -> 40 | AF18: =IFERROR(VLOOKUP($G18,'Technician Summary'!$G$7:$BK$372,35,FALSE),"") -> 0 | AG18: 1 | AH18: =IFERROR(VLOOKUP($G18,'Technician Summary'!$G$7:$BK$372,37,FALSE),"") -> 93 | AI18: =IFERROR(VLOOKUP($G18,'Technician Summary'!$G$7:$BK$372,38,FALSE),"") -> 88 | AJ18: 0.9462 | AK18: =IFERROR(VLOOKUP($G18,'Technician Summary'!$G$7:$BK$372,27,FALSE),"") -> 0 | AL18: =IFERROR(VLOOKUP($G18,'Technician Summary'!$G$7:$BK$372,68,FALSE),"") -> 
B19: Roanoke | F19: Derrick taylor | G19: 41285 | I19: =IFERROR(VLOOKUP($G19,'Technician Summary'!$G$7:$BB$372,2,FALSE),"") ->  | J19: =IFERROR(VLOOKUP($G19,'Technician Summary'!$G$7:$BN$372,60,FALSE),"") ->  | L19: =IFERROR(VLOOKUP($G19,'Technician Summary'!$G$7:$BK$372,14,FALSE),"") ->  | M19: =IFERROR(VLOOKUP($G19,'Technician Summary'!$G$7:$BK$372,15,FALSE),"") ->  | O19: =IFERROR(VLOOKUP($G19,'Technician Summary'!$G$7:$BK$372,17,FALSE),"") ->  | P19: =IFERROR(VLOOKUP($G19,'Technician Summary'!$G$7:$BK$372,18,FALSE),"") ->  | R19: =IFERROR(VLOOKUP($G19,'Technician Summary'!$G$7:$BK$372,20,FALSE),"") ->  | S19: =IFERROR(VLOOKUP($G19,'Technician Summary'!$G$7:$BK$372,21,FALSE),"") ->  | U19: =IF(G19="","",COUNTIFS('StrataSync Data'!$AB:$AB,$G19,'StrataSync Data'!$G:$G,"Closed")) -> 0 | V19: =IF($G19="","",COUNTIFS('StrataSync Data'!$AB:$AB,$G19,'StrataSync Data'!$H:$H,"Yes",'StrataSync Data'!$G:$G,"Closed")) -> 0 | X19: =IFERROR(IF($G$7="","",COUNTIFS('StrataSync Data'!$AB:$AB,$G19,'StrataSync Data'!$I:$I,"Incomplete",'StrataSync Data'!$H:$H,"Yes",'StrataSync Data'!$G:$G,"Closed"))+IF($G19="","",COUNTIFS('StrataSync Data'!$AB:$AB,$G19,'StrataSync Data'!$I:$I,"Fail",'StrataSync Data'!$H:$H,"Yes",'StrataSync Data'!$G:$G,"Closed")),"") -> 0 | AA19: =IFERROR(SUM(Z19/#REF!),"") ->  | AB19: =IFERROR(VLOOKUP($G19,'Technician Summary'!$G$7:$BK$372,7,FALSE),"") ->  | AC19: =IFERROR(VLOOKUP($G19,'Technician Summary'!$G$7:$BK$372,8,FALSE),"") ->  | AE19: =IFERROR(VLOOKUP($G19,'Technician Summary'!$G$7:$BK$372,34,FALSE),"") ->  | AF19: =IFERROR(VLOOKUP($G19,'Technician Summary'!$G$7:$BK$372,35,FALSE),"") ->  | AH19: =IFERROR(VLOOKUP($G19,'Technician Summary'!$G$7:$BK$372,37,FALSE),"") ->  | AI19: =IFERROR(VLOOKUP($G19,'Technician Summary'!$G$7:$BK$372,38,FALSE),"") ->  | AK19: =IFERROR(VLOOKUP($G19,'Technician Summary'!$G$7:$BK$372,27,FALSE),"") ->  | AL19: =IFERROR(VLOOKUP($G19,'Technician Summary'!$G$7:$BK$372,68,FALSE),"") -> 
B20: Gulf Coast | F20: Shane Russell | G20: 9698 | I20: =IFERROR(VLOOKUP($G20,'Technician Summary'!$G$7:$BB$372,2,FALSE),"") ->  | J20: =IFERROR(VLOOKUP($G20,'Technician Summary'!$G$7:$BN$372,60,FALSE),"") ->  | L20: =IFERROR(VLOOKUP($G20,'Technician Summary'!$G$7:$BK$372,14,FALSE),"") ->  | M20: =IFERROR(VLOOKUP($G20,'Technician Summary'!$G$7:$BK$372,15,FALSE),"") ->  | O20: =IFERROR(VLOOKUP($G20,'Technician Summary'!$G$7:$BK$372,17,FALSE),"") ->  | P20: =IFERROR(VLOOKUP($G20,'Technician Summary'!$G$7:$BK$372,18,FALSE),"") ->  | R20: =IFERROR(VLOOKUP($G20,'Technician Summary'!$G$7:$BK$372,20,FALSE),"") ->  | S20: =IFERROR(VLOOKUP($G20,'Technician Summary'!$G$7:$BK$372,21,FALSE),"") ->  | U20: =IF(G20="","",COUNTIFS('StrataSync Data'!$AB:$AB,$G20,'StrataSync Data'!$G:$G,"Closed")) -> 0 | V20: =IF($G20="","",COUNTIFS('StrataSync Data'!$AB:$AB,$G20,'StrataSync Data'!$H:$H,"Yes",'StrataSync Data'!$G:$G,"Closed")) -> 0 | X20: =IFERROR(IF($G$7="","",COUNTIFS('StrataSync Data'!$AB:$AB,$G20,'StrataSync Data'!$I:$I,"Incomplete",'StrataSync Data'!$H:$H,"Yes",'StrataSync Data'!$G:$G,"Closed"))+IF($G20="","",COUNTIFS('StrataSync Data'!$AB:$AB,$G20,'StrataSync Data'!$I:$I,"Fail",'StrataSync Data'!$H:$H,"Yes",'StrataSync Data'!$G:$G,"Closed")),"") -> 0 | AA20: =IFERROR(SUM(Z20/#REF!),"") ->  | AB20: =IFERROR(VLOOKUP($G20,'Technician Summary'!$G$7:$BK$372,7,FALSE),"") ->  | AC20: =IFERROR(VLOOKUP($G20,'Technician Summary'!$G$7:$BK$372,8,FALSE),"") ->  | AE20: =IFERROR(VLOOKUP($G20,'Technician Summary'!$G$7:$BK$372,34,FALSE),"") ->  | AF20: =IFERROR(VLOOKUP($G20,'Technician Summary'!$G$7:$BK$372,35,FALSE),"") ->  | AH20: =IFERROR(VLOOKUP($G20,'Technician Summary'!$G$7:$BK$372,37,FALSE),"") ->  | AI20: =IFERROR(VLOOKUP($G20,'Technician Summary'!$G$7:$BK$372,38,FALSE),"") ->  | AK20: =IFERROR(VLOOKUP($G20,'Technician Summary'!$G$7:$BK$372,27,FALSE),"") ->  | AL20: =IFERROR(VLOOKUP($G20,'Technician Summary'!$G$7:$BK$372,68,FALSE),"") -> 
B21: Oklahoma City | F21: Jimmy Hollis | G21: 52991 | H21: 7.5 | I21: =IFERROR(VLOOKUP($G21,'Technician Summary'!$G$7:$BB$372,2,FALSE),"") -> 9 | J21: =IFERROR(VLOOKUP($G21,'Technician Summary'!$G$7:$BN$372,60,FALSE),"") -> 0.9999 | K21: 0.8889 | L21: =IFERROR(VLOOKUP($G21,'Technician Summary'!$G$7:$BK$372,14,FALSE),"") -> 60 | M21: =IFERROR(VLOOKUP($G21,'Technician Summary'!$G$7:$BK$372,15,FALSE),"") -> 2 | N21: 0.0333 | O21: =IFERROR(VLOOKUP($G21,'Technician Summary'!$G$7:$BK$372,17,FALSE),"") -> 22 | P21: =IFERROR(VLOOKUP($G21,'Technician Summary'!$G$7:$BK$372,18,FALSE),"") -> 0 | Q21: 0 | R21: =IFERROR(VLOOKUP($G21,'Technician Summary'!$G$7:$BK$372,20,FALSE),"") -> 38 | S21: =IFERROR(VLOOKUP($G21,'Technician Summary'!$G$7:$BK$372,21,FALSE),"") -> 2 | T21: 0.0526 | U21: =IF(G21="","",COUNTIFS('StrataSync Data'!$AB:$AB,$G21,'StrataSync Data'!$G:$G,"Closed")) -> 51 | V21: =IF($G21="","",COUNTIFS('StrataSync Data'!$AB:$AB,$G21,'StrataSync Data'!$H:$H,"Yes",'StrataSync Data'!$G:$G,"Closed")) -> 40 | W21: 0.7843 | X21: =IFERROR(IF($G$7="","",COUNTIFS('StrataSync Data'!$AB:$AB,$G21,'StrataSync Data'!$I:$I,"Incomplete",'StrataSync Data'!$H:$H,"Yes",'StrataSync Data'!$G:$G,"Closed"))+IF($G21="","",COUNTIFS('StrataSync Data'!$AB:$AB,$G21,'StrataSync Data'!$I:$I,"Fail",'StrataSync Data'!$H:$H,"Yes",'StrataSync Data'!$G:$G,"Closed")),"") -> 26 | Y21: 0.35 | AA21: =IFERROR(SUM(Z21/#REF!),"") ->  | AB21: =IFERROR(VLOOKUP($G21,'Technician Summary'!$G$7:$BK$372,7,FALSE),"") -> 27 | AC21: =IFERROR(VLOOKUP($G21,'Technician Summary'!$G$7:$BK$372,8,FALSE),"") -> 0 | AD21: 1 | AE21: =IFERROR(VLOOKUP($G21,'Technician Summary'!$G$7:$BK$372,34,FALSE),"") -> 18 | AF21: =IFERROR(VLOOKUP($G21,'Technician Summary'!$G$7:$BK$372,35,FALSE),"") -> 0 | AG21: 1 | AH21: =IFERROR(VLOOKUP($G21,'Technician Summary'!$G$7:$BK$372,37,FALSE),"") -> 65 | AI21: =IFERROR(VLOOKUP($G21,'Technician Summary'!$G$7:$BK$372,38,FALSE),"") -> 60 | AJ21: 0.9231 | AK21: =IFERROR(VLOOKUP($G21,'Technician Summary'!$G$7:$BK$372,27,FALSE),"") -> 0 | AL21: =IFERROR(VLOOKUP($G21,'Technician Summary'!$G$7:$BK$372,68,FALSE),"") -> 
B22: Tech Rankings | F22: Clarence Boyd | G22: 47493 | H22: 7.5 | I22: =IFERROR(VLOOKUP($G22,'Technician Summary'!$G$7:$BB$372,2,FALSE),"") ->  | J22: =IFERROR(VLOOKUP($G22,'Technician Summary'!$G$7:$BN$372,60,FALSE),"") ->  | L22: =IFERROR(VLOOKUP($G22,'Technician Summary'!$G$7:$BK$372,14,FALSE),"") ->  | M22: =IFERROR(VLOOKUP($G22,'Technician Summary'!$G$7:$BK$372,15,FALSE),"") ->  | O22: =IFERROR(VLOOKUP($G22,'Technician Summary'!$G$7:$BK$372,17,FALSE),"") ->  | P22: =IFERROR(VLOOKUP($G22,'Technician Summary'!$G$7:$BK$372,18,FALSE),"") ->  | R22: =IFERROR(VLOOKUP($G22,'Technician Summary'!$G$7:$BK$372,20,FALSE),"") ->  | S22: =IFERROR(VLOOKUP($G22,'Technician Summary'!$G$7:$BK$372,21,FALSE),"") ->  | U22: =IF(G22="","",COUNTIFS('StrataSync Data'!$AB:$AB,$G22,'StrataSync Data'!$G:$G,"Closed")) -> 52 | V22: =IF($G22="","",COUNTIFS('StrataSync Data'!$AB:$AB,$G22,'StrataSync Data'!$H:$H,"Yes",'StrataSync Data'!$G:$G,"Closed")) -> 48 | W22: 0.9231 | X22: =IFERROR(IF($G$7="","",COUNTIFS('StrataSync Data'!$AB:$AB,$G22,'StrataSync Data'!$I:$I,"Incomplete",'StrataSync Data'!$H:$H,"Yes",'StrataSync Data'!$G:$G,"Closed"))+IF($G22="","",COUNTIFS('StrataSync Data'!$AB:$AB,$G22,'StrataSync Data'!$I:$I,"Fail",'StrataSync Data'!$H:$H,"Yes",'StrataSync Data'!$G:$G,"Closed")),"") -> 24 | Y22: 0.5 | AA22: =IFERROR(SUM(Z22/#REF!),"") ->  | AB22: =IFERROR(VLOOKUP($G22,'Technician Summary'!$G$7:$BK$372,7,FALSE),"") ->  | AC22: =IFERROR(VLOOKUP($G22,'Technician Summary'!$G$7:$BK$372,8,FALSE),"") ->  | AE22: =IFERROR(VLOOKUP($G22,'Technician Summary'!$G$7:$BK$372,34,FALSE),"") ->  | AF22: =IFERROR(VLOOKUP($G22,'Technician Summary'!$G$7:$BK$372,35,FALSE),"") ->  | AH22: =IFERROR(VLOOKUP($G22,'Technician Summary'!$G$7:$BK$372,37,FALSE),"") ->  | AI22: =IFERROR(VLOOKUP($G22,'Technician Summary'!$G$7:$BK$372,38,FALSE),"") ->  | AK22: =IFERROR(VLOOKUP($G22,'Technician Summary'!$G$7:$BK$372,27,FALSE),"") ->  | AL22: =IFERROR(VLOOKUP($G22,'Technician Summary'!$G$7:$BK$372,68,FALSE),"") -> 
F23: Travis Harris | G23: 66546 | H23: 2.5 | I23: =IFERROR(VLOOKUP($G23,'Technician Summary'!$G$7:$BB$372,2,FALSE),"") -> 5 | J23: =IFERROR(VLOOKUP($G23,'Technician Summary'!$G$7:$BN$372,60,FALSE),"") -> 2 | K23: 0.6 | L23: =IFERROR(VLOOKUP($G23,'Technician Summary'!$G$7:$BK$372,14,FALSE),"") -> 62 | M23: =IFERROR(VLOOKUP($G23,'Technician Summary'!$G$7:$BK$372,15,FALSE),"") -> 4 | N23: 0.0645 | O23: =IFERROR(VLOOKUP($G23,'Technician Summary'!$G$7:$BK$372,17,FALSE),"") -> 31 | P23: =IFERROR(VLOOKUP($G23,'Technician Summary'!$G$7:$BK$372,18,FALSE),"") -> 4 | Q23: 0.129 | R23: =IFERROR(VLOOKUP($G23,'Technician Summary'!$G$7:$BK$372,20,FALSE),"") -> 31 | S23: =IFERROR(VLOOKUP($G23,'Technician Summary'!$G$7:$BK$372,21,FALSE),"") -> 0 | T23: 0 | U23: =IF(G23="","",COUNTIFS('StrataSync Data'!$AB:$AB,$G23,'StrataSync Data'!$G:$G,"Closed")) -> 62 | V23: =IF($G23="","",COUNTIFS('StrataSync Data'!$AB:$AB,$G23,'StrataSync Data'!$H:$H,"Yes",'StrataSync Data'!$G:$G,"Closed")) -> 52 | W23: 0.8387 | X23: =IFERROR(IF($G$7="","",COUNTIFS('StrataSync Data'!$AB:$AB,$G23,'StrataSync Data'!$I:$I,"Incomplete",'StrataSync Data'!$H:$H,"Yes",'StrataSync Data'!$G:$G,"Closed"))+IF($G23="","",COUNTIFS('StrataSync Data'!$AB:$AB,$G23,'StrataSync Data'!$I:$I,"Fail",'StrataSync Data'!$H:$H,"Yes",'StrataSync Data'!$G:$G,"Closed")),"") -> 16 | Y23: 0.6923 | AA23: =IFERROR(SUM(Z23/#REF!),"") ->  | AB23: =IFERROR(VLOOKUP($G23,'Technician Summary'!$G$7:$BK$372,7,FALSE),"") -> 40 | AC23: =IFERROR(VLOOKUP($G23,'Technician Summary'!$G$7:$BK$372,8,FALSE),"") -> 3 | AD23: 0.925 | AE23: =IFERROR(VLOOKUP($G23,'Technician Summary'!$G$7:$BK$372,34,FALSE),"") -> 28 | AF23: =IFERROR(VLOOKUP($G23,'Technician Summary'!$G$7:$BK$372,35,FALSE),"") -> 0 | AG23: 1 | AH23: =IFERROR(VLOOKUP($G23,'Technician Summary'!$G$7:$BK$372,37,FALSE),"") -> 67 | AI23: =IFERROR(VLOOKUP($G23,'Technician Summary'!$G$7:$BK$372,38,FALSE),"") -> 62 | AJ23: 0.9254 | AK23: =IFERROR(VLOOKUP($G23,'Technician Summary'!$G$7:$BK$372,27,FALSE),"") -> 0 | AL23: =IFERROR(VLOOKUP($G23,'Technician Summary'!$G$7:$BK$372,68,FALSE),"") -> 
B24: Raw Data | F24: William Harper | G24: 87452 | H24: 7.5 | I24: =IFERROR(VLOOKUP($G24,'Technician Summary'!$G$7:$BB$372,2,FALSE),"") -> 2 | J24: =IFERROR(VLOOKUP($G24,'Technician Summary'!$G$7:$BN$372,60,FALSE),"") -> 0 | K24: 1 | L24: =IFERROR(VLOOKUP($G24,'Technician Summary'!$G$7:$BK$372,14,FALSE),"") -> 10 | M24: =IFERROR(VLOOKUP($G24,'Technician Summary'!$G$7:$BK$372,15,FALSE),"") -> 0 | N24: 0 | O24: =IFERROR(VLOOKUP($G24,'Technician Summary'!$G$7:$BK$372,17,FALSE),"") -> 7 | P24: =IFERROR(VLOOKUP($G24,'Technician Summary'!$G$7:$BK$372,18,FALSE),"") -> 0 | Q24: 0 | R24: =IFERROR(VLOOKUP($G24,'Technician Summary'!$G$7:$BK$372,20,FALSE),"") -> 3 | S24: =IFERROR(VLOOKUP($G24,'Technician Summary'!$G$7:$BK$372,21,FALSE),"") -> 0 | T24: 0 | U24: =IF(G24="","",COUNTIFS('StrataSync Data'!$AB:$AB,$G24,'StrataSync Data'!$G:$G,"Closed")) -> 20 | V24: =IF($G24="","",COUNTIFS('StrataSync Data'!$AB:$AB,$G24,'StrataSync Data'!$H:$H,"Yes",'StrataSync Data'!$G:$G,"Closed")) -> 11 | W24: 0.55 | X24: =IFERROR(IF($G$7="","",COUNTIFS('StrataSync Data'!$AB:$AB,$G24,'StrataSync Data'!$I:$I,"Incomplete",'StrataSync Data'!$H:$H,"Yes",'StrataSync Data'!$G:$G,"Closed"))+IF($G24="","",COUNTIFS('StrataSync Data'!$AB:$AB,$G24,'StrataSync Data'!$I:$I,"Fail",'StrataSync Data'!$H:$H,"Yes",'StrataSync Data'!$G:$G,"Closed")),"") -> 0 | Y24: 1 | AA24: =IFERROR(SUM(Z24/#REF!),"") ->  | AB24: =IFERROR(VLOOKUP($G24,'Technician Summary'!$G$7:$BK$372,7,FALSE),"") -> 6 | AC24: =IFERROR(VLOOKUP($G24,'Technician Summary'!$G$7:$BK$372,8,FALSE),"") -> 0 | AD24: 1 | AE24: =IFERROR(VLOOKUP($G24,'Technician Summary'!$G$7:$BK$372,34,FALSE),"") -> 3 | AF24: =IFERROR(VLOOKUP($G24,'Technician Summary'!$G$7:$BK$372,35,FALSE),"") -> 0 | AG24: 1 | AH24: =IFERROR(VLOOKUP($G24,'Technician Summary'!$G$7:$BK$372,37,FALSE),"") -> 10 | AI24: =IFERROR(VLOOKUP($G24,'Technician Summary'!$G$7:$BK$372,38,FALSE),"") -> 10 | AJ24: 1 | AK24: =IFERROR(VLOOKUP($G24,'Technician Summary'!$G$7:$BK$372,27,FALSE),"") -> 0 | AL24: =IFERROR(VLOOKUP($G24,'Technician Summary'!$G$7:$BK$372,68,FALSE),"") -> 
F25: Ryan Vanterpool | G25: 93993 | H25: 5 | I25: =IFERROR(VLOOKUP($G25,'Technician Summary'!$G$7:$BB$372,2,FALSE),"") -> 1 | J25: =IFERROR(VLOOKUP($G25,'Technician Summary'!$G$7:$BN$372,60,FALSE),"") -> 0 | K25: 1 | L25: =IFERROR(VLOOKUP($G25,'Technician Summary'!$G$7:$BK$372,14,FALSE),"") -> 23 | M25: =IFERROR(VLOOKUP($G25,'Technician Summary'!$G$7:$BK$372,15,FALSE),"") -> 1 | N25: 0.0435 | O25: =IFERROR(VLOOKUP($G25,'Technician Summary'!$G$7:$BK$372,17,FALSE),"") -> 16 | P25: =IFERROR(VLOOKUP($G25,'Technician Summary'!$G$7:$BK$372,18,FALSE),"") -> 0 | Q25: 0 | R25: =IFERROR(VLOOKUP($G25,'Technician Summary'!$G$7:$BK$372,20,FALSE),"") -> 7 | S25: =IFERROR(VLOOKUP($G25,'Technician Summary'!$G$7:$BK$372,21,FALSE),"") -> 1 | T25: 0.1429 | U25: =IF(G25="","",COUNTIFS('StrataSync Data'!$AB:$AB,$G25,'StrataSync Data'!$G:$G,"Closed")) -> 32 | V25: =IF($G25="","",COUNTIFS('StrataSync Data'!$AB:$AB,$G25,'StrataSync Data'!$H:$H,"Yes",'StrataSync Data'!$G:$G,"Closed")) -> 22 | W25: 0.6875 | X25: =IFERROR(IF($G$7="","",COUNTIFS('StrataSync Data'!$AB:$AB,$G25,'StrataSync Data'!$I:$I,"Incomplete",'StrataSync Data'!$H:$H,"Yes",'StrataSync Data'!$G:$G,"Closed"))+IF($G25="","",COUNTIFS('StrataSync Data'!$AB:$AB,$G25,'StrataSync Data'!$I:$I,"Fail",'StrataSync Data'!$H:$H,"Yes",'StrataSync Data'!$G:$G,"Closed")),"") -> 12 | Y25: 0.4545 | AA25: =IFERROR(SUM(Z25/#REF!),"") ->  | AB25: =IFERROR(VLOOKUP($G25,'Technician Summary'!$G$7:$BK$372,7,FALSE),"") -> 20 | AC25: =IFERROR(VLOOKUP($G25,'Technician Summary'!$G$7:$BK$372,8,FALSE),"") -> 1 | AD25: 0.95 | AE25: =IFERROR(VLOOKUP($G25,'Technician Summary'!$G$7:$BK$372,34,FALSE),"") -> 16 | AF25: =IFERROR(VLOOKUP($G25,'Technician Summary'!$G$7:$BK$372,35,FALSE),"") -> 0 | AG25: 1 | AH25: =IFERROR(VLOOKUP($G25,'Technician Summary'!$G$7:$BK$372,37,FALSE),"") -> 26 | AI25: =IFERROR(VLOOKUP($G25,'Technician Summary'!$G$7:$BK$372,38,FALSE),"") -> 23 | AJ25: 0.8846 | AK25: =IFERROR(VLOOKUP($G25,'Technician Summary'!$G$7:$BK$372,27,FALSE),"") -> 0 | AL25: =IFERROR(VLOOKUP($G25,'Technician Summary'!$G$7:$BK$372,68,FALSE),"") -> 
F26: Joel Ulysse | G26: 1384 | H26: 5 | I26: =IFERROR(VLOOKUP($G26,'Technician Summary'!$G$7:$BB$372,2,FALSE),"") -> 3 | J26: =IFERROR(VLOOKUP($G26,'Technician Summary'!$G$7:$BN$372,60,FALSE),"") -> 0.9999 | K26: 0.6667 | L26: =IFERROR(VLOOKUP($G26,'Technician Summary'!$G$7:$BK$372,14,FALSE),"") -> 48 | M26: =IFERROR(VLOOKUP($G26,'Technician Summary'!$G$7:$BK$372,15,FALSE),"") -> 1 | N26: 0.0208 | O26: =IFERROR(VLOOKUP($G26,'Technician Summary'!$G$7:$BK$372,17,FALSE),"") -> 16 | P26: =IFERROR(VLOOKUP($G26,'Technician Summary'!$G$7:$BK$372,18,FALSE),"") -> 0 | Q26: 0 | R26: =IFERROR(VLOOKUP($G26,'Technician Summary'!$G$7:$BK$372,20,FALSE),"") -> 32 | S26: =IFERROR(VLOOKUP($G26,'Technician Summary'!$G$7:$BK$372,21,FALSE),"") -> 1 | T26: 0.0313 | U26: =IF(G26="","",COUNTIFS('StrataSync Data'!$AB:$AB,$G26,'StrataSync Data'!$G:$G,"Closed")) -> 64 | V26: =IF($G26="","",COUNTIFS('StrataSync Data'!$AB:$AB,$G26,'StrataSync Data'!$H:$H,"Yes",'StrataSync Data'!$G:$G,"Closed")) -> 52 | W26: 0.8125 | X26: =IFERROR(IF($G$7="","",COUNTIFS('StrataSync Data'!$AB:$AB,$G26,'StrataSync Data'!$I:$I,"Incomplete",'StrataSync Data'!$H:$H,"Yes",'StrataSync Data'!$G:$G,"Closed"))+IF($G26="","",COUNTIFS('StrataSync Data'!$AB:$AB,$G26,'StrataSync Data'!$I:$I,"Fail",'StrataSync Data'!$H:$H,"Yes",'StrataSync Data'!$G:$G,"Closed")),"") -> 32 | Y26: 0.3846 | AA26: =IFERROR(SUM(Z26/#REF!),"") ->  | AB26: =IFERROR(VLOOKUP($G26,'Technician Summary'!$G$7:$BK$372,7,FALSE),"") -> 20 | AC26: =IFERROR(VLOOKUP($G26,'Technician Summary'!$G$7:$BK$372,8,FALSE),"") -> 0 | AD26: 1 | AE26: =IFERROR(VLOOKUP($G26,'Technician Summary'!$G$7:$BK$372,34,FALSE),"") -> 13 | AF26: =IFERROR(VLOOKUP($G26,'Technician Summary'!$G$7:$BK$372,35,FALSE),"") -> 0 | AG26: 1 | AH26: =IFERROR(VLOOKUP($G26,'Technician Summary'!$G$7:$BK$372,37,FALSE),"") -> 57 | AI26: =IFERROR(VLOOKUP($G26,'Technician Summary'!$G$7:$BK$372,38,FALSE),"") -> 48 | AJ26: 0.8421 | AK26: =IFERROR(VLOOKUP($G26,'Technician Summary'!$G$7:$BK$372,27,FALSE),"") -> 0 | AL26: =IFERROR(VLOOKUP($G26,'Technician Summary'!$G$7:$BK$372,68,FALSE),"") -> 
I27: =IFERROR(VLOOKUP($G27,'Technician Summary'!$G$7:$BB$372,2,FALSE),"") ->  | J27: =IFERROR(VLOOKUP($G27,'Technician Summary'!$G$7:$BN$372,60,FALSE),"") ->  | L27: =IFERROR(VLOOKUP($G27,'Technician Summary'!$G$7:$BK$372,14,FALSE),"") ->  | M27: =IFERROR(VLOOKUP($G27,'Technician Summary'!$G$7:$BK$372,15,FALSE),"") ->  | O27: =IFERROR(VLOOKUP($G27,'Technician Summary'!$G$7:$BK$372,17,FALSE),"") ->  | P27: =IFERROR(VLOOKUP($G27,'Technician Summary'!$G$7:$BK$372,18,FALSE),"") ->  | R27: =IFERROR(VLOOKUP($G27,'Technician Summary'!$G$7:$BK$372,20,FALSE),"") ->  | S27: =IFERROR(VLOOKUP($G27,'Technician Summary'!$G$7:$BK$372,21,FALSE),"") ->  | U27: =IF(G27="","",COUNTIFS('StrataSync Data'!$AB:$AB,$G27,'StrataSync Data'!$G:$G,"Closed")) ->  | V27: =IF($G27="","",COUNTIFS('StrataSync Data'!$AB:$AB,$G27,'StrataSync Data'!$H:$H,"Yes",'StrataSync Data'!$G:$G,"Closed")) ->  | X27: =IFERROR(IF($G$7="","",COUNTIFS('StrataSync Data'!$AB:$AB,$G27,'StrataSync Data'!$I:$I,"Incomplete",'StrataSync Data'!$H:$H,"Yes",'StrataSync Data'!$G:$G,"Closed"))+IF($G27="","",COUNTIFS('StrataSync Data'!$AB:$AB,$G27,'StrataSync Data'!$I:$I,"Fail",'StrataSync Data'!$H:$H,"Yes",'StrataSync Data'!$G:$G,"Closed")),"") ->  | AA27: =IFERROR(SUM(Z27/#REF!),"") ->  | AB27: =IFERROR(VLOOKUP($G27,'Technician Summary'!$G$7:$BK$372,7,FALSE),"") ->  | AC27: =IFERROR(VLOOKUP($G27,'Technician Summary'!$G$7:$BK$372,8,FALSE),"") ->  | AE27: =IFERROR(VLOOKUP($G27,'Technician Summary'!$G$7:$BK$372,34,FALSE),"") ->  | AF27: =IFERROR(VLOOKUP($G27,'Technician Summary'!$G$7:$BK$372,35,FALSE),"") ->  | AH27: =IFERROR(VLOOKUP($G27,'Technician Summary'!$G$7:$BK$372,37,FALSE),"") ->  | AI27: =IFERROR(VLOOKUP($G27,'Technician Summary'!$G$7:$BK$372,38,FALSE),"") ->  | AK27: =IFERROR(VLOOKUP($G27,'Technician Summary'!$G$7:$BK$372,27,FALSE),"") ->  | AL27: =IFERROR(VLOOKUP($G27,'Technician Summary'!$G$7:$BK$372,68,FALSE),"") -> 
I28: =IFERROR(VLOOKUP($G28,'Technician Summary'!$G$7:$BB$372,2,FALSE),"") ->  | J28: =IFERROR(VLOOKUP($G28,'Technician Summary'!$G$7:$BN$372,60,FALSE),"") ->  | L28: =IFERROR(VLOOKUP($G28,'Technician Summary'!$G$7:$BK$372,14,FALSE),"") ->  | M28: =IFERROR(VLOOKUP($G28,'Technician Summary'!$G$7:$BK$372,15,FALSE),"") ->  | O28: =IFERROR(VLOOKUP($G28,'Technician Summary'!$G$7:$BK$372,17,FALSE),"") ->  | P28: =IFERROR(VLOOKUP($G28,'Technician Summary'!$G$7:$BK$372,18,FALSE),"") ->  | R28: =IFERROR(VLOOKUP($G28,'Technician Summary'!$G$7:$BK$372,20,FALSE),"") ->  | S28: =IFERROR(VLOOKUP($G28,'Technician Summary'!$G$7:$BK$372,21,FALSE),"") ->  | U28: =IF(G28="","",COUNTIFS('StrataSync Data'!$AB:$AB,$G28,'StrataSync Data'!$G:$G,"Closed")) ->  | V28: =IF($G28="","",COUNTIFS('StrataSync Data'!$AB:$AB,$G28,'StrataSync Data'!$H:$H,"Yes",'StrataSync Data'!$G:$G,"Closed")) ->  | X28: =IFERROR(IF($G$7="","",COUNTIFS('StrataSync Data'!$AB:$AB,$G28,'StrataSync Data'!$I:$I,"Incomplete",'StrataSync Data'!$H:$H,"Yes",'StrataSync Data'!$G:$G,"Closed"))+IF($G28="","",COUNTIFS('StrataSync Data'!$AB:$AB,$G28,'StrataSync Data'!$I:$I,"Fail",'StrataSync Data'!$H:$H,"Yes",'StrataSync Data'!$G:$G,"Closed")),"") ->  | AA28: =IFERROR(SUM(Z28/#REF!),"") ->  | AB28: =IFERROR(VLOOKUP($G28,'Technician Summary'!$G$7:$BK$372,7,FALSE),"") ->  | AC28: =IFERROR(VLOOKUP($G28,'Technician Summary'!$G$7:$BK$372,8,FALSE),"") ->  | AE28: =IFERROR(VLOOKUP($G28,'Technician Summary'!$G$7:$BK$372,34,FALSE),"") ->  | AF28: =IFERROR(VLOOKUP($G28,'Technician Summary'!$G$7:$BK$372,35,FALSE),"") ->  | AH28: =IFERROR(VLOOKUP($G28,'Technician Summary'!$G$7:$BK$372,37,FALSE),"") ->  | AI28: =IFERROR(VLOOKUP($G28,'Technician Summary'!$G$7:$BK$372,38,FALSE),"") ->  | AK28: =IFERROR(VLOOKUP($G28,'Technician Summary'!$G$7:$BK$372,27,FALSE),"") ->  | AL28: =IFERROR(VLOOKUP($G28,'Technician Summary'!$G$7:$BK$372,68,FALSE),"") -> 
I29: =IFERROR(VLOOKUP($G29,'Technician Summary'!$G$7:$BB$372,2,FALSE),"") ->  | J29: =IFERROR(VLOOKUP($G29,'Technician Summary'!$G$7:$BN$372,60,FALSE),"") ->  | L29: =IFERROR(VLOOKUP($G29,'Technician Summary'!$G$7:$BK$372,14,FALSE),"") ->  | M29: =IFERROR(VLOOKUP($G29,'Technician Summary'!$G$7:$BK$372,15,FALSE),"") ->  | O29: =IFERROR(VLOOKUP($G29,'Technician Summary'!$G$7:$BK$372,17,FALSE),"") ->  | P29: =IFERROR(VLOOKUP($G29,'Technician Summary'!$G$7:$BK$372,18,FALSE),"") ->  | Q29: =IFERROR(SUM(P29/O29),"") ->  | R29: =IFERROR(VLOOKUP($G29,'Technician Summary'!$G$7:$BK$372,20,FALSE),"") ->  | S29: =IFERROR(VLOOKUP($G29,'Technician Summary'!$G$7:$BK$372,21,FALSE),"") ->  | T29: =IFERROR(SUM(S29/R29),"") ->  | U29: =IF(G29="","",COUNTIFS('StrataSync Data'!$AB:$AB,$G29,'StrataSync Data'!$G:$G,"Closed")) ->  | V29: =IF($G29="","",COUNTIFS('StrataSync Data'!$AB:$AB,$G29,'StrataSync Data'!$H:$H,"Yes",'StrataSync Data'!$G:$G,"Closed")) ->  | X29: =IFERROR(IF($G$7="","",COUNTIFS('StrataSync Data'!$AB:$AB,$G29,'StrataSync Data'!$I:$I,"Incomplete",'StrataSync Data'!$H:$H,"Yes",'StrataSync Data'!$G:$G,"Closed"))+IF($G29="","",COUNTIFS('StrataSync Data'!$AB:$AB,$G29,'StrataSync Data'!$I:$I,"Fail",'StrataSync Data'!$H:$H,"Yes",'StrataSync Data'!$G:$G,"Closed")),"") ->  | AA29: =IFERROR(SUM(Z29/#REF!),"") ->  | AB29: =IFERROR(VLOOKUP($G29,'Technician Summary'!$G$7:$BK$372,7,FALSE),"") ->  | AC29: =IFERROR(VLOOKUP($G29,'Technician Summary'!$G$7:$BK$372,8,FALSE),"") ->  | AE29: =IFERROR(VLOOKUP($G29,'Technician Summary'!$G$7:$BK$372,34,FALSE),"") ->  | AF29: =IFERROR(VLOOKUP($G29,'Technician Summary'!$G$7:$BK$372,35,FALSE),"") ->  | AH29: =IFERROR(VLOOKUP($G29,'Technician Summary'!$G$7:$BK$372,37,FALSE),"") ->  | AI29: =IFERROR(VLOOKUP($G29,'Technician Summary'!$G$7:$BK$372,38,FALSE),"") ->  | AK29: =IFERROR(VLOOKUP($G29,'Technician Summary'!$G$7:$BK$372,27,FALSE),"") ->  | AL29: =IFERROR(VLOOKUP($G29,'Technician Summary'!$G$7:$BK$372,68,FALSE),"") -> 
I30: =IFERROR(VLOOKUP($G30,'Technician Summary'!$G$7:$BB$372,2,FALSE),"") ->  | J30: =IFERROR(VLOOKUP($G30,'Technician Summary'!$G$7:$BN$372,60,FALSE),"") ->  | L30: =IFERROR(VLOOKUP($G30,'Technician Summary'!$G$7:$BK$372,14,FALSE),"") ->  | M30: =IFERROR(VLOOKUP($G30,'Technician Summary'!$G$7:$BK$372,15,FALSE),"") ->  | O30: =IFERROR(VLOOKUP($G30,'Technician Summary'!$G$7:$BK$372,17,FALSE),"") ->  | P30: =IFERROR(VLOOKUP($G30,'Technician Summary'!$G$7:$BK$372,18,FALSE),"") ->  | Q30: =IFERROR(SUM(P30/O30),"") ->  | R30: =IFERROR(VLOOKUP($G30,'Technician Summary'!$G$7:$BK$372,20,FALSE),"") ->  | S30: =IFERROR(VLOOKUP($G30,'Technician Summary'!$G$7:$BK$372,21,FALSE),"") ->  | T30: =IFERROR(SUM(S30/R30),"") ->  | U30: =IF(G30="","",COUNTIFS('StrataSync Data'!$AB:$AB,$G30,'StrataSync Data'!$G:$G,"Closed")) ->  | V30: =IF($G30="","",COUNTIFS('StrataSync Data'!$AB:$AB,$G30,'StrataSync Data'!$H:$H,"Yes",'StrataSync Data'!$G:$G,"Closed")) ->  | X30: =IFERROR(IF($G$7="","",COUNTIFS('StrataSync Data'!$AB:$AB,$G30,'StrataSync Data'!$I:$I,"Incomplete",'StrataSync Data'!$H:$H,"Yes",'StrataSync Data'!$G:$G,"Closed"))+IF($G30="","",COUNTIFS('StrataSync Data'!$AB:$AB,$G30,'StrataSync Data'!$I:$I,"Fail",'StrataSync Data'!$H:$H,"Yes",'StrataSync Data'!$G:$G,"Closed")),"") ->  | AA30: =IFERROR(SUM(Z30/#REF!),"") ->  | AB30: =IFERROR(VLOOKUP($G30,'Technician Summary'!$G$7:$BK$372,7,FALSE),"") ->  | AC30: =IFERROR(VLOOKUP($G30,'Technician Summary'!$G$7:$BK$372,8,FALSE),"") ->  | AE30: =IFERROR(VLOOKUP($G30,'Technician Summary'!$G$7:$BK$372,34,FALSE),"") ->  | AF30: =IFERROR(VLOOKUP($G30,'Technician Summary'!$G$7:$BK$372,35,FALSE),"") ->  | AH30: =IFERROR(VLOOKUP($G30,'Technician Summary'!$G$7:$BK$372,37,FALSE),"") ->  | AI30: =IFERROR(VLOOKUP($G30,'Technician Summary'!$G$7:$BK$372,38,FALSE),"") ->  | AK30: =IFERROR(VLOOKUP($G30,'Technician Summary'!$G$7:$BK$372,27,FALSE),"") ->  | AL30: =IFERROR(VLOOKUP($G30,'Technician Summary'!$G$7:$BK$372,68,FALSE),"") -> 
F31: Ahmed Aktira - Old # | G31: 5700 | I31: =IFERROR(VLOOKUP($G31,'Technician Summary'!$G$7:$BB$372,2,FALSE),"") ->  | J31: =IFERROR(VLOOKUP($G31,'Technician Summary'!$G$7:$BN$372,60,FALSE),"") ->  | L31: =IFERROR(VLOOKUP($G31,'Technician Summary'!$G$7:$BK$372,14,FALSE),"") ->  | M31: =IFERROR(VLOOKUP($G31,'Technician Summary'!$G$7:$BK$372,15,FALSE),"") ->  | O31: =IFERROR(VLOOKUP($G31,'Technician Summary'!$G$7:$BK$372,17,FALSE),"") ->  | P31: =IFERROR(VLOOKUP($G31,'Technician Summary'!$G$7:$BK$372,18,FALSE),"") ->  | R31: =IFERROR(VLOOKUP($G31,'Technician Summary'!$G$7:$BK$372,20,FALSE),"") ->  | S31: =IFERROR(VLOOKUP($G31,'Technician Summary'!$G$7:$BK$372,21,FALSE),"") ->  | U31: =IF(G31="","",COUNTIFS('StrataSync Data'!$AB:$AB,$G31,'StrataSync Data'!$G:$G,"Closed")) -> 0 | V31: =IF($G31="","",COUNTIFS('StrataSync Data'!$AB:$AB,$G31,'StrataSync Data'!$H:$H,"Yes",'StrataSync Data'!$G:$G,"Closed")) -> 0 | X31: =IFERROR(IF($G$7="","",COUNTIFS('StrataSync Data'!$AB:$AB,$G31,'StrataSync Data'!$I:$I,"Incomplete",'StrataSync Data'!$H:$H,"Yes",'StrataSync Data'!$G:$G,"Closed"))+IF($G31="","",COUNTIFS('StrataSync Data'!$AB:$AB,$G31,'StrataSync Data'!$I:$I,"Fail",'StrataSync Data'!$H:$H,"Yes",'StrataSync Data'!$G:$G,"Closed")),"") -> 0 | AA31: =IFERROR(SUM(Z31/#REF!),"") ->  | AB31: =IFERROR(VLOOKUP($G31,'Technician Summary'!$G$7:$BK$372,7,FALSE),"") ->  | AC31: =IFERROR(VLOOKUP($G31,'Technician Summary'!$G$7:$BK$372,8,FALSE),"") ->  | AE31: =IFERROR(VLOOKUP($G31,'Technician Summary'!$G$7:$BK$372,34,FALSE),"") ->  | AF31: =IFERROR(VLOOKUP($G31,'Technician Summary'!$G$7:$BK$372,35,FALSE),"") ->  | AH31: =IFERROR(VLOOKUP($G31,'Technician Summary'!$G$7:$BK$372,37,FALSE),"") ->  | AI31: =IFERROR(VLOOKUP($G31,'Technician Summary'!$G$7:$BK$372,38,FALSE),"") ->  | AK31: =IFERROR(VLOOKUP($G31,'Technician Summary'!$G$7:$BK$372,27,FALSE),"") ->  | AL31: =IFERROR(VLOOKUP($G31,'Technician Summary'!$G$7:$BK$372,68,FALSE),"") -> 
I32: # NPS WO's | J32: # Failures | K32: NPS | L32: Total Repeatable WO | M32: Total Repeats | N32: Repeats | O32: Total Repeatable WO | P32: Repeat IN | Q32: IN Repeat % | R32: Total Repeatable WO | S32: Repeat TC | T32: Repeat TC % | U32: Jobs | V32: Test Run | W32: SQT Compliance | X32: Test Fail | Y32: SQT Pass | Z32: Test Passed | AA32: Ingress Test Pass | AB32: FCR WO | AC32: FCR Failures | AD32: FCR | AE32: Jobs | AF32: Jobs Late | AG32: OTA | AH32: Jobs | AI32: Completed Jobs | AJ32: Completion % | AK32: Total QC | AL32: QC Failure | AM32: SMS tNPS
I33: =SUMIF(I7:I31,">0") -> 34 | J33: =SUMIF(J7:J31,">0") -> 7.9997
K34: =IFERROR(1-(J33/I33),"") -> 0.7647 | L34: =SUM(L7:L31) -> 598 | M34: =SUM(M7:M31) -> 26 | N34: =IFERROR(SUM(M34/L34),"") -> 0.0435 | O34: =SUM(O7:O31) -> 325 | P34: =SUM(P7:P31) -> 11 | Q34: =IFERROR(SUM(P34/O34),"") -> 0.0338 | R34: =SUM(R7:R31) -> 273 | S34: =SUM(S7:S31) -> 15 | T34: =IFERROR(SUM(S34/R34),"") -> 0.0549 | U34: =SUMIF(U7:U31,">0") -> 588 | V34: =SUMIF(V7:V31,">0") -> 463 | W34: =IFERROR(SUM(V34/U34),"") -> 0.7874 | X34: =SUM(X7:X31) -> 137 | Y34: =IFERROR(SUM(1-X34/V34),"") -> 0.7041 | Z34: =SUM(Z7:Z31) -> 0 | AA34: =IFERROR(SUM(Z34/#REF!),"") ->  | AB34: =SUM(AB7:AB31) -> 331 | AC34: =SUM(AC7:AC31) -> 14 | AD34: =IFERROR(1-AC34/AB34,"") -> 0.9577 | AE34: =SUM(AE7:AE31) -> 196 | AF34: =SUM(AF7:AF31) -> 6 | AG34: =IFERROR(1-AF34/AE34,"") -> 0.9694 | AH34: =SUM(AH7:AH31) -> 564 | AI34: =SUM(AI7:AI31) -> 523 | AJ34: =IFERROR(AI34/AH34,"") -> 0.9273 | AK34: =SUM(AK7:AK31) -> 0 | AL34: =SUM(AL7:AL31) -> 0 | AM34: =IFERROR(1-AL34/AK34,"") -> 

Sheet Roanoke
F3: Donnie Evans
F5: Tech Name | G5: Tech ID | H5: Score | I5: # NPS WO's | J5: # Failures | K5: NPS | L5: Total Repeatable WO | M5: Total Repeats | N5: Repeats | O5: Total Repeatable WO | P5: Repeat IN | Q5: IN Repeat % | R5: Total Repeatable WO | S5: Repeat TC | T5: Repeat TC % | U5: Jobs | V5: Test Run | W5: SQT Compliance | X5: Test Fail | Y5: SQT Pass | Z5: Test Passed | AA5: Ingress Test Pass | AB5: FCR WO | AC5: FCR Failures | AD5: FCR | AE5: Jobs | AF5: Jobs Late | AG5: OTA | AH5: Jobs | AI5: Completed Jobs | AJ5: Completion % | AK5: Total QC | AL5: QC Failure | AM5: SMS tNPS
F7: Donnie Evans | G7: 94710 | H7: =IF(W7="","",IFERROR(IF(K7>=70%,2.5,0)+IF(N7<=4%,2.5,0)+IF(W7>=90%,2.5,0)+IF(AG7>=96%,2.5,0),"")) ->  | I7: =IFERROR(VLOOKUP($G7,'Technician Summary'!$G$7:$BB$372,2,FALSE),"") ->  | J7: =IFERROR(VLOOKUP($G7,'Technician Summary'!$G$7:$BN$372,60,FALSE),"") ->  | K7: =IFERROR(1-(J7/I7),"") ->  | L7: =IFERROR(VLOOKUP($G7,'Technician Summary'!$G$7:$BK$372,14,FALSE),"") ->  | M7: =IFERROR(VLOOKUP($G7,'Technician Summary'!$G$7:$BK$372,15,FALSE),"") ->  | N7: =IFERROR(SUM(M7/L7),"") ->  | O7: =IFERROR(VLOOKUP($G7,'Technician Summary'!$G$7:$BK$372,17,FALSE),"") ->  | P7: =IFERROR(VLOOKUP($G7,'Technician Summary'!$G$7:$BK$372,18,FALSE),"") ->  | Q7: =IFERROR(SUM(P7/O7),"") ->  | R7: =IFERROR(VLOOKUP($G7,'Technician Summary'!$G$7:$BK$372,20,FALSE),"") ->  | S7: =IFERROR(VLOOKUP($G7,'Technician Summary'!$G$7:$BK$372,21,FALSE),"") ->  | T7: =IFERROR(SUM(S7/R7),"") ->  | U7: =IF(G7="","",COUNTIFS('StrataSync Data'!$AB:$AB,$G7,'StrataSync Data'!$G:$G,"Closed")) -> 0 | V7: =IF($G7="","",COUNTIFS('StrataSync Data'!$AB:$AB,$G7,'StrataSync Data'!$H:$H,"Yes",'StrataSync Data'!$G:$G,"Closed")) -> 0 | W7: =IFERROR(SUM(V7/U7),"") ->  | X7: =IFERROR(IF($G$7="","",COUNTIFS('StrataSync Data'!$AB:$AB,$G7,'StrataSync Data'!$I:$I,"Incomplete",'StrataSync Data'!$H:$H,"Yes",'StrataSync Data'!$G:$G,"Closed"))+IF($G7="","",COUNTIFS('StrataSync Data'!$AB:$AB,$G7,'StrataSync Data'!$I:$I,"Fail",'StrataSync Data'!$H:$H,"Yes",'StrataSync Data'!$G:$G,"Closed")),"") -> 0 | Y7: =IFERROR(SUM(1-X7/V7),"") ->  | AA7: =IFERROR(SUM(Z7/#REF!),"") ->  | AB7: =IFERROR(VLOOKUP($G7,'Technician Summary'!$G$7:$BK$372,7,FALSE),"") ->  | AC7: =IFERROR(VLOOKUP($G7,'Technician Summary'!$G$7:$BK$372,8,FALSE),"") ->  | AD7: =IFERROR(1-AC7/AB7,"") ->  | AE7: =IFERROR(VLOOKUP($G7,'Technician Summary'!$G$7:$BK$372,34,FALSE),"") ->  | AF7: =IFERROR(VLOOKUP($G7,'Technician Summary'!$G$7:$BK$372,35,FALSE),"") ->  | AG7: =IFERROR(1-AF7/AE7,"") ->  | AH7: =IFERROR(VLOOKUP($G7,'Technician Summary'!$G$7:$BK$372,37,FALSE),"") ->  | AI7: =IFERROR(VLOOKUP($G7,'Technician Summary'!$G$7:$BK$372,38,FALSE),"") ->  | AJ7: =IFERROR(AI7/AH7,"") ->  | AK7: =IFERROR(VLOOKUP($G7,'Technician Summary'!$G$7:$BK$372,27,FALSE),"") ->  | AL7: =IFERROR(VLOOKUP($G7,'Technician Summary'!$G$7:$BK$372,68,FALSE),"") ->  | AM7: =IFERROR(1-AL7/AK7,"") -> 
F8: Donnie Evans | G8: 43145 | H8: =IF(W8="","",IFERROR(IF(K8>=70%,2.5,0)+IF(N8<=4%,2.5,0)+IF(W8>=90%,2.5,0)+IF(AG8>=96%,2.5,0),"")) -> 7.5 | I8: =IFERROR(VLOOKUP($G8,'Technician Summary'!$G$7:$BB$372,2,FALSE),"") -> 1 | J8: =IFERROR(VLOOKUP($G8,'Technician Summary'!$G$7:$BN$372,60,FALSE),"") -> 0 | K8: =IFERROR(1-(J8/I8),"") -> 1 | L8: =IFERROR(VLOOKUP($G8,'Technician Summary'!$G$7:$BK$372,14,FALSE),"") -> 39 | M8: =IFERROR(VLOOKUP($G8,'Technician Summary'!$G$7:$BK$372,15,FALSE),"") -> 0 | N8: =IFERROR(SUM(M8/L8),"") -> 0 | O8: =IFERROR(VLOOKUP($G8,'Technician Summary'!$G$7:$BK$372,17,FALSE),"") -> 32 | P8: =IFERROR(VLOOKUP($G8,'Technician Summary'!$G$7:$BK$372,18,FALSE),"") -> 0 | Q8: =IFERROR(SUM(P8/O8),"") -> 0 | R8: =IFERROR(VLOOKUP($G8,'Technician Summary'!$G$7:$BK$372,20,FALSE),"") -> 7 | S8: =IFERROR(VLOOKUP($G8,'Technician Summary'!$G$7:$BK$372,21,FALSE),"") -> 0 | T8: =IFERROR(SUM(S8/R8),"") -> 0 | U8: =IF(G8="","",COUNTIFS('StrataSync Data'!$AB:$AB,$G8,'StrataSync Data'!$G:$G,"Closed")) -> 9 | V8: =IF($G8="","",COUNTIFS('StrataSync Data'!$AB:$AB,$G8,'StrataSync Data'!$H:$H,"Yes",'StrataSync Data'!$G:$G,"Closed")) -> 8 | W8: =IFERROR(SUM(V8/U8),"") -> 0.8889 | X8: =IFERROR(IF($G$7="","",COUNTIFS('StrataSync Data'!$AB:$AB,$G8,'StrataSync Data'!$I:$I,"Incomplete",'StrataSync Data'!$H:$H,"Yes",'StrataSync Data'!$G:$G,"Closed"))+IF($G8="","",COUNTIFS('StrataSync Data'!$AB:$AB,$G8,'StrataSync Data'!$I:$I,"Fail",'StrataSync Data'!$H:$H,"Yes",'StrataSync Data'!$G:$G,"Closed")),"") -> 0 | Y8: =IFERROR(SUM(1-X8/V8),"") -> 1 | AA8: =IFERROR(SUM(Z8/#REF!),"") ->  | AB8: =IFERROR(VLOOKUP($G8,'Technician Summary'!$G$7:$BK$372,7,FALSE),"") -> 33 | AC8: =IFERROR(VLOOKUP($G8,'Technician Summary'!$G$7:$BK$372,8,FALSE),"") -> 0 | AD8: =IFERROR(1-AC8/AB8,"") -> 1 | AE8: =IFERROR(VLOOKUP($G8,'Technician Summary'!$G$7:$BK$372,34,FALSE),"") -> 3 | AF8: =IFERROR(VLOOKUP($G8,'Technician Summary'!$G$7:$BK$372,35,FALSE),"") -> 0 | AG8: =IFERROR(1-AF8/AE8,"") -> 1 | AH8: =IFERROR(VLOOKUP($G8,'Technician Summary'!$G$7:$BK$372,37,FALSE),"") -> 42 | AI8: =IFERROR(VLOOKUP($G8,'Technician Summary'!$G$7:$BK$372,38,FALSE),"") -> 39 | AJ8: =IFERROR(AI8/AH8,"") -> 0.9286 | AK8: =IFERROR(VLOOKUP($G8,'Technician Summary'!$G$7:$BK$372,27,FALSE),"") -> 0 | AL8: =IFERROR(VLOOKUP($G8,'Technician Summary'!$G$7:$BK$372,68,FALSE),"") ->  | AM8: =IFERROR(1-AL8/AK8,"") -> 
F9: Hunter Collins | G9: 16407 | H9: 7.5 | I9: =IFERROR(VLOOKUP($G9,'Technician Summary'!$G$7:$BB$372,2,FALSE),"") -> 3 | J9: =IFERROR(VLOOKUP($G9,'Technician Summary'!$G$7:$BN$372,60,FALSE),"") -> 0.9999 | K9: 0.6667 | L9: =IFERROR(VLOOKUP($G9,'Technician Summary'!$G$7:$BK$372,14,FALSE),"") -> 75 | M9: =IFERROR(VLOOKUP($G9,'Technician Summary'!$G$7:$BK$372,15,FALSE),"") -> 1 | N9: 0.0133 | O9: =IFERROR(VLOOKUP($G9,'Technician Summary'!$G$7:$BK$372,17,FALSE),"") -> 45 | P9: =IFERROR(VLOOKUP($G9,'Technician Summary'!$G$7:$BK$372,18,FALSE),"") -> 1 | Q9: 0.0222 | R9: =IFERROR(VLOOKUP($G9,'Technician Summary'!$G$7:$BK$372,20,FALSE),"") -> 30 | S9: =IFERROR(VLOOKUP($G9,'Technician Summary'!$G$7:$BK$372,21,FALSE),"") -> 0 | T9: 0 | U9: =IF(G9="","",COUNTIFS('StrataSync Data'!$AB:$AB,$G9,'StrataSync Data'!$G:$G,"Closed")) -> 51 | V9: =IF($G9="","",COUNTIFS('StrataSync Data'!$AB:$AB,$G9,'StrataSync Data'!$H:$H,"Yes",'StrataSync Data'!$G:$G,"Closed")) -> 49 | W9: 0.9608 | X9: =IFERROR(IF($G$7="","",COUNTIFS('StrataSync Data'!$AB:$AB,$G9,'StrataSync Data'!$I:$I,"Incomplete",'StrataSync Data'!$H:$H,"Yes",'StrataSync Data'!$G:$G,"Closed"))+IF($G9="","",COUNTIFS('StrataSync Data'!$AB:$AB,$G9,'StrataSync Data'!$I:$I,"Fail",'StrataSync Data'!$H:$H,"Yes",'StrataSync Data'!$G:$G,"Closed")),"") -> 1 | Y9: 0.9796 | AA9: =IFERROR(SUM(Z9/#REF!),"") ->  | AB9: =IFERROR(VLOOKUP($G9,'Technician Summary'!$G$7:$BK$372,7,FALSE),"") -> 52 | AC9: =IFERROR(VLOOKUP($G9,'Technician Summary'!$G$7:$BK$372,8,FALSE),"") -> 1 | AD9: 0.9808 | AE9: =IFERROR(VLOOKUP($G9,'Technician Summary'!$G$7:$BK$372,34,FALSE),"") -> 31 | AF9: =IFERROR(VLOOKUP($G9,'Technician Summary'!$G$7:$BK$372,35,FALSE),"") -> 0 | AG9: 1 | AH9: =IFERROR(VLOOKUP($G9,'Technician Summary'!$G$7:$BK$372,37,FALSE),"") -> 76 | AI9: =IFERROR(VLOOKUP($G9,'Technician Summary'!$G$7:$BK$372,38,FALSE),"") -> 75 | AJ9: 0.9868 | AK9: =IFERROR(VLOOKUP($G9,'Technician Summary'!$G$7:$BK$372,27,FALSE),"") -> 0 | AL9: =IFERROR(VLOOKUP($G9,'Technician Summary'!$G$7:$BK$372,68,FALSE),"") -> 
F10: Justin Burch | G10: 69318 | H10: 7.5 | I10: =IFERROR(VLOOKUP($G10,'Technician Summary'!$G$7:$BB$372,2,FALSE),"") -> 2 | J10: =IFERROR(VLOOKUP($G10,'Technician Summary'!$G$7:$BN$372,60,FALSE),"") -> 2 | K10: 0 | L10: =IFERROR(VLOOKUP($G10,'Technician Summary'!$G$7:$BK$372,14,FALSE),"") -> 89 | M10: =IFERROR(VLOOKUP($G10,'Technician Summary'!$G$7:$BK$372,15,FALSE),"") -> 2 | N10: 0.0225 | O10: =IFERROR(VLOOKUP($G10,'Technician Summary'!$G$7:$BK$372,17,FALSE),"") -> 52 | P10: =IFERROR(VLOOKUP($G10,'Technician Summary'!$G$7:$BK$372,18,FALSE),"") -> 2 | Q10: 0.0385 | R10: =IFERROR(VLOOKUP($G10,'Technician Summary'!$G$7:$BK$372,20,FALSE),"") -> 37 | S10: =IFERROR(VLOOKUP($G10,'Technician Summary'!$G$7:$BK$372,21,FALSE),"") -> 0 | T10: 0 | U10: =IF(G10="","",COUNTIFS('StrataSync Data'!$AB:$AB,$G10,'StrataSync Data'!$G:$G,"Closed")) -> 64 | V10: =IF($G10="","",COUNTIFS('StrataSync Data'!$AB:$AB,$G10,'StrataSync Data'!$H:$H,"Yes",'StrataSync Data'!$G:$G,"Closed")) -> 62 | W10: 0.9688 | X10: =IFERROR(IF($G$7="","",COUNTIFS('StrataSync Data'!$AB:$AB,$G10,'StrataSync Data'!$I:$I,"Incomplete",'StrataSync Data'!$H:$H,"Yes",'StrataSync Data'!$G:$G,"Closed"))+IF($G10="","",COUNTIFS('StrataSync Data'!$AB:$AB,$G10,'StrataSync Data'!$I:$I,"Fail",'StrataSync Data'!$H:$H,"Yes",'StrataSync Data'!$G:$G,"Closed")),"") -> 0 | Y10: 1 | AA10: =IFERROR(SUM(Z10/#REF!),"") ->  | AB10: =IFERROR(VLOOKUP($G10,'Technician Summary'!$G$7:$BK$372,7,FALSE),"") -> 64 | AC10: =IFERROR(VLOOKUP($G10,'Technician Summary'!$G$7:$BK$372,8,FALSE),"") -> 2 | AD10: 0.9688 | AE10: =IFERROR(VLOOKUP($G10,'Technician Summary'!$G$7:$BK$372,34,FALSE),"") -> 33 | AF10: =IFERROR(VLOOKUP($G10,'Technician Summary'!$G$7:$BK$372,35,FALSE),"") -> 0 | AG10: 1 | AH10: =IFERROR(VLOOKUP($G10,'Technician Summary'!$G$7:$BK$372,37,FALSE),"") -> 94 | AI10: =IFERROR(VLOOKUP($G10,'Technician Summary'!$G$7:$BK$372,38,FALSE),"") -> 89 | AJ10: 0.9468 | AK10: =IFERROR(VLOOKUP($G10,'Technician Summary'!$G$7:$BK$372,27,FALSE),"") -> 0 | AL10: =IFERROR(VLOOKUP($G10,'Technician Summary'!$G$7:$BK$372,68,FALSE),"") -> 
B11: Home | I11: =IFERROR(VLOOKUP($G11,'Technician Summary'!$G$7:$BB$372,2,FALSE),"") ->  | J11: =IFERROR(VLOOKUP($G11,'Technician Summary'!$G$7:$BN$372,60,FALSE),"") ->  | L11: =IFERROR(VLOOKUP($G11,'Technician Summary'!$G$7:$BK$372,14,FALSE),"") ->  | M11: =IFERROR(VLOOKUP($G11,'Technician Summary'!$G$7:$BK$372,15,FALSE),"") ->  | O11: =IFERROR(VLOOKUP($G11,'Technician Summary'!$G$7:$BK$372,17,FALSE),"") ->  | P11: =IFERROR(VLOOKUP($G11,'Technician Summary'!$G$7:$BK$372,18,FALSE),"") ->  | R11: =IFERROR(VLOOKUP($G11,'Technician Summary'!$G$7:$BK$372,20,FALSE),"") ->  | S11: =IFERROR(VLOOKUP($G11,'Technician Summary'!$G$7:$BK$372,21,FALSE),"") ->  | U11: =IF(G11="","",COUNTIFS('StrataSync Data'!$AB:$AB,$G11,'StrataSync Data'!$G:$G,"Closed")) ->  | V11: =IF($G11="","",COUNTIFS('StrataSync Data'!$AB:$AB,$G11,'StrataSync Data'!$H:$H,"Yes",'StrataSync Data'!$G:$G,"Closed")) ->  | X11: =IFERROR(IF($G$7="","",COUNTIFS('StrataSync Data'!$AB:$AB,$G11,'StrataSync Data'!$I:$I,"Incomplete",'StrataSync Data'!$H:$H,"Yes",'StrataSync Data'!$G:$G,"Closed"))+IF($G11="","",COUNTIFS('StrataSync Data'!$AB:$AB,$G11,'StrataSync Data'!$I:$I,"Fail",'StrataSync Data'!$H:$H,"Yes",'StrataSync Data'!$G:$G,"Closed")),"") ->  | AA11: =IFERROR(SUM(Z11/#REF!),"") ->  | AB11: =IFERROR(VLOOKUP($G11,'Technician Summary'!$G$7:$BK$372,7,FALSE),"") ->  | AC11: =IFERROR(VLOOKUP($G11,'Technician Summary'!$G$7:$BK$372,8,FALSE),"") ->  | AE11: =IFERROR(VLOOKUP($G11,'Technician Summary'!$G$7:$BK$372,34,FALSE),"") ->  | AF11: =IFERROR(VLOOKUP($G11,'Technician Summary'!$G$7:$BK$372,35,FALSE),"") ->  | AH11: =IFERROR(VLOOKUP($G11,'Technician Summary'!$G$7:$BK$372,37,FALSE),"") ->  | AI11: =IFERROR(VLOOKUP($G11,'Technician Summary'!$G$7:$BK$372,38,FALSE),"") ->  | AK11: =IFERROR(VLOOKUP($G11,'Technician Summary'!$G$7:$BK$372,27,FALSE),"") ->  | AL11: =IFERROR(VLOOKUP($G11,'Technician Summary'!$G$7:$BK$372,68,FALSE),"") -> 
I12: =IFERROR(VLOOKUP($G12,'Technician Summary'!$G$7:$BB$372,2,FALSE),"") ->  | J12: =IFERROR(VLOOKUP($G12,'Technician Summary'!$G$7:$BN$372,60,FALSE),"") ->  | L12: =IFERROR(VLOOKUP($G12,'Technician Summary'!$G$7:$BK$372,14,FALSE),"") ->  | M12: =IFERROR(VLOOKUP($G12,'Technician Summary'!$G$7:$BK$372,15,FALSE),"") ->  | O12: =IFERROR(VLOOKUP($G12,'Technician Summary'!$G$7:$BK$372,17,FALSE),"") ->  | P12: =IFERROR(VLOOKUP($G12,'Technician Summary'!$G$7:$BK$372,18,FALSE),"") ->  | R12: =IFERROR(VLOOKUP($G12,'Technician Summary'!$G$7:$BK$372,20,FALSE),"") ->  | S12: =IFERROR(VLOOKUP($G12,'Technician Summary'!$G$7:$BK$372,21,FALSE),"") ->  | U12: =IF(G12="","",COUNTIFS('StrataSync Data'!$AB:$AB,$G12,'StrataSync Data'!$G:$G,"Closed")) ->  | V12: =IF($G12="","",COUNTIFS('StrataSync Data'!$AB:$AB,$G12,'StrataSync Data'!$H:$H,"Yes",'StrataSync Data'!$G:$G,"Closed")) ->  | X12: =IFERROR(IF($G$7="","",COUNTIFS('StrataSync Data'!$AB:$AB,$G12,'StrataSync Data'!$I:$I,"Incomplete",'StrataSync Data'!$H:$H,"Yes",'StrataSync Data'!$G:$G,"Closed"))+IF($G12="","",COUNTIFS('StrataSync Data'!$AB:$AB,$G12,'StrataSync Data'!$I:$I,"Fail",'StrataSync Data'!$H:$H,"Yes",'StrataSync Data'!$G:$G,"Closed")),"") ->  | AA12: =IFERROR(SUM(Z12/#REF!),"") ->  | AB12: =IFERROR(VLOOKUP($G12,'Technician Summary'!$G$7:$BK$372,7,FALSE),"") ->  | AC12: =IFERROR(VLOOKUP($G12,'Technician Summary'!$G$7:$BK$372,8,FALSE),"") ->  | AE12: =IFERROR(VLOOKUP($G12,'Technician Summary'!$G$7:$BK$372,34,FALSE),"") ->  | AF12: =IFERROR(VLOOKUP($G12,'Technician Summary'!$G$7:$BK$372,35,FALSE),"") ->  | AH12: =IFERROR(VLOOKUP($G12,'Technician Summary'!$G$7:$BK$372,37,FALSE),"") ->  | AI12: =IFERROR(VLOOKUP($G12,'Technician Summary'!$G$7:$BK$372,38,FALSE),"") ->  | AK12: =IFERROR(VLOOKUP($G12,'Technician Summary'!$G$7:$BK$372,27,FALSE),"") ->  | AL12: =IFERROR(VLOOKUP($G12,'Technician Summary'!$G$7:$BK$372,68,FALSE),"") -> 
B13: Performance Metrics | I13: =IFERROR(VLOOKUP($G13,'Technician Summary'!$G$7:$BB$372,2,FALSE),"") ->  | J13: =IFERROR(VLOOKUP($G13,'Technician Summary'!$G$7:$BN$372,60,FALSE),"") ->  | L13: =IFERROR(VLOOKUP($G13,'Technician Summary'!$G$7:$BK$372,14,FALSE),"") ->  | M13: =IFERROR(VLOOKUP($G13,'Technician Summary'!$G$7:$BK$372,15,FALSE),"") ->  | O13: =IFERROR(VLOOKUP($G13,'Technician Summary'!$G$7:$BK$372,17,FALSE),"") ->  | P13: =IFERROR(VLOOKUP($G13,'Technician Summary'!$G$7:$BK$372,18,FALSE),"") ->  | R13: =IFERROR(VLOOKUP($G13,'Technician Summary'!$G$7:$BK$372,20,FALSE),"") ->  | S13: =IFERROR(VLOOKUP($G13,'Technician Summary'!$G$7:$BK$372,21,FALSE),"") ->  | U13: =IF(G13="","",COUNTIFS('StrataSync Data'!$AB:$AB,$G13,'StrataSync Data'!$G:$G,"Closed")) ->  | V13: =IF($G13="","",COUNTIFS('StrataSync Data'!$AB:$AB,$G13,'StrataSync Data'!$H:$H,"Yes",'StrataSync Data'!$G:$G,"Closed")) ->  | X13: =IFERROR(IF($G$7="","",COUNTIFS('StrataSync Data'!$AB:$AB,$G13,'StrataSync Data'!$I:$I,"Incomplete",'StrataSync Data'!$H:$H,"Yes",'StrataSync Data'!$G:$G,"Closed"))+IF($G13="","",COUNTIFS('StrataSync Data'!$AB:$AB,$G13,'StrataSync Data'!$I:$I,"Fail",'StrataSync Data'!$H:$H,"Yes",'StrataSync Data'!$G:$G,"Closed")),"") ->  | AA13: =IFERROR(SUM(Z13/#REF!),"") ->  | AB13: =IFERROR(VLOOKUP($G13,'Technician Summary'!$G$7:$BK$372,7,FALSE),"") ->  | AC13: =IFERROR(VLOOKUP($G13,'Technician Summary'!$G$7:$BK$372,8,FALSE),"") ->  | AE13: =IFERROR(VLOOKUP($G13,'Technician Summary'!$G$7:$BK$372,34,FALSE),"") ->  | AF13: =IFERROR(VLOOKUP($G13,'Technician Summary'!$G$7:$BK$372,35,FALSE),"") ->  | AH13: =IFERROR(VLOOKUP($G13,'Technician Summary'!$G$7:$BK$372,37,FALSE),"") ->  | AI13: =IFERROR(VLOOKUP($G13,'Technician Summary'!$G$7:$BK$372,38,FALSE),"") ->  | AK13: =IFERROR(VLOOKUP($G13,'Technician Summary'!$G$7:$BK$372,27,FALSE),"") ->  | AL13: =IFERROR(VLOOKUP($G13,'Technician Summary'!$G$7:$BK$372,68,FALSE),"") -> 
B14: Gainesville | I14: =IFERROR(VLOOKUP($G14,'Technician Summary'!$G$7:$BB$372,2,FALSE),"") ->  | J14: =IFERROR(VLOOKUP($G14,'Technician Summary'!$G$7:$BN$372,60,FALSE),"") ->  | L14: =IFERROR(VLOOKUP($G14,'Technician Summary'!$G$7:$BK$372,14,FALSE),"") ->  | M14: =IFERROR(VLOOKUP($G14,'Technician Summary'!$G$7:$BK$372,15,FALSE),"") ->  | O14: =IFERROR(VLOOKUP($G14,'Technician Summary'!$G$7:$BK$372,17,FALSE),"") ->  | P14: =IFERROR(VLOOKUP($G14,'Technician Summary'!$G$7:$BK$372,18,FALSE),"") ->  | R14: =IFERROR(VLOOKUP($G14,'Technician Summary'!$G$7:$BK$372,20,FALSE),"") ->  | S14: =IFERROR(VLOOKUP($G14,'Technician Summary'!$G$7:$BK$372,21,FALSE),"") ->  | U14: =IF(G14="","",COUNTIFS('StrataSync Data'!$AB:$AB,$G14,'StrataSync Data'!$G:$G,"Closed")) ->  | V14: =IF($G14="","",COUNTIFS('StrataSync Data'!$AB:$AB,$G14,'StrataSync Data'!$H:$H,"Yes",'StrataSync Data'!$G:$G,"Closed")) ->  | X14: =IFERROR(IF($G$7="","",COUNTIFS('StrataSync Data'!$AB:$AB,$G14,'StrataSync Data'!$I:$I,"Incomplete",'StrataSync Data'!$H:$H,"Yes",'StrataSync Data'!$G:$G,"Closed"))+IF($G14="","",COUNTIFS('StrataSync Data'!$AB:$AB,$G14,'StrataSync Data'!$I:$I,"Fail",'StrataSync Data'!$H:$H,"Yes",'StrataSync Data'!$G:$G,"Closed")),"") ->  | AA14: =IFERROR(SUM(Z14/#REF!),"") ->  | AB14: =IFERROR(VLOOKUP($G14,'Technician Summary'!$G$7:$BK$372,7,FALSE),"") ->  | AC14: =IFERROR(VLOOKUP($G14,'Technician Summary'!$G$7:$BK$372,8,FALSE),"") ->  | AE14: =IFERROR(VLOOKUP($G14,'Technician Summary'!$G$7:$BK$372,34,FALSE),"") ->  | AF14: =IFERROR(VLOOKUP($G14,'Technician Summary'!$G$7:$BK$372,35,FALSE),"") ->  | AH14: =IFERROR(VLOOKUP($G14,'Technician Summary'!$G$7:$BK$372,37,FALSE),"") ->  | AI14: =IFERROR(VLOOKUP($G14,'Technician Summary'!$G$7:$BK$372,38,FALSE),"") ->  | AK14: =IFERROR(VLOOKUP($G14,'Technician Summary'!$G$7:$BK$372,27,FALSE),"") ->  | AL14: =IFERROR(VLOOKUP($G14,'Technician Summary'!$G$7:$BK$372,68,FALSE),"") -> 
B15: Macon | I15: =IFERROR(VLOOKUP($G15,'Technician Summary'!$G$7:$BB$372,2,FALSE),"") ->  | J15: =IFERROR(VLOOKUP($G15,'Technician Summary'!$G$7:$BN$372,60,FALSE),"") ->  | L15: =IFERROR(VLOOKUP($G15,'Technician Summary'!$G$7:$BK$372,14,FALSE),"") ->  | M15: =IFERROR(VLOOKUP($G15,'Technician Summary'!$G$7:$BK$372,15,FALSE),"") ->  | O15: =IFERROR(VLOOKUP($G15,'Technician Summary'!$G$7:$BK$372,17,FALSE),"") ->  | P15: =IFERROR(VLOOKUP($G15,'Technician Summary'!$G$7:$BK$372,18,FALSE),"") ->  | R15: =IFERROR(VLOOKUP($G15,'Technician Summary'!$G$7:$BK$372,20,FALSE),"") ->  | S15: =IFERROR(VLOOKUP($G15,'Technician Summary'!$G$7:$BK$372,21,FALSE),"") ->  | U15: =IF(G15="","",COUNTIFS('StrataSync Data'!$AB:$AB,$G15,'StrataSync Data'!$G:$G,"Closed")) ->  | V15: =IF($G15="","",COUNTIFS('StrataSync Data'!$AB:$AB,$G15,'StrataSync Data'!$H:$H,"Yes",'StrataSync Data'!$G:$G,"Closed")) ->  | X15: =IFERROR(IF($G$7="","",COUNTIFS('StrataSync Data'!$AB:$AB,$G15,'StrataSync Data'!$I:$I,"Incomplete",'StrataSync Data'!$H:$H,"Yes",'StrataSync Data'!$G:$G,"Closed"))+IF($G15="","",COUNTIFS('StrataSync Data'!$AB:$AB,$G15,'StrataSync Data'!$I:$I,"Fail",'StrataSync Data'!$H:$H,"Yes",'StrataSync Data'!$G:$G,"Closed")),"") ->  | AA15: =IFERROR(SUM(Z15/#REF!),"") ->  | AB15: =IFERROR(VLOOKUP($G15,'Technician Summary'!$G$7:$BK$372,7,FALSE),"") ->  | AC15: =IFERROR(VLOOKUP($G15,'Technician Summary'!$G$7:$BK$372,8,FALSE),"") ->  | AE15: =IFERROR(VLOOKUP($G15,'Technician Summary'!$G$7:$BK$372,34,FALSE),"") ->  | AF15: =IFERROR(VLOOKUP($G15,'Technician Summary'!$G$7:$BK$372,35,FALSE),"") ->  | AH15: =IFERROR(VLOOKUP($G15,'Technician Summary'!$G$7:$BK$372,37,FALSE),"") ->  | AI15: =IFERROR(VLOOKUP($G15,'Technician Summary'!$G$7:$BK$372,38,FALSE),"") ->  | AK15: =IFERROR(VLOOKUP($G15,'Technician Summary'!$G$7:$BK$372,27,FALSE),"") ->  | AL15: =IFERROR(VLOOKUP($G15,'Technician Summary'!$G$7:$BK$372,68,FALSE),"") -> 
B16: New Orleans | I16: =IFERROR(VLOOKUP($G16,'Technician Summary'!$G$7:$BB$372,2,FALSE),"") ->  | J16: =IFERROR(VLOOKUP($G16,'Technician Summary'!$G$7:$BN$372,60,FALSE),"") ->  | L16: =IFERROR(VLOOKUP($G16,'Technician Summary'!$G$7:$BK$372,14,FALSE),"") ->  | M16: =IFERROR(VLOOKUP($G16,'Technician Summary'!$G$7:$BK$372,15,FALSE),"") ->  | O16: =IFERROR(VLOOKUP($G16,'Technician Summary'!$G$7:$BK$372,17,FALSE),"") ->  | P16: =IFERROR(VLOOKUP($G16,'Technician Summary'!$G$7:$BK$372,18,FALSE),"") ->  | R16: =IFERROR(VLOOKUP($G16,'Technician Summary'!$G$7:$BK$372,20,FALSE),"") ->  | S16: =IFERROR(VLOOKUP($G16,'Technician Summary'!$G$7:$BK$372,21,FALSE),"") ->  | U16: =IF(G16="","",COUNTIFS('StrataSync Data'!$AB:$AB,$G16,'StrataSync Data'!$G:$G,"Closed")) ->  | V16: =IF($G16="","",COUNTIFS('StrataSync Data'!$AB:$AB,$G16,'StrataSync Data'!$H:$H,"Yes",'StrataSync Data'!$G:$G,"Closed")) ->  | X16: =IFERROR(IF($G$7="","",COUNTIFS('StrataSync Data'!$AB:$AB,$G16,'StrataSync Data'!$I:$I,"Incomplete",'StrataSync Data'!$H:$H,"Yes",'StrataSync Data'!$G:$G,"Closed"))+IF($G16="","",COUNTIFS('StrataSync Data'!$AB:$AB,$G16,'StrataSync Data'!$I:$I,"Fail",'StrataSync Data'!$H:$H,"Yes",'StrataSync Data'!$G:$G,"Closed")),"") ->  | AA16: =IFERROR(SUM(Z16/#REF!),"") ->  | AB16: =IFERROR(VLOOKUP($G16,'Technician Summary'!$G$7:$BK$372,7,FALSE),"") ->  | AC16: =IFERROR(VLOOKUP($G16,'Technician Summary'!$G$7:$BK$372,8,FALSE),"") ->  | AE16: =IFERROR(VLOOKUP($G16,'Technician Summary'!$G$7:$BK$372,34,FALSE),"") ->  | AF16: =IFERROR(VLOOKUP($G16,'Technician Summary'!$G$7:$BK$372,35,FALSE),"") ->  | AH16: =IFERROR(VLOOKUP($G16,'Technician Summary'!$G$7:$BK$372,37,FALSE),"") ->  | AI16: =IFERROR(VLOOKUP($G16,'Technician Summary'!$G$7:$BK$372,38,FALSE),"") ->  | AK16: =IFERROR(VLOOKUP($G16,'Technician Summary'!$G$7:$BK$372,27,FALSE),"") ->  | AL16: =IFERROR(VLOOKUP($G16,'Technician Summary'!$G$7:$BK$372,68,FALSE),"") -> 
